Workbook

Sheet Velkomst

Sheet Tabel 1 F
A1: Tabel 1. Forsikrede medlemmer
A3: Fyn
C5: Mænd | E5: Kvinder | G5: I alt
A7: Civ. ing. | C7: 930 | E7: 233 | G7: 1163
A8: Diplom ing. | C8: 2529 | E8: 552 | G8: 3081
A9: Cand. Scient. Tek. | C9: 490 | E9: 484 | G9: 974
A10: MA. Hum. | C10: 1020 | E10: 2040 | G10: 3060
A11: MA. Nat. | C11: 588 | E11: 539 | G11: 1127
A12: MA. Ph.d. | C12: 86 | E12: 66 | G12: 152
A13: MA. Samf. | C13: 44 | E13: 94 | G13: 138
A14: Øvrige Mag. | C14: 89 | E14: 134 | G14: 223
A15: Agronom | C15: 89 | E15: 67 | G15: 156
A16: Landsk. Arkt. | C16: 9 | E16: 18 | G16: 27
A17: Hortonom | C17: 21 | E17: 21 | G17: 42
A18: Forstkand. | C18: 19 | E18: 6 | G18: 25
A19: Jordbrugsakad. | C19: 138 | E19: 112 | G19: 250
A20: Mejeriing. | C20: 6 | E20: 8 | G20: 14
A21: Levn.m.kand. | C21: 3 | E21: 9 | G21: 12
A22: Dyrlæge | C22: 19 | E22: 104 | G22: 123
A23: Farmaceut | C23: 56 | E23: 162 | G23: 218
A24: Læge | C24: 423 | E24: 816 | G24: 1239
A25: Tandlæge | C25: 14 | E25: 89 | G25: 103
A26: Arkitekt | C26: 79 | E26: 71 | G26: 150
A27: Landinspek. | C27: 50 | E27: 16 | G27: 66
A28: Bibliotekar | C28: 68 | E28: 153 | G28: 221
A29: Musikudd. | C29: 51 | E29: 46 | G29: 97
A30: Teolog | C30: 41 | E30: 84 | G30: 125
A31: Psykolog | C31: 99 | E31: 366 | G31: 465
A32: Jurist | C32: 194 | E32: 353 | G32: 547
A33: Økonom | C33: 286 | E33: 235 | G33: 521
A34: Samf. Adm. | C34: 522 | E34: 776 | G34: 1298
A35: Cand. Merc. | C35: 891 | E35: 762 | G35: 1653
A36: HA | C36: 209 | E36: 143 | G36: 352
A37: HD | C37: 171 | E37: 144 | G37: 315
A38: Komm. og Sprog | C38: 69 | E38: 344 | G38: 413
A39: Cand. IT. | C39: 79 | E39: 57 | G39: 136
A40: Bac. Samf. | C40: 22 | E40: 30 | G40: 52
A41: Bac. Hum. | C41: 98 | E41: 198 | G41: 296
A42: Bac. Nat. | C42: 81 | E42: 38 | G42: 119
A43: Andre | C43: 617 | E43: 526 | G43: 1143
A45: Total | C45: 10062 | E45: 9784 | G45: 19846
A47: Ingeniører i alt | C47: 3459 | E47: 785 | G47: 4244
A48: Magistre i alt | C48: 1827 | E48: 2873 | G48: 4700
A49: DJØF'ere i alt | C49: 2102 | E49: 2269 | G49: 4371
A56: Middelfart
C58: Mænd | E58: Kvinder | G58: I alt
A60: Civ. ing. | C60: 71 | E60: 23 | G60: 94
A61: Diplom ing. | C61: 234 | E61: 47 | G61: 281
A62: Cand. Scient. Tek. | C62: 20 | E62: 25 | G62: 45
A63: MA. Hum. | C63: 52 | E63: 102 | G63: 154
A64: MA. Nat. | C64: 29 | E64: 32 | G64: 61
A65: MA. Ph.d. | C65: 3 | E65: 2 | G65: 5
A66: MA. Samf. | C66: 0 | E66: 8 | G66: 8
A67: Øvrige Mag. | C67: 2 | E67: 8 | G67: 10
A68: Agronom | C68: 19 | E68: 10 | G68: 29
A69: Landsk. Arkt. | C69: 2 | E69: 0 | G69: 2
A70: Hortonom | C70: 1 | E70: 3 | G70: 4
A71: Forstkand. | C71: 1 | E71: 0 | G71: 1
A72: Jordbrugsakad. | C72: 23 | E72: 13 | G72: 36
A73: Mejeriing. | C73: 2 | E73: 0 | G73: 2
A74: Levn.m.kand. | C74: 0 | E74: 1 | G74: 1
A75: Dyrlæge | C75: 2 | E75: 15 | G75: 17
A76: Farmaceut | C76: 2 | E76: 6 | G76: 8
A77: Læge | C77: 19 | E77: 76 | G77: 95
A78: Tandlæge | C78: 1 | E78: 10 | G78: 11
A79: Arkitekt | C79: 7 | E79: 8 | G79: 15
A80: Landinspek. | C80: 9 | E80: 3 | G80: 12
A81: Bibliotekar | C81: 4 | E81: 15 | G81: 19
A82: Musikudd. | C82: 5 | E82: 2 | G82: 7
A83: Teolog | C83: 4 | E83: 10 | G83: 14
A84: Psykolog | C84: 8 | E84: 28 | G84: 36
A85: Jurist | C85: 10 | E85: 23 | G85: 33
A86: Økonom | C86: 23 | E86: 16 | G86: 39
A87: Samf. Adm. | C87: 29 | E87: 48 | G87: 77
A88: Cand. Merc. | C88: 66 | E88: 60 | G88: 126
A89: HA | C89: 20 | E89: 9 | G89: 29
A90: HD | C90: 7 | E90: 11 | G90: 18
A91: Komm. og Sprog | C91: 2 | E91: 32 | G91: 34
A92: Cand. IT. | C92: 4 | E92: 5 | G92: 9
A93: Bac. Samf. | C93: 1 | E93: 3 | G93: 4
A94: Bac. Hum. | C94: 2 | E94: 7 | G94: 9
A95: Bac. Nat. | C95: 5 | E95: 2 | G95: 7
A96: Andre | C96: 36 | E96: 36 | G96: 72
A98: Total | C98: 702 | E98: 686 | G98: 1388
A100: Ingeniører i alt | C100: 305 | E100: 70 | G100: 375
A101: Magistre i alt | C101: 86 | E101: 152 | G101: 238
A102: DJØF'ere i alt | C102: 148 | E102: 156 | G102: 304
A109: Assens
C111: Mænd | E111: Kvinder | G111: I alt
A113: Civ. ing. | C113: 46 | E113: 10 | G113: 56
A114: Diplom ing. | C114: 193 | E114: 40 | G114: 233
A115: Cand. Scient. Tek. | C115: 19 | E115: 13 | G115: 32
A116: MA. Hum. | C116: 36 | E116: 98 | G116: 134
A117: MA. Nat. | C117: 33 | E117: 23 | G117: 56
A118: MA. Ph.d. | C118: 1 | E118: 1 | G118: 2
A119: MA. Samf. | C119: 2 | E119: 3 | G119: 5
A120: Øvrige Mag. | C120: 4 | E120: 3 | G120: 7
A121: Agronom | C121: 9 | E121: 9 | G121: 18
A122: Landsk. Arkt. | C122: 1 | E122: 6 | G122: 7
A123: Hortonom | C123: 1 | E123: 3 | G123: 4
A124: Forstkand. | C124: 5 | E124: 0 | G124: 5
A125: Jordbrugsakad. | C125: 16 | E125: 18 | G125: 34
A126: Mejeriing. | C126: 2 | E126: 0 | G126: 2
A127: Levn.m.kand. | C127: 0 | E127: 1 | G127: 1
A128: Dyrlæge | C128: 2 | E128: 14 | G128: 16
A129: Farmaceut | C129: 0 | E129: 10 | G129: 10
A130: Læge | C130: 9 | E130: 28 | G130: 37
A131: Tandlæge | C131: 2 | E131: 2 | G131: 4
A132: Arkitekt | C132: 2 | E132: 3 | G132: 5
A133: Landinspek. | C133: 2 | E133: 1 | G133: 3
A134: Bibliotekar | C134: 6 | E134: 9 | G134: 15
A135: Musikudd. | C135: 3 | E135: 7 | G135: 10
A136: Teolog | C136: 4 | E136: 9 | G136: 13
A137: Psykolog | C137: 6 | E137: 17 | G137: 23
A138: Jurist | C138: 5 | E138: 17 | G138: 22
A139: Økonom | C139: 9 | E139: 10 | G139: 19
A140: Samf. Adm. | C140: 20 | E140: 34 | G140: 54
A141: Cand. Merc. | C141: 30 | E141: 22 | G141: 52
A142: HA | C142: 7 | E142: 10 | G142: 17
A143: HD | C143: 10 | E143: 9 | G143: 19
A144: Komm. og Sprog | C144: 2 | E144: 21 | G144: 23
A145: Cand. IT. | C145: 1 | E145: 2 | G145: 3
A146: Bac. Samf. | C146: 0 | E146: 3 | G146: 3
A147: Bac. Hum. | C147: 2 | E147: 13 | G147: 15
A148: Bac. Nat. | C148: 2 | E148: 3 | G148: 5
A149: Andre | C149: 40 | E149: 22 | G149: 62
A151: Total | C151: 516 | E151: 476 | G151: 992
A153: Ingeniører i alt | C153: 239 | E153: 50 | G153: 289
A154: Magistre i alt | C154: 76 | E154: 128 | G154: 204
A155: DJØF'ere i alt | C155: 71 | E155: 93 | G155: 164
A162: Faarborg-Midtfyn
C164: Mænd | E164: Kvinder | G164: I alt
A166: Civ. ing. | C166: 52 | E166: 11 | G166: 63
A167: Diplom ing. | C167: 225 | E167: 38 | G167: 263
A168: Cand. Scient. Tek. | C168: 21 | E168: 25 | G168: 46
A169: MA. Hum. | C169: 54 | E169: 101 | G169: 155
A170: MA. Nat. | C170: 32 | E170: 35 | G170: 67
A171: MA. Ph.d. | C171: 5 | E171: 4 | G171: 9
A172: MA. Samf. | C172: 0 | E172: 2 | G172: 2
A173: Øvrige Mag. | C173: 7 | E173: 8 | G173: 15
A174: Agronom | C174: 10 | E174: 15 | G174: 25
A175: Landsk. Arkt. | C175: 1 | E175: 3 | G175: 4
A176: Hortonom | C176: 3 | E176: 2 | G176: 5
A177: Forstkand. | C177: 5 | E177: 2 | G177: 7
A178: Jordbrugsakad. | C178: 19 | E178: 22 | G178: 41
A179: Mejeriing. | C179: 1 | E179: 2 | G179: 3
A180: Levn.m.kand. | C180: 0 | E180: 2 | G180: 2
A181: Dyrlæge | C181: 1 | E181: 15 | G181: 16
A182: Farmaceut | C182: 2 | E182: 12 | G182: 14
A183: Læge | C183: 12 | E183: 31 | G183: 43
A184: Tandlæge | C184: 2 | E184: 1 | G184: 3
A185: Arkitekt | C185: 9 | E185: 6 | G185: 15
A186: Landinspek. | C186: 3 | E186: 0 | G186: 3
A187: Bibliotekar | C187: 2 | E187: 12 | G187: 14
A188: Musikudd. | C188: 5 | E188: 4 | G188: 9
A189: Teolog | C189: 4 | E189: 11 | G189: 15
A190: Psykolog | C190: 2 | E190: 18 | G190: 20
A191: Jurist | C191: 8 | E191: 24 | G191: 32
A192: Økonom | C192: 12 | E192: 10 | G192: 22
A193: Samf. Adm. | C193: 27 | E193: 46 | G193: 73
A194: Cand. Merc. | C194: 30 | E194: 36 | G194: 66
A195: HA | C195: 10 | E195: 15 | G195: 25
A196: HD | C196: 13 | E196: 15 | G196: 28
A197: Komm. og Sprog | C197: 3 | E197: 10 | G197: 13
A198: Cand. IT. | C198: 4 | E198: 4 | G198: 8
A199: Bac. Samf. | C199: 3 | E199: 2 | G199: 5
A200: Bac. Hum. | C200: 4 | E200: 13 | G200: 17
A201: Bac. Nat. | C201: 3 | E201: 1 | G201: 4
A202: Andre | C202: 47 | E202: 33 | G202: 80
A204: Total | C204: 622 | E204: 569 | G204: 1191
A206: Ingeniører i alt | C206: 277 | E206: 49 | G206: 326
A207: Magistre i alt | C207: 98 | E207: 150 | G207: 248
A208: DJØF'ere i alt | C208: 87 | E208: 131 | G208: 218
A215: Kerteminde
C217: Mænd | E217: Kvinder | G217: I alt
A219: Civ. ing. | C219: 23 | E219: 8 | G219: 31
A220: Diplom ing. | C220: 112 | E220: 29 | G220: 141
A221: Cand. Scient. Tek. | C221: 10 | E221: 10 | G221: 20
A222: MA. Hum. | C222: 27 | E222: 60 | G222: 87
A223: MA. Nat. | C223: 17 | E223: 14 | G223: 31
A224: MA. Ph.d. | C224: 3 | E224: 3 | G224: 6
A225: MA. Samf. | C225: 1 | E225: 1 | G225: 2
A226: Øvrige Mag. | C226: 1 | E226: 4 | G226: 5
A227: Agronom | C227: 1 | E227: 2 | G227: 3
A228: Landsk. Arkt. | C228: 2 | E228: 1 | G228: 3
A229: Hortonom | C229: 1 | E229: 2 | G229: 3
A230: Forstkand. | C230: 0 | E230: 1 | G230: 1
A231: Jordbrugsakad. | C231: 4 | E231: 6 | G231: 10
A232: Mejeriing. | C232: 0 | E232: 0 | G232: 0
A233: Levn.m.kand. | C233: 0 | E233: 0 | G233: 0
A234: Dyrlæge | C234: 0 | E234: 2 | G234: 2
A235: Farmaceut | C235: 0 | E235: 2 | G235: 2
A236: Læge | C236: 7 | E236: 9 | G236: 16
A237: Tandlæge | C237: 0 | E237: 3 | G237: 3
A238: Arkitekt | C238: 1 | E238: 2 | G238: 3
A239: Landinspek. | C239: 3 | E239: 1 | G239: 4
A240: Bibliotekar | C240: 1 | E240: 3 | G240: 4
A241: Musikudd. | C241: 3 | E241: 3 | G241: 6
A242: Teolog | C242: 1 | E242: 4 | G242: 5
A243: Psykolog | C243: 1 | E243: 7 | G243: 8
... 275 more rows

Sheet Tabel 2 F
A1: Tabel 2. Antal bruttoledighedsberørte og gennemsnitlig antal ledige brutto
A3: Fyn
C5: Mænd | F5: Kvinder | I5: I alt
C6: Ledigheds- berørte | D6: Gns. brutto- ledighed | F6: Ledigheds- berørte | G6: Gns. brutto- ledighed | I6: Ledigheds- berørte | J6: Gns. brutto- ledighed
A9: Civ. ing. | C9: 47 | D9: 33.82897773 | F9: 15 | G9: 11.13391131 | I9: 62 | J9: 44.96288904
A10: Diplom ing. | C10: 73 | D10: 48.10391068 | F10: 29 | G10: 15.09449261 | I10: 102 | J10: 63.19840329
A11: Cand. Scient. Tek. | C11: 52 | D11: 45.53109212 | F11: 76 | G11: 64.57868147 | I11: 128 | J11: 110.1097736
A12: MA. Hum. | C12: 124 | D12: 101.6821556 | F12: 230 | G12: 194.7445893 | I12: 354 | J12: 296.4267448
A13: MA. Nat. | C13: 29 | D13: 24.10154057 | F13: 25 | G13: 22.94268072 | I13: 54 | J13: 47.04422129
A14: MA. Ph.d. | C14: 5 | D14: 4.828166906 | F14: 3 | G14: 2.758685212 | I14: 8 | J14: 7.586852118
A15: MA. Samf. | C15: 14 | D15: 11.57550053 | F15: 18 | G15: 14.82380091 | I15: 32 | J15: 26.39930144
A16: Øvrige Mag. | C16: 5 | D16: 4.525665814 | F16: 11 | G16: 10.3118568 | I16: 16 | J16: 14.83752261
A17: Agronom | C17: 2 | D17: 1.999625772 | F17: 1 | G17: 0.793987401 | I17: 3 | J17: 2.793613173
A18: Landsk. Arkt. | C18: 1 | D18: 0.9998128859 | F18: 0 | G18: 0 | I18: 1 | J18: 0.9998128859
A19: Hortonom | C19: 1 | D19: 0.5756876442 | F19: 0 | G19: 0 | I19: 1 | J19: 0.5756876442
A20: Forstkand. | C20: 1 | D20: 0.9998128859 | F20: 0 | G20: 0 | I20: 1 | J20: 0.9998128859
A21: Jordbrugsakad. | C21: 5 | D21: 4.574939188 | F21: 1 | G21: 0.793987401 | I21: 6 | J21: 5.368926589
A22: Mejeriing. | C22: 0 | D22: 0 | F22: 1 | G22: 0.3536456059 | I22: 1 | J22: 0.3536456059
A23: Levn.m.kand. | C23: 0 | D23: 0 | F23: 0 | G23: 0 | I23: 0 | J23: 0
A24: Dyrlæge | C24: 2 | D24: 1.227468347 | F24: 6 | G24: 4.787625522 | I24: 8 | J24: 6.015093869
A25: Farmaceut | C25: 5 | D25: 4.860600012 | F25: 8 | G25: 5.577246928 | I25: 13 | J25: 10.43784694
A26: Læge | C26: 16 | D26: 7.919915175 | F26: 25 | G26: 12.63394249 | I26: 41 | J26: 20.55385767
A27: Tandlæge | C27: 0 | D27: 0 | F27: 0 | G27: 0 | I27: 0 | J27: 0
A28: Arkitekt | C28: 6 | D28: 5.398864841 | F28: 7 | G28: 6.167903699 | I28: 13 | J28: 11.56676854
A29: Landinspek. | C29: 0 | D29: 0 | F29: 0 | G29: 0 | I29: 0 | J29: 0
A30: Bibliotekar | C30: 3 | D30: 2.740597518 | F30: 8 | G30: 6.509698746 | I30: 11 | J30: 9.250296264
A31: Musikudd. | C31: 2 | D31: 1.585479948 | F31: 0 | G31: 0 | I31: 2 | J31: 1.585479948
A32: Teolog | C32: 0 | D32: 0 | F32: 3 | G32: 2.194848126 | I32: 3 | J32: 2.194848126
A33: Psykolog | C33: 10 | D33: 8.381463232 | F33: 24 | G33: 20.94430238 | I33: 34 | J33: 29.32576561
A34: Jurist | C34: 7 | D34: 5.320900642 | F34: 6 | G34: 3.901952224 | I34: 13 | J34: 9.222852866
A35: Økonom | C35: 14 | D35: 10.47090376 | F35: 8 | G35: 5.602195472 | I35: 22 | J35: 16.07309923
A36: Samf. Adm. | C36: 41 | D36: 36.48786877 | F36: 67 | G36: 56.95191168 | I36: 108 | J36: 93.43978045
A37: Cand. Merc. | C37: 76 | D37: 62.34266825 | F37: 68 | G37: 58.62970124 | I37: 144 | J37: 120.9723695
A38: HA | C38: 19 | D38: 15.52734984 | F38: 15 | G38: 13.27699121 | I38: 34 | J38: 28.80434105
A39: HD | C39: 11 | D39: 8.430736606 | F39: 24 | G39: 20.53265141 | I39: 35 | J39: 28.96338801
A40: Komm. og Sprog | C40: 13 | D40: 11.32663881 | F40: 25 | G40: 21.72581551 | I40: 38 | J40: 33.05245431
A41: Cand. IT. | C41: 6 | D41: 4.417139649 | F41: 8 | G41: 7.352335807 | I41: 14 | J41: 11.76947546
A42: Bac. Samf. | C42: 2 | D42: 1.999625772 | F42: 0 | G42: 0 | I42: 2 | J42: 1.999625772
A43: Bac. Hum. | C43: 16 | D43: 14.16391193 | F43: 23 | G43: 16.69868396 | I43: 39 | J43: 30.8625959
A44: Bac. Nat. | C44: 6 | D44: 5.491174453 | F44: 8 | G44: 6.263955592 | I44: 14 | J44: 11.75513004
A45: Andre | C45: 41 | D45: 32.94829414 | F45: 41 | G45: 37.00056134 | I45: 82 | J45: 69.94885549
A47: Total | C47: =SUM(C9:C45)-C21 -> 650 | D47: 519.7935508 | E47: 0 | F47: 783 | G47: 644.2886546 | H47: 0 | I47: 1433 | J47: =SUM(J9:J45)-J21 -> 1164.082205
A49: Ingeniører i alt | C49: 120 | D49: 81.93288842 | F49: 44 | G49: 26.22840392 | I49: 164 | J49: 108.1612923
A50: Magistre i alt | C50: 177 | D50: 146.7130294 | F50: 287 | G50: 245.5816129 | I50: 464 | J50: 392.2946423
A51: DJØF'ere i alt | C51: 157 | D51: 130.1496913 | F51: 164 | G51: 138.3627518 | I51: 321 | J51: 268.5124431
A56: Middelfart
C58: Mænd | F58: Kvinder | I58: I alt
C59: Ledigheds- berørte | D59: Gns. brutto- ledighed | F59: Ledigheds- berørte | G59: Gns. brutto- ledighed | I59: Ledigheds- berørte | J59: Gns. brutto- ledighed
A62: Civ. ing. | C62: 1 | D62: 0.9998128859 | F62: 0 | G62: 0 | I62: 1 | J62: 0.9998128859
A63: Diplom ing. | C63: 1 | D63: 0.6305744402 | F63: 0 | G63: 0 | I63: 1 | J63: 0.6305744402
A64: Cand. Scient. Tek. | C64: 2 | D64: 1.999625772 | F64: 2 | G64: 1.829975675 | I64: 4 | J64: 3.829601447
A65: MA. Hum. | C65: 5 | D65: 4.168277927 | F65: 8 | G65: 6.988710784 | I65: 13 | J65: 11.15698871
A66: MA. Nat. | C66: 0 | D66: 0 | F66: 0 | G66: 0 | I66: 0 | J66: 0
A67: MA. Ph.d. | C67: 0 | D67: 0 | F67: 0 | G67: 0 | I67: 0 | J67: 0
A68: MA. Samf. | C68: 0 | D68: 0 | F68: 0 | G68: 0 | I68: 0 | J68: 0
A69: Øvrige Mag. | C69: 0 | D69: 0 | F69: 0 | G69: 0 | I69: 0 | J69: 0
A70: Agronom | C70: 0 | D70: 0 | F70: 0 | G70: 0 | I70: 0 | J70: 0
A71: Landsk. Arkt. | C71: 1 | D71: 0.9998128859 | F71: 0 | G71: 0 | I71: 1 | J71: 0.9998128859
A72: Hortonom | C72: 0 | D72: 0 | F72: 0 | G72: 0 | I72: 0 | J72: 0
A73: Forstkand. | C73: 0 | D73: 0 | F73: 0 | G73: 0 | I73: 0 | J73: 0
A74: Jordbrugsakad. | C74: 1 | D74: 0.9998128859 | F74: 0 | G74: 0 | I74: 1 | J74: 0.9998128859
A75: Mejeriing. | C75: 0 | D75: 0 | F75: 0 | G75: 0 | I75: 0 | J75: 0
A76: Levn.m.kand. | C76: 0 | D76: 0 | F76: 0 | G76: 0 | I76: 0 | J76: 0
A77: Dyrlæge | C77: 0 | D77: 0 | F77: 1 | G77: 0.8613484688 | I77: 1 | J77: 0.8613484688
A78: Farmaceut | C78: 1 | D78: 0.9998128859 | F78: 0 | G78: 0 | I78: 1 | J78: 0.9998128859
A79: Læge | C79: 0 | D79: 0 | F79: 1 | G79: 0.9998128859 | I79: 1 | J79: 0.9998128859
A80: Tandlæge | C80: 0 | D80: 0 | F80: 0 | G80: 0 | I80: 0 | J80: 0
A81: Arkitekt | C81: 1 | D81: 0.9998128859 | F81: 0 | G81: 0 | I81: 1 | J81: 0.9998128859
A82: Landinspek. | C82: 0 | D82: 0 | F82: 0 | G82: 0 | I82: 0 | J82: 0
A83: Bibliotekar | C83: 1 | D83: 0.9998128859 | F83: 0 | G83: 0 | I83: 1 | J83: 0.9998128859
A84: Musikudd. | C84: 0 | D84: 0 | F84: 0 | G84: 0 | I84: 0 | J84: 0
A85: Teolog | C85: 0 | D85: 0 | F85: 2 | G85: 1.287344851 | I85: 2 | J85: 1.287344851
A86: Psykolog | C86: 0 | D86: 0 | F86: 0 | G86: 0 | I86: 0 | J86: 0
A87: Jurist | C87: 1 | D87: 0.9998128859 | F87: 0 | G87: 0 | I87: 1 | J87: 0.9998128859
A88: Økonom | C88: 0 | D88: 0 | F88: 0 | G88: 0 | I88: 0 | J88: 0
A89: Samf. Adm. | C89: 1 | D89: 0.3998004117 | F89: 2 | G89: 1.999625772 | I89: 3 | J89: 2.399426183
A90: Cand. Merc. | C90: 4 | D90: 2.753071789 | F90: 2 | G90: 1.999625772 | I90: 6 | J90: 4.752697561
A91: HA | C91: 1 | D91: 0.9998128859 | F91: 0 | G91: 0 | I91: 1 | J91: 0.9998128859
A92: HD | C92: 1 | D92: 0.9998128859 | F92: 0 | G92: 0 | I92: 1 | J92: 0.9998128859
A93: Komm. og Sprog | C93: 1 | D93: 0.8613484688 | F93: 1 | G93: 0.982972619 | I93: 2 | J93: 1.844321088
A94: Cand. IT. | C94: 0 | D94: 0 | F94: 0 | G94: 0 | I94: 0 | J94: 0
A95: Bac. Samf. | C95: 0 | D95: 0 | F95: 0 | G95: 0 | I95: 0 | J95: 0
A96: Bac. Hum. | C96: 0 | D96: 0 | F96: 1 | G96: 0.1640366744 | I96: 1 | J96: 0.1640366744
A97: Bac. Nat. | C97: 0 | D97: 0 | F97: 1 | G97: 0.9998128859 | I97: 1 | J97: 0.9998128859
A98: Andre | C98: 3 | D98: 2.887170211 | F98: 2 | G98: 1.861161355 | I98: 5 | J98: 4.748331566
A100: Total | C100: 25 | D100: 21.69837211 | F100: 23 | G100: 19.97442774 | I100: 48 | J100: 41.67279985
A102: Ingeniører i alt | C102: 2 | D102: 1.630387326 | F102: 0 | G102: 0 | I102: 2 | J102: 1.630387326
A103: Magistre i alt | C103: 5 | D103: 4.168277927 | F103: 8 | G103: 6.988710784 | I103: 13 | J103: 11.15698871
A104: DJØF'ere i alt | C104: 7 | D104: 5.152497973 | F104: 4 | G104: 3.999251544 | I104: 11 | J104: 9.151749517
A109: Assens
C111: Mænd | F111: Kvinder | I111: I alt
C112: Ledigheds- berørte | D112: Gns. brutto- ledighed | F112: Ledigheds- berørte | G112: Gns. brutto- ledighed | I112: Ledigheds- berørte | J112: Gns. brutto- ledighed
A115: Civ. ing. | C115: 2 | D115: 1.307303686 | F115: 0 | G115: 0 | I115: 2 | J115: 1.307303686
A116: Diplom ing. | C116: 5 | D116: 3.537079773 | F116: 1 | G116: 0.7690388574 | I116: 6 | J116: 4.30611863
A117: Cand. Scient. Tek. | C117: 2 | D117: 1.410216429 | F117: 1 | G117: 0.7690388574 | I117: 3 | J117: 2.179255286
A118: MA. Hum. | C118: 1 | D118: 0.8251730805 | F118: 5 | G118: 3.568265453 | I118: 6 | J118: 4.393438533
A119: MA. Nat. | C119: 0 | D119: 0 | F119: 2 | G119: 1.999625772 | I119: 2 | J119: 1.999625772
A120: MA. Ph.d. | C120: 0 | D120: 0 | F120: 0 | G120: 0 | I120: 0 | J120: 0
A121: MA. Samf. | C121: 1 | D121: 0.9998128859 | F121: 0 | G121: 0 | I121: 1 | J121: 0.9998128859
A122: Øvrige Mag. | C122: 0 | D122: 0 | F122: 0 | G122: 0 | I122: 0 | J122: 0
A123: Agronom | C123: 0 | D123: 0 | F123: 0 | G123: 0 | I123: 0 | J123: 0
A124: Landsk. Arkt. | C124: 0 | D124: 0 | F124: 0 | G124: 0 | I124: 0 | J124: 0
A125: Hortonom | C125: 0 | D125: 0 | F125: 0 | G125: 0 | I125: 0 | J125: 0
A126: Forstkand. | C126: 1 | D126: 0.9998128859 | F126: 0 | G126: 0 | I126: 1 | J126: 0.9998128859
A127: Jordbrugsakad. | C127: 1 | D127: 0.9998128859 | F127: 0 | G127: 0 | I127: 1 | J127: 0.9998128859
A128: Mejeriing. | C128: 0 | D128: 0 | F128: 0 | G128: 0 | I128: 0 | J128: 0
A129: Levn.m.kand. | C129: 0 | D129: 0 | F129: 0 | G129: 0 | I129: 0 | J129: 0
A130: Dyrlæge | C130: 0 | D130: 0 | F130: 1 | G130: 0.8151936631 | I130: 1 | J130: 0.8151936631
A131: Farmaceut | C131: 0 | D131: 0 | F131: 0 | G131: 0 | I131: 0 | J131: 0
A132: Læge | C132: 0 | D132: 0 | F132: 0 | G132: 0 | I132: 0 | J132: 0
A133: Tandlæge | C133: 0 | D133: 0 | F133: 0 | G133: 0 | I133: 0 | J133: 0
A134: Arkitekt | C134: 0 | D134: 0 | F134: 0 | G134: 0 | I134: 0 | J134: 0
A135: Landinspek. | C135: 0 | D135: 0 | F135: 0 | G135: 0 | I135: 0 | J135: 0
A136: Bibliotekar | C136: 0 | D136: 0 | F136: 0 | G136: 0 | I136: 0 | J136: 0
A137: Musikudd. | C137: 0 | D137: 0 | F137: 0 | G137: 0 | I137: 0 | J137: 0
A138: Teolog | C138: 0 | D138: 0 | F138: 0 | G138: 0 | I138: 0 | J138: 0
A139: Psykolog | C139: 0 | D139: 0 | F139: 2 | G139: 1.491922909 | I139: 2 | J139: 1.491922909
A140: Jurist | C140: 0 | D140: 0 | F140: 0 | G140: 0 | I140: 0 | J140: 0
A141: Økonom | C141: 0 | D141: 0 | F141: 0 | G141: 0 | I141: 0 | J141: 0
A142: Samf. Adm. | C142: 0 | D142: 0 | F142: 1 | G142: 0.9998128859 | I142: 1 | J142: 0.9998128859
A143: Cand. Merc. | C143: 1 | D143: 0.9704983472 | F143: 0 | G143: 0 | I143: 1 | J143: 0.9704983472
A144: HA | C144: 0 | D144: 0 | F144: 1 | G144: 0.8151936631 | I144: 1 | J144: 0.8151936631
A145: HD | C145: 0 | D145: 0 | F145: 0 | G145: 0 | I145: 0 | J145: 0
A146: Komm. og Sprog | C146: 1 | D146: 0.1409592715 | F146: 1 | G146: 0.8463793426 | I146: 2 | J146: 0.9873386141
A147: Cand. IT. | C147: 0 | D147: 0 | F147: 0 | G147: 0 | I147: 0 | J147: 0
A148: Bac. Samf. | C148: 0 | D148: 0 | F148: 0 | G148: 0 | I148: 0 | J148: 0
A149: Bac. Hum. | C149: 1 | D149: 0.9998128859 | F149: 1 | G149: 0.2101914801 | I149: 2 | J149: 1.210004366
A150: Bac. Nat. | C150: 0 | D150: 0 | F150: 1 | G150: 0.9998128859 | I150: 1 | J150: 0.9998128859
A151: Andre | C151: 0 | D151: 0 | F151: 0 | G151: 0 | I151: 0 | J151: 0
A153: Total | C153: 15 | D153: 11.19066924 | F153: 17 | G153: 13.28447577 | I153: 32 | J153: 24.47514501
A155: Ingeniører i alt | C155: 7 | D155: 4.844383459 | F155: 1 | G155: 0.7690388574 | I155: 8 | J155: 5.613422316
A156: Magistre i alt | C156: 2 | D156: 1.824985966 | F156: 7 | G156: 5.567891224 | I156: 9 | J156: 7.392877191
A157: DJØF'ere i alt | C157: 1 | D157: 0.9704983472 | F157: 2 | G157: 1.815006549 | I157: 3 | J157: 2.785504896
A162: Faaborg-Midtfyn
C164: Mænd | F164: Kvinder | I164: I alt
C165: Ledigheds- berørte | D165: Gns. brutto- ledighed | F165: Ledigheds- berørte | G165: Gns. brutto- ledighed | I165: Ledigheds- berørte | J165: Gns. brutto- ledighed
A168: Civ. ing. | C168: 3 | D168: 2.999438658 | F168: 0 | G168: 0 | I168: 3 | J168: 2.999438658
A169: Diplom ing. | C169: 3 | D169: 2.168652155 | F169: 0 | G169: 0 | I169: 3 | J169: 2.168652155
A170: Cand. Scient. Tek. | C170: 1 | D170: 0.9075032745 | F170: 1 | G170: 0.9075032745 | I170: 2 | J170: 1.815006549
A171: MA. Hum. | C171: 5 | D171: 4.96787875 | F171: 8 | G171: 6.213434791 | I171: 13 | J171: 11.18131354
A172: MA. Nat. | C172: 1 | D172: 0.4696563338 | F172: 0 | G172: 0 | I172: 1 | J172: 0.4696563338
A173: MA. Ph.d. | C173: 0 | D173: 0 | F173: 0 | G173: 0 | I173: 0 | J173: 0
A174: MA. Samf. | C174: 0 | D174: 0 | F174: 0 | G174: 0 | I174: 0 | J174: 0
A175: Øvrige Mag. | C175: 0 | D175: 0 | F175: 0 | G175: 0 | I175: 0 | J175: 0
A176: Agronom | C176: 0 | D176: 0 | F176: 1 | G176: 0.793987401 | I176: 1 | J176: 0.793987401
A177: Landsk. Arkt. | C177: 0 | D177: 0 | F177: 0 | G177: 0 | I177: 0 | J177: 0
A178: Hortonom | C178: 0 | D178: 0 | F178: 0 | G178: 0 | I178: 0 | J178: 0
A179: Forstkand. | C179: 0 | D179: 0 | F179: 0 | G179: 0 | I179: 0 | J179: 0
A180: Jordbrugsakad. | C180: 0 | D180: 0 | F180: 1 | G180: 0.793987401 | I180: 1 | J180: 0.793987401
A181: Mejeriing. | C181: 0 | D181: 0 | F181: 0 | G181: 0 | I181: 0 | J181: 0
A182: Levn.m.kand. | C182: 0 | D182: 0 | F182: 0 | G182: 0 | I182: 0 | J182: 0
A183: Dyrlæge | C183: 0 | D183: 0 | F183: 0 | G183: 0 | I183: 0 | J183: 0
A184: Farmaceut | C184: 0 | D184: 0 | F184: 0 | G184: 0 | I184: 0 | J184: 0
A185: Læge | C185: 0 | D185: 0 | F185: 0 | G185: 0 | I185: 0 | J185: 0
A186: Tandlæge | C186: 0 | D186: 0 | F186: 0 | G186: 0 | I186: 0 | J186: 0
A187: Arkitekt | C187: 1 | D187: 0.5844196345 | F187: 1 | G187: 0.8613484688 | I187: 2 | J187: 1.445768103
A188: Landinspek. | C188: 0 | D188: 0 | F188: 0 | G188: 0 | I188: 0 | J188: 0
A189: Bibliotekar | C189: 0 | D189: 0 | F189: 1 | G189: 0.9998128859 | I189: 1 | J189: 0.9998128859
A190: Musikudd. | C190: 1 | D190: 0.5856670617 | F190: 0 | G190: 0 | I190: 1 | J190: 0.5856670617
A191: Teolog | C191: 0 | D191: 0 | F191: 0 | G191: 0 | I191: 0 | J191: 0
A192: Psykolog | C192: 0 | D192: 0 | F192: 0 | G192: 0 | I192: 0 | J192: 0
A193: Jurist | C193: 0 | D193: 0 | F193: 0 | G193: 0 | I193: 0 | J193: 0
A194: Økonom | C194: 0 | D194: 0 | F194: 0 | G194: 0 | I194: 0 | J194: 0
A195: Samf. Adm. | C195: 1 | D195: 0.9998128859 | F195: 4 | G195: 2.476142955 | I195: 5 | J195: 3.475955841
A196: Cand. Merc. | C196: 0 | D196: 0 | F196: 3 | G196: 2.466787251 | I196: 3 | J196: 2.466787251
A197: HA | C197: 1 | D197: 0.3074908002 | F197: 2 | G197: 1.953470966 | I197: 3 | J197: 2.260961766
A198: HD | C198: 0 | D198: 0 | F198: 3 | G198: 2.999438658 | I198: 3 | J198: 2.999438658
A199: Komm. og Sprog | C199: 0 | D199: 0 | F199: 0 | G199: 0 | I199: 0 | J199: 0
A200: Cand. IT. | C200: 0 | D200: 0 | F200: 0 | G200: 0 | I200: 0 | J200: 0
A201: Bac. Samf. | C201: 0 | D201: 0 | F201: 0 | G201: 0 | I201: 0 | J201: 0
A202: Bac. Hum. | C202: 0 | D202: 0 | F202: 2 | G202: 1.627268758 | I202: 2 | J202: 1.627268758
A203: Bac. Nat. | C203: 0 | D203: 0 | F203: 0 | G203: 0 | I203: 0 | J203: 0
A204: Andre | C204: 3 | D204: 2.999438658 | F204: 2 | G204: 1.58423252 | I204: 5 | J204: 4.583671178
A206: Total | C206: 20 | D206: 16.98995821 | F206: 28 | G206: 22.88342793 | I206: 48 | J206: 39.87338614
A208: Ingeniører i alt | C208: 6 | D208: 5.168090813 | F208: 0 | G208: 0 | I208: 6 | J208: 5.168090813
A209: Magistre i alt | C209: 6 | D209: 5.437535084 | F209: 8 | G209: 6.213434791 | I209: 14 | J209: 11.65096987
A210: DJØF'ere i alt | C210: 2 | D210: 1.307303686 | F210: 9 | G210: 6.896401173 | I210: 11 | J210: 8.203704859
A215: Kerteminde
C217: Mænd | F217: Kvinder | I217: I alt
C218: Ledigheds- berørte | D218: Gns. brutto- ledighed | F218: Ledigheds- berørte | G218: Gns. brutto- ledighed | I218: Ledigheds- berørte | J218: Gns. brutto- ledighed
A221: Civ. ing. | C221: 1 | D221: 0.8775650221 | F221: 0 | G221: 0 | I221: 1 | J221: 0.8775650221
A222: Diplom ing. | C222: 1 | D222: 0.9998128859 | F222: 0 | G222: 0 | I222: 1 | J222: 0.9998128859
A223: Cand. Scient. Tek. | C223: 1 | D223: 0.8151936631 | F223: 1 | G223: 0.9998128859 | I223: 2 | J223: 1.815006549
A224: MA. Hum. | C224: 2 | D224: 0.8781887357 | F224: 7 | G224: 5.034616104 | I224: 9 | J224: 5.91280484
A225: MA. Nat. | C225: 0 | D225: 0 | F225: 0 | G225: 0 | I225: 0 | J225: 0
A226: MA. Ph.d. | C226: 0 | D226: 0 | F226: 0 | G226: 0 | I226: 0 | J226: 0
A227: MA. Samf. | C227: 0 | D227: 0 | F227: 0 | G227: 0 | I227: 0 | J227: 0
A228: Øvrige Mag. | C228: 0 | D228: 0 | F228: 0 | G228: 0 | I228: 0 | J228: 0
A229: Agronom | C229: 0 | D229: 0 | F229: 0 | G229: 0 | I229: 0 | J229: 0
A230: Landsk. Arkt. | C230: 0 | D230: 0 | F230: 0 | G230: 0 | I230: 0 | J230: 0
A231: Hortonom | C231: 0 | D231: 0 | F231: 0 | G231: 0 | I231: 0 | J231: 0
A232: Forstkand. | C232: 0 | D232: 0 | F232: 0 | G232: 0 | I232: 0 | J232: 0
A233: Jordbrugsakad. | C233: 0 | D233: 0 | F233: 0 | G233: 0 | I233: 0 | J233: 0
A234: Mejeriing. | C234: 0 | D234: 0 | F234: 0 | G234: 0 | I234: 0 | J234: 0
A235: Levn.m.kand. | C235: 0 | D235: 0 | F235: 0 | G235: 0 | I235: 0 | J235: 0
A236: Dyrlæge | C236: 0 | D236: 0 | F236: 0 | G236: 0 | I236: 0 | J236: 0
A237: Farmaceut | C237: 0 | D237: 0 | F237: 0 | G237: 0 | I237: 0 | J237: 0
A238: Læge | C238: 0 | D238: 0 | F238: 0 | G238: 0 | I238: 0 | J238: 0
A239: Tandlæge | C239: 0 | D239: 0 | F239: 0 | G239: 0 | I239: 0 | J239: 0
A240: Arkitekt | C240: 1 | D240: 0.9075032745 | F240: 0 | G240: 0 | I240: 1 | J240: 0.9075032745
... 285 more rows

Sheet Tabel 3 F
A1: Tabel 3. Ledige i procent af forsikrede
A3: Fyn
C5: Mænd | F5: Kvinder | I5: I alt
C6: Ledigheds- berørte | D6: Gns. brutto- ledighed | F6: Ledigheds- berørte | G6: Gns. brutto- ledighed | I6: Ledigheds- berørte | J6: Gns. brutto- ledighed
A9: Civ. ing. | C9: =IF(OR('Tabel 1 F'!C7<5,'Tabel 2 F'!C9<0.5),"-",IFERROR('Tabel 2 F'!C9/'Tabel 1 F'!C7*100,"-")) -> 5.053763441 | D9: =IF(OR('Tabel 1 F'!C7<5,'Tabel 2 F'!D9<0.5),"-",IFERROR('Tabel 2 F'!D9/'Tabel 1 F'!C7*100,"-")) -> 3.637524487 | F9: =IF(OR('Tabel 1 F'!E7<5,'Tabel 2 F'!F9<0.5),"-",IFERROR('Tabel 2 F'!F9/'Tabel 1 F'!E7*100,"-")) -> 6.43776824 | G9: =IF(OR('Tabel 1 F'!E7<5,'Tabel 2 F'!G9<0.5),"-",IFERROR('Tabel 2 F'!G9/'Tabel 1 F'!E7*100,"-")) -> 4.778502707 | I9: =IF(OR('Tabel 1 F'!G7<5,'Tabel 2 F'!I9<0.5),"-",IFERROR('Tabel 2 F'!I9/'Tabel 1 F'!G7*100,"-")) -> 5.331040413 | J9: =IF(OR('Tabel 1 F'!G7<5,'Tabel 2 F'!J9<0.5),"-",IFERROR('Tabel 2 F'!J9/'Tabel 1 F'!G7*100,"-")) -> 3.866112557
A10: Diplom ing. | C10: =IF(OR('Tabel 1 F'!C8<5,'Tabel 2 F'!C10<0.5),"-",IFERROR('Tabel 2 F'!C10/'Tabel 1 F'!C8*100,"-")) -> 2.88651641 | D10: =IF(OR('Tabel 1 F'!C8<5,'Tabel 2 F'!D10<0.5),"-",IFERROR('Tabel 2 F'!D10/'Tabel 1 F'!C8*100,"-")) -> 1.902092158 | F10: =IF(OR('Tabel 1 F'!E8<5,'Tabel 2 F'!F10<0.5),"-",IFERROR('Tabel 2 F'!F10/'Tabel 1 F'!E8*100,"-")) -> 5.253623188 | G10: =IF(OR('Tabel 1 F'!E8<5,'Tabel 2 F'!G10<0.5),"-",IFERROR('Tabel 2 F'!G10/'Tabel 1 F'!E8*100,"-")) -> 2.734509531 | I10: =IF(OR('Tabel 1 F'!G8<5,'Tabel 2 F'!I10<0.5),"-",IFERROR('Tabel 2 F'!I10/'Tabel 1 F'!G8*100,"-")) -> 3.310613437 | J10: =IF(OR('Tabel 1 F'!G8<5,'Tabel 2 F'!J10<0.5),"-",IFERROR('Tabel 2 F'!J10/'Tabel 1 F'!G8*100,"-")) -> 2.051230227
A11: Cand. Scient. Tek. | C11: =IF(OR('Tabel 1 F'!C9<5,'Tabel 2 F'!C11<0.5),"-",IFERROR('Tabel 2 F'!C11/'Tabel 1 F'!C9*100,"-")) -> 10.6122449 | D11: =IF(OR('Tabel 1 F'!C9<5,'Tabel 2 F'!D11<0.5),"-",IFERROR('Tabel 2 F'!D11/'Tabel 1 F'!C9*100,"-")) -> 9.292059617 | F11: =IF(OR('Tabel 1 F'!E9<5,'Tabel 2 F'!F11<0.5),"-",IFERROR('Tabel 2 F'!F11/'Tabel 1 F'!E9*100,"-")) -> 15.70247934 | G11: =IF(OR('Tabel 1 F'!E9<5,'Tabel 2 F'!G11<0.5),"-",IFERROR('Tabel 2 F'!G11/'Tabel 1 F'!E9*100,"-")) -> 13.34270278 | I11: =IF(OR('Tabel 1 F'!G9<5,'Tabel 2 F'!I11<0.5),"-",IFERROR('Tabel 2 F'!I11/'Tabel 1 F'!G9*100,"-")) -> 13.14168378 | J11: =IF(OR('Tabel 1 F'!G9<5,'Tabel 2 F'!J11<0.5),"-",IFERROR('Tabel 2 F'!J11/'Tabel 1 F'!G9*100,"-")) -> 11.30490489
A12: MA. Hum. | C12: =IF(OR('Tabel 1 F'!C10<5,'Tabel 2 F'!C12<0.5),"-",IFERROR('Tabel 2 F'!C12/'Tabel 1 F'!C10*100,"-")) -> 12.15686275 | D12: =IF(OR('Tabel 1 F'!C10<5,'Tabel 2 F'!D12<0.5),"-",IFERROR('Tabel 2 F'!D12/'Tabel 1 F'!C10*100,"-")) -> 9.96883878 | F12: =IF(OR('Tabel 1 F'!E10<5,'Tabel 2 F'!F12<0.5),"-",IFERROR('Tabel 2 F'!F12/'Tabel 1 F'!E10*100,"-")) -> 11.2745098 | G12: =IF(OR('Tabel 1 F'!E10<5,'Tabel 2 F'!G12<0.5),"-",IFERROR('Tabel 2 F'!G12/'Tabel 1 F'!E10*100,"-")) -> 9.546303396 | I12: =IF(OR('Tabel 1 F'!G10<5,'Tabel 2 F'!I12<0.5),"-",IFERROR('Tabel 2 F'!I12/'Tabel 1 F'!G10*100,"-")) -> 11.56862745 | J12: =IF(OR('Tabel 1 F'!G10<5,'Tabel 2 F'!J12<0.5),"-",IFERROR('Tabel 2 F'!J12/'Tabel 1 F'!G10*100,"-")) -> 9.687148524
A13: MA. Nat. | C13: =IF(OR('Tabel 1 F'!C11<5,'Tabel 2 F'!C13<0.5),"-",IFERROR('Tabel 2 F'!C13/'Tabel 1 F'!C11*100,"-")) -> 4.931972789 | D13: =IF(OR('Tabel 1 F'!C11<5,'Tabel 2 F'!D13<0.5),"-",IFERROR('Tabel 2 F'!D13/'Tabel 1 F'!C11*100,"-")) -> 4.098901458 | F13: =IF(OR('Tabel 1 F'!E11<5,'Tabel 2 F'!F13<0.5),"-",IFERROR('Tabel 2 F'!F13/'Tabel 1 F'!E11*100,"-")) -> 4.638218924 | G13: =IF(OR('Tabel 1 F'!E11<5,'Tabel 2 F'!G13<0.5),"-",IFERROR('Tabel 2 F'!G13/'Tabel 1 F'!E11*100,"-")) -> 4.256527035 | I13: =IF(OR('Tabel 1 F'!G11<5,'Tabel 2 F'!I13<0.5),"-",IFERROR('Tabel 2 F'!I13/'Tabel 1 F'!G11*100,"-")) -> 4.79148181 | J13: =IF(OR('Tabel 1 F'!G11<5,'Tabel 2 F'!J13<0.5),"-",IFERROR('Tabel 2 F'!J13/'Tabel 1 F'!G11*100,"-")) -> 4.174287604
A14: MA. Ph.d. | C14: =IF(OR('Tabel 1 F'!C12<5,'Tabel 2 F'!C14<0.5),"-",IFERROR('Tabel 2 F'!C14/'Tabel 1 F'!C12*100,"-")) -> 5.813953488 | D14: =IF(OR('Tabel 1 F'!C12<5,'Tabel 2 F'!D14<0.5),"-",IFERROR('Tabel 2 F'!D14/'Tabel 1 F'!C12*100,"-")) -> 5.614147565 | F14: =IF(OR('Tabel 1 F'!E12<5,'Tabel 2 F'!F14<0.5),"-",IFERROR('Tabel 2 F'!F14/'Tabel 1 F'!E12*100,"-")) -> 4.545454545 | G14: =IF(OR('Tabel 1 F'!E12<5,'Tabel 2 F'!G14<0.5),"-",IFERROR('Tabel 2 F'!G14/'Tabel 1 F'!E12*100,"-")) -> 4.179826078 | I14: =IF(OR('Tabel 1 F'!G12<5,'Tabel 2 F'!I14<0.5),"-",IFERROR('Tabel 2 F'!I14/'Tabel 1 F'!G12*100,"-")) -> 5.263157895 | J14: =IF(OR('Tabel 1 F'!G12<5,'Tabel 2 F'!J14<0.5),"-",IFERROR('Tabel 2 F'!J14/'Tabel 1 F'!G12*100,"-")) -> 4.991350077
A15: MA. Samf. | C15: =IF(OR('Tabel 1 F'!C13<5,'Tabel 2 F'!C15<0.5),"-",IFERROR('Tabel 2 F'!C15/'Tabel 1 F'!C13*100,"-")) -> 31.81818182 | D15: =IF(OR('Tabel 1 F'!C13<5,'Tabel 2 F'!D15<0.5),"-",IFERROR('Tabel 2 F'!D15/'Tabel 1 F'!C13*100,"-")) -> 26.30795575 | F15: =IF(OR('Tabel 1 F'!E13<5,'Tabel 2 F'!F15<0.5),"-",IFERROR('Tabel 2 F'!F15/'Tabel 1 F'!E13*100,"-")) -> 19.14893617 | G15: =IF(OR('Tabel 1 F'!E13<5,'Tabel 2 F'!G15<0.5),"-",IFERROR('Tabel 2 F'!G15/'Tabel 1 F'!E13*100,"-")) -> 15.77000097 | I15: =IF(OR('Tabel 1 F'!G13<5,'Tabel 2 F'!I15<0.5),"-",IFERROR('Tabel 2 F'!I15/'Tabel 1 F'!G13*100,"-")) -> 23.1884058 | J15: =IF(OR('Tabel 1 F'!G13<5,'Tabel 2 F'!J15<0.5),"-",IFERROR('Tabel 2 F'!J15/'Tabel 1 F'!G13*100,"-")) -> 19.12992858
A16: Øvrige Mag. | C16: =IF(OR('Tabel 1 F'!C14<5,'Tabel 2 F'!C16<0.5),"-",IFERROR('Tabel 2 F'!C16/'Tabel 1 F'!C14*100,"-")) -> 5.617977528 | D16: =IF(OR('Tabel 1 F'!C14<5,'Tabel 2 F'!D16<0.5),"-",IFERROR('Tabel 2 F'!D16/'Tabel 1 F'!C14*100,"-")) -> 5.085017769 | F16: =IF(OR('Tabel 1 F'!E14<5,'Tabel 2 F'!F16<0.5),"-",IFERROR('Tabel 2 F'!F16/'Tabel 1 F'!E14*100,"-")) -> 8.208955224 | G16: =IF(OR('Tabel 1 F'!E14<5,'Tabel 2 F'!G16<0.5),"-",IFERROR('Tabel 2 F'!G16/'Tabel 1 F'!E14*100,"-")) -> 7.695415519 | I16: =IF(OR('Tabel 1 F'!G14<5,'Tabel 2 F'!I16<0.5),"-",IFERROR('Tabel 2 F'!I16/'Tabel 1 F'!G14*100,"-")) -> 7.174887892 | J16: =IF(OR('Tabel 1 F'!G14<5,'Tabel 2 F'!J16<0.5),"-",IFERROR('Tabel 2 F'!J16/'Tabel 1 F'!G14*100,"-")) -> 6.653597583
A17: Agronom | C17: =IF(OR('Tabel 1 F'!C15<5,'Tabel 2 F'!C17<0.5),"-",IFERROR('Tabel 2 F'!C17/'Tabel 1 F'!C15*100,"-")) -> 2.247191011 | D17: =IF(OR('Tabel 1 F'!C15<5,'Tabel 2 F'!D17<0.5),"-",IFERROR('Tabel 2 F'!D17/'Tabel 1 F'!C15*100,"-")) -> 2.24677053 | F17: =IF(OR('Tabel 1 F'!E15<5,'Tabel 2 F'!F17<0.5),"-",IFERROR('Tabel 2 F'!F17/'Tabel 1 F'!E15*100,"-")) -> 1.492537313 | G17: =IF(OR('Tabel 1 F'!E15<5,'Tabel 2 F'!G17<0.5),"-",IFERROR('Tabel 2 F'!G17/'Tabel 1 F'!E15*100,"-")) -> 1.185055822 | I17: =IF(OR('Tabel 1 F'!G15<5,'Tabel 2 F'!I17<0.5),"-",IFERROR('Tabel 2 F'!I17/'Tabel 1 F'!G15*100,"-")) -> 1.923076923 | J17: =IF(OR('Tabel 1 F'!G15<5,'Tabel 2 F'!J17<0.5),"-",IFERROR('Tabel 2 F'!J17/'Tabel 1 F'!G15*100,"-")) -> 1.790777675
A18: Landsk. Arkt. | C18: =IF(OR('Tabel 1 F'!C16<5,'Tabel 2 F'!C18<0.5),"-",IFERROR('Tabel 2 F'!C18/'Tabel 1 F'!C16*100,"-")) -> 11.11111111 | D18: =IF(OR('Tabel 1 F'!C16<5,'Tabel 2 F'!D18<0.5),"-",IFERROR('Tabel 2 F'!D18/'Tabel 1 F'!C16*100,"-")) -> 11.10903207 | F18: =IF(OR('Tabel 1 F'!E16<5,'Tabel 2 F'!F18<0.5),"-",IFERROR('Tabel 2 F'!F18/'Tabel 1 F'!E16*100,"-")) -> - | G18: =IF(OR('Tabel 1 F'!E16<5,'Tabel 2 F'!G18<0.5),"-",IFERROR('Tabel 2 F'!G18/'Tabel 1 F'!E16*100,"-")) -> - | I18: =IF(OR('Tabel 1 F'!G16<5,'Tabel 2 F'!I18<0.5),"-",IFERROR('Tabel 2 F'!I18/'Tabel 1 F'!G16*100,"-")) -> 3.703703704 | J18: =IF(OR('Tabel 1 F'!G16<5,'Tabel 2 F'!J18<0.5),"-",IFERROR('Tabel 2 F'!J18/'Tabel 1 F'!G16*100,"-")) -> 3.703010689
A19: Hortonom | C19: =IF(OR('Tabel 1 F'!C17<5,'Tabel 2 F'!C19<0.5),"-",IFERROR('Tabel 2 F'!C19/'Tabel 1 F'!C17*100,"-")) -> 4.761904762 | D19: =IF(OR('Tabel 1 F'!C17<5,'Tabel 2 F'!D19<0.5),"-",IFERROR('Tabel 2 F'!D19/'Tabel 1 F'!C17*100,"-")) -> 2.741369734 | F19: =IF(OR('Tabel 1 F'!E17<5,'Tabel 2 F'!F19<0.5),"-",IFERROR('Tabel 2 F'!F19/'Tabel 1 F'!E17*100,"-")) -> - | G19: =IF(OR('Tabel 1 F'!E17<5,'Tabel 2 F'!G19<0.5),"-",IFERROR('Tabel 2 F'!G19/'Tabel 1 F'!E17*100,"-")) -> - | I19: =IF(OR('Tabel 1 F'!G17<5,'Tabel 2 F'!I19<0.5),"-",IFERROR('Tabel 2 F'!I19/'Tabel 1 F'!G17*100,"-")) -> 2.380952381 | J19: =IF(OR('Tabel 1 F'!G17<5,'Tabel 2 F'!J19<0.5),"-",IFERROR('Tabel 2 F'!J19/'Tabel 1 F'!G17*100,"-")) -> 1.370684867
A20: Forstkand. | C20: =IF(OR('Tabel 1 F'!C18<5,'Tabel 2 F'!C20<0.5),"-",IFERROR('Tabel 2 F'!C20/'Tabel 1 F'!C18*100,"-")) -> 5.263157895 | D20: =IF(OR('Tabel 1 F'!C18<5,'Tabel 2 F'!D20<0.5),"-",IFERROR('Tabel 2 F'!D20/'Tabel 1 F'!C18*100,"-")) -> 5.262173084 | F20: =IF(OR('Tabel 1 F'!E18<5,'Tabel 2 F'!F20<0.5),"-",IFERROR('Tabel 2 F'!F20/'Tabel 1 F'!E18*100,"-")) -> - | G20: =IF(OR('Tabel 1 F'!E18<5,'Tabel 2 F'!G20<0.5),"-",IFERROR('Tabel 2 F'!G20/'Tabel 1 F'!E18*100,"-")) -> - | I20: =IF(OR('Tabel 1 F'!G18<5,'Tabel 2 F'!I20<0.5),"-",IFERROR('Tabel 2 F'!I20/'Tabel 1 F'!G18*100,"-")) -> 4 | J20: =IF(OR('Tabel 1 F'!G18<5,'Tabel 2 F'!J20<0.5),"-",IFERROR('Tabel 2 F'!J20/'Tabel 1 F'!G18*100,"-")) -> 3.999251544
A21: Jordbrugsakad. | C21: =IF(OR('Tabel 1 F'!C19<5,'Tabel 2 F'!C21<0.5),"-",IFERROR('Tabel 2 F'!C21/'Tabel 1 F'!C19*100,"-")) -> 3.623188406 | D21: =IF(OR('Tabel 1 F'!C19<5,'Tabel 2 F'!D21<0.5),"-",IFERROR('Tabel 2 F'!D21/'Tabel 1 F'!C19*100,"-")) -> 3.315173325 | F21: =IF(OR('Tabel 1 F'!E19<5,'Tabel 2 F'!F21<0.5),"-",IFERROR('Tabel 2 F'!F21/'Tabel 1 F'!E19*100,"-")) -> 0.8928571429 | G21: =IF(OR('Tabel 1 F'!E19<5,'Tabel 2 F'!G21<0.5),"-",IFERROR('Tabel 2 F'!G21/'Tabel 1 F'!E19*100,"-")) -> 0.7089173223 | I21: =IF(OR('Tabel 1 F'!G19<5,'Tabel 2 F'!I21<0.5),"-",IFERROR('Tabel 2 F'!I21/'Tabel 1 F'!G19*100,"-")) -> 2.4 | J21: =IF(OR('Tabel 1 F'!G19<5,'Tabel 2 F'!J21<0.5),"-",IFERROR('Tabel 2 F'!J21/'Tabel 1 F'!G19*100,"-")) -> 2.147570636
A22: Mejeriing. | C22: =IF(OR('Tabel 1 F'!C20<5,'Tabel 2 F'!C22<0.5),"-",IFERROR('Tabel 2 F'!C22/'Tabel 1 F'!C20*100,"-")) -> - | D22: =IF(OR('Tabel 1 F'!C20<5,'Tabel 2 F'!D22<0.5),"-",IFERROR('Tabel 2 F'!D22/'Tabel 1 F'!C20*100,"-")) -> - | F22: =IF(OR('Tabel 1 F'!E20<5,'Tabel 2 F'!F22<0.5),"-",IFERROR('Tabel 2 F'!F22/'Tabel 1 F'!E20*100,"-")) -> 12.5 | G22: =IF(OR('Tabel 1 F'!E20<5,'Tabel 2 F'!G22<0.5),"-",IFERROR('Tabel 2 F'!G22/'Tabel 1 F'!E20*100,"-")) -> - | I22: =IF(OR('Tabel 1 F'!G20<5,'Tabel 2 F'!I22<0.5),"-",IFERROR('Tabel 2 F'!I22/'Tabel 1 F'!G20*100,"-")) -> 7.142857143 | J22: =IF(OR('Tabel 1 F'!G20<5,'Tabel 2 F'!J22<0.5),"-",IFERROR('Tabel 2 F'!J22/'Tabel 1 F'!G20*100,"-")) -> -
A23: Levn.m.kand. | C23: =IF(OR('Tabel 1 F'!C21<5,'Tabel 2 F'!C23<0.5),"-",IFERROR('Tabel 2 F'!C23/'Tabel 1 F'!C21*100,"-")) -> - | D23: =IF(OR('Tabel 1 F'!C21<5,'Tabel 2 F'!D23<0.5),"-",IFERROR('Tabel 2 F'!D23/'Tabel 1 F'!C21*100,"-")) -> - | F23: =IF(OR('Tabel 1 F'!E21<5,'Tabel 2 F'!F23<0.5),"-",IFERROR('Tabel 2 F'!F23/'Tabel 1 F'!E21*100,"-")) -> - | G23: =IF(OR('Tabel 1 F'!E21<5,'Tabel 2 F'!G23<0.5),"-",IFERROR('Tabel 2 F'!G23/'Tabel 1 F'!E21*100,"-")) -> - | I23: =IF(OR('Tabel 1 F'!G21<5,'Tabel 2 F'!I23<0.5),"-",IFERROR('Tabel 2 F'!I23/'Tabel 1 F'!G21*100,"-")) -> - | J23: =IF(OR('Tabel 1 F'!G21<5,'Tabel 2 F'!J23<0.5),"-",IFERROR('Tabel 2 F'!J23/'Tabel 1 F'!G21*100,"-")) -> -
A24: Dyrlæge | C24: =IF(OR('Tabel 1 F'!C22<5,'Tabel 2 F'!C24<0.5),"-",IFERROR('Tabel 2 F'!C24/'Tabel 1 F'!C22*100,"-")) -> 10.52631579 | D24: =IF(OR('Tabel 1 F'!C22<5,'Tabel 2 F'!D24<0.5),"-",IFERROR('Tabel 2 F'!D24/'Tabel 1 F'!C22*100,"-")) -> 6.460359719 | F24: =IF(OR('Tabel 1 F'!E22<5,'Tabel 2 F'!F24<0.5),"-",IFERROR('Tabel 2 F'!F24/'Tabel 1 F'!E22*100,"-")) -> 5.769230769 | G24: =IF(OR('Tabel 1 F'!E22<5,'Tabel 2 F'!G24<0.5),"-",IFERROR('Tabel 2 F'!G24/'Tabel 1 F'!E22*100,"-")) -> 4.603486079 | I24: =IF(OR('Tabel 1 F'!G22<5,'Tabel 2 F'!I24<0.5),"-",IFERROR('Tabel 2 F'!I24/'Tabel 1 F'!G22*100,"-")) -> 6.504065041 | J24: =IF(OR('Tabel 1 F'!G22<5,'Tabel 2 F'!J24<0.5),"-",IFERROR('Tabel 2 F'!J24/'Tabel 1 F'!G22*100,"-")) -> 4.890320219
A25: Farmaceut | C25: =IF(OR('Tabel 1 F'!C23<5,'Tabel 2 F'!C25<0.5),"-",IFERROR('Tabel 2 F'!C25/'Tabel 1 F'!C23*100,"-")) -> 8.928571429 | D25: =IF(OR('Tabel 1 F'!C23<5,'Tabel 2 F'!D25<0.5),"-",IFERROR('Tabel 2 F'!D25/'Tabel 1 F'!C23*100,"-")) -> 8.679642879 | F25: =IF(OR('Tabel 1 F'!E23<5,'Tabel 2 F'!F25<0.5),"-",IFERROR('Tabel 2 F'!F25/'Tabel 1 F'!E23*100,"-")) -> 4.938271605 | G25: =IF(OR('Tabel 1 F'!E23<5,'Tabel 2 F'!G25<0.5),"-",IFERROR('Tabel 2 F'!G25/'Tabel 1 F'!E23*100,"-")) -> 3.442745017 | I25: =IF(OR('Tabel 1 F'!G23<5,'Tabel 2 F'!I25<0.5),"-",IFERROR('Tabel 2 F'!I25/'Tabel 1 F'!G23*100,"-")) -> 5.963302752 | J25: =IF(OR('Tabel 1 F'!G23<5,'Tabel 2 F'!J25<0.5),"-",IFERROR('Tabel 2 F'!J25/'Tabel 1 F'!G23*100,"-")) -> 4.788003184
A26: Læge | C26: =IF(OR('Tabel 1 F'!C24<5,'Tabel 2 F'!C26<0.5),"-",IFERROR('Tabel 2 F'!C26/'Tabel 1 F'!C24*100,"-")) -> 3.78250591 | D26: =IF(OR('Tabel 1 F'!C24<5,'Tabel 2 F'!D26<0.5),"-",IFERROR('Tabel 2 F'!D26/'Tabel 1 F'!C24*100,"-")) -> 1.872320372 | F26: =IF(OR('Tabel 1 F'!E24<5,'Tabel 2 F'!F26<0.5),"-",IFERROR('Tabel 2 F'!F26/'Tabel 1 F'!E24*100,"-")) -> 3.06372549 | G26: =IF(OR('Tabel 1 F'!E24<5,'Tabel 2 F'!G26<0.5),"-",IFERROR('Tabel 2 F'!G26/'Tabel 1 F'!E24*100,"-")) -> 1.548277266 | I26: =IF(OR('Tabel 1 F'!G24<5,'Tabel 2 F'!I26<0.5),"-",IFERROR('Tabel 2 F'!I26/'Tabel 1 F'!G24*100,"-")) -> 3.309120258 | J26: =IF(OR('Tabel 1 F'!G24<5,'Tabel 2 F'!J26<0.5),"-",IFERROR('Tabel 2 F'!J26/'Tabel 1 F'!G24*100,"-")) -> 1.658906995
A27: Tandlæge | C27: =IF(OR('Tabel 1 F'!C25<5,'Tabel 2 F'!C27<0.5),"-",IFERROR('Tabel 2 F'!C27/'Tabel 1 F'!C25*100,"-")) -> - | D27: =IF(OR('Tabel 1 F'!C25<5,'Tabel 2 F'!D27<0.5),"-",IFERROR('Tabel 2 F'!D27/'Tabel 1 F'!C25*100,"-")) -> - | F27: =IF(OR('Tabel 1 F'!E25<5,'Tabel 2 F'!F27<0.5),"-",IFERROR('Tabel 2 F'!F27/'Tabel 1 F'!E25*100,"-")) -> - | G27: =IF(OR('Tabel 1 F'!E25<5,'Tabel 2 F'!G27<0.5),"-",IFERROR('Tabel 2 F'!G27/'Tabel 1 F'!E25*100,"-")) -> - | I27: =IF(OR('Tabel 1 F'!G25<5,'Tabel 2 F'!I27<0.5),"-",IFERROR('Tabel 2 F'!I27/'Tabel 1 F'!G25*100,"-")) -> - | J27: =IF(OR('Tabel 1 F'!G25<5,'Tabel 2 F'!J27<0.5),"-",IFERROR('Tabel 2 F'!J27/'Tabel 1 F'!G25*100,"-")) -> -
A28: Arkitekt | C28: =IF(OR('Tabel 1 F'!C26<5,'Tabel 2 F'!C28<0.5),"-",IFERROR('Tabel 2 F'!C28/'Tabel 1 F'!C26*100,"-")) -> 7.594936709 | D28: =IF(OR('Tabel 1 F'!C26<5,'Tabel 2 F'!D28<0.5),"-",IFERROR('Tabel 2 F'!D28/'Tabel 1 F'!C26*100,"-")) -> 6.834006128 | F28: =IF(OR('Tabel 1 F'!E26<5,'Tabel 2 F'!F28<0.5),"-",IFERROR('Tabel 2 F'!F28/'Tabel 1 F'!E26*100,"-")) -> 9.85915493 | G28: =IF(OR('Tabel 1 F'!E26<5,'Tabel 2 F'!G28<0.5),"-",IFERROR('Tabel 2 F'!G28/'Tabel 1 F'!E26*100,"-")) -> 8.687188308 | I28: =IF(OR('Tabel 1 F'!G26<5,'Tabel 2 F'!I28<0.5),"-",IFERROR('Tabel 2 F'!I28/'Tabel 1 F'!G26*100,"-")) -> 8.666666667 | J28: =IF(OR('Tabel 1 F'!G26<5,'Tabel 2 F'!J28<0.5),"-",IFERROR('Tabel 2 F'!J28/'Tabel 1 F'!G26*100,"-")) -> 7.711179027
A29: Landinspek. | C29: =IF(OR('Tabel 1 F'!C27<5,'Tabel 2 F'!C29<0.5),"-",IFERROR('Tabel 2 F'!C29/'Tabel 1 F'!C27*100,"-")) -> - | D29: =IF(OR('Tabel 1 F'!C27<5,'Tabel 2 F'!D29<0.5),"-",IFERROR('Tabel 2 F'!D29/'Tabel 1 F'!C27*100,"-")) -> - | F29: =IF(OR('Tabel 1 F'!E27<5,'Tabel 2 F'!F29<0.5),"-",IFERROR('Tabel 2 F'!F29/'Tabel 1 F'!E27*100,"-")) -> - | G29: =IF(OR('Tabel 1 F'!E27<5,'Tabel 2 F'!G29<0.5),"-",IFERROR('Tabel 2 F'!G29/'Tabel 1 F'!E27*100,"-")) -> - | I29: =IF(OR('Tabel 1 F'!G27<5,'Tabel 2 F'!I29<0.5),"-",IFERROR('Tabel 2 F'!I29/'Tabel 1 F'!G27*100,"-")) -> - | J29: =IF(OR('Tabel 1 F'!G27<5,'Tabel 2 F'!J29<0.5),"-",IFERROR('Tabel 2 F'!J29/'Tabel 1 F'!G27*100,"-")) -> -
A30: Bibliotekar | C30: =IF(OR('Tabel 1 F'!C28<5,'Tabel 2 F'!C30<0.5),"-",IFERROR('Tabel 2 F'!C30/'Tabel 1 F'!C28*100,"-")) -> 4.411764706 | D30: =IF(OR('Tabel 1 F'!C28<5,'Tabel 2 F'!D30<0.5),"-",IFERROR('Tabel 2 F'!D30/'Tabel 1 F'!C28*100,"-")) -> 4.030290467 | F30: =IF(OR('Tabel 1 F'!E28<5,'Tabel 2 F'!F30<0.5),"-",IFERROR('Tabel 2 F'!F30/'Tabel 1 F'!E28*100,"-")) -> 5.22875817 | G30: =IF(OR('Tabel 1 F'!E28<5,'Tabel 2 F'!G30<0.5),"-",IFERROR('Tabel 2 F'!G30/'Tabel 1 F'!E28*100,"-")) -> 4.254705063 | I30: =IF(OR('Tabel 1 F'!G28<5,'Tabel 2 F'!I30<0.5),"-",IFERROR('Tabel 2 F'!I30/'Tabel 1 F'!G28*100,"-")) -> 4.977375566 | J30: =IF(OR('Tabel 1 F'!G28<5,'Tabel 2 F'!J30<0.5),"-",IFERROR('Tabel 2 F'!J30/'Tabel 1 F'!G28*100,"-")) -> 4.185654418
A31: Musikudd. | C31: =IF(OR('Tabel 1 F'!C29<5,'Tabel 2 F'!C31<0.5),"-",IFERROR('Tabel 2 F'!C31/'Tabel 1 F'!C29*100,"-")) -> 3.921568627 | D31: =IF(OR('Tabel 1 F'!C29<5,'Tabel 2 F'!D31<0.5),"-",IFERROR('Tabel 2 F'!D31/'Tabel 1 F'!C29*100,"-")) -> 3.108784211 | F31: =IF(OR('Tabel 1 F'!E29<5,'Tabel 2 F'!F31<0.5),"-",IFERROR('Tabel 2 F'!F31/'Tabel 1 F'!E29*100,"-")) -> - | G31: =IF(OR('Tabel 1 F'!E29<5,'Tabel 2 F'!G31<0.5),"-",IFERROR('Tabel 2 F'!G31/'Tabel 1 F'!E29*100,"-")) -> - | I31: =IF(OR('Tabel 1 F'!G29<5,'Tabel 2 F'!I31<0.5),"-",IFERROR('Tabel 2 F'!I31/'Tabel 1 F'!G29*100,"-")) -> 2.06185567 | J31: =IF(OR('Tabel 1 F'!G29<5,'Tabel 2 F'!J31<0.5),"-",IFERROR('Tabel 2 F'!J31/'Tabel 1 F'!G29*100,"-")) -> 1.63451541
A32: Teolog | C32: =IF(OR('Tabel 1 F'!C30<5,'Tabel 2 F'!C32<0.5),"-",IFERROR('Tabel 2 F'!C32/'Tabel 1 F'!C30*100,"-")) -> - | D32: =IF(OR('Tabel 1 F'!C30<5,'Tabel 2 F'!D32<0.5),"-",IFERROR('Tabel 2 F'!D32/'Tabel 1 F'!C30*100,"-")) -> - | F32: =IF(OR('Tabel 1 F'!E30<5,'Tabel 2 F'!F32<0.5),"-",IFERROR('Tabel 2 F'!F32/'Tabel 1 F'!E30*100,"-")) -> 3.571428571 | G32: =IF(OR('Tabel 1 F'!E30<5,'Tabel 2 F'!G32<0.5),"-",IFERROR('Tabel 2 F'!G32/'Tabel 1 F'!E30*100,"-")) -> 2.612914435 | I32: =IF(OR('Tabel 1 F'!G30<5,'Tabel 2 F'!I32<0.5),"-",IFERROR('Tabel 2 F'!I32/'Tabel 1 F'!G30*100,"-")) -> 2.4 | J32: =IF(OR('Tabel 1 F'!G30<5,'Tabel 2 F'!J32<0.5),"-",IFERROR('Tabel 2 F'!J32/'Tabel 1 F'!G30*100,"-")) -> 1.755878501
A33: Psykolog | C33: =IF(OR('Tabel 1 F'!C31<5,'Tabel 2 F'!C33<0.5),"-",IFERROR('Tabel 2 F'!C33/'Tabel 1 F'!C31*100,"-")) -> 10.1010101 | D33: =IF(OR('Tabel 1 F'!C31<5,'Tabel 2 F'!D33<0.5),"-",IFERROR('Tabel 2 F'!D33/'Tabel 1 F'!C31*100,"-")) -> 8.466124477 | F33: =IF(OR('Tabel 1 F'!E31<5,'Tabel 2 F'!F33<0.5),"-",IFERROR('Tabel 2 F'!F33/'Tabel 1 F'!E31*100,"-")) -> 6.557377049 | G33: =IF(OR('Tabel 1 F'!E31<5,'Tabel 2 F'!G33<0.5),"-",IFERROR('Tabel 2 F'!G33/'Tabel 1 F'!E31*100,"-")) -> 5.722486988 | I33: =IF(OR('Tabel 1 F'!G31<5,'Tabel 2 F'!I33<0.5),"-",IFERROR('Tabel 2 F'!I33/'Tabel 1 F'!G31*100,"-")) -> 7.311827957 | J33: =IF(OR('Tabel 1 F'!G31<5,'Tabel 2 F'!J33<0.5),"-",IFERROR('Tabel 2 F'!J33/'Tabel 1 F'!G31*100,"-")) -> 6.30661626
A34: Jurist | C34: =IF(OR('Tabel 1 F'!C32<5,'Tabel 2 F'!C34<0.5),"-",IFERROR('Tabel 2 F'!C34/'Tabel 1 F'!C32*100,"-")) -> 3.608247423 | D34: =IF(OR('Tabel 1 F'!C32<5,'Tabel 2 F'!D34<0.5),"-",IFERROR('Tabel 2 F'!D34/'Tabel 1 F'!C32*100,"-")) -> 2.74273229 | F34: =IF(OR('Tabel 1 F'!E32<5,'Tabel 2 F'!F34<0.5),"-",IFERROR('Tabel 2 F'!F34/'Tabel 1 F'!E32*100,"-")) -> 1.699716714 | G34: =IF(OR('Tabel 1 F'!E32<5,'Tabel 2 F'!G34<0.5),"-",IFERROR('Tabel 2 F'!G34/'Tabel 1 F'!E32*100,"-")) -> 1.105368902 | I34: =IF(OR('Tabel 1 F'!G32<5,'Tabel 2 F'!I34<0.5),"-",IFERROR('Tabel 2 F'!I34/'Tabel 1 F'!G32*100,"-")) -> 2.376599634 | J34: =IF(OR('Tabel 1 F'!G32<5,'Tabel 2 F'!J34<0.5),"-",IFERROR('Tabel 2 F'!J34/'Tabel 1 F'!G32*100,"-")) -> 1.686079135
A35: Økonom | C35: =IF(OR('Tabel 1 F'!C33<5,'Tabel 2 F'!C35<0.5),"-",IFERROR('Tabel 2 F'!C35/'Tabel 1 F'!C33*100,"-")) -> 4.895104895 | D35: =IF(OR('Tabel 1 F'!C33<5,'Tabel 2 F'!D35<0.5),"-",IFERROR('Tabel 2 F'!D35/'Tabel 1 F'!C33*100,"-")) -> 3.661155161 | F35: =IF(OR('Tabel 1 F'!E33<5,'Tabel 2 F'!F35<0.5),"-",IFERROR('Tabel 2 F'!F35/'Tabel 1 F'!E33*100,"-")) -> 3.404255319 | G35: =IF(OR('Tabel 1 F'!E33<5,'Tabel 2 F'!G35<0.5),"-",IFERROR('Tabel 2 F'!G35/'Tabel 1 F'!E33*100,"-")) -> 2.383912967 | I35: =IF(OR('Tabel 1 F'!G33<5,'Tabel 2 F'!I35<0.5),"-",IFERROR('Tabel 2 F'!I35/'Tabel 1 F'!G33*100,"-")) -> 4.222648752 | J35: =IF(OR('Tabel 1 F'!G33<5,'Tabel 2 F'!J35<0.5),"-",IFERROR('Tabel 2 F'!J35/'Tabel 1 F'!G33*100,"-")) -> 3.085047837
A36: Samf. Adm. | C36: =IF(OR('Tabel 1 F'!C34<5,'Tabel 2 F'!C36<0.5),"-",IFERROR('Tabel 2 F'!C36/'Tabel 1 F'!C34*100,"-")) -> 7.85440613 | D36: =IF(OR('Tabel 1 F'!C34<5,'Tabel 2 F'!D36<0.5),"-",IFERROR('Tabel 2 F'!D36/'Tabel 1 F'!C34*100,"-")) -> 6.990013174 | F36: =IF(OR('Tabel 1 F'!E34<5,'Tabel 2 F'!F36<0.5),"-",IFERROR('Tabel 2 F'!F36/'Tabel 1 F'!E34*100,"-")) -> 8.634020619 | G36: =IF(OR('Tabel 1 F'!E34<5,'Tabel 2 F'!G36<0.5),"-",IFERROR('Tabel 2 F'!G36/'Tabel 1 F'!E34*100,"-")) -> 7.339163877 | I36: =IF(OR('Tabel 1 F'!G34<5,'Tabel 2 F'!I36<0.5),"-",IFERROR('Tabel 2 F'!I36/'Tabel 1 F'!G34*100,"-")) -> 8.320493066 | J36: =IF(OR('Tabel 1 F'!G34<5,'Tabel 2 F'!J36<0.5),"-",IFERROR('Tabel 2 F'!J36/'Tabel 1 F'!G34*100,"-")) -> 7.19875042
A37: Cand. Merc. | C37: =IF(OR('Tabel 1 F'!C35<5,'Tabel 2 F'!C37<0.5),"-",IFERROR('Tabel 2 F'!C37/'Tabel 1 F'!C35*100,"-")) -> 8.529741863 | D37: =IF(OR('Tabel 1 F'!C35<5,'Tabel 2 F'!D37<0.5),"-",IFERROR('Tabel 2 F'!D37/'Tabel 1 F'!C35*100,"-")) -> 6.996932463 | F37: =IF(OR('Tabel 1 F'!E35<5,'Tabel 2 F'!F37<0.5),"-",IFERROR('Tabel 2 F'!F37/'Tabel 1 F'!E35*100,"-")) -> 8.923884514 | G37: =IF(OR('Tabel 1 F'!E35<5,'Tabel 2 F'!G37<0.5),"-",IFERROR('Tabel 2 F'!G37/'Tabel 1 F'!E35*100,"-")) -> 7.694186515 | I37: =IF(OR('Tabel 1 F'!G35<5,'Tabel 2 F'!I37<0.5),"-",IFERROR('Tabel 2 F'!I37/'Tabel 1 F'!G35*100,"-")) -> 8.711433757 | J37: =IF(OR('Tabel 1 F'!G35<5,'Tabel 2 F'!J37<0.5),"-",IFERROR('Tabel 2 F'!J37/'Tabel 1 F'!G35*100,"-")) -> 7.318352661
A38: HA | C38: =IF(OR('Tabel 1 F'!C36<5,'Tabel 2 F'!C38<0.5),"-",IFERROR('Tabel 2 F'!C38/'Tabel 1 F'!C36*100,"-")) -> 9.090909091 | D38: =IF(OR('Tabel 1 F'!C36<5,'Tabel 2 F'!D38<0.5),"-",IFERROR('Tabel 2 F'!D38/'Tabel 1 F'!C36*100,"-")) -> 7.429353991 | F38: =IF(OR('Tabel 1 F'!E36<5,'Tabel 2 F'!F38<0.5),"-",IFERROR('Tabel 2 F'!F38/'Tabel 1 F'!E36*100,"-")) -> 10.48951049 | G38: =IF(OR('Tabel 1 F'!E36<5,'Tabel 2 F'!G38<0.5),"-",IFERROR('Tabel 2 F'!G38/'Tabel 1 F'!E36*100,"-")) -> 9.284609235 | I38: =IF(OR('Tabel 1 F'!G36<5,'Tabel 2 F'!I38<0.5),"-",IFERROR('Tabel 2 F'!I38/'Tabel 1 F'!G36*100,"-")) -> 9.659090909 | J38: =IF(OR('Tabel 1 F'!G36<5,'Tabel 2 F'!J38<0.5),"-",IFERROR('Tabel 2 F'!J38/'Tabel 1 F'!G36*100,"-")) -> 8.183051434
A39: HD | C39: =IF(OR('Tabel 1 F'!C37<5,'Tabel 2 F'!C39<0.5),"-",IFERROR('Tabel 2 F'!C39/'Tabel 1 F'!C37*100,"-")) -> 6.432748538 | D39: =IF(OR('Tabel 1 F'!C37<5,'Tabel 2 F'!D39<0.5),"-",IFERROR('Tabel 2 F'!D39/'Tabel 1 F'!C37*100,"-")) -> 4.930255325 | F39: =IF(OR('Tabel 1 F'!E37<5,'Tabel 2 F'!F39<0.5),"-",IFERROR('Tabel 2 F'!F39/'Tabel 1 F'!E37*100,"-")) -> 16.66666667 | G39: =IF(OR('Tabel 1 F'!E37<5,'Tabel 2 F'!G39<0.5),"-",IFERROR('Tabel 2 F'!G39/'Tabel 1 F'!E37*100,"-")) -> 14.2587857 | I39: =IF(OR('Tabel 1 F'!G37<5,'Tabel 2 F'!I39<0.5),"-",IFERROR('Tabel 2 F'!I39/'Tabel 1 F'!G37*100,"-")) -> 11.11111111 | J39: =IF(OR('Tabel 1 F'!G37<5,'Tabel 2 F'!J39<0.5),"-",IFERROR('Tabel 2 F'!J39/'Tabel 1 F'!G37*100,"-")) -> 9.194726353
A40: Komm. og Sprog | C40: =IF(OR('Tabel 1 F'!C38<5,'Tabel 2 F'!C40<0.5),"-",IFERROR('Tabel 2 F'!C40/'Tabel 1 F'!C38*100,"-")) -> 18.84057971 | D40: =IF(OR('Tabel 1 F'!C38<5,'Tabel 2 F'!D40<0.5),"-",IFERROR('Tabel 2 F'!D40/'Tabel 1 F'!C38*100,"-")) -> 16.41541856 | F40: =IF(OR('Tabel 1 F'!E38<5,'Tabel 2 F'!F40<0.5),"-",IFERROR('Tabel 2 F'!F40/'Tabel 1 F'!E38*100,"-")) -> 7.26744186 | G40: =IF(OR('Tabel 1 F'!E38<5,'Tabel 2 F'!G40<0.5),"-",IFERROR('Tabel 2 F'!G40/'Tabel 1 F'!E38*100,"-")) -> 6.315644042 | I40: =IF(OR('Tabel 1 F'!G38<5,'Tabel 2 F'!I40<0.5),"-",IFERROR('Tabel 2 F'!I40/'Tabel 1 F'!G38*100,"-")) -> 9.200968523 | J40: =IF(OR('Tabel 1 F'!G38<5,'Tabel 2 F'!J40<0.5),"-",IFERROR('Tabel 2 F'!J40/'Tabel 1 F'!G38*100,"-")) -> 8.003015572
A41: Cand. IT. | C41: =IF(OR('Tabel 1 F'!C39<5,'Tabel 2 F'!C41<0.5),"-",IFERROR('Tabel 2 F'!C41/'Tabel 1 F'!C39*100,"-")) -> 7.594936709 | D41: =IF(OR('Tabel 1 F'!C39<5,'Tabel 2 F'!D41<0.5),"-",IFERROR('Tabel 2 F'!D41/'Tabel 1 F'!C39*100,"-")) -> 5.591316012 | F41: =IF(OR('Tabel 1 F'!E39<5,'Tabel 2 F'!F41<0.5),"-",IFERROR('Tabel 2 F'!F41/'Tabel 1 F'!E39*100,"-")) -> 14.03508772 | G41: =IF(OR('Tabel 1 F'!E39<5,'Tabel 2 F'!G41<0.5),"-",IFERROR('Tabel 2 F'!G41/'Tabel 1 F'!E39*100,"-")) -> 12.89883475 | I41: =IF(OR('Tabel 1 F'!G39<5,'Tabel 2 F'!I41<0.5),"-",IFERROR('Tabel 2 F'!I41/'Tabel 1 F'!G39*100,"-")) -> 10.29411765 | J41: =IF(OR('Tabel 1 F'!G39<5,'Tabel 2 F'!J41<0.5),"-",IFERROR('Tabel 2 F'!J41/'Tabel 1 F'!G39*100,"-")) -> 8.654026071
A42: Bac. Samf. | C42: =IF(OR('Tabel 1 F'!C40<5,'Tabel 2 F'!C42<0.5),"-",IFERROR('Tabel 2 F'!C42/'Tabel 1 F'!C40*100,"-")) -> 9.090909091 | D42: =IF(OR('Tabel 1 F'!C40<5,'Tabel 2 F'!D42<0.5),"-",IFERROR('Tabel 2 F'!D42/'Tabel 1 F'!C40*100,"-")) -> 9.089208054 | F42: =IF(OR('Tabel 1 F'!E40<5,'Tabel 2 F'!F42<0.5),"-",IFERROR('Tabel 2 F'!F42/'Tabel 1 F'!E40*100,"-")) -> - | G42: =IF(OR('Tabel 1 F'!E40<5,'Tabel 2 F'!G42<0.5),"-",IFERROR('Tabel 2 F'!G42/'Tabel 1 F'!E40*100,"-")) -> - | I42: =IF(OR('Tabel 1 F'!G40<5,'Tabel 2 F'!I42<0.5),"-",IFERROR('Tabel 2 F'!I42/'Tabel 1 F'!G40*100,"-")) -> 3.846153846 | J42: =IF(OR('Tabel 1 F'!G40<5,'Tabel 2 F'!J42<0.5),"-",IFERROR('Tabel 2 F'!J42/'Tabel 1 F'!G40*100,"-")) -> 3.845434177
A43: Bac. Hum. | C43: =IF(OR('Tabel 1 F'!C41<5,'Tabel 2 F'!C43<0.5),"-",IFERROR('Tabel 2 F'!C43/'Tabel 1 F'!C41*100,"-")) -> 16.32653061 | D43: =IF(OR('Tabel 1 F'!C41<5,'Tabel 2 F'!D43<0.5),"-",IFERROR('Tabel 2 F'!D43/'Tabel 1 F'!C41*100,"-")) -> 14.45297136 | F43: =IF(OR('Tabel 1 F'!E41<5,'Tabel 2 F'!F43<0.5),"-",IFERROR('Tabel 2 F'!F43/'Tabel 1 F'!E41*100,"-")) -> 11.61616162 | G43: =IF(OR('Tabel 1 F'!E41<5,'Tabel 2 F'!G43<0.5),"-",IFERROR('Tabel 2 F'!G43/'Tabel 1 F'!E41*100,"-")) -> 8.43367877 | I43: =IF(OR('Tabel 1 F'!G41<5,'Tabel 2 F'!I43<0.5),"-",IFERROR('Tabel 2 F'!I43/'Tabel 1 F'!G41*100,"-")) -> 13.17567568 | J43: =IF(OR('Tabel 1 F'!G41<5,'Tabel 2 F'!J43<0.5),"-",IFERROR('Tabel 2 F'!J43/'Tabel 1 F'!G41*100,"-")) -> 10.42655267
A44: Bac. Nat. | C44: =IF(OR('Tabel 1 F'!C42<5,'Tabel 2 F'!C44<0.5),"-",IFERROR('Tabel 2 F'!C44/'Tabel 1 F'!C42*100,"-")) -> 7.407407407 | D44: =IF(OR('Tabel 1 F'!C42<5,'Tabel 2 F'!D44<0.5),"-",IFERROR('Tabel 2 F'!D44/'Tabel 1 F'!C42*100,"-")) -> 6.779227719 | F44: =IF(OR('Tabel 1 F'!E42<5,'Tabel 2 F'!F44<0.5),"-",IFERROR('Tabel 2 F'!F44/'Tabel 1 F'!E42*100,"-")) -> 21.05263158 | G44: =IF(OR('Tabel 1 F'!E42<5,'Tabel 2 F'!G44<0.5),"-",IFERROR('Tabel 2 F'!G44/'Tabel 1 F'!E42*100,"-")) -> 16.48409366 | I44: =IF(OR('Tabel 1 F'!G42<5,'Tabel 2 F'!I44<0.5),"-",IFERROR('Tabel 2 F'!I44/'Tabel 1 F'!G42*100,"-")) -> 11.76470588 | J44: =IF(OR('Tabel 1 F'!G42<5,'Tabel 2 F'!J44<0.5),"-",IFERROR('Tabel 2 F'!J44/'Tabel 1 F'!G42*100,"-")) -> 9.878260541
A45: Andre | C45: =IF(OR('Tabel 1 F'!C43<5,'Tabel 2 F'!C45<0.5),"-",IFERROR('Tabel 2 F'!C45/'Tabel 1 F'!C43*100,"-")) -> 6.645056726 | D45: =IF(OR('Tabel 1 F'!C43<5,'Tabel 2 F'!D45<0.5),"-",IFERROR('Tabel 2 F'!D45/'Tabel 1 F'!C43*100,"-")) -> 5.340080088 | F45: =IF(OR('Tabel 1 F'!E43<5,'Tabel 2 F'!F45<0.5),"-",IFERROR('Tabel 2 F'!F45/'Tabel 1 F'!E43*100,"-")) -> 7.794676806 | G45: =IF(OR('Tabel 1 F'!E43<5,'Tabel 2 F'!G45<0.5),"-",IFERROR('Tabel 2 F'!G45/'Tabel 1 F'!E43*100,"-")) -> 7.034327251 | I45: =IF(OR('Tabel 1 F'!G43<5,'Tabel 2 F'!I45<0.5),"-",IFERROR('Tabel 2 F'!I45/'Tabel 1 F'!G43*100,"-")) -> 7.174103237 | J45: =IF(OR('Tabel 1 F'!G43<5,'Tabel 2 F'!J45<0.5),"-",IFERROR('Tabel 2 F'!J45/'Tabel 1 F'!G43*100,"-")) -> 6.119759885
A47: Total | C47: =IF(OR('Tabel 1 F'!C45<5,'Tabel 2 F'!C47<0.5),"-",IFERROR('Tabel 2 F'!C47/'Tabel 1 F'!C45*100,"-")) -> 6.45994832 | D47: =IF(OR('Tabel 1 F'!C45<5,'Tabel 2 F'!D47<0.5),"-",IFERROR('Tabel 2 F'!D47/'Tabel 1 F'!C45*100,"-")) -> 5.165906885 | F47: =IF(OR('Tabel 1 F'!E45<5,'Tabel 2 F'!F47<0.5),"-",IFERROR('Tabel 2 F'!F47/'Tabel 1 F'!E45*100,"-")) -> 8.002861815 | G47: =IF(OR('Tabel 1 F'!E45<5,'Tabel 2 F'!G47<0.5),"-",IFERROR('Tabel 2 F'!G47/'Tabel 1 F'!E45*100,"-")) -> 6.585125252 | I47: =IF(OR('Tabel 1 F'!G45<5,'Tabel 2 F'!I47<0.5),"-",IFERROR('Tabel 2 F'!I47/'Tabel 1 F'!G45*100,"-")) -> 7.220598609 | J47: =IF(OR('Tabel 1 F'!G45<5,'Tabel 2 F'!J47<0.5),"-",IFERROR('Tabel 2 F'!J47/'Tabel 1 F'!G45*100,"-")) -> 5.865575962
A49: Ingeniører i alt | C49: =IF(OR('Tabel 1 F'!C47<5,'Tabel 2 F'!C49<0.5),"-",IFERROR('Tabel 2 F'!C49/'Tabel 1 F'!C47*100,"-")) -> 3.469210755 | D49: =IF(OR('Tabel 1 F'!C47<5,'Tabel 2 F'!D49<0.5),"-",IFERROR('Tabel 2 F'!D49/'Tabel 1 F'!C47*100,"-")) -> 2.368687147 | F49: =IF(OR('Tabel 1 F'!E47<5,'Tabel 2 F'!F49<0.5),"-",IFERROR('Tabel 2 F'!F49/'Tabel 1 F'!E47*100,"-")) -> 5.605095541 | G49: =IF(OR('Tabel 1 F'!E47<5,'Tabel 2 F'!G49<0.5),"-",IFERROR('Tabel 2 F'!G49/'Tabel 1 F'!E47*100,"-")) -> 3.341197951 | I49: =IF(OR('Tabel 1 F'!G47<5,'Tabel 2 F'!I49<0.5),"-",IFERROR('Tabel 2 F'!I49/'Tabel 1 F'!G47*100,"-")) -> 3.864278982 | J49: =IF(OR('Tabel 1 F'!G47<5,'Tabel 2 F'!J49<0.5),"-",IFERROR('Tabel 2 F'!J49/'Tabel 1 F'!G47*100,"-")) -> 2.548569565
A50: Magistre i alt | C50: =IF(OR('Tabel 1 F'!C48<5,'Tabel 2 F'!C50<0.5),"-",IFERROR('Tabel 2 F'!C50/'Tabel 1 F'!C48*100,"-")) -> 9.688013136 | D50: =IF(OR('Tabel 1 F'!C48<5,'Tabel 2 F'!D50<0.5),"-",IFERROR('Tabel 2 F'!D50/'Tabel 1 F'!C48*100,"-")) -> 8.030269807 | F50: =IF(OR('Tabel 1 F'!E48<5,'Tabel 2 F'!F50<0.5),"-",IFERROR('Tabel 2 F'!F50/'Tabel 1 F'!E48*100,"-")) -> 9.989557953 | G50: =IF(OR('Tabel 1 F'!E48<5,'Tabel 2 F'!G50<0.5),"-",IFERROR('Tabel 2 F'!G50/'Tabel 1 F'!E48*100,"-")) -> 8.547915521 | I50: =IF(OR('Tabel 1 F'!G48<5,'Tabel 2 F'!I50<0.5),"-",IFERROR('Tabel 2 F'!I50/'Tabel 1 F'!G48*100,"-")) -> 9.872340426 | J50: =IF(OR('Tabel 1 F'!G48<5,'Tabel 2 F'!J50<0.5),"-",IFERROR('Tabel 2 F'!J50/'Tabel 1 F'!G48*100,"-")) -> 8.346694517
A51: DJØF'ere i alt | C51: =IF(OR('Tabel 1 F'!C49<5,'Tabel 2 F'!C51<0.5),"-",IFERROR('Tabel 2 F'!C51/'Tabel 1 F'!C49*100,"-")) -> 7.469077069 | D51: =IF(OR('Tabel 1 F'!C49<5,'Tabel 2 F'!D51<0.5),"-",IFERROR('Tabel 2 F'!D51/'Tabel 1 F'!C49*100,"-")) -> 6.191707482 | F51: =IF(OR('Tabel 1 F'!E49<5,'Tabel 2 F'!F51<0.5),"-",IFERROR('Tabel 2 F'!F51/'Tabel 1 F'!E49*100,"-")) -> 7.22785368 | G51: =IF(OR('Tabel 1 F'!E49<5,'Tabel 2 F'!G51<0.5),"-",IFERROR('Tabel 2 F'!G51/'Tabel 1 F'!E49*100,"-")) -> 6.097961738 | I51: =IF(OR('Tabel 1 F'!G49<5,'Tabel 2 F'!I51<0.5),"-",IFERROR('Tabel 2 F'!I51/'Tabel 1 F'!G49*100,"-")) -> 7.343857241 | J51: =IF(OR('Tabel 1 F'!G49<5,'Tabel 2 F'!J51<0.5),"-",IFERROR('Tabel 2 F'!J51/'Tabel 1 F'!G49*100,"-")) -> 6.143043768
A56: Middelfart
C58: Mænd | F58: Kvinder | I58: I alt
C59: Ledigheds- berørte | D59: Gns. brutto- ledighed | F59: Ledigheds- berørte | G59: Gns. brutto- ledighed | I59: Ledigheds- berørte | J59: Gns. brutto- ledighed
A62: Civ. ing. | C62: =IF(OR('Tabel 1 F'!C60<5,'Tabel 2 F'!C62<0.5),"-",IFERROR('Tabel 2 F'!C62/'Tabel 1 F'!C60*100,"-")) -> 1.408450704 | D62: =IF(OR('Tabel 1 F'!C60<5,'Tabel 2 F'!D62<0.5),"-",IFERROR('Tabel 2 F'!D62/'Tabel 1 F'!C60*100,"-")) -> 1.408187163 | F62: =IF(OR('Tabel 1 F'!E60<5,'Tabel 2 F'!F62<0.5),"-",IFERROR('Tabel 2 F'!F62/'Tabel 1 F'!E60*100,"-")) -> - | G62: =IF(OR('Tabel 1 F'!E60<5,'Tabel 2 F'!G62<0.5),"-",IFERROR('Tabel 2 F'!G62/'Tabel 1 F'!E60*100,"-")) -> - | I62: =IF(OR('Tabel 1 F'!G60<5,'Tabel 2 F'!I62<0.5),"-",IFERROR('Tabel 2 F'!I62/'Tabel 1 F'!G60*100,"-")) -> 1.063829787 | J62: =IF(OR('Tabel 1 F'!G60<5,'Tabel 2 F'!J62<0.5),"-",IFERROR('Tabel 2 F'!J62/'Tabel 1 F'!G60*100,"-")) -> 1.06363073
A63: Diplom ing. | C63: =IF(OR('Tabel 1 F'!C61<5,'Tabel 2 F'!C63<0.5),"-",IFERROR('Tabel 2 F'!C63/'Tabel 1 F'!C61*100,"-")) -> 0.4273504274 | D63: =IF(OR('Tabel 1 F'!C61<5,'Tabel 2 F'!D63<0.5),"-",IFERROR('Tabel 2 F'!D63/'Tabel 1 F'!C61*100,"-")) -> 0.2694762565 | F63: =IF(OR('Tabel 1 F'!E61<5,'Tabel 2 F'!F63<0.5),"-",IFERROR('Tabel 2 F'!F63/'Tabel 1 F'!E61*100,"-")) -> - | G63: =IF(OR('Tabel 1 F'!E61<5,'Tabel 2 F'!G63<0.5),"-",IFERROR('Tabel 2 F'!G63/'Tabel 1 F'!E61*100,"-")) -> - | I63: =IF(OR('Tabel 1 F'!G61<5,'Tabel 2 F'!I63<0.5),"-",IFERROR('Tabel 2 F'!I63/'Tabel 1 F'!G61*100,"-")) -> 0.3558718861 | J63: =IF(OR('Tabel 1 F'!G61<5,'Tabel 2 F'!J63<0.5),"-",IFERROR('Tabel 2 F'!J63/'Tabel 1 F'!G61*100,"-")) -> 0.2244037154
A64: Cand. Scient. Tek. | C64: =IF(OR('Tabel 1 F'!C62<5,'Tabel 2 F'!C64<0.5),"-",IFERROR('Tabel 2 F'!C64/'Tabel 1 F'!C62*100,"-")) -> 10 | D64: =IF(OR('Tabel 1 F'!C62<5,'Tabel 2 F'!D64<0.5),"-",IFERROR('Tabel 2 F'!D64/'Tabel 1 F'!C62*100,"-")) -> 9.998128859 | F64: =IF(OR('Tabel 1 F'!E62<5,'Tabel 2 F'!F64<0.5),"-",IFERROR('Tabel 2 F'!F64/'Tabel 1 F'!E62*100,"-")) -> 8 | G64: =IF(OR('Tabel 1 F'!E62<5,'Tabel 2 F'!G64<0.5),"-",IFERROR('Tabel 2 F'!G64/'Tabel 1 F'!E62*100,"-")) -> 7.319902701 | I64: =IF(OR('Tabel 1 F'!G62<5,'Tabel 2 F'!I64<0.5),"-",IFERROR('Tabel 2 F'!I64/'Tabel 1 F'!G62*100,"-")) -> 8.888888889 | J64: =IF(OR('Tabel 1 F'!G62<5,'Tabel 2 F'!J64<0.5),"-",IFERROR('Tabel 2 F'!J64/'Tabel 1 F'!G62*100,"-")) -> 8.510225438
A65: MA. Hum. | C65: =IF(OR('Tabel 1 F'!C63<5,'Tabel 2 F'!C65<0.5),"-",IFERROR('Tabel 2 F'!C65/'Tabel 1 F'!C63*100,"-")) -> 9.615384615 | D65: =IF(OR('Tabel 1 F'!C63<5,'Tabel 2 F'!D65<0.5),"-",IFERROR('Tabel 2 F'!D65/'Tabel 1 F'!C63*100,"-")) -> 8.01591909 | F65: =IF(OR('Tabel 1 F'!E63<5,'Tabel 2 F'!F65<0.5),"-",IFERROR('Tabel 2 F'!F65/'Tabel 1 F'!E63*100,"-")) -> 7.843137255 | G65: =IF(OR('Tabel 1 F'!E63<5,'Tabel 2 F'!G65<0.5),"-",IFERROR('Tabel 2 F'!G65/'Tabel 1 F'!E63*100,"-")) -> 6.851677239 | I65: =IF(OR('Tabel 1 F'!G63<5,'Tabel 2 F'!I65<0.5),"-",IFERROR('Tabel 2 F'!I65/'Tabel 1 F'!G63*100,"-")) -> 8.441558442 | J65: =IF(OR('Tabel 1 F'!G63<5,'Tabel 2 F'!J65<0.5),"-",IFERROR('Tabel 2 F'!J65/'Tabel 1 F'!G63*100,"-")) -> 7.244797864
A66: MA. Nat. | C66: =IF(OR('Tabel 1 F'!C64<5,'Tabel 2 F'!C66<0.5),"-",IFERROR('Tabel 2 F'!C66/'Tabel 1 F'!C64*100,"-")) -> - | D66: =IF(OR('Tabel 1 F'!C64<5,'Tabel 2 F'!D66<0.5),"-",IFERROR('Tabel 2 F'!D66/'Tabel 1 F'!C64*100,"-")) -> - | F66: =IF(OR('Tabel 1 F'!E64<5,'Tabel 2 F'!F66<0.5),"-",IFERROR('Tabel 2 F'!F66/'Tabel 1 F'!E64*100,"-")) -> - | G66: =IF(OR('Tabel 1 F'!E64<5,'Tabel 2 F'!G66<0.5),"-",IFERROR('Tabel 2 F'!G66/'Tabel 1 F'!E64*100,"-")) -> - | I66: =IF(OR('Tabel 1 F'!G64<5,'Tabel 2 F'!I66<0.5),"-",IFERROR('Tabel 2 F'!I66/'Tabel 1 F'!G64*100,"-")) -> - | J66: =IF(OR('Tabel 1 F'!G64<5,'Tabel 2 F'!J66<0.5),"-",IFERROR('Tabel 2 F'!J66/'Tabel 1 F'!G64*100,"-")) -> -
A67: MA. Ph.d. | C67: =IF(OR('Tabel 1 F'!C65<5,'Tabel 2 F'!C67<0.5),"-",IFERROR('Tabel 2 F'!C67/'Tabel 1 F'!C65*100,"-")) -> - | D67: =IF(OR('Tabel 1 F'!C65<5,'Tabel 2 F'!D67<0.5),"-",IFERROR('Tabel 2 F'!D67/'Tabel 1 F'!C65*100,"-")) -> - | F67: =IF(OR('Tabel 1 F'!E65<5,'Tabel 2 F'!F67<0.5),"-",IFERROR('Tabel 2 F'!F67/'Tabel 1 F'!E65*100,"-")) -> - | G67: =IF(OR('Tabel 1 F'!E65<5,'Tabel 2 F'!G67<0.5),"-",IFERROR('Tabel 2 F'!G67/'Tabel 1 F'!E65*100,"-")) -> - | I67: =IF(OR('Tabel 1 F'!G65<5,'Tabel 2 F'!I67<0.5),"-",IFERROR('Tabel 2 F'!I67/'Tabel 1 F'!G65*100,"-")) -> - | J67: =IF(OR('Tabel 1 F'!G65<5,'Tabel 2 F'!J67<0.5),"-",IFERROR('Tabel 2 F'!J67/'Tabel 1 F'!G65*100,"-")) -> -
A68: MA. Samf. | C68: =IF(OR('Tabel 1 F'!C66<5,'Tabel 2 F'!C68<0.5),"-",IFERROR('Tabel 2 F'!C68/'Tabel 1 F'!C66*100,"-")) -> - | D68: =IF(OR('Tabel 1 F'!C66<5,'Tabel 2 F'!D68<0.5),"-",IFERROR('Tabel 2 F'!D68/'Tabel 1 F'!C66*100,"-")) -> - | F68: =IF(OR('Tabel 1 F'!E66<5,'Tabel 2 F'!F68<0.5),"-",IFERROR('Tabel 2 F'!F68/'Tabel 1 F'!E66*100,"-")) -> - | G68: =IF(OR('Tabel 1 F'!E66<5,'Tabel 2 F'!G68<0.5),"-",IFERROR('Tabel 2 F'!G68/'Tabel 1 F'!E66*100,"-")) -> - | I68: =IF(OR('Tabel 1 F'!G66<5,'Tabel 2 F'!I68<0.5),"-",IFERROR('Tabel 2 F'!I68/'Tabel 1 F'!G66*100,"-")) -> - | J68: =IF(OR('Tabel 1 F'!G66<5,'Tabel 2 F'!J68<0.5),"-",IFERROR('Tabel 2 F'!J68/'Tabel 1 F'!G66*100,"-")) -> -
A69: Øvrige Mag. | C69: =IF(OR('Tabel 1 F'!C67<5,'Tabel 2 F'!C69<0.5),"-",IFERROR('Tabel 2 F'!C69/'Tabel 1 F'!C67*100,"-")) -> - | D69: =IF(OR('Tabel 1 F'!C67<5,'Tabel 2 F'!D69<0.5),"-",IFERROR('Tabel 2 F'!D69/'Tabel 1 F'!C67*100,"-")) -> - | F69: =IF(OR('Tabel 1 F'!E67<5,'Tabel 2 F'!F69<0.5),"-",IFERROR('Tabel 2 F'!F69/'Tabel 1 F'!E67*100,"-")) -> - | G69: =IF(OR('Tabel 1 F'!E67<5,'Tabel 2 F'!G69<0.5),"-",IFERROR('Tabel 2 F'!G69/'Tabel 1 F'!E67*100,"-")) -> - | I69: =IF(OR('Tabel 1 F'!G67<5,'Tabel 2 F'!I69<0.5),"-",IFERROR('Tabel 2 F'!I69/'Tabel 1 F'!G67*100,"-")) -> - | J69: =IF(OR('Tabel 1 F'!G67<5,'Tabel 2 F'!J69<0.5),"-",IFERROR('Tabel 2 F'!J69/'Tabel 1 F'!G67*100,"-")) -> -
A70: Agronom | C70: =IF(OR('Tabel 1 F'!C68<5,'Tabel 2 F'!C70<0.5),"-",IFERROR('Tabel 2 F'!C70/'Tabel 1 F'!C68*100,"-")) -> - | D70: =IF(OR('Tabel 1 F'!C68<5,'Tabel 2 F'!D70<0.5),"-",IFERROR('Tabel 2 F'!D70/'Tabel 1 F'!C68*100,"-")) -> - | F70: =IF(OR('Tabel 1 F'!E68<5,'Tabel 2 F'!F70<0.5),"-",IFERROR('Tabel 2 F'!F70/'Tabel 1 F'!E68*100,"-")) -> - | G70: =IF(OR('Tabel 1 F'!E68<5,'Tabel 2 F'!G70<0.5),"-",IFERROR('Tabel 2 F'!G70/'Tabel 1 F'!E68*100,"-")) -> - | I70: =IF(OR('Tabel 1 F'!G68<5,'Tabel 2 F'!I70<0.5),"-",IFERROR('Tabel 2 F'!I70/'Tabel 1 F'!G68*100,"-")) -> - | J70: =IF(OR('Tabel 1 F'!G68<5,'Tabel 2 F'!J70<0.5),"-",IFERROR('Tabel 2 F'!J70/'Tabel 1 F'!G68*100,"-")) -> -
A71: Landsk. Arkt. | C71: =IF(OR('Tabel 1 F'!C69<5,'Tabel 2 F'!C71<0.5),"-",IFERROR('Tabel 2 F'!C71/'Tabel 1 F'!C69*100,"-")) -> - | D71: =IF(OR('Tabel 1 F'!C69<5,'Tabel 2 F'!D71<0.5),"-",IFERROR('Tabel 2 F'!D71/'Tabel 1 F'!C69*100,"-")) -> - | F71: =IF(OR('Tabel 1 F'!E69<5,'Tabel 2 F'!F71<0.5),"-",IFERROR('Tabel 2 F'!F71/'Tabel 1 F'!E69*100,"-")) -> - | G71: =IF(OR('Tabel 1 F'!E69<5,'Tabel 2 F'!G71<0.5),"-",IFERROR('Tabel 2 F'!G71/'Tabel 1 F'!E69*100,"-")) -> - | I71: =IF(OR('Tabel 1 F'!G69<5,'Tabel 2 F'!I71<0.5),"-",IFERROR('Tabel 2 F'!I71/'Tabel 1 F'!G69*100,"-")) -> - | J71: =IF(OR('Tabel 1 F'!G69<5,'Tabel 2 F'!J71<0.5),"-",IFERROR('Tabel 2 F'!J71/'Tabel 1 F'!G69*100,"-")) -> -
A72: Hortonom | C72: =IF(OR('Tabel 1 F'!C70<5,'Tabel 2 F'!C72<0.5),"-",IFERROR('Tabel 2 F'!C72/'Tabel 1 F'!C70*100,"-")) -> - | D72: =IF(OR('Tabel 1 F'!C70<5,'Tabel 2 F'!D72<0.5),"-",IFERROR('Tabel 2 F'!D72/'Tabel 1 F'!C70*100,"-")) -> - | F72: =IF(OR('Tabel 1 F'!E70<5,'Tabel 2 F'!F72<0.5),"-",IFERROR('Tabel 2 F'!F72/'Tabel 1 F'!E70*100,"-")) -> - | G72: =IF(OR('Tabel 1 F'!E70<5,'Tabel 2 F'!G72<0.5),"-",IFERROR('Tabel 2 F'!G72/'Tabel 1 F'!E70*100,"-")) -> - | I72: =IF(OR('Tabel 1 F'!G70<5,'Tabel 2 F'!I72<0.5),"-",IFERROR('Tabel 2 F'!I72/'Tabel 1 F'!G70*100,"-")) -> - | J72: =IF(OR('Tabel 1 F'!G70<5,'Tabel 2 F'!J72<0.5),"-",IFERROR('Tabel 2 F'!J72/'Tabel 1 F'!G70*100,"-")) -> -
A73: Forstkand. | C73: =IF(OR('Tabel 1 F'!C71<5,'Tabel 2 F'!C73<0.5),"-",IFERROR('Tabel 2 F'!C73/'Tabel 1 F'!C71*100,"-")) -> - | D73: =IF(OR('Tabel 1 F'!C71<5,'Tabel 2 F'!D73<0.5),"-",IFERROR('Tabel 2 F'!D73/'Tabel 1 F'!C71*100,"-")) -> - | F73: =IF(OR('Tabel 1 F'!E71<5,'Tabel 2 F'!F73<0.5),"-",IFERROR('Tabel 2 F'!F73/'Tabel 1 F'!E71*100,"-")) -> - | G73: =IF(OR('Tabel 1 F'!E71<5,'Tabel 2 F'!G73<0.5),"-",IFERROR('Tabel 2 F'!G73/'Tabel 1 F'!E71*100,"-")) -> - | I73: =IF(OR('Tabel 1 F'!G71<5,'Tabel 2 F'!I73<0.5),"-",IFERROR('Tabel 2 F'!I73/'Tabel 1 F'!G71*100,"-")) -> - | J73: =IF(OR('Tabel 1 F'!G71<5,'Tabel 2 F'!J73<0.5),"-",IFERROR('Tabel 2 F'!J73/'Tabel 1 F'!G71*100,"-")) -> -
A74: Jordbrugsakad. | C74: =IF(OR('Tabel 1 F'!C72<5,'Tabel 2 F'!C74<0.5),"-",IFERROR('Tabel 2 F'!C74/'Tabel 1 F'!C72*100,"-")) -> 4.347826087 | D74: =IF(OR('Tabel 1 F'!C72<5,'Tabel 2 F'!D74<0.5),"-",IFERROR('Tabel 2 F'!D74/'Tabel 1 F'!C72*100,"-")) -> 4.347012547 | F74: =IF(OR('Tabel 1 F'!E72<5,'Tabel 2 F'!F74<0.5),"-",IFERROR('Tabel 2 F'!F74/'Tabel 1 F'!E72*100,"-")) -> - | G74: =IF(OR('Tabel 1 F'!E72<5,'Tabel 2 F'!G74<0.5),"-",IFERROR('Tabel 2 F'!G74/'Tabel 1 F'!E72*100,"-")) -> - | I74: =IF(OR('Tabel 1 F'!G72<5,'Tabel 2 F'!I74<0.5),"-",IFERROR('Tabel 2 F'!I74/'Tabel 1 F'!G72*100,"-")) -> 2.777777778 | J74: =IF(OR('Tabel 1 F'!G72<5,'Tabel 2 F'!J74<0.5),"-",IFERROR('Tabel 2 F'!J74/'Tabel 1 F'!G72*100,"-")) -> 2.777258016
A75: Mejeriing. | C75: =IF(OR('Tabel 1 F'!C73<5,'Tabel 2 F'!C75<0.5),"-",IFERROR('Tabel 2 F'!C75/'Tabel 1 F'!C73*100,"-")) -> - | D75: =IF(OR('Tabel 1 F'!C73<5,'Tabel 2 F'!D75<0.5),"-",IFERROR('Tabel 2 F'!D75/'Tabel 1 F'!C73*100,"-")) -> - | F75: =IF(OR('Tabel 1 F'!E73<5,'Tabel 2 F'!F75<0.5),"-",IFERROR('Tabel 2 F'!F75/'Tabel 1 F'!E73*100,"-")) -> - | G75: =IF(OR('Tabel 1 F'!E73<5,'Tabel 2 F'!G75<0.5),"-",IFERROR('Tabel 2 F'!G75/'Tabel 1 F'!E73*100,"-")) -> - | I75: =IF(OR('Tabel 1 F'!G73<5,'Tabel 2 F'!I75<0.5),"-",IFERROR('Tabel 2 F'!I75/'Tabel 1 F'!G73*100,"-")) -> - | J75: =IF(OR('Tabel 1 F'!G73<5,'Tabel 2 F'!J75<0.5),"-",IFERROR('Tabel 2 F'!J75/'Tabel 1 F'!G73*100,"-")) -> -
A76: Levn.m.kand. | C76: =IF(OR('Tabel 1 F'!C74<5,'Tabel 2 F'!C76<0.5),"-",IFERROR('Tabel 2 F'!C76/'Tabel 1 F'!C74*100,"-")) -> - | D76: =IF(OR('Tabel 1 F'!C74<5,'Tabel 2 F'!D76<0.5),"-",IFERROR('Tabel 2 F'!D76/'Tabel 1 F'!C74*100,"-")) -> - | F76: =IF(OR('Tabel 1 F'!E74<5,'Tabel 2 F'!F76<0.5),"-",IFERROR('Tabel 2 F'!F76/'Tabel 1 F'!E74*100,"-")) -> - | G76: =IF(OR('Tabel 1 F'!E74<5,'Tabel 2 F'!G76<0.5),"-",IFERROR('Tabel 2 F'!G76/'Tabel 1 F'!E74*100,"-")) -> - | I76: =IF(OR('Tabel 1 F'!G74<5,'Tabel 2 F'!I76<0.5),"-",IFERROR('Tabel 2 F'!I76/'Tabel 1 F'!G74*100,"-")) -> - | J76: =IF(OR('Tabel 1 F'!G74<5,'Tabel 2 F'!J76<0.5),"-",IFERROR('Tabel 2 F'!J76/'Tabel 1 F'!G74*100,"-")) -> -
A77: Dyrlæge | C77: =IF(OR('Tabel 1 F'!C75<5,'Tabel 2 F'!C77<0.5),"-",IFERROR('Tabel 2 F'!C77/'Tabel 1 F'!C75*100,"-")) -> - | D77: =IF(OR('Tabel 1 F'!C75<5,'Tabel 2 F'!D77<0.5),"-",IFERROR('Tabel 2 F'!D77/'Tabel 1 F'!C75*100,"-")) -> - | F77: =IF(OR('Tabel 1 F'!E75<5,'Tabel 2 F'!F77<0.5),"-",IFERROR('Tabel 2 F'!F77/'Tabel 1 F'!E75*100,"-")) -> 6.666666667 | G77: =IF(OR('Tabel 1 F'!E75<5,'Tabel 2 F'!G77<0.5),"-",IFERROR('Tabel 2 F'!G77/'Tabel 1 F'!E75*100,"-")) -> 5.742323125 | I77: =IF(OR('Tabel 1 F'!G75<5,'Tabel 2 F'!I77<0.5),"-",IFERROR('Tabel 2 F'!I77/'Tabel 1 F'!G75*100,"-")) -> 5.882352941 | J77: =IF(OR('Tabel 1 F'!G75<5,'Tabel 2 F'!J77<0.5),"-",IFERROR('Tabel 2 F'!J77/'Tabel 1 F'!G75*100,"-")) -> 5.066755699
A78: Farmaceut | C78: =IF(OR('Tabel 1 F'!C76<5,'Tabel 2 F'!C78<0.5),"-",IFERROR('Tabel 2 F'!C78/'Tabel 1 F'!C76*100,"-")) -> - | D78: =IF(OR('Tabel 1 F'!C76<5,'Tabel 2 F'!D78<0.5),"-",IFERROR('Tabel 2 F'!D78/'Tabel 1 F'!C76*100,"-")) -> - | F78: =IF(OR('Tabel 1 F'!E76<5,'Tabel 2 F'!F78<0.5),"-",IFERROR('Tabel 2 F'!F78/'Tabel 1 F'!E76*100,"-")) -> - | G78: =IF(OR('Tabel 1 F'!E76<5,'Tabel 2 F'!G78<0.5),"-",IFERROR('Tabel 2 F'!G78/'Tabel 1 F'!E76*100,"-")) -> - | I78: =IF(OR('Tabel 1 F'!G76<5,'Tabel 2 F'!I78<0.5),"-",IFERROR('Tabel 2 F'!I78/'Tabel 1 F'!G76*100,"-")) -> 12.5 | J78: =IF(OR('Tabel 1 F'!G76<5,'Tabel 2 F'!J78<0.5),"-",IFERROR('Tabel 2 F'!J78/'Tabel 1 F'!G76*100,"-")) -> 12.49766107
A79: Læge | C79: =IF(OR('Tabel 1 F'!C77<5,'Tabel 2 F'!C79<0.5),"-",IFERROR('Tabel 2 F'!C79/'Tabel 1 F'!C77*100,"-")) -> - | D79: =IF(OR('Tabel 1 F'!C77<5,'Tabel 2 F'!D79<0.5),"-",IFERROR('Tabel 2 F'!D79/'Tabel 1 F'!C77*100,"-")) -> - | F79: =IF(OR('Tabel 1 F'!E77<5,'Tabel 2 F'!F79<0.5),"-",IFERROR('Tabel 2 F'!F79/'Tabel 1 F'!E77*100,"-")) -> 1.315789474 | G79: =IF(OR('Tabel 1 F'!E77<5,'Tabel 2 F'!G79<0.5),"-",IFERROR('Tabel 2 F'!G79/'Tabel 1 F'!E77*100,"-")) -> 1.315543271 | I79: =IF(OR('Tabel 1 F'!G77<5,'Tabel 2 F'!I79<0.5),"-",IFERROR('Tabel 2 F'!I79/'Tabel 1 F'!G77*100,"-")) -> 1.052631579 | J79: =IF(OR('Tabel 1 F'!G77<5,'Tabel 2 F'!J79<0.5),"-",IFERROR('Tabel 2 F'!J79/'Tabel 1 F'!G77*100,"-")) -> 1.052434617
A80: Tandlæge | C80: =IF(OR('Tabel 1 F'!C78<5,'Tabel 2 F'!C80<0.5),"-",IFERROR('Tabel 2 F'!C80/'Tabel 1 F'!C78*100,"-")) -> - | D80: =IF(OR('Tabel 1 F'!C78<5,'Tabel 2 F'!D80<0.5),"-",IFERROR('Tabel 2 F'!D80/'Tabel 1 F'!C78*100,"-")) -> - | F80: =IF(OR('Tabel 1 F'!E78<5,'Tabel 2 F'!F80<0.5),"-",IFERROR('Tabel 2 F'!F80/'Tabel 1 F'!E78*100,"-")) -> - | G80: =IF(OR('Tabel 1 F'!E78<5,'Tabel 2 F'!G80<0.5),"-",IFERROR('Tabel 2 F'!G80/'Tabel 1 F'!E78*100,"-")) -> - | I80: =IF(OR('Tabel 1 F'!G78<5,'Tabel 2 F'!I80<0.5),"-",IFERROR('Tabel 2 F'!I80/'Tabel 1 F'!G78*100,"-")) -> - | J80: =IF(OR('Tabel 1 F'!G78<5,'Tabel 2 F'!J80<0.5),"-",IFERROR('Tabel 2 F'!J80/'Tabel 1 F'!G78*100,"-")) -> -
A81: Arkitekt | C81: =IF(OR('Tabel 1 F'!C79<5,'Tabel 2 F'!C81<0.5),"-",IFERROR('Tabel 2 F'!C81/'Tabel 1 F'!C79*100,"-")) -> 14.28571429 | D81: =IF(OR('Tabel 1 F'!C79<5,'Tabel 2 F'!D81<0.5),"-",IFERROR('Tabel 2 F'!D81/'Tabel 1 F'!C79*100,"-")) -> 14.28304123 | F81: =IF(OR('Tabel 1 F'!E79<5,'Tabel 2 F'!F81<0.5),"-",IFERROR('Tabel 2 F'!F81/'Tabel 1 F'!E79*100,"-")) -> - | G81: =IF(OR('Tabel 1 F'!E79<5,'Tabel 2 F'!G81<0.5),"-",IFERROR('Tabel 2 F'!G81/'Tabel 1 F'!E79*100,"-")) -> - | I81: =IF(OR('Tabel 1 F'!G79<5,'Tabel 2 F'!I81<0.5),"-",IFERROR('Tabel 2 F'!I81/'Tabel 1 F'!G79*100,"-")) -> 6.666666667 | J81: =IF(OR('Tabel 1 F'!G79<5,'Tabel 2 F'!J81<0.5),"-",IFERROR('Tabel 2 F'!J81/'Tabel 1 F'!G79*100,"-")) -> 6.665419239
A82: Landinspek. | C82: =IF(OR('Tabel 1 F'!C80<5,'Tabel 2 F'!C82<0.5),"-",IFERROR('Tabel 2 F'!C82/'Tabel 1 F'!C80*100,"-")) -> - | D82: =IF(OR('Tabel 1 F'!C80<5,'Tabel 2 F'!D82<0.5),"-",IFERROR('Tabel 2 F'!D82/'Tabel 1 F'!C80*100,"-")) -> - | F82: =IF(OR('Tabel 1 F'!E80<5,'Tabel 2 F'!F82<0.5),"-",IFERROR('Tabel 2 F'!F82/'Tabel 1 F'!E80*100,"-")) -> - | G82: =IF(OR('Tabel 1 F'!E80<5,'Tabel 2 F'!G82<0.5),"-",IFERROR('Tabel 2 F'!G82/'Tabel 1 F'!E80*100,"-")) -> - | I82: =IF(OR('Tabel 1 F'!G80<5,'Tabel 2 F'!I82<0.5),"-",IFERROR('Tabel 2 F'!I82/'Tabel 1 F'!G80*100,"-")) -> - | J82: =IF(OR('Tabel 1 F'!G80<5,'Tabel 2 F'!J82<0.5),"-",IFERROR('Tabel 2 F'!J82/'Tabel 1 F'!G80*100,"-")) -> -
A83: Bibliotekar | C83: =IF(OR('Tabel 1 F'!C81<5,'Tabel 2 F'!C83<0.5),"-",IFERROR('Tabel 2 F'!C83/'Tabel 1 F'!C81*100,"-")) -> - | D83: =IF(OR('Tabel 1 F'!C81<5,'Tabel 2 F'!D83<0.5),"-",IFERROR('Tabel 2 F'!D83/'Tabel 1 F'!C81*100,"-")) -> - | F83: =IF(OR('Tabel 1 F'!E81<5,'Tabel 2 F'!F83<0.5),"-",IFERROR('Tabel 2 F'!F83/'Tabel 1 F'!E81*100,"-")) -> - | G83: =IF(OR('Tabel 1 F'!E81<5,'Tabel 2 F'!G83<0.5),"-",IFERROR('Tabel 2 F'!G83/'Tabel 1 F'!E81*100,"-")) -> - | I83: =IF(OR('Tabel 1 F'!G81<5,'Tabel 2 F'!I83<0.5),"-",IFERROR('Tabel 2 F'!I83/'Tabel 1 F'!G81*100,"-")) -> 5.263157895 | J83: =IF(OR('Tabel 1 F'!G81<5,'Tabel 2 F'!J83<0.5),"-",IFERROR('Tabel 2 F'!J83/'Tabel 1 F'!G81*100,"-")) -> 5.262173084
A84: Musikudd. | C84: =IF(OR('Tabel 1 F'!C82<5,'Tabel 2 F'!C84<0.5),"-",IFERROR('Tabel 2 F'!C84/'Tabel 1 F'!C82*100,"-")) -> - | D84: =IF(OR('Tabel 1 F'!C82<5,'Tabel 2 F'!D84<0.5),"-",IFERROR('Tabel 2 F'!D84/'Tabel 1 F'!C82*100,"-")) -> - | F84: =IF(OR('Tabel 1 F'!E82<5,'Tabel 2 F'!F84<0.5),"-",IFERROR('Tabel 2 F'!F84/'Tabel 1 F'!E82*100,"-")) -> - | G84: =IF(OR('Tabel 1 F'!E82<5,'Tabel 2 F'!G84<0.5),"-",IFERROR('Tabel 2 F'!G84/'Tabel 1 F'!E82*100,"-")) -> - | I84: =IF(OR('Tabel 1 F'!G82<5,'Tabel 2 F'!I84<0.5),"-",IFERROR('Tabel 2 F'!I84/'Tabel 1 F'!G82*100,"-")) -> - | J84: =IF(OR('Tabel 1 F'!G82<5,'Tabel 2 F'!J84<0.5),"-",IFERROR('Tabel 2 F'!J84/'Tabel 1 F'!G82*100,"-")) -> -
A85: Teolog | C85: =IF(OR('Tabel 1 F'!C83<5,'Tabel 2 F'!C85<0.5),"-",IFERROR('Tabel 2 F'!C85/'Tabel 1 F'!C83*100,"-")) -> - | D85: =IF(OR('Tabel 1 F'!C83<5,'Tabel 2 F'!D85<0.5),"-",IFERROR('Tabel 2 F'!D85/'Tabel 1 F'!C83*100,"-")) -> - | F85: =IF(OR('Tabel 1 F'!E83<5,'Tabel 2 F'!F85<0.5),"-",IFERROR('Tabel 2 F'!F85/'Tabel 1 F'!E83*100,"-")) -> 20 | G85: =IF(OR('Tabel 1 F'!E83<5,'Tabel 2 F'!G85<0.5),"-",IFERROR('Tabel 2 F'!G85/'Tabel 1 F'!E83*100,"-")) -> 12.87344851 | I85: =IF(OR('Tabel 1 F'!G83<5,'Tabel 2 F'!I85<0.5),"-",IFERROR('Tabel 2 F'!I85/'Tabel 1 F'!G83*100,"-")) -> 14.28571429 | J85: =IF(OR('Tabel 1 F'!G83<5,'Tabel 2 F'!J85<0.5),"-",IFERROR('Tabel 2 F'!J85/'Tabel 1 F'!G83*100,"-")) -> 9.195320366
A86: Psykolog | C86: =IF(OR('Tabel 1 F'!C84<5,'Tabel 2 F'!C86<0.5),"-",IFERROR('Tabel 2 F'!C86/'Tabel 1 F'!C84*100,"-")) -> - | D86: =IF(OR('Tabel 1 F'!C84<5,'Tabel 2 F'!D86<0.5),"-",IFERROR('Tabel 2 F'!D86/'Tabel 1 F'!C84*100,"-")) -> - | F86: =IF(OR('Tabel 1 F'!E84<5,'Tabel 2 F'!F86<0.5),"-",IFERROR('Tabel 2 F'!F86/'Tabel 1 F'!E84*100,"-")) -> - | G86: =IF(OR('Tabel 1 F'!E84<5,'Tabel 2 F'!G86<0.5),"-",IFERROR('Tabel 2 F'!G86/'Tabel 1 F'!E84*100,"-")) -> - | I86: =IF(OR('Tabel 1 F'!G84<5,'Tabel 2 F'!I86<0.5),"-",IFERROR('Tabel 2 F'!I86/'Tabel 1 F'!G84*100,"-")) -> - | J86: =IF(OR('Tabel 1 F'!G84<5,'Tabel 2 F'!J86<0.5),"-",IFERROR('Tabel 2 F'!J86/'Tabel 1 F'!G84*100,"-")) -> -
A87: Jurist | C87: =IF(OR('Tabel 1 F'!C85<5,'Tabel 2 F'!C87<0.5),"-",IFERROR('Tabel 2 F'!C87/'Tabel 1 F'!C85*100,"-")) -> 10 | D87: =IF(OR('Tabel 1 F'!C85<5,'Tabel 2 F'!D87<0.5),"-",IFERROR('Tabel 2 F'!D87/'Tabel 1 F'!C85*100,"-")) -> 9.998128859 | F87: =IF(OR('Tabel 1 F'!E85<5,'Tabel 2 F'!F87<0.5),"-",IFERROR('Tabel 2 F'!F87/'Tabel 1 F'!E85*100,"-")) -> - | G87: =IF(OR('Tabel 1 F'!E85<5,'Tabel 2 F'!G87<0.5),"-",IFERROR('Tabel 2 F'!G87/'Tabel 1 F'!E85*100,"-")) -> - | I87: =IF(OR('Tabel 1 F'!G85<5,'Tabel 2 F'!I87<0.5),"-",IFERROR('Tabel 2 F'!I87/'Tabel 1 F'!G85*100,"-")) -> 3.03030303 | J87: =IF(OR('Tabel 1 F'!G85<5,'Tabel 2 F'!J87<0.5),"-",IFERROR('Tabel 2 F'!J87/'Tabel 1 F'!G85*100,"-")) -> 3.029736018
A88: Økonom | C88: =IF(OR('Tabel 1 F'!C86<5,'Tabel 2 F'!C88<0.5),"-",IFERROR('Tabel 2 F'!C88/'Tabel 1 F'!C86*100,"-")) -> - | D88: =IF(OR('Tabel 1 F'!C86<5,'Tabel 2 F'!D88<0.5),"-",IFERROR('Tabel 2 F'!D88/'Tabel 1 F'!C86*100,"-")) -> - | F88: =IF(OR('Tabel 1 F'!E86<5,'Tabel 2 F'!F88<0.5),"-",IFERROR('Tabel 2 F'!F88/'Tabel 1 F'!E86*100,"-")) -> - | G88: =IF(OR('Tabel 1 F'!E86<5,'Tabel 2 F'!G88<0.5),"-",IFERROR('Tabel 2 F'!G88/'Tabel 1 F'!E86*100,"-")) -> - | I88: =IF(OR('Tabel 1 F'!G86<5,'Tabel 2 F'!I88<0.5),"-",IFERROR('Tabel 2 F'!I88/'Tabel 1 F'!G86*100,"-")) -> - | J88: =IF(OR('Tabel 1 F'!G86<5,'Tabel 2 F'!J88<0.5),"-",IFERROR('Tabel 2 F'!J88/'Tabel 1 F'!G86*100,"-")) -> -
A89: Samf. Adm. | C89: =IF(OR('Tabel 1 F'!C87<5,'Tabel 2 F'!C89<0.5),"-",IFERROR('Tabel 2 F'!C89/'Tabel 1 F'!C87*100,"-")) -> 3.448275862 | D89: =IF(OR('Tabel 1 F'!C87<5,'Tabel 2 F'!D89<0.5),"-",IFERROR('Tabel 2 F'!D89/'Tabel 1 F'!C87*100,"-")) -> - | F89: =IF(OR('Tabel 1 F'!E87<5,'Tabel 2 F'!F89<0.5),"-",IFERROR('Tabel 2 F'!F89/'Tabel 1 F'!E87*100,"-")) -> 4.166666667 | G89: =IF(OR('Tabel 1 F'!E87<5,'Tabel 2 F'!G89<0.5),"-",IFERROR('Tabel 2 F'!G89/'Tabel 1 F'!E87*100,"-")) -> 4.165887025 | I89: =IF(OR('Tabel 1 F'!G87<5,'Tabel 2 F'!I89<0.5),"-",IFERROR('Tabel 2 F'!I89/'Tabel 1 F'!G87*100,"-")) -> 3.896103896 | J89: =IF(OR('Tabel 1 F'!G87<5,'Tabel 2 F'!J89<0.5),"-",IFERROR('Tabel 2 F'!J89/'Tabel 1 F'!G87*100,"-")) -> 3.116137901
A90: Cand. Merc. | C90: =IF(OR('Tabel 1 F'!C88<5,'Tabel 2 F'!C90<0.5),"-",IFERROR('Tabel 2 F'!C90/'Tabel 1 F'!C88*100,"-")) -> 6.060606061 | D90: =IF(OR('Tabel 1 F'!C88<5,'Tabel 2 F'!D90<0.5),"-",IFERROR('Tabel 2 F'!D90/'Tabel 1 F'!C88*100,"-")) -> 4.171320893 | F90: =IF(OR('Tabel 1 F'!E88<5,'Tabel 2 F'!F90<0.5),"-",IFERROR('Tabel 2 F'!F90/'Tabel 1 F'!E88*100,"-")) -> 3.333333333 | G90: =IF(OR('Tabel 1 F'!E88<5,'Tabel 2 F'!G90<0.5),"-",IFERROR('Tabel 2 F'!G90/'Tabel 1 F'!E88*100,"-")) -> 3.33270962 | I90: =IF(OR('Tabel 1 F'!G88<5,'Tabel 2 F'!I90<0.5),"-",IFERROR('Tabel 2 F'!I90/'Tabel 1 F'!G88*100,"-")) -> 4.761904762 | J90: =IF(OR('Tabel 1 F'!G88<5,'Tabel 2 F'!J90<0.5),"-",IFERROR('Tabel 2 F'!J90/'Tabel 1 F'!G88*100,"-")) -> 3.771982191
A91: HA | C91: =IF(OR('Tabel 1 F'!C89<5,'Tabel 2 F'!C91<0.5),"-",IFERROR('Tabel 2 F'!C91/'Tabel 1 F'!C89*100,"-")) -> 5 | D91: =IF(OR('Tabel 1 F'!C89<5,'Tabel 2 F'!D91<0.5),"-",IFERROR('Tabel 2 F'!D91/'Tabel 1 F'!C89*100,"-")) -> 4.99906443 | F91: =IF(OR('Tabel 1 F'!E89<5,'Tabel 2 F'!F91<0.5),"-",IFERROR('Tabel 2 F'!F91/'Tabel 1 F'!E89*100,"-")) -> - | G91: =IF(OR('Tabel 1 F'!E89<5,'Tabel 2 F'!G91<0.5),"-",IFERROR('Tabel 2 F'!G91/'Tabel 1 F'!E89*100,"-")) -> - | I91: =IF(OR('Tabel 1 F'!G89<5,'Tabel 2 F'!I91<0.5),"-",IFERROR('Tabel 2 F'!I91/'Tabel 1 F'!G89*100,"-")) -> 3.448275862 | J91: =IF(OR('Tabel 1 F'!G89<5,'Tabel 2 F'!J91<0.5),"-",IFERROR('Tabel 2 F'!J91/'Tabel 1 F'!G89*100,"-")) -> 3.447630641
A92: HD | C92: =IF(OR('Tabel 1 F'!C90<5,'Tabel 2 F'!C92<0.5),"-",IFERROR('Tabel 2 F'!C92/'Tabel 1 F'!C90*100,"-")) -> 14.28571429 | D92: =IF(OR('Tabel 1 F'!C90<5,'Tabel 2 F'!D92<0.5),"-",IFERROR('Tabel 2 F'!D92/'Tabel 1 F'!C90*100,"-")) -> 14.28304123 | F92: =IF(OR('Tabel 1 F'!E90<5,'Tabel 2 F'!F92<0.5),"-",IFERROR('Tabel 2 F'!F92/'Tabel 1 F'!E90*100,"-")) -> - | G92: =IF(OR('Tabel 1 F'!E90<5,'Tabel 2 F'!G92<0.5),"-",IFERROR('Tabel 2 F'!G92/'Tabel 1 F'!E90*100,"-")) -> - | I92: =IF(OR('Tabel 1 F'!G90<5,'Tabel 2 F'!I92<0.5),"-",IFERROR('Tabel 2 F'!I92/'Tabel 1 F'!G90*100,"-")) -> 5.555555556 | J92: =IF(OR('Tabel 1 F'!G90<5,'Tabel 2 F'!J92<0.5),"-",IFERROR('Tabel 2 F'!J92/'Tabel 1 F'!G90*100,"-")) -> 5.554516033
A93: Komm. og Sprog | C93: =IF(OR('Tabel 1 F'!C91<5,'Tabel 2 F'!C93<0.5),"-",IFERROR('Tabel 2 F'!C93/'Tabel 1 F'!C91*100,"-")) -> - | D93: =IF(OR('Tabel 1 F'!C91<5,'Tabel 2 F'!D93<0.5),"-",IFERROR('Tabel 2 F'!D93/'Tabel 1 F'!C91*100,"-")) -> - | F93: =IF(OR('Tabel 1 F'!E91<5,'Tabel 2 F'!F93<0.5),"-",IFERROR('Tabel 2 F'!F93/'Tabel 1 F'!E91*100,"-")) -> 3.125 | G93: =IF(OR('Tabel 1 F'!E91<5,'Tabel 2 F'!G93<0.5),"-",IFERROR('Tabel 2 F'!G93/'Tabel 1 F'!E91*100,"-")) -> 3.071789434 | I93: =IF(OR('Tabel 1 F'!G91<5,'Tabel 2 F'!I93<0.5),"-",IFERROR('Tabel 2 F'!I93/'Tabel 1 F'!G91*100,"-")) -> 5.882352941 | J93: =IF(OR('Tabel 1 F'!G91<5,'Tabel 2 F'!J93<0.5),"-",IFERROR('Tabel 2 F'!J93/'Tabel 1 F'!G91*100,"-")) -> 5.424473788
A94: Cand. IT. | C94: =IF(OR('Tabel 1 F'!C92<5,'Tabel 2 F'!C94<0.5),"-",IFERROR('Tabel 2 F'!C94/'Tabel 1 F'!C92*100,"-")) -> - | D94: =IF(OR('Tabel 1 F'!C92<5,'Tabel 2 F'!D94<0.5),"-",IFERROR('Tabel 2 F'!D94/'Tabel 1 F'!C92*100,"-")) -> - | F94: =IF(OR('Tabel 1 F'!E92<5,'Tabel 2 F'!F94<0.5),"-",IFERROR('Tabel 2 F'!F94/'Tabel 1 F'!E92*100,"-")) -> - | G94: =IF(OR('Tabel 1 F'!E92<5,'Tabel 2 F'!G94<0.5),"-",IFERROR('Tabel 2 F'!G94/'Tabel 1 F'!E92*100,"-")) -> - | I94: =IF(OR('Tabel 1 F'!G92<5,'Tabel 2 F'!I94<0.5),"-",IFERROR('Tabel 2 F'!I94/'Tabel 1 F'!G92*100,"-")) -> - | J94: =IF(OR('Tabel 1 F'!G92<5,'Tabel 2 F'!J94<0.5),"-",IFERROR('Tabel 2 F'!J94/'Tabel 1 F'!G92*100,"-")) -> -
A95: Bac. Samf. | C95: =IF(OR('Tabel 1 F'!C93<5,'Tabel 2 F'!C95<0.5),"-",IFERROR('Tabel 2 F'!C95/'Tabel 1 F'!C93*100,"-")) -> - | D95: =IF(OR('Tabel 1 F'!C93<5,'Tabel 2 F'!D95<0.5),"-",IFERROR('Tabel 2 F'!D95/'Tabel 1 F'!C93*100,"-")) -> - | F95: =IF(OR('Tabel 1 F'!E93<5,'Tabel 2 F'!F95<0.5),"-",IFERROR('Tabel 2 F'!F95/'Tabel 1 F'!E93*100,"-")) -> - | G95: =IF(OR('Tabel 1 F'!E93<5,'Tabel 2 F'!G95<0.5),"-",IFERROR('Tabel 2 F'!G95/'Tabel 1 F'!E93*100,"-")) -> - | I95: =IF(OR('Tabel 1 F'!G93<5,'Tabel 2 F'!I95<0.5),"-",IFERROR('Tabel 2 F'!I95/'Tabel 1 F'!G93*100,"-")) -> - | J95: =IF(OR('Tabel 1 F'!G93<5,'Tabel 2 F'!J95<0.5),"-",IFERROR('Tabel 2 F'!J95/'Tabel 1 F'!G93*100,"-")) -> -
A96: Bac. Hum. | C96: =IF(OR('Tabel 1 F'!C94<5,'Tabel 2 F'!C96<0.5),"-",IFERROR('Tabel 2 F'!C96/'Tabel 1 F'!C94*100,"-")) -> - | D96: =IF(OR('Tabel 1 F'!C94<5,'Tabel 2 F'!D96<0.5),"-",IFERROR('Tabel 2 F'!D96/'Tabel 1 F'!C94*100,"-")) -> - | F96: =IF(OR('Tabel 1 F'!E94<5,'Tabel 2 F'!F96<0.5),"-",IFERROR('Tabel 2 F'!F96/'Tabel 1 F'!E94*100,"-")) -> 14.28571429 | G96: =IF(OR('Tabel 1 F'!E94<5,'Tabel 2 F'!G96<0.5),"-",IFERROR('Tabel 2 F'!G96/'Tabel 1 F'!E94*100,"-")) -> - | I96: =IF(OR('Tabel 1 F'!G94<5,'Tabel 2 F'!I96<0.5),"-",IFERROR('Tabel 2 F'!I96/'Tabel 1 F'!G94*100,"-")) -> 11.11111111 | J96: =IF(OR('Tabel 1 F'!G94<5,'Tabel 2 F'!J96<0.5),"-",IFERROR('Tabel 2 F'!J96/'Tabel 1 F'!G94*100,"-")) -> -
A97: Bac. Nat. | C97: =IF(OR('Tabel 1 F'!C95<5,'Tabel 2 F'!C97<0.5),"-",IFERROR('Tabel 2 F'!C97/'Tabel 1 F'!C95*100,"-")) -> - | D97: =IF(OR('Tabel 1 F'!C95<5,'Tabel 2 F'!D97<0.5),"-",IFERROR('Tabel 2 F'!D97/'Tabel 1 F'!C95*100,"-")) -> - | F97: =IF(OR('Tabel 1 F'!E95<5,'Tabel 2 F'!F97<0.5),"-",IFERROR('Tabel 2 F'!F97/'Tabel 1 F'!E95*100,"-")) -> - | G97: =IF(OR('Tabel 1 F'!E95<5,'Tabel 2 F'!G97<0.5),"-",IFERROR('Tabel 2 F'!G97/'Tabel 1 F'!E95*100,"-")) -> - | I97: =IF(OR('Tabel 1 F'!G95<5,'Tabel 2 F'!I97<0.5),"-",IFERROR('Tabel 2 F'!I97/'Tabel 1 F'!G95*100,"-")) -> 14.28571429 | J97: =IF(OR('Tabel 1 F'!G95<5,'Tabel 2 F'!J97<0.5),"-",IFERROR('Tabel 2 F'!J97/'Tabel 1 F'!G95*100,"-")) -> 14.28304123
A98: Andre | C98: =IF(OR('Tabel 1 F'!C96<5,'Tabel 2 F'!C98<0.5),"-",IFERROR('Tabel 2 F'!C98/'Tabel 1 F'!C96*100,"-")) -> 8.333333333 | D98: =IF(OR('Tabel 1 F'!C96<5,'Tabel 2 F'!D98<0.5),"-",IFERROR('Tabel 2 F'!D98/'Tabel 1 F'!C96*100,"-")) -> 8.019917254 | F98: =IF(OR('Tabel 1 F'!E96<5,'Tabel 2 F'!F98<0.5),"-",IFERROR('Tabel 2 F'!F98/'Tabel 1 F'!E96*100,"-")) -> 5.555555556 | G98: =IF(OR('Tabel 1 F'!E96<5,'Tabel 2 F'!G98<0.5),"-",IFERROR('Tabel 2 F'!G98/'Tabel 1 F'!E96*100,"-")) -> 5.169892652 | I98: =IF(OR('Tabel 1 F'!G96<5,'Tabel 2 F'!I98<0.5),"-",IFERROR('Tabel 2 F'!I98/'Tabel 1 F'!G96*100,"-")) -> 6.944444444 | J98: =IF(OR('Tabel 1 F'!G96<5,'Tabel 2 F'!J98<0.5),"-",IFERROR('Tabel 2 F'!J98/'Tabel 1 F'!G96*100,"-")) -> 6.594904953
A100: Total | C100: =IF(OR('Tabel 1 F'!C98<5,'Tabel 2 F'!C100<0.5),"-",IFERROR('Tabel 2 F'!C100/'Tabel 1 F'!C98*100,"-")) -> 3.561253561 | D100: =IF(OR('Tabel 1 F'!C98<5,'Tabel 2 F'!D100<0.5),"-",IFERROR('Tabel 2 F'!D100/'Tabel 1 F'!C98*100,"-")) -> 3.090936198 | F100: =IF(OR('Tabel 1 F'!E98<5,'Tabel 2 F'!F100<0.5),"-",IFERROR('Tabel 2 F'!F100/'Tabel 1 F'!E98*100,"-")) -> 3.352769679 | G100: =IF(OR('Tabel 1 F'!E98<5,'Tabel 2 F'!G100<0.5),"-",IFERROR('Tabel 2 F'!G100/'Tabel 1 F'!E98*100,"-")) -> 2.911724161 | I100: =IF(OR('Tabel 1 F'!G98<5,'Tabel 2 F'!I100<0.5),"-",IFERROR('Tabel 2 F'!I100/'Tabel 1 F'!G98*100,"-")) -> 3.458213256 | J100: =IF(OR('Tabel 1 F'!G98<5,'Tabel 2 F'!J100<0.5),"-",IFERROR('Tabel 2 F'!J100/'Tabel 1 F'!G98*100,"-")) -> 3.002363102
A102: Ingeniører i alt | C102: =IF(OR('Tabel 1 F'!C100<5,'Tabel 2 F'!C102<0.5),"-",IFERROR('Tabel 2 F'!C102/'Tabel 1 F'!C100*100,"-")) -> 0.6557377049 | D102: =IF(OR('Tabel 1 F'!C100<5,'Tabel 2 F'!D102<0.5),"-",IFERROR('Tabel 2 F'!D102/'Tabel 1 F'!C100*100,"-")) -> 0.5345532217 | F102: =IF(OR('Tabel 1 F'!E100<5,'Tabel 2 F'!F102<0.5),"-",IFERROR('Tabel 2 F'!F102/'Tabel 1 F'!E100*100,"-")) -> - | G102: =IF(OR('Tabel 1 F'!E100<5,'Tabel 2 F'!G102<0.5),"-",IFERROR('Tabel 2 F'!G102/'Tabel 1 F'!E100*100,"-")) -> - | I102: =IF(OR('Tabel 1 F'!G100<5,'Tabel 2 F'!I102<0.5),"-",IFERROR('Tabel 2 F'!I102/'Tabel 1 F'!G100*100,"-")) -> 0.5333333333 | J102: =IF(OR('Tabel 1 F'!G100<5,'Tabel 2 F'!J102<0.5),"-",IFERROR('Tabel 2 F'!J102/'Tabel 1 F'!G100*100,"-")) -> 0.4347699536
A103: Magistre i alt | C103: =IF(OR('Tabel 1 F'!C101<5,'Tabel 2 F'!C103<0.5),"-",IFERROR('Tabel 2 F'!C103/'Tabel 1 F'!C101*100,"-")) -> 5.813953488 | D103: =IF(OR('Tabel 1 F'!C101<5,'Tabel 2 F'!D103<0.5),"-",IFERROR('Tabel 2 F'!D103/'Tabel 1 F'!C101*100,"-")) -> 4.846834799 | F103: =IF(OR('Tabel 1 F'!E101<5,'Tabel 2 F'!F103<0.5),"-",IFERROR('Tabel 2 F'!F103/'Tabel 1 F'!E101*100,"-")) -> 5.263157895 | G103: =IF(OR('Tabel 1 F'!E101<5,'Tabel 2 F'!G103<0.5),"-",IFERROR('Tabel 2 F'!G103/'Tabel 1 F'!E101*100,"-")) -> 4.597836042 | I103: =IF(OR('Tabel 1 F'!G101<5,'Tabel 2 F'!I103<0.5),"-",IFERROR('Tabel 2 F'!I103/'Tabel 1 F'!G101*100,"-")) -> 5.462184874 | J103: =IF(OR('Tabel 1 F'!G101<5,'Tabel 2 F'!J103<0.5),"-",IFERROR('Tabel 2 F'!J103/'Tabel 1 F'!G101*100,"-")) -> 4.687810383
A104: DJØF'ere i alt | C104: =IF(OR('Tabel 1 F'!C102<5,'Tabel 2 F'!C104<0.5),"-",IFERROR('Tabel 2 F'!C104/'Tabel 1 F'!C102*100,"-")) -> 4.72972973 | D104: =IF(OR('Tabel 1 F'!C102<5,'Tabel 2 F'!D104<0.5),"-",IFERROR('Tabel 2 F'!D104/'Tabel 1 F'!C102*100,"-")) -> 3.481417549 | F104: =IF(OR('Tabel 1 F'!E102<5,'Tabel 2 F'!F104<0.5),"-",IFERROR('Tabel 2 F'!F104/'Tabel 1 F'!E102*100,"-")) -> 2.564102564 | G104: =IF(OR('Tabel 1 F'!E102<5,'Tabel 2 F'!G104<0.5),"-",IFERROR('Tabel 2 F'!G104/'Tabel 1 F'!E102*100,"-")) -> 2.563622784 | I104: =IF(OR('Tabel 1 F'!G102<5,'Tabel 2 F'!I104<0.5),"-",IFERROR('Tabel 2 F'!I104/'Tabel 1 F'!G102*100,"-")) -> 3.618421053 | J104: =IF(OR('Tabel 1 F'!G102<5,'Tabel 2 F'!J104<0.5),"-",IFERROR('Tabel 2 F'!J104/'Tabel 1 F'!G102*100,"-")) -> 3.01044392
A109: Assens
C111: Mænd | F111: Kvinder | I111: I alt
C112: Ledigheds- berørte | D112: Gns. brutto- ledighed | F112: Ledigheds- berørte | G112: Gns. brutto- ledighed | I112: Ledigheds- berørte | J112: Gns. brutto- ledighed
A115: Civ. ing. | C115: =IF(OR('Tabel 1 F'!C113<5,'Tabel 2 F'!C115<0.5),"-",IFERROR('Tabel 2 F'!C115/'Tabel 1 F'!C113*100,"-")) -> 4.347826087 | D115: =IF(OR('Tabel 1 F'!C113<5,'Tabel 2 F'!D115<0.5),"-",IFERROR('Tabel 2 F'!D115/'Tabel 1 F'!C113*100,"-")) -> 2.841964535 | F115: =IF(OR('Tabel 1 F'!E113<5,'Tabel 2 F'!F115<0.5),"-",IFERROR('Tabel 2 F'!F115/'Tabel 1 F'!E113*100,"-")) -> - | G115: =IF(OR('Tabel 1 F'!E113<5,'Tabel 2 F'!G115<0.5),"-",IFERROR('Tabel 2 F'!G115/'Tabel 1 F'!E113*100,"-")) -> - | I115: =IF(OR('Tabel 1 F'!G113<5,'Tabel 2 F'!I115<0.5),"-",IFERROR('Tabel 2 F'!I115/'Tabel 1 F'!G113*100,"-")) -> 3.571428571 | J115: =IF(OR('Tabel 1 F'!G113<5,'Tabel 2 F'!J115<0.5),"-",IFERROR('Tabel 2 F'!J115/'Tabel 1 F'!G113*100,"-")) -> 2.334470868
A116: Diplom ing. | C116: =IF(OR('Tabel 1 F'!C114<5,'Tabel 2 F'!C116<0.5),"-",IFERROR('Tabel 2 F'!C116/'Tabel 1 F'!C114*100,"-")) -> 2.590673575 | D116: =IF(OR('Tabel 1 F'!C114<5,'Tabel 2 F'!D116<0.5),"-",IFERROR('Tabel 2 F'!D116/'Tabel 1 F'!C114*100,"-")) -> 1.83268382 | F116: =IF(OR('Tabel 1 F'!E114<5,'Tabel 2 F'!F116<0.5),"-",IFERROR('Tabel 2 F'!F116/'Tabel 1 F'!E114*100,"-")) -> 2.5 | G116: =IF(OR('Tabel 1 F'!E114<5,'Tabel 2 F'!G116<0.5),"-",IFERROR('Tabel 2 F'!G116/'Tabel 1 F'!E114*100,"-")) -> 1.922597143 | I116: =IF(OR('Tabel 1 F'!G114<5,'Tabel 2 F'!I116<0.5),"-",IFERROR('Tabel 2 F'!I116/'Tabel 1 F'!G114*100,"-")) -> 2.575107296 | J116: =IF(OR('Tabel 1 F'!G114<5,'Tabel 2 F'!J116<0.5),"-",IFERROR('Tabel 2 F'!J116/'Tabel 1 F'!G114*100,"-")) -> 1.848119584
A117: Cand. Scient. Tek. | C117: =IF(OR('Tabel 1 F'!C115<5,'Tabel 2 F'!C117<0.5),"-",IFERROR('Tabel 2 F'!C117/'Tabel 1 F'!C115*100,"-")) -> 10.52631579 | D117: =IF(OR('Tabel 1 F'!C115<5,'Tabel 2 F'!D117<0.5),"-",IFERROR('Tabel 2 F'!D117/'Tabel 1 F'!C115*100,"-")) -> 7.42219173 | F117: =IF(OR('Tabel 1 F'!E115<5,'Tabel 2 F'!F117<0.5),"-",IFERROR('Tabel 2 F'!F117/'Tabel 1 F'!E115*100,"-")) -> 7.692307692 | G117: =IF(OR('Tabel 1 F'!E115<5,'Tabel 2 F'!G117<0.5),"-",IFERROR('Tabel 2 F'!G117/'Tabel 1 F'!E115*100,"-")) -> 5.915683518 | I117: =IF(OR('Tabel 1 F'!G115<5,'Tabel 2 F'!I117<0.5),"-",IFERROR('Tabel 2 F'!I117/'Tabel 1 F'!G115*100,"-")) -> 9.375 | J117: =IF(OR('Tabel 1 F'!G115<5,'Tabel 2 F'!J117<0.5),"-",IFERROR('Tabel 2 F'!J117/'Tabel 1 F'!G115*100,"-")) -> 6.810172769
A118: MA. Hum. | C118: =IF(OR('Tabel 1 F'!C116<5,'Tabel 2 F'!C118<0.5),"-",IFERROR('Tabel 2 F'!C118/'Tabel 1 F'!C116*100,"-")) -> 2.777777778 | D118: =IF(OR('Tabel 1 F'!C116<5,'Tabel 2 F'!D118<0.5),"-",IFERROR('Tabel 2 F'!D118/'Tabel 1 F'!C116*100,"-")) -> 2.292147446 | F118: =IF(OR('Tabel 1 F'!E116<5,'Tabel 2 F'!F118<0.5),"-",IFERROR('Tabel 2 F'!F118/'Tabel 1 F'!E116*100,"-")) -> 5.102040816 | G118: =IF(OR('Tabel 1 F'!E116<5,'Tabel 2 F'!G118<0.5),"-",IFERROR('Tabel 2 F'!G118/'Tabel 1 F'!E116*100,"-")) -> 3.641087196 | I118: =IF(OR('Tabel 1 F'!G116<5,'Tabel 2 F'!I118<0.5),"-",IFERROR('Tabel 2 F'!I118/'Tabel 1 F'!G116*100,"-")) -> 4.47761194 | J118: =IF(OR('Tabel 1 F'!G116<5,'Tabel 2 F'!J118<0.5),"-",IFERROR('Tabel 2 F'!J118/'Tabel 1 F'!G116*100,"-")) -> 3.278685472
A119: MA. Nat. | C119: =IF(OR('Tabel 1 F'!C117<5,'Tabel 2 F'!C119<0.5),"-",IFERROR('Tabel 2 F'!C119/'Tabel 1 F'!C117*100,"-")) -> - | D119: =IF(OR('Tabel 1 F'!C117<5,'Tabel 2 F'!D119<0.5),"-",IFERROR('Tabel 2 F'!D119/'Tabel 1 F'!C117*100,"-")) -> - | F119: =IF(OR('Tabel 1 F'!E117<5,'Tabel 2 F'!F119<0.5),"-",IFERROR('Tabel 2 F'!F119/'Tabel 1 F'!E117*100,"-")) -> 8.695652174 | G119: =IF(OR('Tabel 1 F'!E117<5,'Tabel 2 F'!G119<0.5),"-",IFERROR('Tabel 2 F'!G119/'Tabel 1 F'!E117*100,"-")) -> 8.694025095 | I119: =IF(OR('Tabel 1 F'!G117<5,'Tabel 2 F'!I119<0.5),"-",IFERROR('Tabel 2 F'!I119/'Tabel 1 F'!G117*100,"-")) -> 3.571428571 | J119: =IF(OR('Tabel 1 F'!G117<5,'Tabel 2 F'!J119<0.5),"-",IFERROR('Tabel 2 F'!J119/'Tabel 1 F'!G117*100,"-")) -> 3.570760307
A120: MA. Ph.d. | C120: =IF(OR('Tabel 1 F'!C118<5,'Tabel 2 F'!C120<0.5),"-",IFERROR('Tabel 2 F'!C120/'Tabel 1 F'!C118*100,"-")) -> - | D120: =IF(OR('Tabel 1 F'!C118<5,'Tabel 2 F'!D120<0.5),"-",IFERROR('Tabel 2 F'!D120/'Tabel 1 F'!C118*100,"-")) -> - | F120: =IF(OR('Tabel 1 F'!E118<5,'Tabel 2 F'!F120<0.5),"-",IFERROR('Tabel 2 F'!F120/'Tabel 1 F'!E118*100,"-")) -> - | G120: =IF(OR('Tabel 1 F'!E118<5,'Tabel 2 F'!G120<0.5),"-",IFERROR('Tabel 2 F'!G120/'Tabel 1 F'!E118*100,"-")) -> - | I120: =IF(OR('Tabel 1 F'!G118<5,'Tabel 2 F'!I120<0.5),"-",IFERROR('Tabel 2 F'!I120/'Tabel 1 F'!G118*100,"-")) -> - | J120: =IF(OR('Tabel 1 F'!G118<5,'Tabel 2 F'!J120<0.5),"-",IFERROR('Tabel 2 F'!J120/'Tabel 1 F'!G118*100,"-")) -> -
A121: MA. Samf. | C121: =IF(OR('Tabel 1 F'!C119<5,'Tabel 2 F'!C121<0.5),"-",IFERROR('Tabel 2 F'!C121/'Tabel 1 F'!C119*100,"-")) -> - | D121: =IF(OR('Tabel 1 F'!C119<5,'Tabel 2 F'!D121<0.5),"-",IFERROR('Tabel 2 F'!D121/'Tabel 1 F'!C119*100,"-")) -> - | F121: =IF(OR('Tabel 1 F'!E119<5,'Tabel 2 F'!F121<0.5),"-",IFERROR('Tabel 2 F'!F121/'Tabel 1 F'!E119*100,"-")) -> - | G121: =IF(OR('Tabel 1 F'!E119<5,'Tabel 2 F'!G121<0.5),"-",IFERROR('Tabel 2 F'!G121/'Tabel 1 F'!E119*100,"-")) -> - | I121: =IF(OR('Tabel 1 F'!G119<5,'Tabel 2 F'!I121<0.5),"-",IFERROR('Tabel 2 F'!I121/'Tabel 1 F'!G119*100,"-")) -> 20 | J121: =IF(OR('Tabel 1 F'!G119<5,'Tabel 2 F'!J121<0.5),"-",IFERROR('Tabel 2 F'!J121/'Tabel 1 F'!G119*100,"-")) -> 19.99625772
A122: Øvrige Mag. | C122: =IF(OR('Tabel 1 F'!C120<5,'Tabel 2 F'!C122<0.5),"-",IFERROR('Tabel 2 F'!C122/'Tabel 1 F'!C120*100,"-")) -> - | D122: =IF(OR('Tabel 1 F'!C120<5,'Tabel 2 F'!D122<0.5),"-",IFERROR('Tabel 2 F'!D122/'Tabel 1 F'!C120*100,"-")) -> - | F122: =IF(OR('Tabel 1 F'!E120<5,'Tabel 2 F'!F122<0.5),"-",IFERROR('Tabel 2 F'!F122/'Tabel 1 F'!E120*100,"-")) -> - | G122: =IF(OR('Tabel 1 F'!E120<5,'Tabel 2 F'!G122<0.5),"-",IFERROR('Tabel 2 F'!G122/'Tabel 1 F'!E120*100,"-")) -> - | I122: =IF(OR('Tabel 1 F'!G120<5,'Tabel 2 F'!I122<0.5),"-",IFERROR('Tabel 2 F'!I122/'Tabel 1 F'!G120*100,"-")) -> - | J122: =IF(OR('Tabel 1 F'!G120<5,'Tabel 2 F'!J122<0.5),"-",IFERROR('Tabel 2 F'!J122/'Tabel 1 F'!G120*100,"-")) -> -
A123: Agronom | C123: =IF(OR('Tabel 1 F'!C121<5,'Tabel 2 F'!C123<0.5),"-",IFERROR('Tabel 2 F'!C123/'Tabel 1 F'!C121*100,"-")) -> - | D123: =IF(OR('Tabel 1 F'!C121<5,'Tabel 2 F'!D123<0.5),"-",IFERROR('Tabel 2 F'!D123/'Tabel 1 F'!C121*100,"-")) -> - | F123: =IF(OR('Tabel 1 F'!E121<5,'Tabel 2 F'!F123<0.5),"-",IFERROR('Tabel 2 F'!F123/'Tabel 1 F'!E121*100,"-")) -> - | G123: =IF(OR('Tabel 1 F'!E121<5,'Tabel 2 F'!G123<0.5),"-",IFERROR('Tabel 2 F'!G123/'Tabel 1 F'!E121*100,"-")) -> - | I123: =IF(OR('Tabel 1 F'!G121<5,'Tabel 2 F'!I123<0.5),"-",IFERROR('Tabel 2 F'!I123/'Tabel 1 F'!G121*100,"-")) -> - | J123: =IF(OR('Tabel 1 F'!G121<5,'Tabel 2 F'!J123<0.5),"-",IFERROR('Tabel 2 F'!J123/'Tabel 1 F'!G121*100,"-")) -> -
A124: Landsk. Arkt. | C124: =IF(OR('Tabel 1 F'!C122<5,'Tabel 2 F'!C124<0.5),"-",IFERROR('Tabel 2 F'!C124/'Tabel 1 F'!C122*100,"-")) -> - | D124: =IF(OR('Tabel 1 F'!C122<5,'Tabel 2 F'!D124<0.5),"-",IFERROR('Tabel 2 F'!D124/'Tabel 1 F'!C122*100,"-")) -> - | F124: =IF(OR('Tabel 1 F'!E122<5,'Tabel 2 F'!F124<0.5),"-",IFERROR('Tabel 2 F'!F124/'Tabel 1 F'!E122*100,"-")) -> - | G124: =IF(OR('Tabel 1 F'!E122<5,'Tabel 2 F'!G124<0.5),"-",IFERROR('Tabel 2 F'!G124/'Tabel 1 F'!E122*100,"-")) -> - | I124: =IF(OR('Tabel 1 F'!G122<5,'Tabel 2 F'!I124<0.5),"-",IFERROR('Tabel 2 F'!I124/'Tabel 1 F'!G122*100,"-")) -> - | J124: =IF(OR('Tabel 1 F'!G122<5,'Tabel 2 F'!J124<0.5),"-",IFERROR('Tabel 2 F'!J124/'Tabel 1 F'!G122*100,"-")) -> -
A125: Hortonom | C125: =IF(OR('Tabel 1 F'!C123<5,'Tabel 2 F'!C125<0.5),"-",IFERROR('Tabel 2 F'!C125/'Tabel 1 F'!C123*100,"-")) -> - | D125: =IF(OR('Tabel 1 F'!C123<5,'Tabel 2 F'!D125<0.5),"-",IFERROR('Tabel 2 F'!D125/'Tabel 1 F'!C123*100,"-")) -> - | F125: =IF(OR('Tabel 1 F'!E123<5,'Tabel 2 F'!F125<0.5),"-",IFERROR('Tabel 2 F'!F125/'Tabel 1 F'!E123*100,"-")) -> - | G125: =IF(OR('Tabel 1 F'!E123<5,'Tabel 2 F'!G125<0.5),"-",IFERROR('Tabel 2 F'!G125/'Tabel 1 F'!E123*100,"-")) -> - | I125: =IF(OR('Tabel 1 F'!G123<5,'Tabel 2 F'!I125<0.5),"-",IFERROR('Tabel 2 F'!I125/'Tabel 1 F'!G123*100,"-")) -> - | J125: =IF(OR('Tabel 1 F'!G123<5,'Tabel 2 F'!J125<0.5),"-",IFERROR('Tabel 2 F'!J125/'Tabel 1 F'!G123*100,"-")) -> -
A126: Forstkand. | C126: =IF(OR('Tabel 1 F'!C124<5,'Tabel 2 F'!C126<0.5),"-",IFERROR('Tabel 2 F'!C126/'Tabel 1 F'!C124*100,"-")) -> 20 | D126: =IF(OR('Tabel 1 F'!C124<5,'Tabel 2 F'!D126<0.5),"-",IFERROR('Tabel 2 F'!D126/'Tabel 1 F'!C124*100,"-")) -> 19.99625772 | F126: =IF(OR('Tabel 1 F'!E124<5,'Tabel 2 F'!F126<0.5),"-",IFERROR('Tabel 2 F'!F126/'Tabel 1 F'!E124*100,"-")) -> - | G126: =IF(OR('Tabel 1 F'!E124<5,'Tabel 2 F'!G126<0.5),"-",IFERROR('Tabel 2 F'!G126/'Tabel 1 F'!E124*100,"-")) -> - | I126: =IF(OR('Tabel 1 F'!G124<5,'Tabel 2 F'!I126<0.5),"-",IFERROR('Tabel 2 F'!I126/'Tabel 1 F'!G124*100,"-")) -> 20 | J126: =IF(OR('Tabel 1 F'!G124<5,'Tabel 2 F'!J126<0.5),"-",IFERROR('Tabel 2 F'!J126/'Tabel 1 F'!G124*100,"-")) -> 19.99625772
A127: Jordbrugsakad. | C127: =IF(OR('Tabel 1 F'!C125<5,'Tabel 2 F'!C127<0.5),"-",IFERROR('Tabel 2 F'!C127/'Tabel 1 F'!C125*100,"-")) -> 6.25 | D127: =IF(OR('Tabel 1 F'!C125<5,'Tabel 2 F'!D127<0.5),"-",IFERROR('Tabel 2 F'!D127/'Tabel 1 F'!C125*100,"-")) -> 6.248830537 | F127: =IF(OR('Tabel 1 F'!E125<5,'Tabel 2 F'!F127<0.5),"-",IFERROR('Tabel 2 F'!F127/'Tabel 1 F'!E125*100,"-")) -> - | G127: =IF(OR('Tabel 1 F'!E125<5,'Tabel 2 F'!G127<0.5),"-",IFERROR('Tabel 2 F'!G127/'Tabel 1 F'!E125*100,"-")) -> - | I127: =IF(OR('Tabel 1 F'!G125<5,'Tabel 2 F'!I127<0.5),"-",IFERROR('Tabel 2 F'!I127/'Tabel 1 F'!G125*100,"-")) -> 2.941176471 | J127: =IF(OR('Tabel 1 F'!G125<5,'Tabel 2 F'!J127<0.5),"-",IFERROR('Tabel 2 F'!J127/'Tabel 1 F'!G125*100,"-")) -> 2.940626135
A128: Mejeriing. | C128: =IF(OR('Tabel 1 F'!C126<5,'Tabel 2 F'!C128<0.5),"-",IFERROR('Tabel 2 F'!C128/'Tabel 1 F'!C126*100,"-")) -> - | D128: =IF(OR('Tabel 1 F'!C126<5,'Tabel 2 F'!D128<0.5),"-",IFERROR('Tabel 2 F'!D128/'Tabel 1 F'!C126*100,"-")) -> - | F128: =IF(OR('Tabel 1 F'!E126<5,'Tabel 2 F'!F128<0.5),"-",IFERROR('Tabel 2 F'!F128/'Tabel 1 F'!E126*100,"-")) -> - | G128: =IF(OR('Tabel 1 F'!E126<5,'Tabel 2 F'!G128<0.5),"-",IFERROR('Tabel 2 F'!G128/'Tabel 1 F'!E126*100,"-")) -> - | I128: =IF(OR('Tabel 1 F'!G126<5,'Tabel 2 F'!I128<0.5),"-",IFERROR('Tabel 2 F'!I128/'Tabel 1 F'!G126*100,"-")) -> - | J128: =IF(OR('Tabel 1 F'!G126<5,'Tabel 2 F'!J128<0.5),"-",IFERROR('Tabel 2 F'!J128/'Tabel 1 F'!G126*100,"-")) -> -
A129: Levn.m.kand. | C129: =IF(OR('Tabel 1 F'!C127<5,'Tabel 2 F'!C129<0.5),"-",IFERROR('Tabel 2 F'!C129/'Tabel 1 F'!C127*100,"-")) -> - | D129: =IF(OR('Tabel 1 F'!C127<5,'Tabel 2 F'!D129<0.5),"-",IFERROR('Tabel 2 F'!D129/'Tabel 1 F'!C127*100,"-")) -> - | F129: =IF(OR('Tabel 1 F'!E127<5,'Tabel 2 F'!F129<0.5),"-",IFERROR('Tabel 2 F'!F129/'Tabel 1 F'!E127*100,"-")) -> - | G129: =IF(OR('Tabel 1 F'!E127<5,'Tabel 2 F'!G129<0.5),"-",IFERROR('Tabel 2 F'!G129/'Tabel 1 F'!E127*100,"-")) -> - | I129: =IF(OR('Tabel 1 F'!G127<5,'Tabel 2 F'!I129<0.5),"-",IFERROR('Tabel 2 F'!I129/'Tabel 1 F'!G127*100,"-")) -> - | J129: =IF(OR('Tabel 1 F'!G127<5,'Tabel 2 F'!J129<0.5),"-",IFERROR('Tabel 2 F'!J129/'Tabel 1 F'!G127*100,"-")) -> -
A130: Dyrlæge | C130: =IF(OR('Tabel 1 F'!C128<5,'Tabel 2 F'!C130<0.5),"-",IFERROR('Tabel 2 F'!C130/'Tabel 1 F'!C128*100,"-")) -> - | D130: =IF(OR('Tabel 1 F'!C128<5,'Tabel 2 F'!D130<0.5),"-",IFERROR('Tabel 2 F'!D130/'Tabel 1 F'!C128*100,"-")) -> - | F130: =IF(OR('Tabel 1 F'!E128<5,'Tabel 2 F'!F130<0.5),"-",IFERROR('Tabel 2 F'!F130/'Tabel 1 F'!E128*100,"-")) -> 7.142857143 | G130: =IF(OR('Tabel 1 F'!E128<5,'Tabel 2 F'!G130<0.5),"-",IFERROR('Tabel 2 F'!G130/'Tabel 1 F'!E128*100,"-")) -> 5.822811879 | I130: =IF(OR('Tabel 1 F'!G128<5,'Tabel 2 F'!I130<0.5),"-",IFERROR('Tabel 2 F'!I130/'Tabel 1 F'!G128*100,"-")) -> 6.25 | J130: =IF(OR('Tabel 1 F'!G128<5,'Tabel 2 F'!J130<0.5),"-",IFERROR('Tabel 2 F'!J130/'Tabel 1 F'!G128*100,"-")) -> 5.094960394
A131: Farmaceut | C131: =IF(OR('Tabel 1 F'!C129<5,'Tabel 2 F'!C131<0.5),"-",IFERROR('Tabel 2 F'!C131/'Tabel 1 F'!C129*100,"-")) -> - | D131: =IF(OR('Tabel 1 F'!C129<5,'Tabel 2 F'!D131<0.5),"-",IFERROR('Tabel 2 F'!D131/'Tabel 1 F'!C129*100,"-")) -> - | F131: =IF(OR('Tabel 1 F'!E129<5,'Tabel 2 F'!F131<0.5),"-",IFERROR('Tabel 2 F'!F131/'Tabel 1 F'!E129*100,"-")) -> - | G131: =IF(OR('Tabel 1 F'!E129<5,'Tabel 2 F'!G131<0.5),"-",IFERROR('Tabel 2 F'!G131/'Tabel 1 F'!E129*100,"-")) -> - | I131: =IF(OR('Tabel 1 F'!G129<5,'Tabel 2 F'!I131<0.5),"-",IFERROR('Tabel 2 F'!I131/'Tabel 1 F'!G129*100,"-")) -> - | J131: =IF(OR('Tabel 1 F'!G129<5,'Tabel 2 F'!J131<0.5),"-",IFERROR('Tabel 2 F'!J131/'Tabel 1 F'!G129*100,"-")) -> -
A132: Læge | C132: =IF(OR('Tabel 1 F'!C130<5,'Tabel 2 F'!C132<0.5),"-",IFERROR('Tabel 2 F'!C132/'Tabel 1 F'!C130*100,"-")) -> - | D132: =IF(OR('Tabel 1 F'!C130<5,'Tabel 2 F'!D132<0.5),"-",IFERROR('Tabel 2 F'!D132/'Tabel 1 F'!C130*100,"-")) -> - | F132: =IF(OR('Tabel 1 F'!E130<5,'Tabel 2 F'!F132<0.5),"-",IFERROR('Tabel 2 F'!F132/'Tabel 1 F'!E130*100,"-")) -> - | G132: =IF(OR('Tabel 1 F'!E130<5,'Tabel 2 F'!G132<0.5),"-",IFERROR('Tabel 2 F'!G132/'Tabel 1 F'!E130*100,"-")) -> - | I132: =IF(OR('Tabel 1 F'!G130<5,'Tabel 2 F'!I132<0.5),"-",IFERROR('Tabel 2 F'!I132/'Tabel 1 F'!G130*100,"-")) -> - | J132: =IF(OR('Tabel 1 F'!G130<5,'Tabel 2 F'!J132<0.5),"-",IFERROR('Tabel 2 F'!J132/'Tabel 1 F'!G130*100,"-")) -> -
A133: Tandlæge | C133: =IF(OR('Tabel 1 F'!C131<5,'Tabel 2 F'!C133<0.5),"-",IFERROR('Tabel 2 F'!C133/'Tabel 1 F'!C131*100,"-")) -> - | D133: =IF(OR('Tabel 1 F'!C131<5,'Tabel 2 F'!D133<0.5),"-",IFERROR('Tabel 2 F'!D133/'Tabel 1 F'!C131*100,"-")) -> - | F133: =IF(OR('Tabel 1 F'!E131<5,'Tabel 2 F'!F133<0.5),"-",IFERROR('Tabel 2 F'!F133/'Tabel 1 F'!E131*100,"-")) -> - | G133: =IF(OR('Tabel 1 F'!E131<5,'Tabel 2 F'!G133<0.5),"-",IFERROR('Tabel 2 F'!G133/'Tabel 1 F'!E131*100,"-")) -> - | I133: =IF(OR('Tabel 1 F'!G131<5,'Tabel 2 F'!I133<0.5),"-",IFERROR('Tabel 2 F'!I133/'Tabel 1 F'!G131*100,"-")) -> - | J133: =IF(OR('Tabel 1 F'!G131<5,'Tabel 2 F'!J133<0.5),"-",IFERROR('Tabel 2 F'!J133/'Tabel 1 F'!G131*100,"-")) -> -
A134: Arkitekt | C134: =IF(OR('Tabel 1 F'!C132<5,'Tabel 2 F'!C134<0.5),"-",IFERROR('Tabel 2 F'!C134/'Tabel 1 F'!C132*100,"-")) -> - | D134: =IF(OR('Tabel 1 F'!C132<5,'Tabel 2 F'!D134<0.5),"-",IFERROR('Tabel 2 F'!D134/'Tabel 1 F'!C132*100,"-")) -> - | F134: =IF(OR('Tabel 1 F'!E132<5,'Tabel 2 F'!F134<0.5),"-",IFERROR('Tabel 2 F'!F134/'Tabel 1 F'!E132*100,"-")) -> - | G134: =IF(OR('Tabel 1 F'!E132<5,'Tabel 2 F'!G134<0.5),"-",IFERROR('Tabel 2 F'!G134/'Tabel 1 F'!E132*100,"-")) -> - | I134: =IF(OR('Tabel 1 F'!G132<5,'Tabel 2 F'!I134<0.5),"-",IFERROR('Tabel 2 F'!I134/'Tabel 1 F'!G132*100,"-")) -> - | J134: =IF(OR('Tabel 1 F'!G132<5,'Tabel 2 F'!J134<0.5),"-",IFERROR('Tabel 2 F'!J134/'Tabel 1 F'!G132*100,"-")) -> -
A135: Landinspek. | C135: =IF(OR('Tabel 1 F'!C133<5,'Tabel 2 F'!C135<0.5),"-",IFERROR('Tabel 2 F'!C135/'Tabel 1 F'!C133*100,"-")) -> - | D135: =IF(OR('Tabel 1 F'!C133<5,'Tabel 2 F'!D135<0.5),"-",IFERROR('Tabel 2 F'!D135/'Tabel 1 F'!C133*100,"-")) -> - | F135: =IF(OR('Tabel 1 F'!E133<5,'Tabel 2 F'!F135<0.5),"-",IFERROR('Tabel 2 F'!F135/'Tabel 1 F'!E133*100,"-")) -> - | G135: =IF(OR('Tabel 1 F'!E133<5,'Tabel 2 F'!G135<0.5),"-",IFERROR('Tabel 2 F'!G135/'Tabel 1 F'!E133*100,"-")) -> - | I135: =IF(OR('Tabel 1 F'!G133<5,'Tabel 2 F'!I135<0.5),"-",IFERROR('Tabel 2 F'!I135/'Tabel 1 F'!G133*100,"-")) -> - | J135: =IF(OR('Tabel 1 F'!G133<5,'Tabel 2 F'!J135<0.5),"-",IFERROR('Tabel 2 F'!J135/'Tabel 1 F'!G133*100,"-")) -> -
A136: Bibliotekar | C136: =IF(OR('Tabel 1 F'!C134<5,'Tabel 2 F'!C136<0.5),"-",IFERROR('Tabel 2 F'!C136/'Tabel 1 F'!C134*100,"-")) -> - | D136: =IF(OR('Tabel 1 F'!C134<5,'Tabel 2 F'!D136<0.5),"-",IFERROR('Tabel 2 F'!D136/'Tabel 1 F'!C134*100,"-")) -> - | F136: =IF(OR('Tabel 1 F'!E134<5,'Tabel 2 F'!F136<0.5),"-",IFERROR('Tabel 2 F'!F136/'Tabel 1 F'!E134*100,"-")) -> - | G136: =IF(OR('Tabel 1 F'!E134<5,'Tabel 2 F'!G136<0.5),"-",IFERROR('Tabel 2 F'!G136/'Tabel 1 F'!E134*100,"-")) -> - | I136: =IF(OR('Tabel 1 F'!G134<5,'Tabel 2 F'!I136<0.5),"-",IFERROR('Tabel 2 F'!I136/'Tabel 1 F'!G134*100,"-")) -> - | J136: =IF(OR('Tabel 1 F'!G134<5,'Tabel 2 F'!J136<0.5),"-",IFERROR('Tabel 2 F'!J136/'Tabel 1 F'!G134*100,"-")) -> -
A137: Musikudd. | C137: =IF(OR('Tabel 1 F'!C135<5,'Tabel 2 F'!C137<0.5),"-",IFERROR('Tabel 2 F'!C137/'Tabel 1 F'!C135*100,"-")) -> - | D137: =IF(OR('Tabel 1 F'!C135<5,'Tabel 2 F'!D137<0.5),"-",IFERROR('Tabel 2 F'!D137/'Tabel 1 F'!C135*100,"-")) -> - | F137: =IF(OR('Tabel 1 F'!E135<5,'Tabel 2 F'!F137<0.5),"-",IFERROR('Tabel 2 F'!F137/'Tabel 1 F'!E135*100,"-")) -> - | G137: =IF(OR('Tabel 1 F'!E135<5,'Tabel 2 F'!G137<0.5),"-",IFERROR('Tabel 2 F'!G137/'Tabel 1 F'!E135*100,"-")) -> - | I137: =IF(OR('Tabel 1 F'!G135<5,'Tabel 2 F'!I137<0.5),"-",IFERROR('Tabel 2 F'!I137/'Tabel 1 F'!G135*100,"-")) -> - | J137: =IF(OR('Tabel 1 F'!G135<5,'Tabel 2 F'!J137<0.5),"-",IFERROR('Tabel 2 F'!J137/'Tabel 1 F'!G135*100,"-")) -> -
A138: Teolog | C138: =IF(OR('Tabel 1 F'!C136<5,'Tabel 2 F'!C138<0.5),"-",IFERROR('Tabel 2 F'!C138/'Tabel 1 F'!C136*100,"-")) -> - | D138: =IF(OR('Tabel 1 F'!C136<5,'Tabel 2 F'!D138<0.5),"-",IFERROR('Tabel 2 F'!D138/'Tabel 1 F'!C136*100,"-")) -> - | F138: =IF(OR('Tabel 1 F'!E136<5,'Tabel 2 F'!F138<0.5),"-",IFERROR('Tabel 2 F'!F138/'Tabel 1 F'!E136*100,"-")) -> - | G138: =IF(OR('Tabel 1 F'!E136<5,'Tabel 2 F'!G138<0.5),"-",IFERROR('Tabel 2 F'!G138/'Tabel 1 F'!E136*100,"-")) -> - | I138: =IF(OR('Tabel 1 F'!G136<5,'Tabel 2 F'!I138<0.5),"-",IFERROR('Tabel 2 F'!I138/'Tabel 1 F'!G136*100,"-")) -> - | J138: =IF(OR('Tabel 1 F'!G136<5,'Tabel 2 F'!J138<0.5),"-",IFERROR('Tabel 2 F'!J138/'Tabel 1 F'!G136*100,"-")) -> -
A139: Psykolog | C139: =IF(OR('Tabel 1 F'!C137<5,'Tabel 2 F'!C139<0.5),"-",IFERROR('Tabel 2 F'!C139/'Tabel 1 F'!C137*100,"-")) -> - | D139: =IF(OR('Tabel 1 F'!C137<5,'Tabel 2 F'!D139<0.5),"-",IFERROR('Tabel 2 F'!D139/'Tabel 1 F'!C137*100,"-")) -> - | F139: =IF(OR('Tabel 1 F'!E137<5,'Tabel 2 F'!F139<0.5),"-",IFERROR('Tabel 2 F'!F139/'Tabel 1 F'!E137*100,"-")) -> 11.76470588 | G139: =IF(OR('Tabel 1 F'!E137<5,'Tabel 2 F'!G139<0.5),"-",IFERROR('Tabel 2 F'!G139/'Tabel 1 F'!E137*100,"-")) -> 8.776017112 | I139: =IF(OR('Tabel 1 F'!G137<5,'Tabel 2 F'!I139<0.5),"-",IFERROR('Tabel 2 F'!I139/'Tabel 1 F'!G137*100,"-")) -> 8.695652174 | J139: =IF(OR('Tabel 1 F'!G137<5,'Tabel 2 F'!J139<0.5),"-",IFERROR('Tabel 2 F'!J139/'Tabel 1 F'!G137*100,"-")) -> 6.486621343
A140: Jurist | C140: =IF(OR('Tabel 1 F'!C138<5,'Tabel 2 F'!C140<0.5),"-",IFERROR('Tabel 2 F'!C140/'Tabel 1 F'!C138*100,"-")) -> - | D140: =IF(OR('Tabel 1 F'!C138<5,'Tabel 2 F'!D140<0.5),"-",IFERROR('Tabel 2 F'!D140/'Tabel 1 F'!C138*100,"-")) -> - | F140: =IF(OR('Tabel 1 F'!E138<5,'Tabel 2 F'!F140<0.5),"-",IFERROR('Tabel 2 F'!F140/'Tabel 1 F'!E138*100,"-")) -> - | G140: =IF(OR('Tabel 1 F'!E138<5,'Tabel 2 F'!G140<0.5),"-",IFERROR('Tabel 2 F'!G140/'Tabel 1 F'!E138*100,"-")) -> - | I140: =IF(OR('Tabel 1 F'!G138<5,'Tabel 2 F'!I140<0.5),"-",IFERROR('Tabel 2 F'!I140/'Tabel 1 F'!G138*100,"-")) -> - | J140: =IF(OR('Tabel 1 F'!G138<5,'Tabel 2 F'!J140<0.5),"-",IFERROR('Tabel 2 F'!J140/'Tabel 1 F'!G138*100,"-")) -> -
A141: Økonom | C141: =IF(OR('Tabel 1 F'!C139<5,'Tabel 2 F'!C141<0.5),"-",IFERROR('Tabel 2 F'!C141/'Tabel 1 F'!C139*100,"-")) -> - | D141: =IF(OR('Tabel 1 F'!C139<5,'Tabel 2 F'!D141<0.5),"-",IFERROR('Tabel 2 F'!D141/'Tabel 1 F'!C139*100,"-")) -> - | F141: =IF(OR('Tabel 1 F'!E139<5,'Tabel 2 F'!F141<0.5),"-",IFERROR('Tabel 2 F'!F141/'Tabel 1 F'!E139*100,"-")) -> - | G141: =IF(OR('Tabel 1 F'!E139<5,'Tabel 2 F'!G141<0.5),"-",IFERROR('Tabel 2 F'!G141/'Tabel 1 F'!E139*100,"-")) -> - | I141: =IF(OR('Tabel 1 F'!G139<5,'Tabel 2 F'!I141<0.5),"-",IFERROR('Tabel 2 F'!I141/'Tabel 1 F'!G139*100,"-")) -> - | J141: =IF(OR('Tabel 1 F'!G139<5,'Tabel 2 F'!J141<0.5),"-",IFERROR('Tabel 2 F'!J141/'Tabel 1 F'!G139*100,"-")) -> -
A142: Samf. Adm. | C142: =IF(OR('Tabel 1 F'!C140<5,'Tabel 2 F'!C142<0.5),"-",IFERROR('Tabel 2 F'!C142/'Tabel 1 F'!C140*100,"-")) -> - | D142: =IF(OR('Tabel 1 F'!C140<5,'Tabel 2 F'!D142<0.5),"-",IFERROR('Tabel 2 F'!D142/'Tabel 1 F'!C140*100,"-")) -> - | F142: =IF(OR('Tabel 1 F'!E140<5,'Tabel 2 F'!F142<0.5),"-",IFERROR('Tabel 2 F'!F142/'Tabel 1 F'!E140*100,"-")) -> 2.941176471 | G142: =IF(OR('Tabel 1 F'!E140<5,'Tabel 2 F'!G142<0.5),"-",IFERROR('Tabel 2 F'!G142/'Tabel 1 F'!E140*100,"-")) -> 2.940626135 | I142: =IF(OR('Tabel 1 F'!G140<5,'Tabel 2 F'!I142<0.5),"-",IFERROR('Tabel 2 F'!I142/'Tabel 1 F'!G140*100,"-")) -> 1.851851852 | J142: =IF(OR('Tabel 1 F'!G140<5,'Tabel 2 F'!J142<0.5),"-",IFERROR('Tabel 2 F'!J142/'Tabel 1 F'!G140*100,"-")) -> 1.851505344
A143: Cand. Merc. | C143: =IF(OR('Tabel 1 F'!C141<5,'Tabel 2 F'!C143<0.5),"-",IFERROR('Tabel 2 F'!C143/'Tabel 1 F'!C141*100,"-")) -> 3.333333333 | D143: =IF(OR('Tabel 1 F'!C141<5,'Tabel 2 F'!D143<0.5),"-",IFERROR('Tabel 2 F'!D143/'Tabel 1 F'!C141*100,"-")) -> 3.234994491 | F143: =IF(OR('Tabel 1 F'!E141<5,'Tabel 2 F'!F143<0.5),"-",IFERROR('Tabel 2 F'!F143/'Tabel 1 F'!E141*100,"-")) -> - | G143: =IF(OR('Tabel 1 F'!E141<5,'Tabel 2 F'!G143<0.5),"-",IFERROR('Tabel 2 F'!G143/'Tabel 1 F'!E141*100,"-")) -> - | I143: =IF(OR('Tabel 1 F'!G141<5,'Tabel 2 F'!I143<0.5),"-",IFERROR('Tabel 2 F'!I143/'Tabel 1 F'!G141*100,"-")) -> 1.923076923 | J143: =IF(OR('Tabel 1 F'!G141<5,'Tabel 2 F'!J143<0.5),"-",IFERROR('Tabel 2 F'!J143/'Tabel 1 F'!G141*100,"-")) -> 1.866342975
A144: HA | C144: =IF(OR('Tabel 1 F'!C142<5,'Tabel 2 F'!C144<0.5),"-",IFERROR('Tabel 2 F'!C144/'Tabel 1 F'!C142*100,"-")) -> - | D144: =IF(OR('Tabel 1 F'!C142<5,'Tabel 2 F'!D144<0.5),"-",IFERROR('Tabel 2 F'!D144/'Tabel 1 F'!C142*100,"-")) -> - | F144: =IF(OR('Tabel 1 F'!E142<5,'Tabel 2 F'!F144<0.5),"-",IFERROR('Tabel 2 F'!F144/'Tabel 1 F'!E142*100,"-")) -> 10 | G144: =IF(OR('Tabel 1 F'!E142<5,'Tabel 2 F'!G144<0.5),"-",IFERROR('Tabel 2 F'!G144/'Tabel 1 F'!E142*100,"-")) -> 8.151936631 | I144: =IF(OR('Tabel 1 F'!G142<5,'Tabel 2 F'!I144<0.5),"-",IFERROR('Tabel 2 F'!I144/'Tabel 1 F'!G142*100,"-")) -> 5.882352941 | J144: =IF(OR('Tabel 1 F'!G142<5,'Tabel 2 F'!J144<0.5),"-",IFERROR('Tabel 2 F'!J144/'Tabel 1 F'!G142*100,"-")) -> 4.795256842
A145: HD | C145: =IF(OR('Tabel 1 F'!C143<5,'Tabel 2 F'!C145<0.5),"-",IFERROR('Tabel 2 F'!C145/'Tabel 1 F'!C143*100,"-")) -> - | D145: =IF(OR('Tabel 1 F'!C143<5,'Tabel 2 F'!D145<0.5),"-",IFERROR('Tabel 2 F'!D145/'Tabel 1 F'!C143*100,"-")) -> - | F145: =IF(OR('Tabel 1 F'!E143<5,'Tabel 2 F'!F145<0.5),"-",IFERROR('Tabel 2 F'!F145/'Tabel 1 F'!E143*100,"-")) -> - | G145: =IF(OR('Tabel 1 F'!E143<5,'Tabel 2 F'!G145<0.5),"-",IFERROR('Tabel 2 F'!G145/'Tabel 1 F'!E143*100,"-")) -> - | I145: =IF(OR('Tabel 1 F'!G143<5,'Tabel 2 F'!I145<0.5),"-",IFERROR('Tabel 2 F'!I145/'Tabel 1 F'!G143*100,"-")) -> - | J145: =IF(OR('Tabel 1 F'!G143<5,'Tabel 2 F'!J145<0.5),"-",IFERROR('Tabel 2 F'!J145/'Tabel 1 F'!G143*100,"-")) -> -
A146: Komm. og Sprog | C146: =IF(OR('Tabel 1 F'!C144<5,'Tabel 2 F'!C146<0.5),"-",IFERROR('Tabel 2 F'!C146/'Tabel 1 F'!C144*100,"-")) -> - | D146: =IF(OR('Tabel 1 F'!C144<5,'Tabel 2 F'!D146<0.5),"-",IFERROR('Tabel 2 F'!D146/'Tabel 1 F'!C144*100,"-")) -> - | F146: =IF(OR('Tabel 1 F'!E144<5,'Tabel 2 F'!F146<0.5),"-",IFERROR('Tabel 2 F'!F146/'Tabel 1 F'!E144*100,"-")) -> 4.761904762 | G146: =IF(OR('Tabel 1 F'!E144<5,'Tabel 2 F'!G146<0.5),"-",IFERROR('Tabel 2 F'!G146/'Tabel 1 F'!E144*100,"-")) -> 4.030377822 | I146: =IF(OR('Tabel 1 F'!G144<5,'Tabel 2 F'!I146<0.5),"-",IFERROR('Tabel 2 F'!I146/'Tabel 1 F'!G144*100,"-")) -> 8.695652174 | J146: =IF(OR('Tabel 1 F'!G144<5,'Tabel 2 F'!J146<0.5),"-",IFERROR('Tabel 2 F'!J146/'Tabel 1 F'!G144*100,"-")) -> 4.292776583
A147: Cand. IT. | C147: =IF(OR('Tabel 1 F'!C145<5,'Tabel 2 F'!C147<0.5),"-",IFERROR('Tabel 2 F'!C147/'Tabel 1 F'!C145*100,"-")) -> - | D147: =IF(OR('Tabel 1 F'!C145<5,'Tabel 2 F'!D147<0.5),"-",IFERROR('Tabel 2 F'!D147/'Tabel 1 F'!C145*100,"-")) -> - | F147: =IF(OR('Tabel 1 F'!E145<5,'Tabel 2 F'!F147<0.5),"-",IFERROR('Tabel 2 F'!F147/'Tabel 1 F'!E145*100,"-")) -> - | G147: =IF(OR('Tabel 1 F'!E145<5,'Tabel 2 F'!G147<0.5),"-",IFERROR('Tabel 2 F'!G147/'Tabel 1 F'!E145*100,"-")) -> - | I147: =IF(OR('Tabel 1 F'!G145<5,'Tabel 2 F'!I147<0.5),"-",IFERROR('Tabel 2 F'!I147/'Tabel 1 F'!G145*100,"-")) -> - | J147: =IF(OR('Tabel 1 F'!G145<5,'Tabel 2 F'!J147<0.5),"-",IFERROR('Tabel 2 F'!J147/'Tabel 1 F'!G145*100,"-")) -> -
A148: Bac. Samf. | C148: =IF(OR('Tabel 1 F'!C146<5,'Tabel 2 F'!C148<0.5),"-",IFERROR('Tabel 2 F'!C148/'Tabel 1 F'!C146*100,"-")) -> - | D148: =IF(OR('Tabel 1 F'!C146<5,'Tabel 2 F'!D148<0.5),"-",IFERROR('Tabel 2 F'!D148/'Tabel 1 F'!C146*100,"-")) -> - | F148: =IF(OR('Tabel 1 F'!E146<5,'Tabel 2 F'!F148<0.5),"-",IFERROR('Tabel 2 F'!F148/'Tabel 1 F'!E146*100,"-")) -> - | G148: =IF(OR('Tabel 1 F'!E146<5,'Tabel 2 F'!G148<0.5),"-",IFERROR('Tabel 2 F'!G148/'Tabel 1 F'!E146*100,"-")) -> - | I148: =IF(OR('Tabel 1 F'!G146<5,'Tabel 2 F'!I148<0.5),"-",IFERROR('Tabel 2 F'!I148/'Tabel 1 F'!G146*100,"-")) -> - | J148: =IF(OR('Tabel 1 F'!G146<5,'Tabel 2 F'!J148<0.5),"-",IFERROR('Tabel 2 F'!J148/'Tabel 1 F'!G146*100,"-")) -> -
A149: Bac. Hum. | C149: =IF(OR('Tabel 1 F'!C147<5,'Tabel 2 F'!C149<0.5),"-",IFERROR('Tabel 2 F'!C149/'Tabel 1 F'!C147*100,"-")) -> - | D149: =IF(OR('Tabel 1 F'!C147<5,'Tabel 2 F'!D149<0.5),"-",IFERROR('Tabel 2 F'!D149/'Tabel 1 F'!C147*100,"-")) -> - | F149: =IF(OR('Tabel 1 F'!E147<5,'Tabel 2 F'!F149<0.5),"-",IFERROR('Tabel 2 F'!F149/'Tabel 1 F'!E147*100,"-")) -> 7.692307692 | G149: =IF(OR('Tabel 1 F'!E147<5,'Tabel 2 F'!G149<0.5),"-",IFERROR('Tabel 2 F'!G149/'Tabel 1 F'!E147*100,"-")) -> - | I149: =IF(OR('Tabel 1 F'!G147<5,'Tabel 2 F'!I149<0.5),"-",IFERROR('Tabel 2 F'!I149/'Tabel 1 F'!G147*100,"-")) -> 13.33333333 | J149: =IF(OR('Tabel 1 F'!G147<5,'Tabel 2 F'!J149<0.5),"-",IFERROR('Tabel 2 F'!J149/'Tabel 1 F'!G147*100,"-")) -> 8.066695773
A150: Bac. Nat. | C150: =IF(OR('Tabel 1 F'!C148<5,'Tabel 2 F'!C150<0.5),"-",IFERROR('Tabel 2 F'!C150/'Tabel 1 F'!C148*100,"-")) -> - | D150: =IF(OR('Tabel 1 F'!C148<5,'Tabel 2 F'!D150<0.5),"-",IFERROR('Tabel 2 F'!D150/'Tabel 1 F'!C148*100,"-")) -> - | F150: =IF(OR('Tabel 1 F'!E148<5,'Tabel 2 F'!F150<0.5),"-",IFERROR('Tabel 2 F'!F150/'Tabel 1 F'!E148*100,"-")) -> - | G150: =IF(OR('Tabel 1 F'!E148<5,'Tabel 2 F'!G150<0.5),"-",IFERROR('Tabel 2 F'!G150/'Tabel 1 F'!E148*100,"-")) -> - | I150: =IF(OR('Tabel 1 F'!G148<5,'Tabel 2 F'!I150<0.5),"-",IFERROR('Tabel 2 F'!I150/'Tabel 1 F'!G148*100,"-")) -> 20 | J150: =IF(OR('Tabel 1 F'!G148<5,'Tabel 2 F'!J150<0.5),"-",IFERROR('Tabel 2 F'!J150/'Tabel 1 F'!G148*100,"-")) -> 19.99625772
A151: Andre | C151: =IF(OR('Tabel 1 F'!C149<5,'Tabel 2 F'!C151<0.5),"-",IFERROR('Tabel 2 F'!C151/'Tabel 1 F'!C149*100,"-")) -> - | D151: =IF(OR('Tabel 1 F'!C149<5,'Tabel 2 F'!D151<0.5),"-",IFERROR('Tabel 2 F'!D151/'Tabel 1 F'!C149*100,"-")) -> - | F151: =IF(OR('Tabel 1 F'!E149<5,'Tabel 2 F'!F151<0.5),"-",IFERROR('Tabel 2 F'!F151/'Tabel 1 F'!E149*100,"-")) -> - | G151: =IF(OR('Tabel 1 F'!E149<5,'Tabel 2 F'!G151<0.5),"-",IFERROR('Tabel 2 F'!G151/'Tabel 1 F'!E149*100,"-")) -> - | I151: =IF(OR('Tabel 1 F'!G149<5,'Tabel 2 F'!I151<0.5),"-",IFERROR('Tabel 2 F'!I151/'Tabel 1 F'!G149*100,"-")) -> - | J151: =IF(OR('Tabel 1 F'!G149<5,'Tabel 2 F'!J151<0.5),"-",IFERROR('Tabel 2 F'!J151/'Tabel 1 F'!G149*100,"-")) -> -
A153: Total | C153: =IF(OR('Tabel 1 F'!C151<5,'Tabel 2 F'!C153<0.5),"-",IFERROR('Tabel 2 F'!C153/'Tabel 1 F'!C151*100,"-")) -> 2.906976744 | D153: =IF(OR('Tabel 1 F'!C151<5,'Tabel 2 F'!D153<0.5),"-",IFERROR('Tabel 2 F'!D153/'Tabel 1 F'!C151*100,"-")) -> 2.16873435 | F153: =IF(OR('Tabel 1 F'!E151<5,'Tabel 2 F'!F153<0.5),"-",IFERROR('Tabel 2 F'!F153/'Tabel 1 F'!E151*100,"-")) -> 3.571428571 | G153: =IF(OR('Tabel 1 F'!E151<5,'Tabel 2 F'!G153<0.5),"-",IFERROR('Tabel 2 F'!G153/'Tabel 1 F'!E151*100,"-")) -> 2.790856254 | I153: =IF(OR('Tabel 1 F'!G151<5,'Tabel 2 F'!I153<0.5),"-",IFERROR('Tabel 2 F'!I153/'Tabel 1 F'!G151*100,"-")) -> 3.225806452 | J153: =IF(OR('Tabel 1 F'!G151<5,'Tabel 2 F'!J153<0.5),"-",IFERROR('Tabel 2 F'!J153/'Tabel 1 F'!G151*100,"-")) -> 2.467252522
A155: Ingeniører i alt | C155: =IF(OR('Tabel 1 F'!C153<5,'Tabel 2 F'!C155<0.5),"-",IFERROR('Tabel 2 F'!C155/'Tabel 1 F'!C153*100,"-")) -> 2.928870293 | D155: =IF(OR('Tabel 1 F'!C153<5,'Tabel 2 F'!D155<0.5),"-",IFERROR('Tabel 2 F'!D155/'Tabel 1 F'!C153*100,"-")) -> 2.026938686 | F155: =IF(OR('Tabel 1 F'!E153<5,'Tabel 2 F'!F155<0.5),"-",IFERROR('Tabel 2 F'!F155/'Tabel 1 F'!E153*100,"-")) -> 2 | G155: =IF(OR('Tabel 1 F'!E153<5,'Tabel 2 F'!G155<0.5),"-",IFERROR('Tabel 2 F'!G155/'Tabel 1 F'!E153*100,"-")) -> 1.538077715 | I155: =IF(OR('Tabel 1 F'!G153<5,'Tabel 2 F'!I155<0.5),"-",IFERROR('Tabel 2 F'!I155/'Tabel 1 F'!G153*100,"-")) -> 2.76816609 | J155: =IF(OR('Tabel 1 F'!G153<5,'Tabel 2 F'!J155<0.5),"-",IFERROR('Tabel 2 F'!J155/'Tabel 1 F'!G153*100,"-")) -> 1.942360663
A156: Magistre i alt | C156: =IF(OR('Tabel 1 F'!C154<5,'Tabel 2 F'!C156<0.5),"-",IFERROR('Tabel 2 F'!C156/'Tabel 1 F'!C154*100,"-")) -> 2.631578947 | D156: =IF(OR('Tabel 1 F'!C154<5,'Tabel 2 F'!D156<0.5),"-",IFERROR('Tabel 2 F'!D156/'Tabel 1 F'!C154*100,"-")) -> 2.401297324 | F156: =IF(OR('Tabel 1 F'!E154<5,'Tabel 2 F'!F156<0.5),"-",IFERROR('Tabel 2 F'!F156/'Tabel 1 F'!E154*100,"-")) -> 5.46875 | G156: =IF(OR('Tabel 1 F'!E154<5,'Tabel 2 F'!G156<0.5),"-",IFERROR('Tabel 2 F'!G156/'Tabel 1 F'!E154*100,"-")) -> 4.349915019 | I156: =IF(OR('Tabel 1 F'!G154<5,'Tabel 2 F'!I156<0.5),"-",IFERROR('Tabel 2 F'!I156/'Tabel 1 F'!G154*100,"-")) -> 4.411764706 | J156: =IF(OR('Tabel 1 F'!G154<5,'Tabel 2 F'!J156<0.5),"-",IFERROR('Tabel 2 F'!J156/'Tabel 1 F'!G154*100,"-")) -> 3.623959407
A157: DJØF'ere i alt | C157: =IF(OR('Tabel 1 F'!C155<5,'Tabel 2 F'!C157<0.5),"-",IFERROR('Tabel 2 F'!C157/'Tabel 1 F'!C155*100,"-")) -> 1.408450704 | D157: =IF(OR('Tabel 1 F'!C155<5,'Tabel 2 F'!D157<0.5),"-",IFERROR('Tabel 2 F'!D157/'Tabel 1 F'!C155*100,"-")) -> 1.366899081 | F157: =IF(OR('Tabel 1 F'!E155<5,'Tabel 2 F'!F157<0.5),"-",IFERROR('Tabel 2 F'!F157/'Tabel 1 F'!E155*100,"-")) -> 2.150537634 | G157: =IF(OR('Tabel 1 F'!E155<5,'Tabel 2 F'!G157<0.5),"-",IFERROR('Tabel 2 F'!G157/'Tabel 1 F'!E155*100,"-")) -> 1.951619945 | I157: =IF(OR('Tabel 1 F'!G155<5,'Tabel 2 F'!I157<0.5),"-",IFERROR('Tabel 2 F'!I157/'Tabel 1 F'!G155*100,"-")) -> 1.829268293 | J157: =IF(OR('Tabel 1 F'!G155<5,'Tabel 2 F'!J157<0.5),"-",IFERROR('Tabel 2 F'!J157/'Tabel 1 F'!G155*100,"-")) -> 1.698478595
A162: Faaborg-Midtfyn
C164: Mænd | F164: Kvinder | I164: I alt
C165: Ledigheds- berørte | D165: Gns. brutto- ledighed | F165: Ledigheds- berørte | G165: Gns. brutto- ledighed | I165: Ledigheds- berørte | J165: Gns. brutto- ledighed
A168: Civ. ing. | C168: =IF(OR('Tabel 1 F'!C166<5,'Tabel 2 F'!C168<0.5),"-",IFERROR('Tabel 2 F'!C168/'Tabel 1 F'!C166*100,"-")) -> 5.769230769 | D168: =IF(OR('Tabel 1 F'!C166<5,'Tabel 2 F'!D168<0.5),"-",IFERROR('Tabel 2 F'!D168/'Tabel 1 F'!C166*100,"-")) -> 5.768151265 | F168: =IF(OR('Tabel 1 F'!E166<5,'Tabel 2 F'!F168<0.5),"-",IFERROR('Tabel 2 F'!F168/'Tabel 1 F'!E166*100,"-")) -> - | G168: =IF(OR('Tabel 1 F'!E166<5,'Tabel 2 F'!G168<0.5),"-",IFERROR('Tabel 2 F'!G168/'Tabel 1 F'!E166*100,"-")) -> - | I168: =IF(OR('Tabel 1 F'!G166<5,'Tabel 2 F'!I168<0.5),"-",IFERROR('Tabel 2 F'!I168/'Tabel 1 F'!G166*100,"-")) -> 4.761904762 | J168: =IF(OR('Tabel 1 F'!G166<5,'Tabel 2 F'!J168<0.5),"-",IFERROR('Tabel 2 F'!J168/'Tabel 1 F'!G166*100,"-")) -> 4.761013742
A169: Diplom ing. | C169: =IF(OR('Tabel 1 F'!C167<5,'Tabel 2 F'!C169<0.5),"-",IFERROR('Tabel 2 F'!C169/'Tabel 1 F'!C167*100,"-")) -> 1.333333333 | D169: =IF(OR('Tabel 1 F'!C167<5,'Tabel 2 F'!D169<0.5),"-",IFERROR('Tabel 2 F'!D169/'Tabel 1 F'!C167*100,"-")) -> 0.9638454022 | F169: =IF(OR('Tabel 1 F'!E167<5,'Tabel 2 F'!F169<0.5),"-",IFERROR('Tabel 2 F'!F169/'Tabel 1 F'!E167*100,"-")) -> - | G169: =IF(OR('Tabel 1 F'!E167<5,'Tabel 2 F'!G169<0.5),"-",IFERROR('Tabel 2 F'!G169/'Tabel 1 F'!E167*100,"-")) -> - | I169: =IF(OR('Tabel 1 F'!G167<5,'Tabel 2 F'!I169<0.5),"-",IFERROR('Tabel 2 F'!I169/'Tabel 1 F'!G167*100,"-")) -> 1.140684411 | J169: =IF(OR('Tabel 1 F'!G167<5,'Tabel 2 F'!J169<0.5),"-",IFERROR('Tabel 2 F'!J169/'Tabel 1 F'!G167*100,"-")) -> 0.8245825684
A170: Cand. Scient. Tek. | C170: =IF(OR('Tabel 1 F'!C168<5,'Tabel 2 F'!C170<0.5),"-",IFERROR('Tabel 2 F'!C170/'Tabel 1 F'!C168*100,"-")) -> 4.761904762 | D170: =IF(OR('Tabel 1 F'!C168<5,'Tabel 2 F'!D170<0.5),"-",IFERROR('Tabel 2 F'!D170/'Tabel 1 F'!C168*100,"-")) -> 4.321444164 | F170: =IF(OR('Tabel 1 F'!E168<5,'Tabel 2 F'!F170<0.5),"-",IFERROR('Tabel 2 F'!F170/'Tabel 1 F'!E168*100,"-")) -> 4 | G170: =IF(OR('Tabel 1 F'!E168<5,'Tabel 2 F'!G170<0.5),"-",IFERROR('Tabel 2 F'!G170/'Tabel 1 F'!E168*100,"-")) -> 3.630013098 | I170: =IF(OR('Tabel 1 F'!G168<5,'Tabel 2 F'!I170<0.5),"-",IFERROR('Tabel 2 F'!I170/'Tabel 1 F'!G168*100,"-")) -> 4.347826087 | J170: =IF(OR('Tabel 1 F'!G168<5,'Tabel 2 F'!J170<0.5),"-",IFERROR('Tabel 2 F'!J170/'Tabel 1 F'!G168*100,"-")) -> 3.945666411
A171: MA. Hum. | C171: =IF(OR('Tabel 1 F'!C169<5,'Tabel 2 F'!C171<0.5),"-",IFERROR('Tabel 2 F'!C171/'Tabel 1 F'!C169*100,"-")) -> 9.259259259 | D171: =IF(OR('Tabel 1 F'!C169<5,'Tabel 2 F'!D171<0.5),"-",IFERROR('Tabel 2 F'!D171/'Tabel 1 F'!C169*100,"-")) -> 9.199775463 | F171: =IF(OR('Tabel 1 F'!E169<5,'Tabel 2 F'!F171<0.5),"-",IFERROR('Tabel 2 F'!F171/'Tabel 1 F'!E169*100,"-")) -> 7.920792079 | G171: =IF(OR('Tabel 1 F'!E169<5,'Tabel 2 F'!G171<0.5),"-",IFERROR('Tabel 2 F'!G171/'Tabel 1 F'!E169*100,"-")) -> 6.151915634 | I171: =IF(OR('Tabel 1 F'!G169<5,'Tabel 2 F'!I171<0.5),"-",IFERROR('Tabel 2 F'!I171/'Tabel 1 F'!G169*100,"-")) -> 8.387096774 | J171: =IF(OR('Tabel 1 F'!G169<5,'Tabel 2 F'!J171<0.5),"-",IFERROR('Tabel 2 F'!J171/'Tabel 1 F'!G169*100,"-")) -> 7.213750671
A172: MA. Nat. | C172: =IF(OR('Tabel 1 F'!C170<5,'Tabel 2 F'!C172<0.5),"-",IFERROR('Tabel 2 F'!C172/'Tabel 1 F'!C170*100,"-")) -> 3.125 | D172: =IF(OR('Tabel 1 F'!C170<5,'Tabel 2 F'!D172<0.5),"-",IFERROR('Tabel 2 F'!D172/'Tabel 1 F'!C170*100,"-")) -> - | F172: =IF(OR('Tabel 1 F'!E170<5,'Tabel 2 F'!F172<0.5),"-",IFERROR('Tabel 2 F'!F172/'Tabel 1 F'!E170*100,"-")) -> - | G172: =IF(OR('Tabel 1 F'!E170<5,'Tabel 2 F'!G172<0.5),"-",IFERROR('Tabel 2 F'!G172/'Tabel 1 F'!E170*100,"-")) -> - | I172: =IF(OR('Tabel 1 F'!G170<5,'Tabel 2 F'!I172<0.5),"-",IFERROR('Tabel 2 F'!I172/'Tabel 1 F'!G170*100,"-")) -> 1.492537313 | J172: =IF(OR('Tabel 1 F'!G170<5,'Tabel 2 F'!J172<0.5),"-",IFERROR('Tabel 2 F'!J172/'Tabel 1 F'!G170*100,"-")) -> -
A173: MA. Ph.d. | C173: =IF(OR('Tabel 1 F'!C171<5,'Tabel 2 F'!C173<0.5),"-",IFERROR('Tabel 2 F'!C173/'Tabel 1 F'!C171*100,"-")) -> - | D173: =IF(OR('Tabel 1 F'!C171<5,'Tabel 2 F'!D173<0.5),"-",IFERROR('Tabel 2 F'!D173/'Tabel 1 F'!C171*100,"-")) -> - | F173: =IF(OR('Tabel 1 F'!E171<5,'Tabel 2 F'!F173<0.5),"-",IFERROR('Tabel 2 F'!F173/'Tabel 1 F'!E171*100,"-")) -> - | G173: =IF(OR('Tabel 1 F'!E171<5,'Tabel 2 F'!G173<0.5),"-",IFERROR('Tabel 2 F'!G173/'Tabel 1 F'!E171*100,"-")) -> - | I173: =IF(OR('Tabel 1 F'!G171<5,'Tabel 2 F'!I173<0.5),"-",IFERROR('Tabel 2 F'!I173/'Tabel 1 F'!G171*100,"-")) -> - | J173: =IF(OR('Tabel 1 F'!G171<5,'Tabel 2 F'!J173<0.5),"-",IFERROR('Tabel 2 F'!J173/'Tabel 1 F'!G171*100,"-")) -> -
A174: MA. Samf. | C174: =IF(OR('Tabel 1 F'!C172<5,'Tabel 2 F'!C174<0.5),"-",IFERROR('Tabel 2 F'!C174/'Tabel 1 F'!C172*100,"-")) -> - | D174: =IF(OR('Tabel 1 F'!C172<5,'Tabel 2 F'!D174<0.5),"-",IFERROR('Tabel 2 F'!D174/'Tabel 1 F'!C172*100,"-")) -> - | F174: =IF(OR('Tabel 1 F'!E172<5,'Tabel 2 F'!F174<0.5),"-",IFERROR('Tabel 2 F'!F174/'Tabel 1 F'!E172*100,"-")) -> - | G174: =IF(OR('Tabel 1 F'!E172<5,'Tabel 2 F'!G174<0.5),"-",IFERROR('Tabel 2 F'!G174/'Tabel 1 F'!E172*100,"-")) -> - | I174: =IF(OR('Tabel 1 F'!G172<5,'Tabel 2 F'!I174<0.5),"-",IFERROR('Tabel 2 F'!I174/'Tabel 1 F'!G172*100,"-")) -> - | J174: =IF(OR('Tabel 1 F'!G172<5,'Tabel 2 F'!J174<0.5),"-",IFERROR('Tabel 2 F'!J174/'Tabel 1 F'!G172*100,"-")) -> -
A175: Øvrige Mag. | C175: =IF(OR('Tabel 1 F'!C173<5,'Tabel 2 F'!C175<0.5),"-",IFERROR('Tabel 2 F'!C175/'Tabel 1 F'!C173*100,"-")) -> - | D175: =IF(OR('Tabel 1 F'!C173<5,'Tabel 2 F'!D175<0.5),"-",IFERROR('Tabel 2 F'!D175/'Tabel 1 F'!C173*100,"-")) -> - | F175: =IF(OR('Tabel 1 F'!E173<5,'Tabel 2 F'!F175<0.5),"-",IFERROR('Tabel 2 F'!F175/'Tabel 1 F'!E173*100,"-")) -> - | G175: =IF(OR('Tabel 1 F'!E173<5,'Tabel 2 F'!G175<0.5),"-",IFERROR('Tabel 2 F'!G175/'Tabel 1 F'!E173*100,"-")) -> - | I175: =IF(OR('Tabel 1 F'!G173<5,'Tabel 2 F'!I175<0.5),"-",IFERROR('Tabel 2 F'!I175/'Tabel 1 F'!G173*100,"-")) -> - | J175: =IF(OR('Tabel 1 F'!G173<5,'Tabel 2 F'!J175<0.5),"-",IFERROR('Tabel 2 F'!J175/'Tabel 1 F'!G173*100,"-")) -> -
A176: Agronom | C176: =IF(OR('Tabel 1 F'!C174<5,'Tabel 2 F'!C176<0.5),"-",IFERROR('Tabel 2 F'!C176/'Tabel 1 F'!C174*100,"-")) -> - | D176: =IF(OR('Tabel 1 F'!C174<5,'Tabel 2 F'!D176<0.5),"-",IFERROR('Tabel 2 F'!D176/'Tabel 1 F'!C174*100,"-")) -> - | F176: =IF(OR('Tabel 1 F'!E174<5,'Tabel 2 F'!F176<0.5),"-",IFERROR('Tabel 2 F'!F176/'Tabel 1 F'!E174*100,"-")) -> 6.666666667 | G176: =IF(OR('Tabel 1 F'!E174<5,'Tabel 2 F'!G176<0.5),"-",IFERROR('Tabel 2 F'!G176/'Tabel 1 F'!E174*100,"-")) -> 5.29324934 | I176: =IF(OR('Tabel 1 F'!G174<5,'Tabel 2 F'!I176<0.5),"-",IFERROR('Tabel 2 F'!I176/'Tabel 1 F'!G174*100,"-")) -> 4 | J176: =IF(OR('Tabel 1 F'!G174<5,'Tabel 2 F'!J176<0.5),"-",IFERROR('Tabel 2 F'!J176/'Tabel 1 F'!G174*100,"-")) -> 3.175949604
A177: Landsk. Arkt. | C177: =IF(OR('Tabel 1 F'!C175<5,'Tabel 2 F'!C177<0.5),"-",IFERROR('Tabel 2 F'!C177/'Tabel 1 F'!C175*100,"-")) -> - | D177: =IF(OR('Tabel 1 F'!C175<5,'Tabel 2 F'!D177<0.5),"-",IFERROR('Tabel 2 F'!D177/'Tabel 1 F'!C175*100,"-")) -> - | F177: =IF(OR('Tabel 1 F'!E175<5,'Tabel 2 F'!F177<0.5),"-",IFERROR('Tabel 2 F'!F177/'Tabel 1 F'!E175*100,"-")) -> - | G177: =IF(OR('Tabel 1 F'!E175<5,'Tabel 2 F'!G177<0.5),"-",IFERROR('Tabel 2 F'!G177/'Tabel 1 F'!E175*100,"-")) -> - | I177: =IF(OR('Tabel 1 F'!G175<5,'Tabel 2 F'!I177<0.5),"-",IFERROR('Tabel 2 F'!I177/'Tabel 1 F'!G175*100,"-")) -> - | J177: =IF(OR('Tabel 1 F'!G175<5,'Tabel 2 F'!J177<0.5),"-",IFERROR('Tabel 2 F'!J177/'Tabel 1 F'!G175*100,"-")) -> -
A178: Hortonom | C178: =IF(OR('Tabel 1 F'!C176<5,'Tabel 2 F'!C178<0.5),"-",IFERROR('Tabel 2 F'!C178/'Tabel 1 F'!C176*100,"-")) -> - | D178: =IF(OR('Tabel 1 F'!C176<5,'Tabel 2 F'!D178<0.5),"-",IFERROR('Tabel 2 F'!D178/'Tabel 1 F'!C176*100,"-")) -> - | F178: =IF(OR('Tabel 1 F'!E176<5,'Tabel 2 F'!F178<0.5),"-",IFERROR('Tabel 2 F'!F178/'Tabel 1 F'!E176*100,"-")) -> - | G178: =IF(OR('Tabel 1 F'!E176<5,'Tabel 2 F'!G178<0.5),"-",IFERROR('Tabel 2 F'!G178/'Tabel 1 F'!E176*100,"-")) -> - | I178: =IF(OR('Tabel 1 F'!G176<5,'Tabel 2 F'!I178<0.5),"-",IFERROR('Tabel 2 F'!I178/'Tabel 1 F'!G176*100,"-")) -> - | J178: =IF(OR('Tabel 1 F'!G176<5,'Tabel 2 F'!J178<0.5),"-",IFERROR('Tabel 2 F'!J178/'Tabel 1 F'!G176*100,"-")) -> -
A179: Forstkand. | C179: =IF(OR('Tabel 1 F'!C177<5,'Tabel 2 F'!C179<0.5),"-",IFERROR('Tabel 2 F'!C179/'Tabel 1 F'!C177*100,"-")) -> - | D179: =IF(OR('Tabel 1 F'!C177<5,'Tabel 2 F'!D179<0.5),"-",IFERROR('Tabel 2 F'!D179/'Tabel 1 F'!C177*100,"-")) -> - | F179: =IF(OR('Tabel 1 F'!E177<5,'Tabel 2 F'!F179<0.5),"-",IFERROR('Tabel 2 F'!F179/'Tabel 1 F'!E177*100,"-")) -> - | G179: =IF(OR('Tabel 1 F'!E177<5,'Tabel 2 F'!G179<0.5),"-",IFERROR('Tabel 2 F'!G179/'Tabel 1 F'!E177*100,"-")) -> - | I179: =IF(OR('Tabel 1 F'!G177<5,'Tabel 2 F'!I179<0.5),"-",IFERROR('Tabel 2 F'!I179/'Tabel 1 F'!G177*100,"-")) -> - | J179: =IF(OR('Tabel 1 F'!G177<5,'Tabel 2 F'!J179<0.5),"-",IFERROR('Tabel 2 F'!J179/'Tabel 1 F'!G177*100,"-")) -> -
A180: Jordbrugsakad. | C180: =IF(OR('Tabel 1 F'!C178<5,'Tabel 2 F'!C180<0.5),"-",IFERROR('Tabel 2 F'!C180/'Tabel 1 F'!C178*100,"-")) -> - | D180: =IF(OR('Tabel 1 F'!C178<5,'Tabel 2 F'!D180<0.5),"-",IFERROR('Tabel 2 F'!D180/'Tabel 1 F'!C178*100,"-")) -> - | F180: =IF(OR('Tabel 1 F'!E178<5,'Tabel 2 F'!F180<0.5),"-",IFERROR('Tabel 2 F'!F180/'Tabel 1 F'!E178*100,"-")) -> 4.545454545 | G180: =IF(OR('Tabel 1 F'!E178<5,'Tabel 2 F'!G180<0.5),"-",IFERROR('Tabel 2 F'!G180/'Tabel 1 F'!E178*100,"-")) -> 3.609033641 | I180: =IF(OR('Tabel 1 F'!G178<5,'Tabel 2 F'!I180<0.5),"-",IFERROR('Tabel 2 F'!I180/'Tabel 1 F'!G178*100,"-")) -> 2.43902439 | J180: =IF(OR('Tabel 1 F'!G178<5,'Tabel 2 F'!J180<0.5),"-",IFERROR('Tabel 2 F'!J180/'Tabel 1 F'!G178*100,"-")) -> 1.936554637
A181: Mejeriing. | C181: =IF(OR('Tabel 1 F'!C179<5,'Tabel 2 F'!C181<0.5),"-",IFERROR('Tabel 2 F'!C181/'Tabel 1 F'!C179*100,"-")) -> - | D181: =IF(OR('Tabel 1 F'!C179<5,'Tabel 2 F'!D181<0.5),"-",IFERROR('Tabel 2 F'!D181/'Tabel 1 F'!C179*100,"-")) -> - | F181: =IF(OR('Tabel 1 F'!E179<5,'Tabel 2 F'!F181<0.5),"-",IFERROR('Tabel 2 F'!F181/'Tabel 1 F'!E179*100,"-")) -> - | G181: =IF(OR('Tabel 1 F'!E179<5,'Tabel 2 F'!G181<0.5),"-",IFERROR('Tabel 2 F'!G181/'Tabel 1 F'!E179*100,"-")) -> - | I181: =IF(OR('Tabel 1 F'!G179<5,'Tabel 2 F'!I181<0.5),"-",IFERROR('Tabel 2 F'!I181/'Tabel 1 F'!G179*100,"-")) -> - | J181: =IF(OR('Tabel 1 F'!G179<5,'Tabel 2 F'!J181<0.5),"-",IFERROR('Tabel 2 F'!J181/'Tabel 1 F'!G179*100,"-")) -> -
A182: Levn.m.kand. | C182: =IF(OR('Tabel 1 F'!C180<5,'Tabel 2 F'!C182<0.5),"-",IFERROR('Tabel 2 F'!C182/'Tabel 1 F'!C180*100,"-")) -> - | D182: =IF(OR('Tabel 1 F'!C180<5,'Tabel 2 F'!D182<0.5),"-",IFERROR('Tabel 2 F'!D182/'Tabel 1 F'!C180*100,"-")) -> - | F182: =IF(OR('Tabel 1 F'!E180<5,'Tabel 2 F'!F182<0.5),"-",IFERROR('Tabel 2 F'!F182/'Tabel 1 F'!E180*100,"-")) -> - | G182: =IF(OR('Tabel 1 F'!E180<5,'Tabel 2 F'!G182<0.5),"-",IFERROR('Tabel 2 F'!G182/'Tabel 1 F'!E180*100,"-")) -> - | I182: =IF(OR('Tabel 1 F'!G180<5,'Tabel 2 F'!I182<0.5),"-",IFERROR('Tabel 2 F'!I182/'Tabel 1 F'!G180*100,"-")) -> - | J182: =IF(OR('Tabel 1 F'!G180<5,'Tabel 2 F'!J182<0.5),"-",IFERROR('Tabel 2 F'!J182/'Tabel 1 F'!G180*100,"-")) -> -
A183: Dyrlæge | C183: =IF(OR('Tabel 1 F'!C181<5,'Tabel 2 F'!C183<0.5),"-",IFERROR('Tabel 2 F'!C183/'Tabel 1 F'!C181*100,"-")) -> - | D183: =IF(OR('Tabel 1 F'!C181<5,'Tabel 2 F'!D183<0.5),"-",IFERROR('Tabel 2 F'!D183/'Tabel 1 F'!C181*100,"-")) -> - | F183: =IF(OR('Tabel 1 F'!E181<5,'Tabel 2 F'!F183<0.5),"-",IFERROR('Tabel 2 F'!F183/'Tabel 1 F'!E181*100,"-")) -> - | G183: =IF(OR('Tabel 1 F'!E181<5,'Tabel 2 F'!G183<0.5),"-",IFERROR('Tabel 2 F'!G183/'Tabel 1 F'!E181*100,"-")) -> - | I183: =IF(OR('Tabel 1 F'!G181<5,'Tabel 2 F'!I183<0.5),"-",IFERROR('Tabel 2 F'!I183/'Tabel 1 F'!G181*100,"-")) -> - | J183: =IF(OR('Tabel 1 F'!G181<5,'Tabel 2 F'!J183<0.5),"-",IFERROR('Tabel 2 F'!J183/'Tabel 1 F'!G181*100,"-")) -> -
A184: Farmaceut | C184: =IF(OR('Tabel 1 F'!C182<5,'Tabel 2 F'!C184<0.5),"-",IFERROR('Tabel 2 F'!C184/'Tabel 1 F'!C182*100,"-")) -> - | D184: =IF(OR('Tabel 1 F'!C182<5,'Tabel 2 F'!D184<0.5),"-",IFERROR('Tabel 2 F'!D184/'Tabel 1 F'!C182*100,"-")) -> - | F184: =IF(OR('Tabel 1 F'!E182<5,'Tabel 2 F'!F184<0.5),"-",IFERROR('Tabel 2 F'!F184/'Tabel 1 F'!E182*100,"-")) -> - | G184: =IF(OR('Tabel 1 F'!E182<5,'Tabel 2 F'!G184<0.5),"-",IFERROR('Tabel 2 F'!G184/'Tabel 1 F'!E182*100,"-")) -> - | I184: =IF(OR('Tabel 1 F'!G182<5,'Tabel 2 F'!I184<0.5),"-",IFERROR('Tabel 2 F'!I184/'Tabel 1 F'!G182*100,"-")) -> - | J184: =IF(OR('Tabel 1 F'!G182<5,'Tabel 2 F'!J184<0.5),"-",IFERROR('Tabel 2 F'!J184/'Tabel 1 F'!G182*100,"-")) -> -
A185: Læge | C185: =IF(OR('Tabel 1 F'!C183<5,'Tabel 2 F'!C185<0.5),"-",IFERROR('Tabel 2 F'!C185/'Tabel 1 F'!C183*100,"-")) -> - | D185: =IF(OR('Tabel 1 F'!C183<5,'Tabel 2 F'!D185<0.5),"-",IFERROR('Tabel 2 F'!D185/'Tabel 1 F'!C183*100,"-")) -> - | F185: =IF(OR('Tabel 1 F'!E183<5,'Tabel 2 F'!F185<0.5),"-",IFERROR('Tabel 2 F'!F185/'Tabel 1 F'!E183*100,"-")) -> - | G185: =IF(OR('Tabel 1 F'!E183<5,'Tabel 2 F'!G185<0.5),"-",IFERROR('Tabel 2 F'!G185/'Tabel 1 F'!E183*100,"-")) -> - | I185: =IF(OR('Tabel 1 F'!G183<5,'Tabel 2 F'!I185<0.5),"-",IFERROR('Tabel 2 F'!I185/'Tabel 1 F'!G183*100,"-")) -> - | J185: =IF(OR('Tabel 1 F'!G183<5,'Tabel 2 F'!J185<0.5),"-",IFERROR('Tabel 2 F'!J185/'Tabel 1 F'!G183*100,"-")) -> -
A186: Tandlæge | C186: =IF(OR('Tabel 1 F'!C184<5,'Tabel 2 F'!C186<0.5),"-",IFERROR('Tabel 2 F'!C186/'Tabel 1 F'!C184*100,"-")) -> - | D186: =IF(OR('Tabel 1 F'!C184<5,'Tabel 2 F'!D186<0.5),"-",IFERROR('Tabel 2 F'!D186/'Tabel 1 F'!C184*100,"-")) -> - | F186: =IF(OR('Tabel 1 F'!E184<5,'Tabel 2 F'!F186<0.5),"-",IFERROR('Tabel 2 F'!F186/'Tabel 1 F'!E184*100,"-")) -> - | G186: =IF(OR('Tabel 1 F'!E184<5,'Tabel 2 F'!G186<0.5),"-",IFERROR('Tabel 2 F'!G186/'Tabel 1 F'!E184*100,"-")) -> - | I186: =IF(OR('Tabel 1 F'!G184<5,'Tabel 2 F'!I186<0.5),"-",IFERROR('Tabel 2 F'!I186/'Tabel 1 F'!G184*100,"-")) -> - | J186: =IF(OR('Tabel 1 F'!G184<5,'Tabel 2 F'!J186<0.5),"-",IFERROR('Tabel 2 F'!J186/'Tabel 1 F'!G184*100,"-")) -> -
A187: Arkitekt | C187: =IF(OR('Tabel 1 F'!C185<5,'Tabel 2 F'!C187<0.5),"-",IFERROR('Tabel 2 F'!C187/'Tabel 1 F'!C185*100,"-")) -> 11.11111111 | D187: =IF(OR('Tabel 1 F'!C185<5,'Tabel 2 F'!D187<0.5),"-",IFERROR('Tabel 2 F'!D187/'Tabel 1 F'!C185*100,"-")) -> 6.493551494 | F187: =IF(OR('Tabel 1 F'!E185<5,'Tabel 2 F'!F187<0.5),"-",IFERROR('Tabel 2 F'!F187/'Tabel 1 F'!E185*100,"-")) -> 16.66666667 | G187: =IF(OR('Tabel 1 F'!E185<5,'Tabel 2 F'!G187<0.5),"-",IFERROR('Tabel 2 F'!G187/'Tabel 1 F'!E185*100,"-")) -> 14.35580781 | I187: =IF(OR('Tabel 1 F'!G185<5,'Tabel 2 F'!I187<0.5),"-",IFERROR('Tabel 2 F'!I187/'Tabel 1 F'!G185*100,"-")) -> 13.33333333 | J187: =IF(OR('Tabel 1 F'!G185<5,'Tabel 2 F'!J187<0.5),"-",IFERROR('Tabel 2 F'!J187/'Tabel 1 F'!G185*100,"-")) -> 9.638454022
A188: Landinspek. | C188: =IF(OR('Tabel 1 F'!C186<5,'Tabel 2 F'!C188<0.5),"-",IFERROR('Tabel 2 F'!C188/'Tabel 1 F'!C186*100,"-")) -> - | D188: =IF(OR('Tabel 1 F'!C186<5,'Tabel 2 F'!D188<0.5),"-",IFERROR('Tabel 2 F'!D188/'Tabel 1 F'!C186*100,"-")) -> - | F188: =IF(OR('Tabel 1 F'!E186<5,'Tabel 2 F'!F188<0.5),"-",IFERROR('Tabel 2 F'!F188/'Tabel 1 F'!E186*100,"-")) -> - | G188: =IF(OR('Tabel 1 F'!E186<5,'Tabel 2 F'!G188<0.5),"-",IFERROR('Tabel 2 F'!G188/'Tabel 1 F'!E186*100,"-")) -> - | I188: =IF(OR('Tabel 1 F'!G186<5,'Tabel 2 F'!I188<0.5),"-",IFERROR('Tabel 2 F'!I188/'Tabel 1 F'!G186*100,"-")) -> - | J188: =IF(OR('Tabel 1 F'!G186<5,'Tabel 2 F'!J188<0.5),"-",IFERROR('Tabel 2 F'!J188/'Tabel 1 F'!G186*100,"-")) -> -
A189: Bibliotekar | C189: =IF(OR('Tabel 1 F'!C187<5,'Tabel 2 F'!C189<0.5),"-",IFERROR('Tabel 2 F'!C189/'Tabel 1 F'!C187*100,"-")) -> - | D189: =IF(OR('Tabel 1 F'!C187<5,'Tabel 2 F'!D189<0.5),"-",IFERROR('Tabel 2 F'!D189/'Tabel 1 F'!C187*100,"-")) -> - | F189: =IF(OR('Tabel 1 F'!E187<5,'Tabel 2 F'!F189<0.5),"-",IFERROR('Tabel 2 F'!F189/'Tabel 1 F'!E187*100,"-")) -> 8.333333333 | G189: =IF(OR('Tabel 1 F'!E187<5,'Tabel 2 F'!G189<0.5),"-",IFERROR('Tabel 2 F'!G189/'Tabel 1 F'!E187*100,"-")) -> 8.331774049 | I189: =IF(OR('Tabel 1 F'!G187<5,'Tabel 2 F'!I189<0.5),"-",IFERROR('Tabel 2 F'!I189/'Tabel 1 F'!G187*100,"-")) -> 7.142857143 | J189: =IF(OR('Tabel 1 F'!G187<5,'Tabel 2 F'!J189<0.5),"-",IFERROR('Tabel 2 F'!J189/'Tabel 1 F'!G187*100,"-")) -> 7.141520614
A190: Musikudd. | C190: =IF(OR('Tabel 1 F'!C188<5,'Tabel 2 F'!C190<0.5),"-",IFERROR('Tabel 2 F'!C190/'Tabel 1 F'!C188*100,"-")) -> 20 | D190: =IF(OR('Tabel 1 F'!C188<5,'Tabel 2 F'!D190<0.5),"-",IFERROR('Tabel 2 F'!D190/'Tabel 1 F'!C188*100,"-")) -> 11.71334123 | F190: =IF(OR('Tabel 1 F'!E188<5,'Tabel 2 F'!F190<0.5),"-",IFERROR('Tabel 2 F'!F190/'Tabel 1 F'!E188*100,"-")) -> - | G190: =IF(OR('Tabel 1 F'!E188<5,'Tabel 2 F'!G190<0.5),"-",IFERROR('Tabel 2 F'!G190/'Tabel 1 F'!E188*100,"-")) -> - | I190: =IF(OR('Tabel 1 F'!G188<5,'Tabel 2 F'!I190<0.5),"-",IFERROR('Tabel 2 F'!I190/'Tabel 1 F'!G188*100,"-")) -> 11.11111111 | J190: =IF(OR('Tabel 1 F'!G188<5,'Tabel 2 F'!J190<0.5),"-",IFERROR('Tabel 2 F'!J190/'Tabel 1 F'!G188*100,"-")) -> 6.507411797
A191: Teolog | C191: =IF(OR('Tabel 1 F'!C189<5,'Tabel 2 F'!C191<0.5),"-",IFERROR('Tabel 2 F'!C191/'Tabel 1 F'!C189*100,"-")) -> - | D191: =IF(OR('Tabel 1 F'!C189<5,'Tabel 2 F'!D191<0.5),"-",IFERROR('Tabel 2 F'!D191/'Tabel 1 F'!C189*100,"-")) -> - | F191: =IF(OR('Tabel 1 F'!E189<5,'Tabel 2 F'!F191<0.5),"-",IFERROR('Tabel 2 F'!F191/'Tabel 1 F'!E189*100,"-")) -> - | G191: =IF(OR('Tabel 1 F'!E189<5,'Tabel 2 F'!G191<0.5),"-",IFERROR('Tabel 2 F'!G191/'Tabel 1 F'!E189*100,"-")) -> - | I191: =IF(OR('Tabel 1 F'!G189<5,'Tabel 2 F'!I191<0.5),"-",IFERROR('Tabel 2 F'!I191/'Tabel 1 F'!G189*100,"-")) -> - | J191: =IF(OR('Tabel 1 F'!G189<5,'Tabel 2 F'!J191<0.5),"-",IFERROR('Tabel 2 F'!J191/'Tabel 1 F'!G189*100,"-")) -> -
A192: Psykolog | C192: =IF(OR('Tabel 1 F'!C190<5,'Tabel 2 F'!C192<0.5),"-",IFERROR('Tabel 2 F'!C192/'Tabel 1 F'!C190*100,"-")) -> - | D192: =IF(OR('Tabel 1 F'!C190<5,'Tabel 2 F'!D192<0.5),"-",IFERROR('Tabel 2 F'!D192/'Tabel 1 F'!C190*100,"-")) -> - | F192: =IF(OR('Tabel 1 F'!E190<5,'Tabel 2 F'!F192<0.5),"-",IFERROR('Tabel 2 F'!F192/'Tabel 1 F'!E190*100,"-")) -> - | G192: =IF(OR('Tabel 1 F'!E190<5,'Tabel 2 F'!G192<0.5),"-",IFERROR('Tabel 2 F'!G192/'Tabel 1 F'!E190*100,"-")) -> - | I192: =IF(OR('Tabel 1 F'!G190<5,'Tabel 2 F'!I192<0.5),"-",IFERROR('Tabel 2 F'!I192/'Tabel 1 F'!G190*100,"-")) -> - | J192: =IF(OR('Tabel 1 F'!G190<5,'Tabel 2 F'!J192<0.5),"-",IFERROR('Tabel 2 F'!J192/'Tabel 1 F'!G190*100,"-")) -> -
A193: Jurist | C193: =IF(OR('Tabel 1 F'!C191<5,'Tabel 2 F'!C193<0.5),"-",IFERROR('Tabel 2 F'!C193/'Tabel 1 F'!C191*100,"-")) -> - | D193: =IF(OR('Tabel 1 F'!C191<5,'Tabel 2 F'!D193<0.5),"-",IFERROR('Tabel 2 F'!D193/'Tabel 1 F'!C191*100,"-")) -> - | F193: =IF(OR('Tabel 1 F'!E191<5,'Tabel 2 F'!F193<0.5),"-",IFERROR('Tabel 2 F'!F193/'Tabel 1 F'!E191*100,"-")) -> - | G193: =IF(OR('Tabel 1 F'!E191<5,'Tabel 2 F'!G193<0.5),"-",IFERROR('Tabel 2 F'!G193/'Tabel 1 F'!E191*100,"-")) -> - | I193: =IF(OR('Tabel 1 F'!G191<5,'Tabel 2 F'!I193<0.5),"-",IFERROR('Tabel 2 F'!I193/'Tabel 1 F'!G191*100,"-")) -> - | J193: =IF(OR('Tabel 1 F'!G191<5,'Tabel 2 F'!J193<0.5),"-",IFERROR('Tabel 2 F'!J193/'Tabel 1 F'!G191*100,"-")) -> -
A194: Økonom | C194: =IF(OR('Tabel 1 F'!C192<5,'Tabel 2 F'!C194<0.5),"-",IFERROR('Tabel 2 F'!C194/'Tabel 1 F'!C192*100,"-")) -> - | D194: =IF(OR('Tabel 1 F'!C192<5,'Tabel 2 F'!D194<0.5),"-",IFERROR('Tabel 2 F'!D194/'Tabel 1 F'!C192*100,"-")) -> - | F194: =IF(OR('Tabel 1 F'!E192<5,'Tabel 2 F'!F194<0.5),"-",IFERROR('Tabel 2 F'!F194/'Tabel 1 F'!E192*100,"-")) -> - | G194: =IF(OR('Tabel 1 F'!E192<5,'Tabel 2 F'!G194<0.5),"-",IFERROR('Tabel 2 F'!G194/'Tabel 1 F'!E192*100,"-")) -> - | I194: =IF(OR('Tabel 1 F'!G192<5,'Tabel 2 F'!I194<0.5),"-",IFERROR('Tabel 2 F'!I194/'Tabel 1 F'!G192*100,"-")) -> - | J194: =IF(OR('Tabel 1 F'!G192<5,'Tabel 2 F'!J194<0.5),"-",IFERROR('Tabel 2 F'!J194/'Tabel 1 F'!G192*100,"-")) -> -
A195: Samf. Adm. | C195: =IF(OR('Tabel 1 F'!C193<5,'Tabel 2 F'!C195<0.5),"-",IFERROR('Tabel 2 F'!C195/'Tabel 1 F'!C193*100,"-")) -> 3.703703704 | D195: =IF(OR('Tabel 1 F'!C193<5,'Tabel 2 F'!D195<0.5),"-",IFERROR('Tabel 2 F'!D195/'Tabel 1 F'!C193*100,"-")) -> 3.703010689 | F195: =IF(OR('Tabel 1 F'!E193<5,'Tabel 2 F'!F195<0.5),"-",IFERROR('Tabel 2 F'!F195/'Tabel 1 F'!E193*100,"-")) -> 8.695652174 | G195: =IF(OR('Tabel 1 F'!E193<5,'Tabel 2 F'!G195<0.5),"-",IFERROR('Tabel 2 F'!G195/'Tabel 1 F'!E193*100,"-")) -> 5.382919468 | I195: =IF(OR('Tabel 1 F'!G193<5,'Tabel 2 F'!I195<0.5),"-",IFERROR('Tabel 2 F'!I195/'Tabel 1 F'!G193*100,"-")) -> 6.849315068 | J195: =IF(OR('Tabel 1 F'!G193<5,'Tabel 2 F'!J195<0.5),"-",IFERROR('Tabel 2 F'!J195/'Tabel 1 F'!G193*100,"-")) -> 4.761583344
A196: Cand. Merc. | C196: =IF(OR('Tabel 1 F'!C194<5,'Tabel 2 F'!C196<0.5),"-",IFERROR('Tabel 2 F'!C196/'Tabel 1 F'!C194*100,"-")) -> - | D196: =IF(OR('Tabel 1 F'!C194<5,'Tabel 2 F'!D196<0.5),"-",IFERROR('Tabel 2 F'!D196/'Tabel 1 F'!C194*100,"-")) -> - | F196: =IF(OR('Tabel 1 F'!E194<5,'Tabel 2 F'!F196<0.5),"-",IFERROR('Tabel 2 F'!F196/'Tabel 1 F'!E194*100,"-")) -> 8.333333333 | G196: =IF(OR('Tabel 1 F'!E194<5,'Tabel 2 F'!G196<0.5),"-",IFERROR('Tabel 2 F'!G196/'Tabel 1 F'!E194*100,"-")) -> 6.852186809 | I196: =IF(OR('Tabel 1 F'!G194<5,'Tabel 2 F'!I196<0.5),"-",IFERROR('Tabel 2 F'!I196/'Tabel 1 F'!G194*100,"-")) -> 4.545454545 | J196: =IF(OR('Tabel 1 F'!G194<5,'Tabel 2 F'!J196<0.5),"-",IFERROR('Tabel 2 F'!J196/'Tabel 1 F'!G194*100,"-")) -> 3.737556441
A197: HA | C197: =IF(OR('Tabel 1 F'!C195<5,'Tabel 2 F'!C197<0.5),"-",IFERROR('Tabel 2 F'!C197/'Tabel 1 F'!C195*100,"-")) -> 10 | D197: =IF(OR('Tabel 1 F'!C195<5,'Tabel 2 F'!D197<0.5),"-",IFERROR('Tabel 2 F'!D197/'Tabel 1 F'!C195*100,"-")) -> - | F197: =IF(OR('Tabel 1 F'!E195<5,'Tabel 2 F'!F197<0.5),"-",IFERROR('Tabel 2 F'!F197/'Tabel 1 F'!E195*100,"-")) -> 13.33333333 | G197: =IF(OR('Tabel 1 F'!E195<5,'Tabel 2 F'!G197<0.5),"-",IFERROR('Tabel 2 F'!G197/'Tabel 1 F'!E195*100,"-")) -> 13.02313977 | I197: =IF(OR('Tabel 1 F'!G195<5,'Tabel 2 F'!I197<0.5),"-",IFERROR('Tabel 2 F'!I197/'Tabel 1 F'!G195*100,"-")) -> 12 | J197: =IF(OR('Tabel 1 F'!G195<5,'Tabel 2 F'!J197<0.5),"-",IFERROR('Tabel 2 F'!J197/'Tabel 1 F'!G195*100,"-")) -> 9.043847065
A198: HD | C198: =IF(OR('Tabel 1 F'!C196<5,'Tabel 2 F'!C198<0.5),"-",IFERROR('Tabel 2 F'!C198/'Tabel 1 F'!C196*100,"-")) -> - | D198: =IF(OR('Tabel 1 F'!C196<5,'Tabel 2 F'!D198<0.5),"-",IFERROR('Tabel 2 F'!D198/'Tabel 1 F'!C196*100,"-")) -> - | F198: =IF(OR('Tabel 1 F'!E196<5,'Tabel 2 F'!F198<0.5),"-",IFERROR('Tabel 2 F'!F198/'Tabel 1 F'!E196*100,"-")) -> 20 | G198: =IF(OR('Tabel 1 F'!E196<5,'Tabel 2 F'!G198<0.5),"-",IFERROR('Tabel 2 F'!G198/'Tabel 1 F'!E196*100,"-")) -> 19.99625772 | I198: =IF(OR('Tabel 1 F'!G196<5,'Tabel 2 F'!I198<0.5),"-",IFERROR('Tabel 2 F'!I198/'Tabel 1 F'!G196*100,"-")) -> 10.71428571 | J198: =IF(OR('Tabel 1 F'!G196<5,'Tabel 2 F'!J198<0.5),"-",IFERROR('Tabel 2 F'!J198/'Tabel 1 F'!G196*100,"-")) -> 10.71228092
A199: Komm. og Sprog | C199: =IF(OR('Tabel 1 F'!C197<5,'Tabel 2 F'!C199<0.5),"-",IFERROR('Tabel 2 F'!C199/'Tabel 1 F'!C197*100,"-")) -> - | D199: =IF(OR('Tabel 1 F'!C197<5,'Tabel 2 F'!D199<0.5),"-",IFERROR('Tabel 2 F'!D199/'Tabel 1 F'!C197*100,"-")) -> - | F199: =IF(OR('Tabel 1 F'!E197<5,'Tabel 2 F'!F199<0.5),"-",IFERROR('Tabel 2 F'!F199/'Tabel 1 F'!E197*100,"-")) -> - | G199: =IF(OR('Tabel 1 F'!E197<5,'Tabel 2 F'!G199<0.5),"-",IFERROR('Tabel 2 F'!G199/'Tabel 1 F'!E197*100,"-")) -> - | I199: =IF(OR('Tabel 1 F'!G197<5,'Tabel 2 F'!I199<0.5),"-",IFERROR('Tabel 2 F'!I199/'Tabel 1 F'!G197*100,"-")) -> - | J199: =IF(OR('Tabel 1 F'!G197<5,'Tabel 2 F'!J199<0.5),"-",IFERROR('Tabel 2 F'!J199/'Tabel 1 F'!G197*100,"-")) -> -
A200: Cand. IT. | C200: =IF(OR('Tabel 1 F'!C198<5,'Tabel 2 F'!C200<0.5),"-",IFERROR('Tabel 2 F'!C200/'Tabel 1 F'!C198*100,"-")) -> - | D200: =IF(OR('Tabel 1 F'!C198<5,'Tabel 2 F'!D200<0.5),"-",IFERROR('Tabel 2 F'!D200/'Tabel 1 F'!C198*100,"-")) -> - | F200: =IF(OR('Tabel 1 F'!E198<5,'Tabel 2 F'!F200<0.5),"-",IFERROR('Tabel 2 F'!F200/'Tabel 1 F'!E198*100,"-")) -> - | G200: =IF(OR('Tabel 1 F'!E198<5,'Tabel 2 F'!G200<0.5),"-",IFERROR('Tabel 2 F'!G200/'Tabel 1 F'!E198*100,"-")) -> - | I200: =IF(OR('Tabel 1 F'!G198<5,'Tabel 2 F'!I200<0.5),"-",IFERROR('Tabel 2 F'!I200/'Tabel 1 F'!G198*100,"-")) -> - | J200: =IF(OR('Tabel 1 F'!G198<5,'Tabel 2 F'!J200<0.5),"-",IFERROR('Tabel 2 F'!J200/'Tabel 1 F'!G198*100,"-")) -> -
A201: Bac. Samf. | C201: =IF(OR('Tabel 1 F'!C199<5,'Tabel 2 F'!C201<0.5),"-",IFERROR('Tabel 2 F'!C201/'Tabel 1 F'!C199*100,"-")) -> - | D201: =IF(OR('Tabel 1 F'!C199<5,'Tabel 2 F'!D201<0.5),"-",IFERROR('Tabel 2 F'!D201/'Tabel 1 F'!C199*100,"-")) -> - | F201: =IF(OR('Tabel 1 F'!E199<5,'Tabel 2 F'!F201<0.5),"-",IFERROR('Tabel 2 F'!F201/'Tabel 1 F'!E199*100,"-")) -> - | G201: =IF(OR('Tabel 1 F'!E199<5,'Tabel 2 F'!G201<0.5),"-",IFERROR('Tabel 2 F'!G201/'Tabel 1 F'!E199*100,"-")) -> - | I201: =IF(OR('Tabel 1 F'!G199<5,'Tabel 2 F'!I201<0.5),"-",IFERROR('Tabel 2 F'!I201/'Tabel 1 F'!G199*100,"-")) -> - | J201: =IF(OR('Tabel 1 F'!G199<5,'Tabel 2 F'!J201<0.5),"-",IFERROR('Tabel 2 F'!J201/'Tabel 1 F'!G199*100,"-")) -> -
A202: Bac. Hum. | C202: =IF(OR('Tabel 1 F'!C200<5,'Tabel 2 F'!C202<0.5),"-",IFERROR('Tabel 2 F'!C202/'Tabel 1 F'!C200*100,"-")) -> - | D202: =IF(OR('Tabel 1 F'!C200<5,'Tabel 2 F'!D202<0.5),"-",IFERROR('Tabel 2 F'!D202/'Tabel 1 F'!C200*100,"-")) -> - | F202: =IF(OR('Tabel 1 F'!E200<5,'Tabel 2 F'!F202<0.5),"-",IFERROR('Tabel 2 F'!F202/'Tabel 1 F'!E200*100,"-")) -> 15.38461538 | G202: =IF(OR('Tabel 1 F'!E200<5,'Tabel 2 F'!G202<0.5),"-",IFERROR('Tabel 2 F'!G202/'Tabel 1 F'!E200*100,"-")) -> 12.51745199 | I202: =IF(OR('Tabel 1 F'!G200<5,'Tabel 2 F'!I202<0.5),"-",IFERROR('Tabel 2 F'!I202/'Tabel 1 F'!G200*100,"-")) -> 11.76470588 | J202: =IF(OR('Tabel 1 F'!G200<5,'Tabel 2 F'!J202<0.5),"-",IFERROR('Tabel 2 F'!J202/'Tabel 1 F'!G200*100,"-")) -> 9.572169166
A203: Bac. Nat. | C203: =IF(OR('Tabel 1 F'!C201<5,'Tabel 2 F'!C203<0.5),"-",IFERROR('Tabel 2 F'!C203/'Tabel 1 F'!C201*100,"-")) -> - | D203: =IF(OR('Tabel 1 F'!C201<5,'Tabel 2 F'!D203<0.5),"-",IFERROR('Tabel 2 F'!D203/'Tabel 1 F'!C201*100,"-")) -> - | F203: =IF(OR('Tabel 1 F'!E201<5,'Tabel 2 F'!F203<0.5),"-",IFERROR('Tabel 2 F'!F203/'Tabel 1 F'!E201*100,"-")) -> - | G203: =IF(OR('Tabel 1 F'!E201<5,'Tabel 2 F'!G203<0.5),"-",IFERROR('Tabel 2 F'!G203/'Tabel 1 F'!E201*100,"-")) -> - | I203: =IF(OR('Tabel 1 F'!G201<5,'Tabel 2 F'!I203<0.5),"-",IFERROR('Tabel 2 F'!I203/'Tabel 1 F'!G201*100,"-")) -> - | J203: =IF(OR('Tabel 1 F'!G201<5,'Tabel 2 F'!J203<0.5),"-",IFERROR('Tabel 2 F'!J203/'Tabel 1 F'!G201*100,"-")) -> -
A204: Andre | C204: =IF(OR('Tabel 1 F'!C202<5,'Tabel 2 F'!C204<0.5),"-",IFERROR('Tabel 2 F'!C204/'Tabel 1 F'!C202*100,"-")) -> 6.382978723 | D204: =IF(OR('Tabel 1 F'!C202<5,'Tabel 2 F'!D204<0.5),"-",IFERROR('Tabel 2 F'!D204/'Tabel 1 F'!C202*100,"-")) -> 6.381784378 | F204: =IF(OR('Tabel 1 F'!E202<5,'Tabel 2 F'!F204<0.5),"-",IFERROR('Tabel 2 F'!F204/'Tabel 1 F'!E202*100,"-")) -> 6.060606061 | G204: =IF(OR('Tabel 1 F'!E202<5,'Tabel 2 F'!G204<0.5),"-",IFERROR('Tabel 2 F'!G204/'Tabel 1 F'!E202*100,"-")) -> 4.800704607 | I204: =IF(OR('Tabel 1 F'!G202<5,'Tabel 2 F'!I204<0.5),"-",IFERROR('Tabel 2 F'!I204/'Tabel 1 F'!G202*100,"-")) -> 6.25 | J204: =IF(OR('Tabel 1 F'!G202<5,'Tabel 2 F'!J204<0.5),"-",IFERROR('Tabel 2 F'!J204/'Tabel 1 F'!G202*100,"-")) -> 5.729588973
A206: Total | C206: =IF(OR('Tabel 1 F'!C204<5,'Tabel 2 F'!C206<0.5),"-",IFERROR('Tabel 2 F'!C206/'Tabel 1 F'!C204*100,"-")) -> 3.215434084 | D206: =IF(OR('Tabel 1 F'!C204<5,'Tabel 2 F'!D206<0.5),"-",IFERROR('Tabel 2 F'!D206/'Tabel 1 F'!C204*100,"-")) -> 2.731504536 | F206: =IF(OR('Tabel 1 F'!E204<5,'Tabel 2 F'!F206<0.5),"-",IFERROR('Tabel 2 F'!F206/'Tabel 1 F'!E204*100,"-")) -> 4.920913884 | G206: =IF(OR('Tabel 1 F'!E204<5,'Tabel 2 F'!G206<0.5),"-",IFERROR('Tabel 2 F'!G206/'Tabel 1 F'!E204*100,"-")) -> 4.021692079 | I206: =IF(OR('Tabel 1 F'!G204<5,'Tabel 2 F'!I206<0.5),"-",IFERROR('Tabel 2 F'!I206/'Tabel 1 F'!G204*100,"-")) -> 4.0302267 | J206: =IF(OR('Tabel 1 F'!G204<5,'Tabel 2 F'!J206<0.5),"-",IFERROR('Tabel 2 F'!J206/'Tabel 1 F'!G204*100,"-")) -> 3.347891364
A208: Ingeniører i alt | C208: =IF(OR('Tabel 1 F'!C206<5,'Tabel 2 F'!C208<0.5),"-",IFERROR('Tabel 2 F'!C208/'Tabel 1 F'!C206*100,"-")) -> 2.166064982 | D208: =IF(OR('Tabel 1 F'!C206<5,'Tabel 2 F'!D208<0.5),"-",IFERROR('Tabel 2 F'!D208/'Tabel 1 F'!C206*100,"-")) -> 1.865736755 | F208: =IF(OR('Tabel 1 F'!E206<5,'Tabel 2 F'!F208<0.5),"-",IFERROR('Tabel 2 F'!F208/'Tabel 1 F'!E206*100,"-")) -> - | G208: =IF(OR('Tabel 1 F'!E206<5,'Tabel 2 F'!G208<0.5),"-",IFERROR('Tabel 2 F'!G208/'Tabel 1 F'!E206*100,"-")) -> - | I208: =IF(OR('Tabel 1 F'!G206<5,'Tabel 2 F'!I208<0.5),"-",IFERROR('Tabel 2 F'!I208/'Tabel 1 F'!G206*100,"-")) -> 1.840490798 | J208: =IF(OR('Tabel 1 F'!G206<5,'Tabel 2 F'!J208<0.5),"-",IFERROR('Tabel 2 F'!J208/'Tabel 1 F'!G206*100,"-")) -> 1.58530393
A209: Magistre i alt | C209: =IF(OR('Tabel 1 F'!C207<5,'Tabel 2 F'!C209<0.5),"-",IFERROR('Tabel 2 F'!C209/'Tabel 1 F'!C207*100,"-")) -> 6.12244898 | D209: =IF(OR('Tabel 1 F'!C207<5,'Tabel 2 F'!D209<0.5),"-",IFERROR('Tabel 2 F'!D209/'Tabel 1 F'!C207*100,"-")) -> 5.548505188 | F209: =IF(OR('Tabel 1 F'!E207<5,'Tabel 2 F'!F209<0.5),"-",IFERROR('Tabel 2 F'!F209/'Tabel 1 F'!E207*100,"-")) -> 5.333333333 | G209: =IF(OR('Tabel 1 F'!E207<5,'Tabel 2 F'!G209<0.5),"-",IFERROR('Tabel 2 F'!G209/'Tabel 1 F'!E207*100,"-")) -> 4.14228986 | I209: =IF(OR('Tabel 1 F'!G207<5,'Tabel 2 F'!I209<0.5),"-",IFERROR('Tabel 2 F'!I209/'Tabel 1 F'!G207*100,"-")) -> 5.64516129 | J209: =IF(OR('Tabel 1 F'!G207<5,'Tabel 2 F'!J209<0.5),"-",IFERROR('Tabel 2 F'!J209/'Tabel 1 F'!G207*100,"-")) -> 4.697971724
A210: DJØF'ere i alt | C210: =IF(OR('Tabel 1 F'!C208<5,'Tabel 2 F'!C210<0.5),"-",IFERROR('Tabel 2 F'!C210/'Tabel 1 F'!C208*100,"-")) -> 2.298850575 | D210: =IF(OR('Tabel 1 F'!C208<5,'Tabel 2 F'!D210<0.5),"-",IFERROR('Tabel 2 F'!D210/'Tabel 1 F'!C208*100,"-")) -> 1.502647915 | F210: =IF(OR('Tabel 1 F'!E208<5,'Tabel 2 F'!F210<0.5),"-",IFERROR('Tabel 2 F'!F210/'Tabel 1 F'!E208*100,"-")) -> 6.870229008 | G210: =IF(OR('Tabel 1 F'!E208<5,'Tabel 2 F'!G210<0.5),"-",IFERROR('Tabel 2 F'!G210/'Tabel 1 F'!E208*100,"-")) -> 5.264428376 | I210: =IF(OR('Tabel 1 F'!G208<5,'Tabel 2 F'!I210<0.5),"-",IFERROR('Tabel 2 F'!I210/'Tabel 1 F'!G208*100,"-")) -> 5.04587156 | J210: =IF(OR('Tabel 1 F'!G208<5,'Tabel 2 F'!J210<0.5),"-",IFERROR('Tabel 2 F'!J210/'Tabel 1 F'!G208*100,"-")) -> 3.763167366
A215: Kerteminde
C217: Mænd | F217: Kvinder | I217: I alt
C218: Ledigheds- berørte | D218: Gns. brutto- ledighed | F218: Ledigheds- berørte | G218: Gns. brutto- ledighed | I218: Ledigheds- berørte | J218: Gns. brutto- ledighed
A221: Civ. ing. | C221: =IF(OR('Tabel 1 F'!C219<5,'Tabel 2 F'!C221<0.5),"-",IFERROR('Tabel 2 F'!C221/'Tabel 1 F'!C219*100,"-")) -> 4.347826087 | D221: =IF(OR('Tabel 1 F'!C219<5,'Tabel 2 F'!D221<0.5),"-",IFERROR('Tabel 2 F'!D221/'Tabel 1 F'!C219*100,"-")) -> 3.815500096 | F221: =IF(OR('Tabel 1 F'!E219<5,'Tabel 2 F'!F221<0.5),"-",IFERROR('Tabel 2 F'!F221/'Tabel 1 F'!E219*100,"-")) -> - | G221: =IF(OR('Tabel 1 F'!E219<5,'Tabel 2 F'!G221<0.5),"-",IFERROR('Tabel 2 F'!G221/'Tabel 1 F'!E219*100,"-")) -> - | I221: =IF(OR('Tabel 1 F'!G219<5,'Tabel 2 F'!I221<0.5),"-",IFERROR('Tabel 2 F'!I221/'Tabel 1 F'!G219*100,"-")) -> 3.225806452 | J221: =IF(OR('Tabel 1 F'!G219<5,'Tabel 2 F'!J221<0.5),"-",IFERROR('Tabel 2 F'!J221/'Tabel 1 F'!G219*100,"-")) -> 2.83085491
A222: Diplom ing. | C222: =IF(OR('Tabel 1 F'!C220<5,'Tabel 2 F'!C222<0.5),"-",IFERROR('Tabel 2 F'!C222/'Tabel 1 F'!C220*100,"-")) -> 0.8928571429 | D222: =IF(OR('Tabel 1 F'!C220<5,'Tabel 2 F'!D222<0.5),"-",IFERROR('Tabel 2 F'!D222/'Tabel 1 F'!C220*100,"-")) -> 0.8926900767 | F222: =IF(OR('Tabel 1 F'!E220<5,'Tabel 2 F'!F222<0.5),"-",IFERROR('Tabel 2 F'!F222/'Tabel 1 F'!E220*100,"-")) -> - | G222: =IF(OR('Tabel 1 F'!E220<5,'Tabel 2 F'!G222<0.5),"-",IFERROR('Tabel 2 F'!G222/'Tabel 1 F'!E220*100,"-")) -> - | I222: =IF(OR('Tabel 1 F'!G220<5,'Tabel 2 F'!I222<0.5),"-",IFERROR('Tabel 2 F'!I222/'Tabel 1 F'!G220*100,"-")) -> 0.7092198582 | J222: =IF(OR('Tabel 1 F'!G220<5,'Tabel 2 F'!J222<0.5),"-",IFERROR('Tabel 2 F'!J222/'Tabel 1 F'!G220*100,"-")) -> 0.7090871531
A223: Cand. Scient. Tek. | C223: =IF(OR('Tabel 1 F'!C221<5,'Tabel 2 F'!C223<0.5),"-",IFERROR('Tabel 2 F'!C223/'Tabel 1 F'!C221*100,"-")) -> 10 | D223: =IF(OR('Tabel 1 F'!C221<5,'Tabel 2 F'!D223<0.5),"-",IFERROR('Tabel 2 F'!D223/'Tabel 1 F'!C221*100,"-")) -> 8.151936631 | F223: =IF(OR('Tabel 1 F'!E221<5,'Tabel 2 F'!F223<0.5),"-",IFERROR('Tabel 2 F'!F223/'Tabel 1 F'!E221*100,"-")) -> 10 | G223: =IF(OR('Tabel 1 F'!E221<5,'Tabel 2 F'!G223<0.5),"-",IFERROR('Tabel 2 F'!G223/'Tabel 1 F'!E221*100,"-")) -> 9.998128859 | I223: =IF(OR('Tabel 1 F'!G221<5,'Tabel 2 F'!I223<0.5),"-",IFERROR('Tabel 2 F'!I223/'Tabel 1 F'!G221*100,"-")) -> 10 | J223: =IF(OR('Tabel 1 F'!G221<5,'Tabel 2 F'!J223<0.5),"-",IFERROR('Tabel 2 F'!J223/'Tabel 1 F'!G221*100,"-")) -> 9.075032745
A224: MA. Hum. | C224: =IF(OR('Tabel 1 F'!C222<5,'Tabel 2 F'!C224<0.5),"-",IFERROR('Tabel 2 F'!C224/'Tabel 1 F'!C222*100,"-")) -> 7.407407407 | D224: =IF(OR('Tabel 1 F'!C222<5,'Tabel 2 F'!D224<0.5),"-",IFERROR('Tabel 2 F'!D224/'Tabel 1 F'!C222*100,"-")) -> 3.252550873 | F224: =IF(OR('Tabel 1 F'!E222<5,'Tabel 2 F'!F224<0.5),"-",IFERROR('Tabel 2 F'!F224/'Tabel 1 F'!E222*100,"-")) -> 11.66666667 | G224: =IF(OR('Tabel 1 F'!E222<5,'Tabel 2 F'!G224<0.5),"-",IFERROR('Tabel 2 F'!G224/'Tabel 1 F'!E222*100,"-")) -> 8.39102684 | I224: =IF(OR('Tabel 1 F'!G222<5,'Tabel 2 F'!I224<0.5),"-",IFERROR('Tabel 2 F'!I224/'Tabel 1 F'!G222*100,"-")) -> 10.34482759 | J224: =IF(OR('Tabel 1 F'!G222<5,'Tabel 2 F'!J224<0.5),"-",IFERROR('Tabel 2 F'!J224/'Tabel 1 F'!G222*100,"-")) -> 6.796327402
A225: MA. Nat. | C225: =IF(OR('Tabel 1 F'!C223<5,'Tabel 2 F'!C225<0.5),"-",IFERROR('Tabel 2 F'!C225/'Tabel 1 F'!C223*100,"-")) -> - | D225: =IF(OR('Tabel 1 F'!C223<5,'Tabel 2 F'!D225<0.5),"-",IFERROR('Tabel 2 F'!D225/'Tabel 1 F'!C223*100,"-")) -> - | F225: =IF(OR('Tabel 1 F'!E223<5,'Tabel 2 F'!F225<0.5),"-",IFERROR('Tabel 2 F'!F225/'Tabel 1 F'!E223*100,"-")) -> - | G225: =IF(OR('Tabel 1 F'!E223<5,'Tabel 2 F'!G225<0.5),"-",IFERROR('Tabel 2 F'!G225/'Tabel 1 F'!E223*100,"-")) -> - | I225: =IF(OR('Tabel 1 F'!G223<5,'Tabel 2 F'!I225<0.5),"-",IFERROR('Tabel 2 F'!I225/'Tabel 1 F'!G223*100,"-")) -> - | J225: =IF(OR('Tabel 1 F'!G223<5,'Tabel 2 F'!J225<0.5),"-",IFERROR('Tabel 2 F'!J225/'Tabel 1 F'!G223*100,"-")) -> -
A226: MA. Ph.d. | C226: =IF(OR('Tabel 1 F'!C224<5,'Tabel 2 F'!C226<0.5),"-",IFERROR('Tabel 2 F'!C226/'Tabel 1 F'!C224*100,"-")) -> - | D226: =IF(OR('Tabel 1 F'!C224<5,'Tabel 2 F'!D226<0.5),"-",IFERROR('Tabel 2 F'!D226/'Tabel 1 F'!C224*100,"-")) -> - | F226: =IF(OR('Tabel 1 F'!E224<5,'Tabel 2 F'!F226<0.5),"-",IFERROR('Tabel 2 F'!F226/'Tabel 1 F'!E224*100,"-")) -> - | G226: =IF(OR('Tabel 1 F'!E224<5,'Tabel 2 F'!G226<0.5),"-",IFERROR('Tabel 2 F'!G226/'Tabel 1 F'!E224*100,"-")) -> - | I226: =IF(OR('Tabel 1 F'!G224<5,'Tabel 2 F'!I226<0.5),"-",IFERROR('Tabel 2 F'!I226/'Tabel 1 F'!G224*100,"-")) -> - | J226: =IF(OR('Tabel 1 F'!G224<5,'Tabel 2 F'!J226<0.5),"-",IFERROR('Tabel 2 F'!J226/'Tabel 1 F'!G224*100,"-")) -> -
A227: MA. Samf. | C227: =IF(OR('Tabel 1 F'!C225<5,'Tabel 2 F'!C227<0.5),"-",IFERROR('Tabel 2 F'!C227/'Tabel 1 F'!C225*100,"-")) -> - | D227: =IF(OR('Tabel 1 F'!C225<5,'Tabel 2 F'!D227<0.5),"-",IFERROR('Tabel 2 F'!D227/'Tabel 1 F'!C225*100,"-")) -> - | F227: =IF(OR('Tabel 1 F'!E225<5,'Tabel 2 F'!F227<0.5),"-",IFERROR('Tabel 2 F'!F227/'Tabel 1 F'!E225*100,"-")) -> - | G227: =IF(OR('Tabel 1 F'!E225<5,'Tabel 2 F'!G227<0.5),"-",IFERROR('Tabel 2 F'!G227/'Tabel 1 F'!E225*100,"-")) -> - | I227: =IF(OR('Tabel 1 F'!G225<5,'Tabel 2 F'!I227<0.5),"-",IFERROR('Tabel 2 F'!I227/'Tabel 1 F'!G225*100,"-")) -> - | J227: =IF(OR('Tabel 1 F'!G225<5,'Tabel 2 F'!J227<0.5),"-",IFERROR('Tabel 2 F'!J227/'Tabel 1 F'!G225*100,"-")) -> -
A228: Øvrige Mag. | C228: =IF(OR('Tabel 1 F'!C226<5,'Tabel 2 F'!C228<0.5),"-",IFERROR('Tabel 2 F'!C228/'Tabel 1 F'!C226*100,"-")) -> - | D228: =IF(OR('Tabel 1 F'!C226<5,'Tabel 2 F'!D228<0.5),"-",IFERROR('Tabel 2 F'!D228/'Tabel 1 F'!C226*100,"-")) -> - | F228: =IF(OR('Tabel 1 F'!E226<5,'Tabel 2 F'!F228<0.5),"-",IFERROR('Tabel 2 F'!F228/'Tabel 1 F'!E226*100,"-")) -> - | G228: =IF(OR('Tabel 1 F'!E226<5,'Tabel 2 F'!G228<0.5),"-",IFERROR('Tabel 2 F'!G228/'Tabel 1 F'!E226*100,"-")) -> - | I228: =IF(OR('Tabel 1 F'!G226<5,'Tabel 2 F'!I228<0.5),"-",IFERROR('Tabel 2 F'!I228/'Tabel 1 F'!G226*100,"-")) -> - | J228: =IF(OR('Tabel 1 F'!G226<5,'Tabel 2 F'!J228<0.5),"-",IFERROR('Tabel 2 F'!J228/'Tabel 1 F'!G226*100,"-")) -> -
A229: Agronom | C229: =IF(OR('Tabel 1 F'!C227<5,'Tabel 2 F'!C229<0.5),"-",IFERROR('Tabel 2 F'!C229/'Tabel 1 F'!C227*100,"-")) -> - | D229: =IF(OR('Tabel 1 F'!C227<5,'Tabel 2 F'!D229<0.5),"-",IFERROR('Tabel 2 F'!D229/'Tabel 1 F'!C227*100,"-")) -> - | F229: =IF(OR('Tabel 1 F'!E227<5,'Tabel 2 F'!F229<0.5),"-",IFERROR('Tabel 2 F'!F229/'Tabel 1 F'!E227*100,"-")) -> - | G229: =IF(OR('Tabel 1 F'!E227<5,'Tabel 2 F'!G229<0.5),"-",IFERROR('Tabel 2 F'!G229/'Tabel 1 F'!E227*100,"-")) -> - | I229: =IF(OR('Tabel 1 F'!G227<5,'Tabel 2 F'!I229<0.5),"-",IFERROR('Tabel 2 F'!I229/'Tabel 1 F'!G227*100,"-")) -> - | J229: =IF(OR('Tabel 1 F'!G227<5,'Tabel 2 F'!J229<0.5),"-",IFERROR('Tabel 2 F'!J229/'Tabel 1 F'!G227*100,"-")) -> -
A230: Landsk. Arkt. | C230: =IF(OR('Tabel 1 F'!C228<5,'Tabel 2 F'!C230<0.5),"-",IFERROR('Tabel 2 F'!C230/'Tabel 1 F'!C228*100,"-")) -> - | D230: =IF(OR('Tabel 1 F'!C228<5,'Tabel 2 F'!D230<0.5),"-",IFERROR('Tabel 2 F'!D230/'Tabel 1 F'!C228*100,"-")) -> - | F230: =IF(OR('Tabel 1 F'!E228<5,'Tabel 2 F'!F230<0.5),"-",IFERROR('Tabel 2 F'!F230/'Tabel 1 F'!E228*100,"-")) -> - | G230: =IF(OR('Tabel 1 F'!E228<5,'Tabel 2 F'!G230<0.5),"-",IFERROR('Tabel 2 F'!G230/'Tabel 1 F'!E228*100,"-")) -> - | I230: =IF(OR('Tabel 1 F'!G228<5,'Tabel 2 F'!I230<0.5),"-",IFERROR('Tabel 2 F'!I230/'Tabel 1 F'!G228*100,"-")) -> - | J230: =IF(OR('Tabel 1 F'!G228<5,'Tabel 2 F'!J230<0.5),"-",IFERROR('Tabel 2 F'!J230/'Tabel 1 F'!G228*100,"-")) -> -
A231: Hortonom | C231: =IF(OR('Tabel 1 F'!C229<5,'Tabel 2 F'!C231<0.5),"-",IFERROR('Tabel 2 F'!C231/'Tabel 1 F'!C229*100,"-")) -> - | D231: =IF(OR('Tabel 1 F'!C229<5,'Tabel 2 F'!D231<0.5),"-",IFERROR('Tabel 2 F'!D231/'Tabel 1 F'!C229*100,"-")) -> - | F231: =IF(OR('Tabel 1 F'!E229<5,'Tabel 2 F'!F231<0.5),"-",IFERROR('Tabel 2 F'!F231/'Tabel 1 F'!E229*100,"-")) -> - | G231: =IF(OR('Tabel 1 F'!E229<5,'Tabel 2 F'!G231<0.5),"-",IFERROR('Tabel 2 F'!G231/'Tabel 1 F'!E229*100,"-")) -> - | I231: =IF(OR('Tabel 1 F'!G229<5,'Tabel 2 F'!I231<0.5),"-",IFERROR('Tabel 2 F'!I231/'Tabel 1 F'!G229*100,"-")) -> - | J231: =IF(OR('Tabel 1 F'!G229<5,'Tabel 2 F'!J231<0.5),"-",IFERROR('Tabel 2 F'!J231/'Tabel 1 F'!G229*100,"-")) -> -
A232: Forstkand. | C232: =IF(OR('Tabel 1 F'!C230<5,'Tabel 2 F'!C232<0.5),"-",IFERROR('Tabel 2 F'!C232/'Tabel 1 F'!C230*100,"-")) -> - | D232: =IF(OR('Tabel 1 F'!C230<5,'Tabel 2 F'!D232<0.5),"-",IFERROR('Tabel 2 F'!D232/'Tabel 1 F'!C230*100,"-")) -> - | F232: =IF(OR('Tabel 1 F'!E230<5,'Tabel 2 F'!F232<0.5),"-",IFERROR('Tabel 2 F'!F232/'Tabel 1 F'!E230*100,"-")) -> - | G232: =IF(OR('Tabel 1 F'!E230<5,'Tabel 2 F'!G232<0.5),"-",IFERROR('Tabel 2 F'!G232/'Tabel 1 F'!E230*100,"-")) -> - | I232: =IF(OR('Tabel 1 F'!G230<5,'Tabel 2 F'!I232<0.5),"-",IFERROR('Tabel 2 F'!I232/'Tabel 1 F'!G230*100,"-")) -> - | J232: =IF(OR('Tabel 1 F'!G230<5,'Tabel 2 F'!J232<0.5),"-",IFERROR('Tabel 2 F'!J232/'Tabel 1 F'!G230*100,"-")) -> -
A233: Jordbrugsakad. | C233: =IF(OR('Tabel 1 F'!C231<5,'Tabel 2 F'!C233<0.5),"-",IFERROR('Tabel 2 F'!C233/'Tabel 1 F'!C231*100,"-")) -> - | D233: =IF(OR('Tabel 1 F'!C231<5,'Tabel 2 F'!D233<0.5),"-",IFERROR('Tabel 2 F'!D233/'Tabel 1 F'!C231*100,"-")) -> - | F233: =IF(OR('Tabel 1 F'!E231<5,'Tabel 2 F'!F233<0.5),"-",IFERROR('Tabel 2 F'!F233/'Tabel 1 F'!E231*100,"-")) -> - | G233: =IF(OR('Tabel 1 F'!E231<5,'Tabel 2 F'!G233<0.5),"-",IFERROR('Tabel 2 F'!G233/'Tabel 1 F'!E231*100,"-")) -> - | I233: =IF(OR('Tabel 1 F'!G231<5,'Tabel 2 F'!I233<0.5),"-",IFERROR('Tabel 2 F'!I233/'Tabel 1 F'!G231*100,"-")) -> - | J233: =IF(OR('Tabel 1 F'!G231<5,'Tabel 2 F'!J233<0.5),"-",IFERROR('Tabel 2 F'!J233/'Tabel 1 F'!G231*100,"-")) -> -
A234: Mejeriing. | C234: =IF(OR('Tabel 1 F'!C232<5,'Tabel 2 F'!C234<0.5),"-",IFERROR('Tabel 2 F'!C234/'Tabel 1 F'!C232*100,"-")) -> - | D234: =IF(OR('Tabel 1 F'!C232<5,'Tabel 2 F'!D234<0.5),"-",IFERROR('Tabel 2 F'!D234/'Tabel 1 F'!C232*100,"-")) -> - | F234: =IF(OR('Tabel 1 F'!E232<5,'Tabel 2 F'!F234<0.5),"-",IFERROR('Tabel 2 F'!F234/'Tabel 1 F'!E232*100,"-")) -> - | G234: =IF(OR('Tabel 1 F'!E232<5,'Tabel 2 F'!G234<0.5),"-",IFERROR('Tabel 2 F'!G234/'Tabel 1 F'!E232*100,"-")) -> - | I234: =IF(OR('Tabel 1 F'!G232<5,'Tabel 2 F'!I234<0.5),"-",IFERROR('Tabel 2 F'!I234/'Tabel 1 F'!G232*100,"-")) -> - | J234: =IF(OR('Tabel 1 F'!G232<5,'Tabel 2 F'!J234<0.5),"-",IFERROR('Tabel 2 F'!J234/'Tabel 1 F'!G232*100,"-")) -> -
A235: Levn.m.kand. | C235: =IF(OR('Tabel 1 F'!C233<5,'Tabel 2 F'!C235<0.5),"-",IFERROR('Tabel 2 F'!C235/'Tabel 1 F'!C233*100,"-")) -> - | D235: =IF(OR('Tabel 1 F'!C233<5,'Tabel 2 F'!D235<0.5),"-",IFERROR('Tabel 2 F'!D235/'Tabel 1 F'!C233*100,"-")) -> - | F235: =IF(OR('Tabel 1 F'!E233<5,'Tabel 2 F'!F235<0.5),"-",IFERROR('Tabel 2 F'!F235/'Tabel 1 F'!E233*100,"-")) -> - | G235: =IF(OR('Tabel 1 F'!E233<5,'Tabel 2 F'!G235<0.5),"-",IFERROR('Tabel 2 F'!G235/'Tabel 1 F'!E233*100,"-")) -> - | I235: =IF(OR('Tabel 1 F'!G233<5,'Tabel 2 F'!I235<0.5),"-",IFERROR('Tabel 2 F'!I235/'Tabel 1 F'!G233*100,"-")) -> - | J235: =IF(OR('Tabel 1 F'!G233<5,'Tabel 2 F'!J235<0.5),"-",IFERROR('Tabel 2 F'!J235/'Tabel 1 F'!G233*100,"-")) -> -
A236: Dyrlæge | C236: =IF(OR('Tabel 1 F'!C234<5,'Tabel 2 F'!C236<0.5),"-",IFERROR('Tabel 2 F'!C236/'Tabel 1 F'!C234*100,"-")) -> - | D236: =IF(OR('Tabel 1 F'!C234<5,'Tabel 2 F'!D236<0.5),"-",IFERROR('Tabel 2 F'!D236/'Tabel 1 F'!C234*100,"-")) -> - | F236: =IF(OR('Tabel 1 F'!E234<5,'Tabel 2 F'!F236<0.5),"-",IFERROR('Tabel 2 F'!F236/'Tabel 1 F'!E234*100,"-")) -> - | G236: =IF(OR('Tabel 1 F'!E234<5,'Tabel 2 F'!G236<0.5),"-",IFERROR('Tabel 2 F'!G236/'Tabel 1 F'!E234*100,"-")) -> - | I236: =IF(OR('Tabel 1 F'!G234<5,'Tabel 2 F'!I236<0.5),"-",IFERROR('Tabel 2 F'!I236/'Tabel 1 F'!G234*100,"-")) -> - | J236: =IF(OR('Tabel 1 F'!G234<5,'Tabel 2 F'!J236<0.5),"-",IFERROR('Tabel 2 F'!J236/'Tabel 1 F'!G234*100,"-")) -> -
A237: Farmaceut | C237: =IF(OR('Tabel 1 F'!C235<5,'Tabel 2 F'!C237<0.5),"-",IFERROR('Tabel 2 F'!C237/'Tabel 1 F'!C235*100,"-")) -> - | D237: =IF(OR('Tabel 1 F'!C235<5,'Tabel 2 F'!D237<0.5),"-",IFERROR('Tabel 2 F'!D237/'Tabel 1 F'!C235*100,"-")) -> - | F237: =IF(OR('Tabel 1 F'!E235<5,'Tabel 2 F'!F237<0.5),"-",IFERROR('Tabel 2 F'!F237/'Tabel 1 F'!E235*100,"-")) -> - | G237: =IF(OR('Tabel 1 F'!E235<5,'Tabel 2 F'!G237<0.5),"-",IFERROR('Tabel 2 F'!G237/'Tabel 1 F'!E235*100,"-")) -> - | I237: =IF(OR('Tabel 1 F'!G235<5,'Tabel 2 F'!I237<0.5),"-",IFERROR('Tabel 2 F'!I237/'Tabel 1 F'!G235*100,"-")) -> - | J237: =IF(OR('Tabel 1 F'!G235<5,'Tabel 2 F'!J237<0.5),"-",IFERROR('Tabel 2 F'!J237/'Tabel 1 F'!G235*100,"-")) -> -
A238: Læge | C238: =IF(OR('Tabel 1 F'!C236<5,'Tabel 2 F'!C238<0.5),"-",IFERROR('Tabel 2 F'!C238/'Tabel 1 F'!C236*100,"-")) -> - | D238: =IF(OR('Tabel 1 F'!C236<5,'Tabel 2 F'!D238<0.5),"-",IFERROR('Tabel 2 F'!D238/'Tabel 1 F'!C236*100,"-")) -> - | F238: =IF(OR('Tabel 1 F'!E236<5,'Tabel 2 F'!F238<0.5),"-",IFERROR('Tabel 2 F'!F238/'Tabel 1 F'!E236*100,"-")) -> - | G238: =IF(OR('Tabel 1 F'!E236<5,'Tabel 2 F'!G238<0.5),"-",IFERROR('Tabel 2 F'!G238/'Tabel 1 F'!E236*100,"-")) -> - | I238: =IF(OR('Tabel 1 F'!G236<5,'Tabel 2 F'!I238<0.5),"-",IFERROR('Tabel 2 F'!I238/'Tabel 1 F'!G236*100,"-")) -> - | J238: =IF(OR('Tabel 1 F'!G236<5,'Tabel 2 F'!J238<0.5),"-",IFERROR('Tabel 2 F'!J238/'Tabel 1 F'!G236*100,"-")) -> -
A239: Tandlæge | C239: =IF(OR('Tabel 1 F'!C237<5,'Tabel 2 F'!C239<0.5),"-",IFERROR('Tabel 2 F'!C239/'Tabel 1 F'!C237*100,"-")) -> - | D239: =IF(OR('Tabel 1 F'!C237<5,'Tabel 2 F'!D239<0.5),"-",IFERROR('Tabel 2 F'!D239/'Tabel 1 F'!C237*100,"-")) -> - | F239: =IF(OR('Tabel 1 F'!E237<5,'Tabel 2 F'!F239<0.5),"-",IFERROR('Tabel 2 F'!F239/'Tabel 1 F'!E237*100,"-")) -> - | G239: =IF(OR('Tabel 1 F'!E237<5,'Tabel 2 F'!G239<0.5),"-",IFERROR('Tabel 2 F'!G239/'Tabel 1 F'!E237*100,"-")) -> - | I239: =IF(OR('Tabel 1 F'!G237<5,'Tabel 2 F'!I239<0.5),"-",IFERROR('Tabel 2 F'!I239/'Tabel 1 F'!G237*100,"-")) -> - | J239: =IF(OR('Tabel 1 F'!G237<5,'Tabel 2 F'!J239<0.5),"-",IFERROR('Tabel 2 F'!J239/'Tabel 1 F'!G237*100,"-")) -> -
A240: Arkitekt | C240: =IF(OR('Tabel 1 F'!C238<5,'Tabel 2 F'!C240<0.5),"-",IFERROR('Tabel 2 F'!C240/'Tabel 1 F'!C238*100,"-")) -> - | D240: =IF(OR('Tabel 1 F'!C238<5,'Tabel 2 F'!D240<0.5),"-",IFERROR('Tabel 2 F'!D240/'Tabel 1 F'!C238*100,"-")) -> - | F240: =IF(OR('Tabel 1 F'!E238<5,'Tabel 2 F'!F240<0.5),"-",IFERROR('Tabel 2 F'!F240/'Tabel 1 F'!E238*100,"-")) -> - | G240: =IF(OR('Tabel 1 F'!E238<5,'Tabel 2 F'!G240<0.5),"-",IFERROR('Tabel 2 F'!G240/'Tabel 1 F'!E238*100,"-")) -> - | I240: =IF(OR('Tabel 1 F'!G238<5,'Tabel 2 F'!I240<0.5),"-",IFERROR('Tabel 2 F'!I240/'Tabel 1 F'!G238*100,"-")) -> - | J240: =IF(OR('Tabel 1 F'!G238<5,'Tabel 2 F'!J240<0.5),"-",IFERROR('Tabel 2 F'!J240/'Tabel 1 F'!G238*100,"-")) -> -
... 285 more rows

Sheet Tabel 4F F
A1: Tabel 4. Antal forsikrede - aldersfordelt
A3: Fyn
C5: Under 30 år | D5: 30 - 39 år | E5: 40 - 49 år | F5: 50 - 59 år | G5: Over 60 år | I5: I alt
A7: Civ. ing. | C7: 320 | D7: 410 | E7: 245 | F7: 150 | G7: 38 | I7: 1163
A8: Diplom ing. | C8: 372 | D8: 651 | E8: 825 | F8: 973 | G8: 260 | I8: 3081
A9: Cand. Scient. Tek. | C9: 389 | D9: 432 | E9: 107 | F9: 41 | G9: 5 | I9: 974
A10: MA. Hum. | C10: 472 | D10: 929 | E10: 1047 | F10: 426 | G10: 186 | I10: 3060
A11: MA. Nat. | C11: 117 | D11: 257 | E11: 412 | F11: 248 | G11: 93 | I11: 1127
A12: MA. Ph.d. | C12: 3 | D12: 50 | E12: 61 | F12: 31 | G12: 7 | I12: 152
A13: MA. Samf. | C13: 42 | D13: 71 | E13: 19 | F13: 5 | G13: 1 | I13: 138
A14: Øvrige Mag. | C14: 24 | D14: 39 | E14: 65 | F14: 61 | G14: 34 | I14: 223
A15: Agronom | C15: 1 | D15: 17 | E15: 50 | F15: 65 | G15: 23 | I15: 156
A16: Landsk. Arkt. | C16: 1 | D16: 10 | E16: 8 | F16: 8 | G16: 0 | I16: 27
A17: Hortonom | C17: 0 | D17: 1 | E17: 6 | F17: 24 | G17: 11 | I17: 42
A18: Forstkand. | C18: 0 | D18: 5 | E18: 9 | F18: 7 | G18: 4 | I18: 25
A19: Jordbrugsakad. | C19: 2 | D19: 33 | E19: 73 | F19: 104 | G19: 38 | I19: 250
A20: Mejeriing. | C20: 1 | D20: 1 | E20: 6 | F20: 5 | G20: 1 | I20: 14
A21: Levn.m.kand. | C21: 3 | D21: 8 | E21: 1 | F21: 0 | G21: 0 | I21: 12
A22: Dyrlæge | C22: 18 | D22: 39 | E22: 35 | F22: 29 | G22: 2 | I22: 123
A23: Farmaceut | C23: 65 | D23: 75 | E23: 44 | F23: 25 | G23: 9 | I23: 218
A24: Læge | C24: 231 | D24: 515 | E24: 267 | F24: 167 | G24: 59 | I24: 1239
A25: Tandlæge | C25: 16 | D25: 31 | E25: 20 | F25: 22 | G25: 14 | I25: 103
A26: Arkitekt | C26: 19 | D26: 34 | E26: 45 | F26: 32 | G26: 20 | I26: 150
A27: Landinspek. | C27: 8 | D27: 11 | E27: 15 | F27: 21 | G27: 11 | I27: 66
A28: Bibliotekar | C28: 4 | D28: 50 | E28: 67 | F28: 56 | G28: 44 | I28: 221
A29: Musikudd. | C29: 1 | D29: 15 | E29: 22 | F29: 40 | G29: 19 | I29: 97
A30: Teolog | C30: 1 | D30: 20 | E30: 42 | F30: 39 | G30: 23 | I30: 125
A31: Psykolog | C31: 127 | D31: 134 | E31: 121 | F31: 61 | G31: 22 | I31: 465
A32: Jurist | C32: 110 | D32: 206 | E32: 122 | F32: 84 | G32: 25 | I32: 547
A33: Økonom | C33: 126 | D33: 118 | E33: 162 | F33: 100 | G33: 15 | I33: 521
A34: Samf. Adm. | C34: 245 | D34: 495 | E34: 335 | F34: 185 | G34: 38 | I34: 1298
A35: Cand. Merc. | C35: 434 | D35: 601 | E35: 343 | F35: 233 | G35: 42 | I35: 1653
A36: HA | C36: 89 | D36: 53 | E36: 71 | F36: 104 | G36: 35 | I36: 352
A37: HD | C37: 49 | D37: 45 | E37: 65 | F37: 114 | G37: 42 | I37: 315
A38: Komm. og Sprog | C38: 72 | D38: 117 | E38: 100 | F38: 90 | G38: 34 | I38: 413
A39: Cand. IT. | C39: 30 | D39: 64 | E39: 39 | F39: 3 | G39: 0 | I39: 136
A40: Bac. Samf. | C40: 9 | D40: 18 | E40: 14 | F40: 10 | G40: 1 | I40: 52
A41: Bac. Hum. | C41: 95 | D41: 65 | E41: 79 | F41: 49 | G41: 8 | I41: 296
A42: Bac. Nat. | C42: 46 | D42: 43 | E42: 15 | F42: 14 | G42: 1 | I42: 119
A43: Andre | C43: 188 | D43: 307 | E43: 285 | F43: 253 | G43: 110 | I43: 1143
A45: Total | C45: 3728 | D45: 5937 | E45: 5169 | F45: 3775 | G45: 1237 | I45: 19846
A47: Ingeniører i alt | C47: 692 | D47: 1061 | E47: 1070 | F47: 1123 | G47: 298 | I47: 4244
A48: Magistre i alt | C48: 658 | D48: 1346 | E48: 1604 | F48: 771 | G48: 321 | I48: 4700
A49: DJØF'ere i alt | C49: 1004 | D49: 1473 | E49: 1033 | F49: 706 | G49: 155 | I49: 4371
A56: Middelfart
C58: Under 30 år | D58: 30 - 39 år | E58: 40 - 49 år | F58: 50 - 59 år | G58: Over 60 år | I58: I alt
A60: Civ. ing. | C60: 7 | D60: 31 | E60: 31 | F60: 19 | G60: 6 | I60: 94
A61: Diplom ing. | C61: 13 | D61: 52 | E61: 82 | F61: 101 | G61: 33 | I61: 281
A62: Cand. Scient. Tek. | C62: 9 | D62: 18 | E62: 15 | F62: 3 | G62: 0 | I62: 45
A63: MA. Hum. | C63: 10 | D63: 49 | E63: 60 | F63: 21 | G63: 14 | I63: 154
A64: MA. Nat. | C64: 1 | D64: 11 | E64: 31 | F64: 13 | G64: 5 | I64: 61
A65: MA. Ph.d. | C65: 0 | D65: 2 | E65: 1 | F65: 2 | G65: 0 | I65: 5
A66: MA. Samf. | C66: 2 | D66: 5 | E66: 0 | F66: 1 | G66: 0 | I66: 8
A67: Øvrige Mag. | C67: 0 | D67: 3 | E67: 2 | F67: 1 | G67: 4 | I67: 10
A68: Agronom | C68: 0 | D68: 0 | E68: 9 | F68: 15 | G68: 5 | I68: 29
A69: Landsk. Arkt. | C69: 0 | D69: 0 | E69: 1 | F69: 1 | G69: 0 | I69: 2
A70: Hortonom | C70: 0 | D70: 0 | E70: 1 | F70: 3 | G70: 0 | I70: 4
A71: Forstkand. | C71: 0 | D71: 0 | E71: 1 | F71: 0 | G71: 0 | I71: 1
A72: Jordbrugsakad. | C72: 0 | D72: 0 | E72: 12 | F72: 19 | G72: 5 | I72: 36
A73: Mejeriing. | C73: 0 | D73: 0 | E73: 2 | F73: 0 | G73: 0 | I73: 2
A74: Levn.m.kand. | C74: 0 | D74: 1 | E74: 0 | F74: 0 | G74: 0 | I74: 1
A75: Dyrlæge | C75: 1 | D75: 10 | E75: 4 | F75: 2 | G75: 0 | I75: 17
A76: Farmaceut | C76: 3 | D76: 1 | E76: 3 | F76: 0 | G76: 1 | I76: 8
A77: Læge | C77: 10 | D77: 42 | E77: 26 | F77: 11 | G77: 6 | I77: 95
A78: Tandlæge | C78: 1 | D78: 3 | E78: 3 | F78: 3 | G78: 1 | I78: 11
A79: Arkitekt | C79: 2 | D79: 1 | E79: 6 | F79: 6 | G79: 0 | I79: 15
A80: Landinspek. | C80: 0 | D80: 1 | E80: 6 | F80: 4 | G80: 1 | I80: 12
A81: Bibliotekar | C81: 1 | D81: 7 | E81: 4 | F81: 4 | G81: 3 | I81: 19
A82: Musikudd. | C82: 0 | D82: 1 | E82: 1 | F82: 3 | G82: 2 | I82: 7
A83: Teolog | C83: 0 | D83: 4 | E83: 5 | F83: 3 | G83: 2 | I83: 14
A84: Psykolog | C84: 3 | D84: 8 | E84: 14 | F84: 8 | G84: 3 | I84: 36
A85: Jurist | C85: 6 | D85: 13 | E85: 7 | F85: 5 | G85: 2 | I85: 33
A86: Økonom | C86: 1 | D86: 11 | E86: 18 | F86: 9 | G86: 0 | I86: 39
A87: Samf. Adm. | C87: 5 | D87: 30 | E87: 28 | F87: 13 | G87: 1 | I87: 77
A88: Cand. Merc. | C88: 12 | D88: 45 | E88: 41 | F88: 24 | G88: 4 | I88: 126
A89: HA | C89: 1 | D89: 3 | E89: 10 | F89: 13 | G89: 2 | I89: 29
A90: HD | C90: 1 | D90: 1 | E90: 6 | F90: 7 | G90: 3 | I90: 18
A91: Komm. og Sprog | C91: 4 | D91: 5 | E91: 11 | F91: 9 | G91: 5 | I91: 34
A92: Cand. IT. | C92: 2 | D92: 4 | E92: 3 | F92: 0 | G92: 0 | I92: 9
A93: Bac. Samf. | C93: 0 | D93: 1 | E93: 2 | F93: 1 | G93: 0 | I93: 4
A94: Bac. Hum. | C94: 2 | D94: 0 | E94: 4 | F94: 3 | G94: 0 | I94: 9
A95: Bac. Nat. | C95: 1 | D95: 3 | E95: 2 | F95: 1 | G95: 0 | I95: 7
A96: Andre | C96: 4 | D96: 14 | E96: 27 | F96: 20 | G96: 7 | I96: 72
A98: Total | C98: 102 | D98: 380 | E98: 467 | F98: 329 | G98: 110 | I98: 1388
A100: Ingeniører i alt | C100: 20 | D100: 83 | E100: 113 | F100: 120 | G100: 39 | I100: 375
A101: Magistre i alt | C101: 13 | D101: 70 | E101: 94 | F101: 38 | G101: 23 | I101: 238
A102: DJØF'ere i alt | C102: 25 | D102: 102 | E102: 104 | F102: 64 | G102: 9 | I102: 304
A109: Assens
C111: Under 30 år | D111: 30 - 39 år | E111: 40 - 49 år | F111: 50 - 59 år | G111: Over 60 år | I111: I alt
A113: Civ. ing. | C113: 7 | D113: 16 | E113: 16 | F113: 15 | G113: 2 | I113: 56
A114: Diplom ing. | C114: 9 | D114: 34 | E114: 81 | F114: 86 | G114: 23 | I114: 233
A115: Cand. Scient. Tek. | C115: 8 | D115: 17 | E115: 4 | F115: 2 | G115: 1 | I115: 32
A116: MA. Hum. | C116: 5 | D116: 44 | E116: 58 | F116: 19 | G116: 8 | I116: 134
A117: MA. Nat. | C117: 3 | D117: 13 | E117: 21 | F117: 15 | G117: 4 | I117: 56
A118: MA. Ph.d. | C118: 0 | D118: 1 | E118: 1 | F118: 0 | G118: 0 | I118: 2
A119: MA. Samf. | C119: 0 | D119: 3 | E119: 2 | F119: 0 | G119: 0 | I119: 5
A120: Øvrige Mag. | C120: 1 | D120: 0 | E120: 2 | F120: 3 | G120: 1 | I120: 7
A121: Agronom | C121: 0 | D121: 2 | E121: 7 | F121: 7 | G121: 2 | I121: 18
A122: Landsk. Arkt. | C122: 0 | D122: 2 | E122: 2 | F122: 3 | G122: 0 | I122: 7
A123: Hortonom | C123: 0 | D123: 0 | E123: 0 | F123: 2 | G123: 2 | I123: 4
A124: Forstkand. | C124: 0 | D124: 1 | E124: 2 | F124: 1 | G124: 1 | I124: 5
A125: Jordbrugsakad. | C125: 0 | D125: 5 | E125: 11 | F125: 13 | G125: 5 | I125: 34
A126: Mejeriing. | C126: 0 | D126: 0 | E126: 1 | F126: 0 | G126: 1 | I126: 2
A127: Levn.m.kand. | C127: 0 | D127: 1 | E127: 0 | F127: 0 | G127: 0 | I127: 1
A128: Dyrlæge | C128: 2 | D128: 4 | E128: 6 | F128: 4 | G128: 0 | I128: 16
A129: Farmaceut | C129: 0 | D129: 5 | E129: 5 | F129: 0 | G129: 0 | I129: 10
A130: Læge | C130: 3 | D130: 15 | E130: 12 | F130: 7 | G130: 0 | I130: 37
A131: Tandlæge | C131: 1 | D131: 1 | E131: 1 | F131: 1 | G131: 0 | I131: 4
A132: Arkitekt | C132: 0 | D132: 1 | E132: 2 | F132: 1 | G132: 1 | I132: 5
A133: Landinspek. | C133: 0 | D133: 1 | E133: 1 | F133: 1 | G133: 0 | I133: 3
A134: Bibliotekar | C134: 0 | D134: 1 | E134: 7 | F134: 6 | G134: 1 | I134: 15
A135: Musikudd. | C135: 0 | D135: 2 | E135: 0 | F135: 8 | G135: 0 | I135: 10
A136: Teolog | C136: 0 | D136: 2 | E136: 4 | F136: 3 | G136: 4 | I136: 13
A137: Psykolog | C137: 4 | D137: 4 | E137: 8 | F137: 3 | G137: 4 | I137: 23
A138: Jurist | C138: 3 | D138: 6 | E138: 5 | F138: 7 | G138: 1 | I138: 22
A139: Økonom | C139: 1 | D139: 1 | E139: 10 | F139: 7 | G139: 0 | I139: 19
A140: Samf. Adm. | C140: 4 | D140: 13 | E140: 19 | F140: 14 | G140: 4 | I140: 54
A141: Cand. Merc. | C141: 6 | D141: 11 | E141: 16 | F141: 15 | G141: 4 | I141: 52
A142: HA | C142: 0 | D142: 2 | E142: 5 | F142: 7 | G142: 3 | I142: 17
A143: HD | C143: 1 | D143: 3 | E143: 7 | F143: 5 | G143: 3 | I143: 19
A144: Komm. og Sprog | C144: 2 | D144: 5 | E144: 6 | F144: 6 | G144: 4 | I144: 23
A145: Cand. IT. | C145: 1 | D145: 1 | E145: 1 | F145: 0 | G145: 0 | I145: 3
A146: Bac. Samf. | C146: 0 | D146: 1 | E146: 1 | F146: 1 | G146: 0 | I146: 3
A147: Bac. Hum. | C147: 5 | D147: 4 | E147: 2 | F147: 4 | G147: 0 | I147: 15
A148: Bac. Nat. | C148: 1 | D148: 1 | E148: 3 | F148: 0 | G148: 0 | I148: 5
A149: Andre | C149: 3 | D149: 16 | E149: 17 | F149: 16 | G149: 10 | I149: 62
A151: Total | C151: 70 | D151: 234 | E151: 335 | F151: 269 | G151: 84 | I151: 992
A153: Ingeniører i alt | C153: 16 | D153: 50 | E153: 97 | F153: 101 | G153: 25 | I153: 289
A154: Magistre i alt | C154: 9 | D154: 61 | E154: 84 | F154: 37 | G154: 13 | I154: 204
A155: DJØF'ere i alt | C155: 14 | D155: 33 | E155: 55 | F155: 50 | G155: 12 | I155: 164
A162: Faaborg-Midtfyn
C164: Under 30 år | D164: 30 - 39 år | E164: 40 - 49 år | F164: 50 - 59 år | G164: Over 60 år | I164: I alt
A166: Civ. ing. | C166: 7 | D166: 26 | E166: 17 | F166: 8 | G166: 5 | I166: 63
A167: Diplom ing. | C167: 14 | D167: 58 | E167: 70 | F167: 96 | G167: 25 | I167: 263
A168: Cand. Scient. Tek. | C168: 7 | D168: 29 | E168: 5 | F168: 5 | G168: 0 | I168: 46
A169: MA. Hum. | C169: 13 | D169: 49 | E169: 63 | F169: 20 | G169: 10 | I169: 155
A170: MA. Nat. | C170: 1 | D170: 11 | E170: 35 | F170: 14 | G170: 6 | I170: 67
A171: MA. Ph.d. | C171: 0 | D171: 4 | E171: 1 | F171: 4 | G171: 0 | I171: 9
A172: MA. Samf. | C172: 0 | D172: 2 | E172: 0 | F172: 0 | G172: 0 | I172: 2
A173: Øvrige Mag. | C173: 1 | D173: 1 | E173: 4 | F173: 6 | G173: 3 | I173: 15
A174: Agronom | C174: 0 | D174: 3 | E174: 4 | F174: 13 | G174: 5 | I174: 25
A175: Landsk. Arkt. | C175: 0 | D175: 1 | E175: 1 | F175: 2 | G175: 0 | I175: 4
A176: Hortonom | C176: 0 | D176: 0 | E176: 0 | F176: 2 | G176: 3 | I176: 5
A177: Forstkand. | C177: 0 | D177: 2 | E177: 1 | F177: 3 | G177: 1 | I177: 7
A178: Jordbrugsakad. | C178: 0 | D178: 6 | E178: 6 | F178: 20 | G178: 9 | I178: 41
A179: Mejeriing. | C179: 0 | D179: 0 | E179: 1 | F179: 2 | G179: 0 | I179: 3
A180: Levn.m.kand. | C180: 1 | D180: 1 | E180: 0 | F180: 0 | G180: 0 | I180: 2
A181: Dyrlæge | C181: 1 | D181: 9 | E181: 4 | F181: 2 | G181: 0 | I181: 16
A182: Farmaceut | C182: 0 | D182: 7 | E182: 6 | F182: 1 | G182: 0 | I182: 14
A183: Læge | C183: 0 | D183: 18 | E183: 16 | F183: 5 | G183: 4 | I183: 43
A184: Tandlæge | C184: 0 | D184: 1 | E184: 1 | F184: 0 | G184: 1 | I184: 3
A185: Arkitekt | C185: 2 | D185: 3 | E185: 4 | F185: 3 | G185: 3 | I185: 15
A186: Landinspek. | C186: 1 | D186: 0 | E186: 0 | F186: 2 | G186: 0 | I186: 3
A187: Bibliotekar | C187: 0 | D187: 2 | E187: 5 | F187: 4 | G187: 3 | I187: 14
A188: Musikudd. | C188: 0 | D188: 2 | E188: 1 | F188: 3 | G188: 3 | I188: 9
A189: Teolog | C189: 0 | D189: 1 | E189: 5 | F189: 4 | G189: 5 | I189: 15
A190: Psykolog | C190: 0 | D190: 8 | E190: 7 | F190: 4 | G190: 1 | I190: 20
A191: Jurist | C191: 2 | D191: 10 | E191: 8 | F191: 8 | G191: 4 | I191: 32
A192: Økonom | C192: 1 | D192: 7 | E192: 7 | F192: 4 | G192: 3 | I192: 22
A193: Samf. Adm. | C193: 5 | D193: 19 | E193: 31 | F193: 17 | G193: 1 | I193: 73
A194: Cand. Merc. | C194: 7 | D194: 25 | E194: 18 | F194: 15 | G194: 1 | I194: 66
A195: HA | C195: 5 | D195: 2 | E195: 7 | F195: 10 | G195: 1 | I195: 25
A196: HD | C196: 1 | D196: 2 | E196: 5 | F196: 13 | G196: 7 | I196: 28
A197: Komm. og Sprog | C197: 0 | D197: 5 | E197: 4 | F197: 2 | G197: 2 | I197: 13
A198: Cand. IT. | C198: 0 | D198: 2 | E198: 5 | F198: 1 | G198: 0 | I198: 8
A199: Bac. Samf. | C199: 0 | D199: 2 | E199: 2 | F199: 1 | G199: 0 | I199: 5
A200: Bac. Hum. | C200: 1 | D200: 7 | E200: 5 | F200: 4 | G200: 0 | I200: 17
A201: Bac. Nat. | C201: 2 | D201: 1 | E201: 0 | F201: 1 | G201: 0 | I201: 4
A202: Andre | C202: 4 | D202: 23 | E202: 18 | F202: 30 | G202: 5 | I202: 80
A204: Total | C204: 76 | D204: 343 | E204: 361 | F204: 309 | G204: 102 | I204: 1191
A206: Ingeniører i alt | C206: 21 | D206: 84 | E206: 87 | F206: 104 | G206: 30 | I206: 326
A207: Magistre i alt | C207: 15 | D207: 67 | E207: 103 | F207: 44 | G207: 19 | I207: 248
A208: DJØF'ere i alt | C208: 20 | D208: 63 | E208: 71 | F208: 54 | G208: 10 | I208: 218
A215: Kerteminde
C217: Under 30 år | D217: 30 - 39 år | E217: 40 - 49 år | F217: 50 - 59 år | G217: Over 60 år | I217: I alt
A219: Civ. ing. | C219: 5 | D219: 7 | E219: 11 | F219: 8 | G219: 0 | I219: 31
A220: Diplom ing. | C220: 6 | D220: 21 | E220: 40 | F220: 60 | G220: 14 | I220: 141
A221: Cand. Scient. Tek. | C221: 9 | D221: 4 | E221: 3 | F221: 3 | G221: 1 | I221: 20
A222: MA. Hum. | C222: 5 | D222: 24 | E222: 32 | F222: 15 | G222: 11 | I222: 87
A223: MA. Nat. | C223: 1 | D223: 3 | E223: 13 | F223: 11 | G223: 3 | I223: 31
A224: MA. Ph.d. | C224: 0 | D224: 3 | E224: 2 | F224: 1 | G224: 0 | I224: 6
A225: MA. Samf. | C225: 1 | D225: 1 | E225: 0 | F225: 0 | G225: 0 | I225: 2
A226: Øvrige Mag. | C226: 0 | D226: 1 | E226: 0 | F226: 2 | G226: 2 | I226: 5
A227: Agronom | C227: 0 | D227: 0 | E227: 2 | F227: 1 | G227: 0 | I227: 3
A228: Landsk. Arkt. | C228: 0 | D228: 1 | E228: 0 | F228: 2 | G228: 0 | I228: 3
A229: Hortonom | C229: 0 | D229: 0 | E229: 1 | F229: 2 | G229: 0 | I229: 3
A230: Forstkand. | C230: 0 | D230: 0 | E230: 1 | F230: 0 | G230: 0 | I230: 1
A231: Jordbrugsakad. | C231: 0 | D231: 1 | E231: 4 | F231: 5 | G231: 0 | I231: 10
A232: Mejeriing. | C232: 0 | D232: 0 | E232: 0 | F232: 0 | G232: 0 | I232: 0
A233: Levn.m.kand. | C233: 0 | D233: 0 | E233: 0 | F233: 0 | G233: 0 | I233: 0
A234: Dyrlæge | C234: 0 | D234: 1 | E234: 1 | F234: 0 | G234: 0 | I234: 2
A235: Farmaceut | C235: 0 | D235: 1 | E235: 0 | F235: 1 | G235: 0 | I235: 2
A236: Læge | C236: 0 | D236: 5 | E236: 8 | F236: 3 | G236: 0 | I236: 16
A237: Tandlæge | C237: 0 | D237: 0 | E237: 2 | F237: 0 | G237: 1 | I237: 3
A238: Arkitekt | C238: 1 | D238: 0 | E238: 1 | F238: 1 | G238: 0 | I238: 3
A239: Landinspek. | C239: 1 | D239: 0 | E239: 1 | F239: 2 | G239: 0 | I239: 4
A240: Bibliotekar | C240: 1 | D240: 1 | E240: 2 | F240: 0 | G240: 0 | I240: 4
A241: Musikudd. | C241: 0 | D241: 1 | E241: 0 | F241: 4 | G241: 1 | I241: 6
A242: Teolog | C242: 0 | D242: 2 | E242: 2 | F242: 0 | G242: 1 | I242: 5
A243: Psykolog | C243: 0 | D243: 4 | E243: 4 | F243: 0 | G243: 0 | I243: 8
... 274 more rows

Sheet Tabel 4 F
A1: Tabel 4. Ledighedsberørte - aldersfordelt
A3: Fyn
C5: Under 30 år | D5: 30 - 39 år | E5: 40 - 49 år | F5: 50 - 59 år | G5: Over 60 år | I5: I alt
A7: Civ. ing. | C7: 47 | D7: 13 | E7: 2 | F7: 0 | G7: 0 | I7: 62
A8: Diplom ing. | C8: 61 | D8: 13 | E8: 8 | F8: 15 | G8: 5 | I8: 102
A9: Cand. Scient. Tek | C9: 88 | D9: 32 | E9: 5 | F9: 2 | G9: 1 | I9: 128
A10: MA. Hum. | C10: 154 | D10: 112 | E10: 50 | F10: 31 | G10: 7 | I10: 354
A11: MA. Nat. | C11: 29 | D11: 15 | E11: 5 | F11: 3 | G11: 2 | I11: 54
A12: MA. Ph.d. | C12: 2 | D12: 3 | E12: 2 | F12: 1 | G12: 0 | I12: 8
A13: MA. Samf. | C13: 17 | D13: 14 | E13: 0 | F13: 0 | G13: 1 | I13: 32
A14: Øvrige Mag. | C14: 6 | D14: 4 | E14: 1 | F14: 3 | G14: 2 | I14: 16
A15: Agronom | C15: 0 | D15: 1 | E15: 0 | F15: 2 | G15: 0 | I15: 3
A16: Landsk. Arkt. | C16: 0 | D16: 0 | E16: 0 | F16: 1 | G16: 0 | I16: 1
A17: Hortonom | C17: 0 | D17: 0 | E17: 0 | F17: 0 | G17: 1 | I17: 1
A18: Forstkand. | C18: 0 | D18: 1 | E18: 0 | F18: 0 | G18: 0 | I18: 1
A19: Jordbrugsakad. | C19: 0 | D19: 2 | E19: 0 | F19: 3 | G19: 1 | I19: 6
A20: Mejeriing. | C20: 0 | D20: 0 | E20: 1 | F20: 0 | G20: 0 | I20: 1
A21: Levn.m.kand. | C21: 0 | D21: 0 | E21: 0 | F21: 0 | G21: 0 | I21: 0
A22: Dyrlæge | C22: 4 | D22: 3 | E22: 0 | F22: 1 | G22: 0 | I22: 8
A23: Farmaceut | C23: 5 | D23: 4 | E23: 2 | F23: 1 | G23: 1 | I23: 13
A24: Læge | C24: 27 | D24: 12 | E24: 2 | F24: 0 | G24: 0 | I24: 41
A25: Tandlæge | C25: 0 | D25: 0 | E25: 0 | F25: 0 | G25: 0 | I25: 0
A26: Arkitekt | C26: 2 | D26: 5 | E26: 2 | F26: 3 | G26: 1 | I26: 13
A27: Landinspek. | C27: 0 | D27: 0 | E27: 0 | F27: 0 | G27: 0 | I27: 0
A28: Bibliotekar | C28: 0 | D28: 6 | E28: 1 | F28: 2 | G28: 2 | I28: 11
A29: Musikudd. | C29: 1 | D29: 0 | E29: 0 | F29: 1 | G29: 0 | I29: 2
A30: Teolog | C30: 0 | D30: 1 | E30: 1 | F30: 0 | G30: 1 | I30: 3
A31: Psykolog | C31: 17 | D31: 14 | E31: 1 | F31: 0 | G31: 2 | I31: 34
A32: Jurist | C32: 6 | D32: 3 | E32: 2 | F32: 1 | G32: 1 | I32: 13
A33: Økonom | C33: 12 | D33: 7 | E33: 2 | F33: 0 | G33: 1 | I33: 22
A34: Samf. Adm. | C34: 53 | D34: 33 | E34: 14 | F34: 8 | G34: 0 | I34: 108
A35: Cand. Merc. | C35: 90 | D35: 35 | E35: 10 | F35: 9 | G35: 0 | I35: 144
A36: HA | C36: 24 | D36: 4 | E36: 1 | F36: 4 | G36: 1 | I36: 34
A37: HD | C37: 24 | D37: 5 | E37: 1 | F37: 2 | G37: 3 | I37: 35
A38: Komm. og Sprog | C38: 19 | D38: 11 | E38: 5 | F38: 2 | G38: 1 | I38: 38
A39: Cand. IT. | C39: 7 | D39: 4 | E39: 2 | F39: 1 | G39: 0 | I39: 14
A40: Bac. Samf. | C40: 1 | D40: 1 | E40: 0 | F40: 0 | G40: 0 | I40: 2
A41: Bac. Hum. | C41: 28 | D41: 5 | E41: 2 | F41: 4 | G41: 0 | I41: 39
A42: Bac. Nat. | C42: 8 | D42: 3 | E42: 2 | F42: 1 | G42: 0 | I42: 14
A43: Andre | C43: 31 | D43: 21 | E43: 12 | F43: 6 | G43: 12 | I43: 82
A45: Total | C45: 763 | D45: 385 | E45: 136 | F45: 104 | G45: 45 | I45: 1433
A47: Ingeniører i alt | C47: 108 | D47: 26 | E47: 10 | F47: 15 | G47: 5 | I47: 164
A48: Magistre i alt | C48: 208 | D48: 148 | E48: 58 | F48: 38 | G48: 12 | I48: 464
A49: DJØF'ere i alt | C49: 185 | D49: 82 | E49: 29 | F49: 22 | G49: 3 | I49: 321
A56: Middelfart
C58: Under 30 år | D58: 30 - 39 år | E58: 40 - 49 år | F58: 50 - 59 år | G58: Over 60 år | I58: I alt
A60: Civ. ing. | C60: 1 | D60: 0 | E60: 0 | F60: 0 | G60: 0 | I60: 1
A61: Diplom ing. | C61: 0 | D61: 1 | E61: 0 | F61: 0 | G61: 0 | I61: 1
A62: Cand. Scient. Tek | C62: 1 | D62: 2 | E62: 1 | F62: 0 | G62: 0 | I62: 4
A63: MA. Hum. | C63: 1 | D63: 5 | E63: 4 | F63: 3 | G63: 0 | I63: 13
A64: MA. Nat. | C64: 0 | D64: 0 | E64: 0 | F64: 0 | G64: 0 | I64: 0
A65: MA. Ph.d. | C65: 0 | D65: 0 | E65: 0 | F65: 0 | G65: 0 | I65: 0
A66: MA. Samf. | C66: 0 | D66: 0 | E66: 0 | F66: 0 | G66: 0 | I66: 0
A67: Øvrige Mag. | C67: 0 | D67: 0 | E67: 0 | F67: 0 | G67: 0 | I67: 0
A68: Agronom | C68: 0 | D68: 0 | E68: 0 | F68: 0 | G68: 0 | I68: 0
A69: Landsk. Arkt. | C69: 0 | D69: 0 | E69: 0 | F69: 1 | G69: 0 | I69: 1
A70: Hortonom | C70: 0 | D70: 0 | E70: 0 | F70: 0 | G70: 0 | I70: 0
A71: Forstkand. | C71: 0 | D71: 0 | E71: 0 | F71: 0 | G71: 0 | I71: 0
A72: Jordbrugsakad. | C72: 0 | D72: 0 | E72: 0 | F72: 1 | G72: 0 | I72: 1
A73: Mejeriing. | C73: 0 | D73: 0 | E73: 0 | F73: 0 | G73: 0 | I73: 0
A74: Levn.m.kand. | C74: 0 | D74: 0 | E74: 0 | F74: 0 | G74: 0 | I74: 0
A75: Dyrlæge | C75: 0 | D75: 1 | E75: 0 | F75: 0 | G75: 0 | I75: 1
A76: Farmaceut | C76: 1 | D76: 0 | E76: 0 | F76: 0 | G76: 0 | I76: 1
A77: Læge | C77: 0 | D77: 0 | E77: 1 | F77: 0 | G77: 0 | I77: 1
A78: Tandlæge | C78: 0 | D78: 0 | E78: 0 | F78: 0 | G78: 0 | I78: 0
A79: Arkitekt | C79: 0 | D79: 0 | E79: 0 | F79: 1 | G79: 0 | I79: 1
A80: Landinspek. | C80: 0 | D80: 0 | E80: 0 | F80: 0 | G80: 0 | I80: 0
A81: Bibliotekar | C81: 0 | D81: 1 | E81: 0 | F81: 0 | G81: 0 | I81: 1
A82: Musikudd. | C82: 0 | D82: 0 | E82: 0 | F82: 0 | G82: 0 | I82: 0
A83: Teolog | C83: 0 | D83: 0 | E83: 1 | F83: 0 | G83: 1 | I83: 2
A84: Psykolog | C84: 0 | D84: 0 | E84: 0 | F84: 0 | G84: 0 | I84: 0
A85: Jurist | C85: 0 | D85: 0 | E85: 1 | F85: 0 | G85: 0 | I85: 1
A86: Økonom | C86: 0 | D86: 0 | E86: 0 | F86: 0 | G86: 0 | I86: 0
A87: Samf. Adm. | C87: 0 | D87: 3 | E87: 0 | F87: 0 | G87: 0 | I87: 3
A88: Cand. Merc. | C88: 2 | D88: 2 | E88: 1 | F88: 1 | G88: 0 | I88: 6
A89: HA | C89: 0 | D89: 0 | E89: 0 | F89: 1 | G89: 0 | I89: 1
A90: HD | C90: 0 | D90: 0 | E90: 0 | F90: 1 | G90: 0 | I90: 1
A91: Komm. og Sprog | C91: 1 | D91: 0 | E91: 1 | F91: 0 | G91: 0 | I91: 2
A92: Cand. IT. | C92: 0 | D92: 0 | E92: 0 | F92: 0 | G92: 0 | I92: 0
A93: Bac. Samf. | C93: 0 | D93: 0 | E93: 0 | F93: 0 | G93: 0 | I93: 0
A94: Bac. Hum. | C94: 1 | D94: 0 | E94: 0 | F94: 0 | G94: 0 | I94: 1
A95: Bac. Nat. | C95: 0 | D95: 0 | E95: 1 | F95: 0 | G95: 0 | I95: 1
A96: Andre | C96: 0 | D96: 0 | E96: 2 | F96: 1 | G96: 2 | I96: 5
A98: Total | C98: 8 | D98: 15 | E98: 13 | F98: 9 | G98: 3 | I98: 48
A100: Ingeniører i alt | C100: 1 | D100: 1 | E100: 0 | F100: 0 | G100: 0 | I100: 2
A101: Magistre i alt | C101: 1 | D101: 5 | E101: 4 | F101: 3 | G101: 0 | I101: 13
A102: DJØF'ere i alt | C102: 2 | D102: 5 | E102: 2 | F102: 2 | G102: 0 | I102: 11
A109: Assens
C111: Under 30 år | D111: 30 - 39 år | E111: 40 - 49 år | F111: 50 - 59 år | G111: Over 60 år | I111: I alt
A113: Civ. ing. | C113: 1 | D113: 1 | E113: 0 | F113: 0 | G113: 0 | I113: 2
A114: Diplom ing. | C114: 0 | D114: 1 | E114: 2 | F114: 3 | G114: 0 | I114: 6
A115: Cand. Scient. Tek | C115: 2 | D115: 1 | E115: 0 | F115: 0 | G115: 0 | I115: 3
A116: MA. Hum. | C116: 1 | D116: 2 | E116: 3 | F116: 0 | G116: 0 | I116: 6
A117: MA. Nat. | C117: 0 | D117: 2 | E117: 0 | F117: 0 | G117: 0 | I117: 2
A118: MA. Ph.d. | C118: 0 | D118: 0 | E118: 0 | F118: 0 | G118: 0 | I118: 0
A119: MA. Samf. | C119: 0 | D119: 1 | E119: 0 | F119: 0 | G119: 0 | I119: 1
A120: Øvrige Mag. | C120: 0 | D120: 0 | E120: 0 | F120: 0 | G120: 0 | I120: 0
A121: Agronom | C121: 0 | D121: 0 | E121: 0 | F121: 0 | G121: 0 | I121: 0
A122: Landsk. Arkt. | C122: 0 | D122: 0 | E122: 0 | F122: 0 | G122: 0 | I122: 0
A123: Hortonom | C123: 0 | D123: 0 | E123: 0 | F123: 0 | G123: 0 | I123: 0
A124: Forstkand. | C124: 0 | D124: 1 | E124: 0 | F124: 0 | G124: 0 | I124: 1
A125: Jordbrugsakad. | C125: 0 | D125: 1 | E125: 0 | F125: 0 | G125: 0 | I125: 1
A126: Mejeriing. | C126: 0 | D126: 0 | E126: 0 | F126: 0 | G126: 0 | I126: 0
A127: Levn.m.kand. | C127: 0 | D127: 0 | E127: 0 | F127: 0 | G127: 0 | I127: 0
A128: Dyrlæge | C128: 0 | D128: 1 | E128: 0 | F128: 0 | G128: 0 | I128: 1
A129: Farmaceut | C129: 0 | D129: 0 | E129: 0 | F129: 0 | G129: 0 | I129: 0
A130: Læge | C130: 0 | D130: 0 | E130: 0 | F130: 0 | G130: 0 | I130: 0
A131: Tandlæge | C131: 0 | D131: 0 | E131: 0 | F131: 0 | G131: 0 | I131: 0
A132: Arkitekt | C132: 0 | D132: 0 | E132: 0 | F132: 0 | G132: 0 | I132: 0
A133: Landinspek. | C133: 0 | D133: 0 | E133: 0 | F133: 0 | G133: 0 | I133: 0
A134: Bibliotekar | C134: 0 | D134: 0 | E134: 0 | F134: 0 | G134: 0 | I134: 0
A135: Musikudd. | C135: 0 | D135: 0 | E135: 0 | F135: 0 | G135: 0 | I135: 0
A136: Teolog | C136: 0 | D136: 0 | E136: 0 | F136: 0 | G136: 0 | I136: 0
A137: Psykolog | C137: 0 | D137: 2 | E137: 0 | F137: 0 | G137: 0 | I137: 2
A138: Jurist | C138: 0 | D138: 0 | E138: 0 | F138: 0 | G138: 0 | I138: 0
A139: Økonom | C139: 0 | D139: 0 | E139: 0 | F139: 0 | G139: 0 | I139: 0
A140: Samf. Adm. | C140: 1 | D140: 0 | E140: 0 | F140: 0 | G140: 0 | I140: 1
A141: Cand. Merc. | C141: 0 | D141: 0 | E141: 0 | F141: 1 | G141: 0 | I141: 1
A142: HA | C142: 0 | D142: 1 | E142: 0 | F142: 0 | G142: 0 | I142: 1
A143: HD | C143: 0 | D143: 0 | E143: 0 | F143: 0 | G143: 0 | I143: 0
A144: Komm. og Sprog | C144: 0 | D144: 2 | E144: 0 | F144: 0 | G144: 0 | I144: 2
A145: Cand. IT. | C145: 0 | D145: 0 | E145: 0 | F145: 0 | G145: 0 | I145: 0
A146: Bac. Samf. | C146: 0 | D146: 0 | E146: 0 | F146: 0 | G146: 0 | I146: 0
A147: Bac. Hum. | C147: 2 | D147: 0 | E147: 0 | F147: 0 | G147: 0 | I147: 2
A148: Bac. Nat. | C148: 0 | D148: 0 | E148: 1 | F148: 0 | G148: 0 | I148: 1
A149: Andre | C149: 0 | D149: 0 | E149: 0 | F149: 0 | G149: 0 | I149: 0
A151: Total | C151: 7 | D151: 15 | E151: 6 | F151: 4 | G151: 0 | I151: 32
A153: Ingeniører i alt | C153: 1 | D153: 2 | E153: 2 | F153: 3 | G153: 0 | I153: 8
A154: Magistre i alt | C154: 1 | D154: 5 | E154: 3 | F154: 0 | G154: 0 | I154: 9
A155: DJØF'ere i alt | C155: 1 | D155: 1 | E155: 0 | F155: 1 | G155: 0 | I155: 3
A162: Faaborg-Midtfyn
C164: Under 30 år | D164: 30 - 39 år | E164: 40 - 49 år | F164: 50 - 59 år | G164: Over 60 år | I164: I alt
A166: Civ. ing. | C166: 2 | D166: 1 | E166: 0 | F166: 0 | G166: 0 | I166: 3
A167: Diplom ing. | C167: 0 | D167: 0 | E167: 0 | F167: 2 | G167: 1 | I167: 3
A168: Cand. Scient. Tek | C168: 1 | D168: 1 | E168: 0 | F168: 0 | G168: 0 | I168: 2
A169: MA. Hum. | C169: 2 | D169: 6 | E169: 4 | F169: 1 | G169: 0 | I169: 13
A170: MA. Nat. | C170: 0 | D170: 0 | E170: 0 | F170: 0 | G170: 1 | I170: 1
A171: MA. Ph.d. | C171: 0 | D171: 0 | E171: 0 | F171: 0 | G171: 0 | I171: 0
A172: MA. Samf. | C172: 0 | D172: 0 | E172: 0 | F172: 0 | G172: 0 | I172: 0
A173: Øvrige Mag. | C173: 0 | D173: 0 | E173: 0 | F173: 0 | G173: 0 | I173: 0
A174: Agronom | C174: 0 | D174: 0 | E174: 0 | F174: 1 | G174: 0 | I174: 1
A175: Landsk. Arkt. | C175: 0 | D175: 0 | E175: 0 | F175: 0 | G175: 0 | I175: 0
A176: Hortonom | C176: 0 | D176: 0 | E176: 0 | F176: 0 | G176: 0 | I176: 0
A177: Forstkand. | C177: 0 | D177: 0 | E177: 0 | F177: 0 | G177: 0 | I177: 0
A178: Jordbrugsakad. | C178: 0 | D178: 0 | E178: 0 | F178: 1 | G178: 0 | I178: 1
A179: Mejeriing. | C179: 0 | D179: 0 | E179: 0 | F179: 0 | G179: 0 | I179: 0
A180: Levn.m.kand. | C180: 0 | D180: 0 | E180: 0 | F180: 0 | G180: 0 | I180: 0
A181: Dyrlæge | C181: 0 | D181: 0 | E181: 0 | F181: 0 | G181: 0 | I181: 0
A182: Farmaceut | C182: 0 | D182: 0 | E182: 0 | F182: 0 | G182: 0 | I182: 0
A183: Læge | C183: 0 | D183: 0 | E183: 0 | F183: 0 | G183: 0 | I183: 0
A184: Tandlæge | C184: 0 | D184: 0 | E184: 0 | F184: 0 | G184: 0 | I184: 0
A185: Arkitekt | C185: 0 | D185: 0 | E185: 1 | F185: 1 | G185: 0 | I185: 2
A186: Landinspek. | C186: 0 | D186: 0 | E186: 0 | F186: 0 | G186: 0 | I186: 0
A187: Bibliotekar | C187: 0 | D187: 0 | E187: 0 | F187: 1 | G187: 0 | I187: 1
A188: Musikudd. | C188: 0 | D188: 0 | E188: 0 | F188: 1 | G188: 0 | I188: 1
A189: Teolog | C189: 0 | D189: 0 | E189: 0 | F189: 0 | G189: 0 | I189: 0
A190: Psykolog | C190: 0 | D190: 0 | E190: 0 | F190: 0 | G190: 0 | I190: 0
A191: Jurist | C191: 0 | D191: 0 | E191: 0 | F191: 0 | G191: 0 | I191: 0
A192: Økonom | C192: 0 | D192: 0 | E192: 0 | F192: 0 | G192: 0 | I192: 0
A193: Samf. Adm. | C193: 1 | D193: 2 | E193: 2 | F193: 0 | G193: 0 | I193: 5
A194: Cand. Merc. | C194: 1 | D194: 2 | E194: 0 | F194: 0 | G194: 0 | I194: 3
A195: HA | C195: 2 | D195: 0 | E195: 0 | F195: 0 | G195: 1 | I195: 3
A196: HD | C196: 1 | D196: 1 | E196: 0 | F196: 0 | G196: 1 | I196: 3
A197: Komm. og Sprog | C197: 0 | D197: 0 | E197: 0 | F197: 0 | G197: 0 | I197: 0
A198: Cand. IT. | C198: 0 | D198: 0 | E198: 0 | F198: 0 | G198: 0 | I198: 0
A199: Bac. Samf. | C199: 0 | D199: 0 | E199: 0 | F199: 0 | G199: 0 | I199: 0
A200: Bac. Hum. | C200: 0 | D200: 1 | E200: 0 | F200: 1 | G200: 0 | I200: 2
A201: Bac. Nat. | C201: 0 | D201: 0 | E201: 0 | F201: 0 | G201: 0 | I201: 0
A202: Andre | C202: 0 | D202: 4 | E202: 0 | F202: 1 | G202: 0 | I202: 5
A204: Total | C204: 10 | D204: 18 | E204: 7 | F204: 9 | G204: 4 | I204: 48
A206: Ingeniører i alt | C206: 2 | D206: 1 | E206: 0 | F206: 2 | G206: 1 | I206: 6
A207: Magistre i alt | C207: 2 | D207: 6 | E207: 4 | F207: 1 | G207: 1 | I207: 14
A208: DJØF'ere i alt | C208: 4 | D208: 4 | E208: 2 | F208: 0 | G208: 1 | I208: 11
A215: Kerteminde
C217: Under 30 år | D217: 30 - 39 år | E217: 40 - 49 år | F217: 50 - 59 år | G217: Over 60 år | I217: I alt
A219: Civ. ing. | C219: 1 | D219: 0 | E219: 0 | F219: 0 | G219: 0 | I219: 1
A220: Diplom ing. | C220: 0 | D220: 0 | E220: 0 | F220: 1 | G220: 0 | I220: 1
A221: Cand. Scient. Tek | C221: 1 | D221: 0 | E221: 1 | F221: 0 | G221: 0 | I221: 2
A222: MA. Hum. | C222: 3 | D222: 2 | E222: 3 | F222: 1 | G222: 0 | I222: 9
A223: MA. Nat. | C223: 0 | D223: 0 | E223: 0 | F223: 0 | G223: 0 | I223: 0
A224: MA. Ph.d. | C224: 0 | D224: 0 | E224: 0 | F224: 0 | G224: 0 | I224: 0
A225: MA. Samf. | C225: 0 | D225: 0 | E225: 0 | F225: 0 | G225: 0 | I225: 0
A226: Øvrige Mag. | C226: 0 | D226: 0 | E226: 0 | F226: 0 | G226: 0 | I226: 0
A227: Agronom | C227: 0 | D227: 0 | E227: 0 | F227: 0 | G227: 0 | I227: 0
A228: Landsk. Arkt. | C228: 0 | D228: 0 | E228: 0 | F228: 0 | G228: 0 | I228: 0
A229: Hortonom | C229: 0 | D229: 0 | E229: 0 | F229: 0 | G229: 0 | I229: 0
A230: Forstkand. | C230: 0 | D230: 0 | E230: 0 | F230: 0 | G230: 0 | I230: 0
A231: Jordbrugsakad. | C231: 0 | D231: 0 | E231: 0 | F231: 0 | G231: 0 | I231: 0
A232: Mejeriing. | C232: 0 | D232: 0 | E232: 0 | F232: 0 | G232: 0 | I232: 0
A233: Levn.m.kand. | C233: 0 | D233: 0 | E233: 0 | F233: 0 | G233: 0 | I233: 0
A234: Dyrlæge | C234: 0 | D234: 0 | E234: 0 | F234: 0 | G234: 0 | I234: 0
A235: Farmaceut | C235: 0 | D235: 0 | E235: 0 | F235: 0 | G235: 0 | I235: 0
A236: Læge | C236: 0 | D236: 0 | E236: 0 | F236: 0 | G236: 0 | I236: 0
A237: Tandlæge | C237: 0 | D237: 0 | E237: 0 | F237: 0 | G237: 0 | I237: 0
A238: Arkitekt | C238: 0 | D238: 0 | E238: 1 | F238: 0 | G238: 0 | I238: 1
A239: Landinspek. | C239: 0 | D239: 0 | E239: 0 | F239: 0 | G239: 0 | I239: 0
A240: Bibliotekar | C240: 0 | D240: 0 | E240: 0 | F240: 0 | G240: 0 | I240: 0
A241: Musikudd. | C241: 0 | D241: 0 | E241: 0 | F241: 0 | G241: 0 | I241: 0
A242: Teolog | C242: 0 | D242: 1 | E242: 0 | F242: 0 | G242: 0 | I242: 1
A243: Psykolog | C243: 0 | D243: 1 | E243: 0 | F243: 0 | G243: 0 | I243: 1
... 274 more rows

Sheet Tabel 4(Br) F
A1: Tabel 4. Ledighedsberørte - aldersfordelt
A3: Fyn
C5: Under 30 år | D5: 30 - 39 år | E5: 40 - 49 år | F5: 50 - 59 år | G5: Over 60 år | I5: I alt
A7: Civ. ing. | C7: 33.5614046 | D7: 9.879623277 | E7: 1.521861161 | F7: 0 | G7: 0 | I7: 44.96288904
A8: Diplom ing. | C8: 29.32576561 | D8: 9.836587039 | E8: 7.352335807 | F8: 13.0424749 | G8: 3.641239943 | I8: 63.19840329
A9: Cand. Scient. Tek | C9: 73.52834778 | D9: 29.42805464 | E9: 4.625459989 | F9: 1.90731616 | G9: 0.6205950228 | I9: 110.1097736
A10: MA. Hum. | C10: 130.5214246 | D10: 95.09761118 | E10: 37.4758311 | F10: 26.59390008 | G10: 6.737977921 | I10: 296.4267448
A11: MA. Nat. | C11: 25.28285411 | D11: 13.38614108 | E11: 4.306742344 | F11: 2.860974241 | G11: 1.207509512 | I11: 47.04422129
A12: MA. Ph.d. | C12: 1.953470966 | D12: 2.87469594 | E12: 1.758872326 | F12: 0.9998128859 | G12: 0 | I12: 7.586852118
A13: MA. Samf. | C13: 13.72606499 | D13: 12.56658143 | E13: 0 | F13: 0 | G13: 0.106655024 | I13: 26.39930144
A14: Øvrige Mag. | C14: 5.998877316 | D14: 3.963699869 | E14: 0.9998128859 | F14: 2.405663319 | G14: 1.46946922 | I14: 14.83752261
A15: Agronom | C15: 0 | D15: 0.9998128859 | E15: 0 | F15: 1.793800287 | G15: 0 | I15: 2.793613173
A16: Landsk. Arkt. | C16: 0 | D16: 0 | E16: 0 | F16: 0.9998128859 | G16: 0 | I16: 0.9998128859
A17: Hortonom | C17: 0 | D17: 0 | E17: 0 | F17: 0 | G17: 0.5756876442 | I17: 0.5756876442
A18: Forstkand. | C18: 0 | D18: 0.9998128859 | E18: 0 | F18: 0 | G18: 0 | I18: 0.9998128859
A19: Jordbrugsakad. | C19: 0 | D19: 1.999625772 | E19: 0 | F19: 2.793613173 | G19: 0.5756876442 | I19: 5.368926589
A20: Mejeriing. | C20: 0 | D20: 0 | E20: 0.3536456059 | F20: 0 | G20: 0 | I20: 0.3536456059
A21: Levn.m.kand. | C21: 0 | D21: 0 | E21: 0 | F21: 0 | G21: 0 | I21: 0
A22: Dyrlæge | C22: 3.111083391 | D22: 2.506081208 | E22: 0 | F22: 0.3979292709 | G22: 0 | I22: 6.015093869
A23: Farmaceut | C23: 4.02981351 | D23: 3.003804653 | E23: 1.450757812 | F23: 0.9998128859 | G23: 0.9536580802 | I23: 10.43784694
A24: Læge | C24: 12.13247677 | D24: 6.698683964 | E24: 1.722696938 | F24: 0 | G24: 0 | I24: 20.55385767
A25: Tandlæge | C25: 0 | D25: 0 | E25: 0 | F25: 0 | G25: 0 | I25: 0
A26: Arkitekt | C26: 1.768851743 | D26: 4.583671178 | E26: 1.768851743 | F26: 2.445580989 | G26: 0.9998128859 | I26: 11.56676854
A27: Landinspek. | C27: 0 | D27: 0 | E27: 0 | F27: 0 | G27: 0 | I27: 0
A28: Bibliotekar | C28: 0 | D28: 5.140647415 | E28: 0.6767292459 | F28: 1.90731616 | G28: 1.525603443 | I28: 9.250296264
A29: Musikudd. | C29: 0.9998128859 | D29: 0 | E29: 0 | F29: 0.5856670617 | G29: 0 | I29: 1.585479948
A30: Teolog | C30: 0 | D30: 0.9075032745 | E30: 0.2875319653 | F30: 0 | G30: 0.9998128859 | I30: 2.194848126
A31: Psykolog | C31: 15.51986528 | D31: 11.08463793 | E31: 0.9998128859 | F31: 0 | G31: 1.72144951 | I31: 29.32576561
A32: Jurist | C32: 3.766606374 | D32: 2.783010042 | E32: 1.815006549 | F32: 0.7228840516 | G32: 0.1353458492 | I32: 9.222852866
A33: Økonom | C33: 7.751512505 | D33: 5.756252729 | E33: 1.999625772 | F33: 0 | G33: 0.5657082268 | I33: 16.07309923
A34: Samf. Adm. | C34: 47.64361005 | D34: 28.04278675 | E34: 11.57175825 | F34: 6.181625398 | G34: 0 | I34: 93.43978045
A35: Cand. Merc. | C35: 74.1439531 | D35: 30.69855922 | E35: 7.783321899 | F35: 8.346535271 | G35: 0 | I35: 120.9723695
A36: HA | C36: 20.09854675 | D36: 3.399239069 | E36: 0.9998128859 | F36: 3.999251544 | G36: 0.3074908002 | I36: 28.80434105
A37: HD | C37: 19.86028816 | D37: 4.99906443 | E37: 0.5382648288 | F37: 1.812511695 | G37: 1.753258904 | I37: 28.96338801
A38: Komm. og Sprog | C38: 17.51637248 | D38: 8.472525416 | E38: 4.202582174 | F38: 1.999625772 | G38: 0.8613484688 | I38: 33.05245431
A39: Cand. IT. | C39: 5.647726564 | D39: 3.122310235 | E39: 1.999625772 | F39: 0.9998128859 | G39: 0 | I39: 11.76947546
A40: Bac. Samf. | C40: 0.9998128859 | D40: 0.9998128859 | E40: 0 | F40: 0 | G40: 0 | I40: 1.999625772
A41: Bac. Hum. | C41: 21.38464417 | D41: 4.044782636 | E41: 1.526227156 | F41: 3.906941932 | G41: 0 | I41: 30.8625959
A42: Bac. Nat. | C42: 5.756252729 | D42: 2.999438658 | E42: 1.999625772 | F42: 0.9998128859 | G42: 0 | I42: 11.75513004
A43: Andre | C43: 26.21967193 | D43: 19.04197592 | E43: 10.78338427 | F43: 4.98347159 | G43: 8.920351774 | I43: 69.94885549
A45: Total | C45: 602.2491112 | D45: 327.3174078 | E45: 110.5201771 | F45: 90.89253415 | G45: 33.10297511 | I45: 1164.082205
A47: Ingeniører i alt | C47: 62.88717021 | D47: 19.71621032 | E47: 8.874196969 | F47: 13.0424749 | G47: 3.641239943 | I47: 108.1612923
A48: Magistre i alt | C48: 177.4826919 | D48: 127.8887295 | E48: 44.54125865 | F48: 32.86035053 | G48: 9.521611676 | I48: 392.2946423
A49: DJØF'ere i alt | C49: 153.4042288 | D49: 70.67984781 | E49: 24.16952535 | F49: 19.25029626 | G49: 1.008544876 | I49: 268.5124431
A56: Middelfart
C58: Under 30 år | D58: 30 - 39 år | E58: 40 - 49 år | F58: 50 - 59 år | G58: Over 60 år | I58: I alt
A60: Civ. ing. | C60: 0.9998128859 | D60: 0 | E60: 0 | F60: 0 | G60: 0 | I60: 0.9998128859
A61: Diplom ing. | C61: 0 | D61: 0.6305744402 | E61: 0 | F61: 0 | G61: 0 | I61: 0.6305744402
A62: Cand. Scient. Tek | C62: 0.9998128859 | D62: 1.829975675 | E62: 0.9998128859 | F62: 0 | G62: 0 | I62: 3.829601447
A63: MA. Hum. | C63: 0.9998128859 | D63: 4.417139649 | E63: 3.214619847 | F63: 2.525416329 | G63: 0 | I63: 11.15698871
A64: MA. Nat. | C64: 0 | D64: 0 | E64: 0 | F64: 0 | G64: 0 | I64: 0
A65: MA. Ph.d. | C65: 0 | D65: 0 | E65: 0 | F65: 0 | G65: 0 | I65: 0
A66: MA. Samf. | C66: 0 | D66: 0 | E66: 0 | F66: 0 | G66: 0 | I66: 0
A67: Øvrige Mag. | C67: 0 | D67: 0 | E67: 0 | F67: 0 | G67: 0 | I67: 0
A68: Agronom | C68: 0 | D68: 0 | E68: 0 | F68: 0 | G68: 0 | I68: 0
A69: Landsk. Arkt. | C69: 0 | D69: 0 | E69: 0 | F69: 0.9998128859 | G69: 0 | I69: 0.9998128859
A70: Hortonom | C70: 0 | D70: 0 | E70: 0 | F70: 0 | G70: 0 | I70: 0
A71: Forstkand. | C71: 0 | D71: 0 | E71: 0 | F71: 0 | G71: 0 | I71: 0
A72: Jordbrugsakad. | C72: 0 | D72: 0 | E72: 0 | F72: 0.9998128859 | G72: 0 | I72: 0.9998128859
A73: Mejeriing. | C73: 0 | D73: 0 | E73: 0 | F73: 0 | G73: 0 | I73: 0
A74: Levn.m.kand. | C74: 0 | D74: 0 | E74: 0 | F74: 0 | G74: 0 | I74: 0
A75: Dyrlæge | C75: 0 | D75: 0.8613484688 | E75: 0 | F75: 0 | G75: 0 | I75: 0.8613484688
A76: Farmaceut | C76: 0.9998128859 | D76: 0 | E76: 0 | F76: 0 | G76: 0 | I76: 0.9998128859
A77: Læge | C77: 0 | D77: 0 | E77: 0.9998128859 | F77: 0 | G77: 0 | I77: 0.9998128859
A78: Tandlæge | C78: 0 | D78: 0 | E78: 0 | F78: 0 | G78: 0 | I78: 0
A79: Arkitekt | C79: 0 | D79: 0 | E79: 0 | F79: 0.9998128859 | G79: 0 | I79: 0.9998128859
A80: Landinspek. | C80: 0 | D80: 0 | E80: 0 | F80: 0 | G80: 0 | I80: 0
A81: Bibliotekar | C81: 0 | D81: 0.9998128859 | E81: 0 | F81: 0 | G81: 0 | I81: 0.9998128859
A82: Musikudd. | C82: 0 | D82: 0 | E82: 0 | F82: 0 | G82: 0 | I82: 0
A83: Teolog | C83: 0 | D83: 0 | E83: 0.2875319653 | F83: 0 | G83: 0.9998128859 | I83: 1.287344851
A84: Psykolog | C84: 0 | D84: 0 | E84: 0 | F84: 0 | G84: 0 | I84: 0
A85: Jurist | C85: 0 | D85: 0 | E85: 0.9998128859 | F85: 0 | G85: 0 | I85: 0.9998128859
A86: Økonom | C86: 0 | D86: 0 | E86: 0 | F86: 0 | G86: 0 | I86: 0
A87: Samf. Adm. | C87: 0 | D87: 2.399426183 | E87: 0 | F87: 0 | G87: 0 | I87: 2.399426183
A88: Cand. Merc. | C88: 1.445768103 | D88: 1.999625772 | E88: 0.3074908002 | F88: 0.9998128859 | G88: 0 | I88: 4.752697561
A89: HA | C89: 0 | D89: 0 | E89: 0 | F89: 0.9998128859 | G89: 0 | I89: 0.9998128859
A90: HD | C90: 0 | D90: 0 | E90: 0 | F90: 0.9998128859 | G90: 0 | I90: 0.9998128859
A91: Komm. og Sprog | C91: 0.982972619 | D91: 0 | E91: 0.8613484688 | F91: 0 | G91: 0 | I91: 1.844321088
A92: Cand. IT. | C92: 0 | D92: 0 | E92: 0 | F92: 0 | G92: 0 | I92: 0
A93: Bac. Samf. | C93: 0 | D93: 0 | E93: 0 | F93: 0 | G93: 0 | I93: 0
A94: Bac. Hum. | C94: 0.1640366744 | D94: 0 | E94: 0 | F94: 0 | G94: 0 | I94: 0.1640366744
A95: Bac. Nat. | C95: 0 | D95: 0 | E95: 0.9998128859 | F95: 0 | G95: 0 | I95: 0.9998128859
A96: Andre | C96: 0 | D96: 0 | E96: 1.887357326 | F96: 0.8613484688 | G96: 1.999625772 | I96: 4.748331566
A98: Total | C98: 6.59202894 | D98: 13.13790307 | E98: 10.55759995 | F98: 8.385829227 | G98: 2.999438658 | I98: 41.67279985
A100: Ingeniører i alt | C100: 0.9998128859 | D100: 0.6305744402 | E100: 0 | F100: 0 | G100: 0 | I100: 1.630387326
A101: Magistre i alt | C101: 0.9998128859 | D101: 4.417139649 | E101: 3.214619847 | F101: 2.525416329 | G101: 0 | I101: 11.15698871
A102: DJØF'ere i alt | C102: 1.445768103 | D102: 4.399051955 | E102: 1.307303686 | F102: 1.999625772 | G102: 0 | I102: 9.151749517
A109: Assens
C111: Under 30 år | D111: 30 - 39 år | E111: 40 - 49 år | F111: 50 - 59 år | G111: Over 60 år | I111: I alt
A113: Civ. ing. | C113: 0.9536580802 | D113: 0.3536456059 | E113: 0 | F113: 0 | G113: 0 | I113: 1.307303686
A114: Diplom ing. | C114: 0 | D114: 0.1540572569 | E114: 1.445768103 | F114: 2.70629327 | G114: 0 | I114: 4.30611863
A115: Cand. Scient. Tek | C115: 1.317906817 | D115: 0.8613484688 | E115: 0 | F115: 0 | G115: 0 | I115: 2.179255286
A116: MA. Hum. | C116: 0.6754818187 | D116: 1.70398553 | E116: 2.013971184 | F116: 0 | G116: 0 | I116: 4.393438533
A117: MA. Nat. | C117: 0 | D117: 1.999625772 | E117: 0 | F117: 0 | G117: 0 | I117: 1.999625772
A118: MA. Ph.d. | C118: 0 | D118: 0 | E118: 0 | F118: 0 | G118: 0 | I118: 0
A119: MA. Samf. | C119: 0 | D119: 0.9998128859 | E119: 0 | F119: 0 | G119: 0 | I119: 0.9998128859
A120: Øvrige Mag. | C120: 0 | D120: 0 | E120: 0 | F120: 0 | G120: 0 | I120: 0
A121: Agronom | C121: 0 | D121: 0 | E121: 0 | F121: 0 | G121: 0 | I121: 0
A122: Landsk. Arkt. | C122: 0 | D122: 0 | E122: 0 | F122: 0 | G122: 0 | I122: 0
A123: Hortonom | C123: 0 | D123: 0 | E123: 0 | F123: 0 | G123: 0 | I123: 0
A124: Forstkand. | C124: 0 | D124: 0.9998128859 | E124: 0 | F124: 0 | G124: 0 | I124: 0.9998128859
A125: Jordbrugsakad. | C125: 0 | D125: 0.9998128859 | E125: 0 | F125: 0 | G125: 0 | I125: 0.9998128859
A126: Mejeriing. | C126: 0 | D126: 0 | E126: 0 | F126: 0 | G126: 0 | I126: 0
A127: Levn.m.kand. | C127: 0 | D127: 0 | E127: 0 | F127: 0 | G127: 0 | I127: 0
A128: Dyrlæge | C128: 0 | D128: 0.8151936631 | E128: 0 | F128: 0 | G128: 0 | I128: 0.8151936631
A129: Farmaceut | C129: 0 | D129: 0 | E129: 0 | F129: 0 | G129: 0 | I129: 0
A130: Læge | C130: 0 | D130: 0 | E130: 0 | F130: 0 | G130: 0 | I130: 0
A131: Tandlæge | C131: 0 | D131: 0 | E131: 0 | F131: 0 | G131: 0 | I131: 0
A132: Arkitekt | C132: 0 | D132: 0 | E132: 0 | F132: 0 | G132: 0 | I132: 0
A133: Landinspek. | C133: 0 | D133: 0 | E133: 0 | F133: 0 | G133: 0 | I133: 0
A134: Bibliotekar | C134: 0 | D134: 0 | E134: 0 | F134: 0 | G134: 0 | I134: 0
A135: Musikudd. | C135: 0 | D135: 0 | E135: 0 | F135: 0 | G135: 0 | I135: 0
A136: Teolog | C136: 0 | D136: 0 | E136: 0 | F136: 0 | G136: 0 | I136: 0
A137: Psykolog | C137: 0 | D137: 1.491922909 | E137: 0 | F137: 0 | G137: 0 | I137: 1.491922909
A138: Jurist | C138: 0 | D138: 0 | E138: 0 | F138: 0 | G138: 0 | I138: 0
A139: Økonom | C139: 0 | D139: 0 | E139: 0 | F139: 0 | G139: 0 | I139: 0
A140: Samf. Adm. | C140: 0.9998128859 | D140: 0 | E140: 0 | F140: 0 | G140: 0 | I140: 0.9998128859
A141: Cand. Merc. | C141: 0 | D141: 0 | E141: 0 | F141: 0.9704983472 | G141: 0 | I141: 0.9704983472
A142: HA | C142: 0 | D142: 0.8151936631 | E142: 0 | F142: 0 | G142: 0 | I142: 0.8151936631
A143: HD | C143: 0 | D143: 0 | E143: 0 | F143: 0 | G143: 0 | I143: 0
A144: Komm. og Sprog | C144: 0 | D144: 0.9873386141 | E144: 0 | F144: 0 | G144: 0 | I144: 0.9873386141
A145: Cand. IT. | C145: 0 | D145: 0 | E145: 0 | F145: 0 | G145: 0 | I145: 0
A146: Bac. Samf. | C146: 0 | D146: 0 | E146: 0 | F146: 0 | G146: 0 | I146: 0
A147: Bac. Hum. | C147: 1.210004366 | D147: 0 | E147: 0 | F147: 0 | G147: 0 | I147: 1.210004366
A148: Bac. Nat. | C148: 0 | D148: 0 | E148: 0.9998128859 | F148: 0 | G148: 0 | I148: 0.9998128859
A149: Andre | C149: 0 | D149: 0 | E149: 0 | F149: 0 | G149: 0 | I149: 0
A151: Total | C151: 5.156863968 | D151: 11.18193725 | E151: 4.459552174 | F151: 3.676791617 | G151: 0 | I151: 24.47514501
A153: Ingeniører i alt | C153: 0.9536580802 | D153: 0.5077028628 | E153: 1.445768103 | F153: 2.70629327 | G153: 0 | I153: 5.613422316
A154: Magistre i alt | C154: 0.6754818187 | D154: 4.703424188 | E154: 2.013971184 | F154: 0 | G154: 0 | I154: 7.392877191
A155: DJØF'ere i alt | C155: 0.9998128859 | D155: 0.8151936631 | E155: 0 | F155: 0.9704983472 | G155: 0 | I155: 2.785504896
A162: Faaborg-Midtfyn
C164: Under 30 år | D164: 30 - 39 år | E164: 40 - 49 år | F164: 50 - 59 år | G164: Over 60 år | I164: I alt
A166: Civ. ing. | C166: 1.999625772 | D166: 0.9998128859 | E166: 0 | F166: 0 | G166: 0 | I166: 2.999438658
A167: Diplom ing. | C167: 0 | D167: 0 | E167: 0 | F167: 1.90731616 | G167: 0.2613359945 | I167: 2.168652155
A168: Cand. Scient. Tek | C168: 0.9075032745 | D168: 0.9075032745 | E168: 0 | F168: 0 | G168: 0 | I168: 1.815006549
A169: MA. Hum. | C169: 1.999625772 | D169: 5.151874259 | E169: 3.030000624 | F169: 0.9998128859 | G169: 0 | I169: 11.18131354
A170: MA. Nat. | C170: 0 | D170: 0 | E170: 0 | F170: 0 | G170: 0.4696563338 | I170: 0.4696563338
A171: MA. Ph.d. | C171: 0 | D171: 0 | E171: 0 | F171: 0 | G171: 0 | I171: 0
A172: MA. Samf. | C172: 0 | D172: 0 | E172: 0 | F172: 0 | G172: 0 | I172: 0
A173: Øvrige Mag. | C173: 0 | D173: 0 | E173: 0 | F173: 0 | G173: 0 | I173: 0
A174: Agronom | C174: 0 | D174: 0 | E174: 0 | F174: 0.793987401 | G174: 0 | I174: 0.793987401
A175: Landsk. Arkt. | C175: 0 | D175: 0 | E175: 0 | F175: 0 | G175: 0 | I175: 0
A176: Hortonom | C176: 0 | D176: 0 | E176: 0 | F176: 0 | G176: 0 | I176: 0
A177: Forstkand. | C177: 0 | D177: 0 | E177: 0 | F177: 0 | G177: 0 | I177: 0
A178: Jordbrugsakad. | C178: 0 | D178: 0 | E178: 0 | F178: 0.793987401 | G178: 0 | I178: 0.793987401
A179: Mejeriing. | C179: 0 | D179: 0 | E179: 0 | F179: 0 | G179: 0 | I179: 0
A180: Levn.m.kand. | C180: 0 | D180: 0 | E180: 0 | F180: 0 | G180: 0 | I180: 0
A181: Dyrlæge | C181: 0 | D181: 0 | E181: 0 | F181: 0 | G181: 0 | I181: 0
A182: Farmaceut | C182: 0 | D182: 0 | E182: 0 | F182: 0 | G182: 0 | I182: 0
A183: Læge | C183: 0 | D183: 0 | E183: 0 | F183: 0 | G183: 0 | I183: 0
A184: Tandlæge | C184: 0 | D184: 0 | E184: 0 | F184: 0 | G184: 0 | I184: 0
A185: Arkitekt | C185: 0 | D185: 0 | E185: 0.8613484688 | F185: 0.5844196345 | G185: 0 | I185: 1.445768103
A186: Landinspek. | C186: 0 | D186: 0 | E186: 0 | F186: 0 | G186: 0 | I186: 0
A187: Bibliotekar | C187: 0 | D187: 0 | E187: 0 | F187: 0.9998128859 | G187: 0 | I187: 0.9998128859
A188: Musikudd. | C188: 0 | D188: 0 | E188: 0 | F188: 0.5856670617 | G188: 0 | I188: 0.5856670617
A189: Teolog | C189: 0 | D189: 0 | E189: 0 | F189: 0 | G189: 0 | I189: 0
A190: Psykolog | C190: 0 | D190: 0 | E190: 0 | F190: 0 | G190: 0 | I190: 0
A191: Jurist | C191: 0 | D191: 0 | E191: 0 | F191: 0 | G191: 0 | I191: 0
A192: Økonom | C192: 0 | D192: 0 | E192: 0 | F192: 0 | G192: 0 | I192: 0
A193: Samf. Adm. | C193: 0.3998004117 | D193: 1.676542132 | E193: 1.399613298 | F193: 0 | G193: 0 | I193: 3.475955841
A194: Cand. Merc. | C194: 0.4921100231 | D194: 1.974677228 | E194: 0 | F194: 0 | G194: 0 | I194: 2.466787251
A195: HA | C195: 1.953470966 | D195: 0 | E195: 0 | F195: 0 | G195: 0.3074908002 | I195: 2.260961766
A196: HD | C196: 0.9998128859 | D196: 0.9998128859 | E196: 0 | F196: 0 | G196: 0.9998128859 | I196: 2.999438658
A197: Komm. og Sprog | C197: 0 | D197: 0 | E197: 0 | F197: 0 | G197: 0 | I197: 0
A198: Cand. IT. | C198: 0 | D198: 0 | E198: 0 | F198: 0 | G198: 0 | I198: 0
A199: Bac. Samf. | C199: 0 | D199: 0 | E199: 0 | F199: 0 | G199: 0 | I199: 0
A200: Bac. Hum. | C200: 0 | D200: 0.6274558723 | E200: 0 | F200: 0.9998128859 | G200: 0 | I200: 1.627268758
A201: Bac. Nat. | C201: 0 | D201: 0 | E201: 0 | F201: 0 | G201: 0 | I201: 0
A202: Andre | C202: 0 | D202: 3.583858292 | E202: 0 | F202: 0.9998128859 | G202: 0 | I202: 4.583671178
A204: Total | C204: 8.751949105 | D204: 15.92153683 | E204: 5.29096239 | F204: 7.870641801 | G204: 2.038296014 | I204: 39.87338614
A206: Ingeniører i alt | C206: 1.999625772 | D206: 0.9998128859 | E206: 0 | F206: 1.90731616 | G206: 0.2613359945 | I206: 5.168090813
A207: Magistre i alt | C207: 1.999625772 | D207: 5.151874259 | E207: 3.030000624 | F207: 0.9998128859 | G207: 0.4696563338 | I207: 11.65096987
A208: DJØF'ere i alt | C208: 2.845381401 | D208: 3.65121936 | E208: 1.399613298 | F208: 0 | G208: 0.3074908002 | I208: 8.203704859
A215: Kerteminde
C217: Under 30 år | D217: 30 - 39 år | E217: 40 - 49 år | F217: 50 - 59 år | G217: Over 60 år | I217: I alt
A219: Civ. ing. | C219: 0.8775650221 | D219: 0 | E219: 0 | F219: 0 | G219: 0 | I219: 0.8775650221
A220: Diplom ing. | C220: 0 | D220: 0 | E220: 0 | F220: 0.9998128859 | G220: 0 | I220: 0.9998128859
A221: Cand. Scient. Tek | C221: 0.9998128859 | D221: 0 | E221: 0.8151936631 | F221: 0 | G221: 0 | I221: 1.815006549
A222: MA. Hum. | C222: 2.546622591 | D222: 0.8781887357 | E222: 1.937254413 | F222: 0.5507391006 | G222: 0 | I222: 5.91280484
A223: MA. Nat. | C223: 0 | D223: 0 | E223: 0 | F223: 0 | G223: 0 | I223: 0
A224: MA. Ph.d. | C224: 0 | D224: 0 | E224: 0 | F224: 0 | G224: 0 | I224: 0
A225: MA. Samf. | C225: 0 | D225: 0 | E225: 0 | F225: 0 | G225: 0 | I225: 0
A226: Øvrige Mag. | C226: 0 | D226: 0 | E226: 0 | F226: 0 | G226: 0 | I226: 0
A227: Agronom | C227: 0 | D227: 0 | E227: 0 | F227: 0 | G227: 0 | I227: 0
A228: Landsk. Arkt. | C228: 0 | D228: 0 | E228: 0 | F228: 0 | G228: 0 | I228: 0
A229: Hortonom | C229: 0 | D229: 0 | E229: 0 | F229: 0 | G229: 0 | I229: 0
A230: Forstkand. | C230: 0 | D230: 0 | E230: 0 | F230: 0 | G230: 0 | I230: 0
A231: Jordbrugsakad. | C231: 0 | D231: 0 | E231: 0 | F231: 0 | G231: 0 | I231: 0
A232: Mejeriing. | C232: 0 | D232: 0 | E232: 0 | F232: 0 | G232: 0 | I232: 0
A233: Levn.m.kand. | C233: 0 | D233: 0 | E233: 0 | F233: 0 | G233: 0 | I233: 0
A234: Dyrlæge | C234: 0 | D234: 0 | E234: 0 | F234: 0 | G234: 0 | I234: 0
A235: Farmaceut | C235: 0 | D235: 0 | E235: 0 | F235: 0 | G235: 0 | I235: 0
A236: Læge | C236: 0 | D236: 0 | E236: 0 | F236: 0 | G236: 0 | I236: 0
A237: Tandlæge | C237: 0 | D237: 0 | E237: 0 | F237: 0 | G237: 0 | I237: 0
A238: Arkitekt | C238: 0 | D238: 0 | E238: 0.9075032745 | F238: 0 | G238: 0 | I238: 0.9075032745
A239: Landinspek. | C239: 0 | D239: 0 | E239: 0 | F239: 0 | G239: 0 | I239: 0
A240: Bibliotekar | C240: 0 | D240: 0 | E240: 0 | F240: 0 | G240: 0 | I240: 0
A241: Musikudd. | C241: 0 | D241: 0 | E241: 0 | F241: 0 | G241: 0 | I241: 0
A242: Teolog | C242: 0 | D242: 0.9075032745 | E242: 0 | F242: 0 | G242: 0 | I242: 0.9075032745
A243: Psykolog | C243: 0 | D243: 0.3536456059 | E243: 0 | F243: 0 | G243: 0 | I243: 0.3536456059
... 274 more rows

Sheet Tabel 4P F
A1: Tabel 4. Ledighedsberørte - aldersfordelt
A3: Fyn
C5: Under 30 år | D5: 30 - 39 år | E5: 40 - 49 år | F5: 50 - 59 år | G5: Over 60 år | I5: I alt
A7: Civ. ing. | C7: =IF(OR('Tabel 4F F'!C7<5,'Tabel 4 F'!C7<0.5),"-",IFERROR('Tabel 4 F'!C7/'Tabel 4F F'!C7*100,"-")) -> 14.6875 | D7: =IF(OR('Tabel 4F F'!D7<5,'Tabel 4 F'!D7<0.5),"-",IFERROR('Tabel 4 F'!D7/'Tabel 4F F'!D7*100,"-")) -> 3.170731707 | E7: =IF(OR('Tabel 4F F'!E7<5,'Tabel 4 F'!E7<0.5),"-",IFERROR('Tabel 4 F'!E7/'Tabel 4F F'!E7*100,"-")) -> 0.8163265306 | F7: =IF(OR('Tabel 4F F'!F7<5,'Tabel 4 F'!F7<0.5),"-",IFERROR('Tabel 4 F'!F7/'Tabel 4F F'!F7*100,"-")) -> - | G7: =IF(OR('Tabel 4F F'!G7<5,'Tabel 4 F'!G7<0.5),"-",IFERROR('Tabel 4 F'!G7/'Tabel 4F F'!G7*100,"-")) -> - | I7: =IF(OR('Tabel 4F F'!I7<5,'Tabel 4 F'!I7<0.5),"-",IFERROR('Tabel 4 F'!I7/'Tabel 4F F'!I7*100,"-")) -> 5.331040413
A8: Diplom ing. | C8: =IF(OR('Tabel 4F F'!C8<5,'Tabel 4 F'!C8<0.5),"-",IFERROR('Tabel 4 F'!C8/'Tabel 4F F'!C8*100,"-")) -> 16.39784946 | D8: =IF(OR('Tabel 4F F'!D8<5,'Tabel 4 F'!D8<0.5),"-",IFERROR('Tabel 4 F'!D8/'Tabel 4F F'!D8*100,"-")) -> 1.996927803 | E8: =IF(OR('Tabel 4F F'!E8<5,'Tabel 4 F'!E8<0.5),"-",IFERROR('Tabel 4 F'!E8/'Tabel 4F F'!E8*100,"-")) -> 0.9696969697 | F8: =IF(OR('Tabel 4F F'!F8<5,'Tabel 4 F'!F8<0.5),"-",IFERROR('Tabel 4 F'!F8/'Tabel 4F F'!F8*100,"-")) -> 1.541623844 | G8: =IF(OR('Tabel 4F F'!G8<5,'Tabel 4 F'!G8<0.5),"-",IFERROR('Tabel 4 F'!G8/'Tabel 4F F'!G8*100,"-")) -> 1.923076923 | I8: =IF(OR('Tabel 4F F'!I8<5,'Tabel 4 F'!I8<0.5),"-",IFERROR('Tabel 4 F'!I8/'Tabel 4F F'!I8*100,"-")) -> 3.310613437
A9: Cand. Scient. Tek | C9: =IF(OR('Tabel 4F F'!C9<5,'Tabel 4 F'!C9<0.5),"-",IFERROR('Tabel 4 F'!C9/'Tabel 4F F'!C9*100,"-")) -> 22.62210797 | D9: =IF(OR('Tabel 4F F'!D9<5,'Tabel 4 F'!D9<0.5),"-",IFERROR('Tabel 4 F'!D9/'Tabel 4F F'!D9*100,"-")) -> 7.407407407 | E9: =IF(OR('Tabel 4F F'!E9<5,'Tabel 4 F'!E9<0.5),"-",IFERROR('Tabel 4 F'!E9/'Tabel 4F F'!E9*100,"-")) -> 4.672897196 | F9: =IF(OR('Tabel 4F F'!F9<5,'Tabel 4 F'!F9<0.5),"-",IFERROR('Tabel 4 F'!F9/'Tabel 4F F'!F9*100,"-")) -> 4.87804878 | G9: =IF(OR('Tabel 4F F'!G9<5,'Tabel 4 F'!G9<0.5),"-",IFERROR('Tabel 4 F'!G9/'Tabel 4F F'!G9*100,"-")) -> 20 | I9: =IF(OR('Tabel 4F F'!I9<5,'Tabel 4 F'!I9<0.5),"-",IFERROR('Tabel 4 F'!I9/'Tabel 4F F'!I9*100,"-")) -> 13.14168378
A10: MA. Hum. | C10: =IF(OR('Tabel 4F F'!C10<5,'Tabel 4 F'!C10<0.5),"-",IFERROR('Tabel 4 F'!C10/'Tabel 4F F'!C10*100,"-")) -> 32.62711864 | D10: =IF(OR('Tabel 4F F'!D10<5,'Tabel 4 F'!D10<0.5),"-",IFERROR('Tabel 4 F'!D10/'Tabel 4F F'!D10*100,"-")) -> 12.05597417 | E10: =IF(OR('Tabel 4F F'!E10<5,'Tabel 4 F'!E10<0.5),"-",IFERROR('Tabel 4 F'!E10/'Tabel 4F F'!E10*100,"-")) -> 4.775549188 | F10: =IF(OR('Tabel 4F F'!F10<5,'Tabel 4 F'!F10<0.5),"-",IFERROR('Tabel 4 F'!F10/'Tabel 4F F'!F10*100,"-")) -> 7.276995305 | G10: =IF(OR('Tabel 4F F'!G10<5,'Tabel 4 F'!G10<0.5),"-",IFERROR('Tabel 4 F'!G10/'Tabel 4F F'!G10*100,"-")) -> 3.76344086 | I10: =IF(OR('Tabel 4F F'!I10<5,'Tabel 4 F'!I10<0.5),"-",IFERROR('Tabel 4 F'!I10/'Tabel 4F F'!I10*100,"-")) -> 11.56862745
A11: MA. Nat. | C11: =IF(OR('Tabel 4F F'!C11<5,'Tabel 4 F'!C11<0.5),"-",IFERROR('Tabel 4 F'!C11/'Tabel 4F F'!C11*100,"-")) -> 24.78632479 | D11: =IF(OR('Tabel 4F F'!D11<5,'Tabel 4 F'!D11<0.5),"-",IFERROR('Tabel 4 F'!D11/'Tabel 4F F'!D11*100,"-")) -> 5.836575875 | E11: =IF(OR('Tabel 4F F'!E11<5,'Tabel 4 F'!E11<0.5),"-",IFERROR('Tabel 4 F'!E11/'Tabel 4F F'!E11*100,"-")) -> 1.213592233 | F11: =IF(OR('Tabel 4F F'!F11<5,'Tabel 4 F'!F11<0.5),"-",IFERROR('Tabel 4 F'!F11/'Tabel 4F F'!F11*100,"-")) -> 1.209677419 | G11: =IF(OR('Tabel 4F F'!G11<5,'Tabel 4 F'!G11<0.5),"-",IFERROR('Tabel 4 F'!G11/'Tabel 4F F'!G11*100,"-")) -> 2.150537634 | I11: =IF(OR('Tabel 4F F'!I11<5,'Tabel 4 F'!I11<0.5),"-",IFERROR('Tabel 4 F'!I11/'Tabel 4F F'!I11*100,"-")) -> 4.79148181
A12: MA. Ph.d. | C12: =IF(OR('Tabel 4F F'!C12<5,'Tabel 4 F'!C12<0.5),"-",IFERROR('Tabel 4 F'!C12/'Tabel 4F F'!C12*100,"-")) -> - | D12: =IF(OR('Tabel 4F F'!D12<5,'Tabel 4 F'!D12<0.5),"-",IFERROR('Tabel 4 F'!D12/'Tabel 4F F'!D12*100,"-")) -> 6 | E12: =IF(OR('Tabel 4F F'!E12<5,'Tabel 4 F'!E12<0.5),"-",IFERROR('Tabel 4 F'!E12/'Tabel 4F F'!E12*100,"-")) -> 3.278688525 | F12: =IF(OR('Tabel 4F F'!F12<5,'Tabel 4 F'!F12<0.5),"-",IFERROR('Tabel 4 F'!F12/'Tabel 4F F'!F12*100,"-")) -> 3.225806452 | G12: =IF(OR('Tabel 4F F'!G12<5,'Tabel 4 F'!G12<0.5),"-",IFERROR('Tabel 4 F'!G12/'Tabel 4F F'!G12*100,"-")) -> - | I12: =IF(OR('Tabel 4F F'!I12<5,'Tabel 4 F'!I12<0.5),"-",IFERROR('Tabel 4 F'!I12/'Tabel 4F F'!I12*100,"-")) -> 5.263157895
A13: MA. Samf. | C13: =IF(OR('Tabel 4F F'!C13<5,'Tabel 4 F'!C13<0.5),"-",IFERROR('Tabel 4 F'!C13/'Tabel 4F F'!C13*100,"-")) -> 40.47619048 | D13: =IF(OR('Tabel 4F F'!D13<5,'Tabel 4 F'!D13<0.5),"-",IFERROR('Tabel 4 F'!D13/'Tabel 4F F'!D13*100,"-")) -> 19.71830986 | E13: =IF(OR('Tabel 4F F'!E13<5,'Tabel 4 F'!E13<0.5),"-",IFERROR('Tabel 4 F'!E13/'Tabel 4F F'!E13*100,"-")) -> - | F13: =IF(OR('Tabel 4F F'!F13<5,'Tabel 4 F'!F13<0.5),"-",IFERROR('Tabel 4 F'!F13/'Tabel 4F F'!F13*100,"-")) -> - | G13: =IF(OR('Tabel 4F F'!G13<5,'Tabel 4 F'!G13<0.5),"-",IFERROR('Tabel 4 F'!G13/'Tabel 4F F'!G13*100,"-")) -> - | I13: =IF(OR('Tabel 4F F'!I13<5,'Tabel 4 F'!I13<0.5),"-",IFERROR('Tabel 4 F'!I13/'Tabel 4F F'!I13*100,"-")) -> 23.1884058
A14: Øvrige Mag. | C14: =IF(OR('Tabel 4F F'!C14<5,'Tabel 4 F'!C14<0.5),"-",IFERROR('Tabel 4 F'!C14/'Tabel 4F F'!C14*100,"-")) -> 25 | D14: =IF(OR('Tabel 4F F'!D14<5,'Tabel 4 F'!D14<0.5),"-",IFERROR('Tabel 4 F'!D14/'Tabel 4F F'!D14*100,"-")) -> 10.25641026 | E14: =IF(OR('Tabel 4F F'!E14<5,'Tabel 4 F'!E14<0.5),"-",IFERROR('Tabel 4 F'!E14/'Tabel 4F F'!E14*100,"-")) -> 1.538461538 | F14: =IF(OR('Tabel 4F F'!F14<5,'Tabel 4 F'!F14<0.5),"-",IFERROR('Tabel 4 F'!F14/'Tabel 4F F'!F14*100,"-")) -> 4.918032787 | G14: =IF(OR('Tabel 4F F'!G14<5,'Tabel 4 F'!G14<0.5),"-",IFERROR('Tabel 4 F'!G14/'Tabel 4F F'!G14*100,"-")) -> 5.882352941 | I14: =IF(OR('Tabel 4F F'!I14<5,'Tabel 4 F'!I14<0.5),"-",IFERROR('Tabel 4 F'!I14/'Tabel 4F F'!I14*100,"-")) -> 7.174887892
A15: Agronom | C15: =IF(OR('Tabel 4F F'!C15<5,'Tabel 4 F'!C15<0.5),"-",IFERROR('Tabel 4 F'!C15/'Tabel 4F F'!C15*100,"-")) -> - | D15: =IF(OR('Tabel 4F F'!D15<5,'Tabel 4 F'!D15<0.5),"-",IFERROR('Tabel 4 F'!D15/'Tabel 4F F'!D15*100,"-")) -> 5.882352941 | E15: =IF(OR('Tabel 4F F'!E15<5,'Tabel 4 F'!E15<0.5),"-",IFERROR('Tabel 4 F'!E15/'Tabel 4F F'!E15*100,"-")) -> - | F15: =IF(OR('Tabel 4F F'!F15<5,'Tabel 4 F'!F15<0.5),"-",IFERROR('Tabel 4 F'!F15/'Tabel 4F F'!F15*100,"-")) -> 3.076923077 | G15: =IF(OR('Tabel 4F F'!G15<5,'Tabel 4 F'!G15<0.5),"-",IFERROR('Tabel 4 F'!G15/'Tabel 4F F'!G15*100,"-")) -> - | I15: =IF(OR('Tabel 4F F'!I15<5,'Tabel 4 F'!I15<0.5),"-",IFERROR('Tabel 4 F'!I15/'Tabel 4F F'!I15*100,"-")) -> 1.923076923
A16: Landsk. Arkt. | C16: =IF(OR('Tabel 4F F'!C16<5,'Tabel 4 F'!C16<0.5),"-",IFERROR('Tabel 4 F'!C16/'Tabel 4F F'!C16*100,"-")) -> - | D16: =IF(OR('Tabel 4F F'!D16<5,'Tabel 4 F'!D16<0.5),"-",IFERROR('Tabel 4 F'!D16/'Tabel 4F F'!D16*100,"-")) -> - | E16: =IF(OR('Tabel 4F F'!E16<5,'Tabel 4 F'!E16<0.5),"-",IFERROR('Tabel 4 F'!E16/'Tabel 4F F'!E16*100,"-")) -> - | F16: =IF(OR('Tabel 4F F'!F16<5,'Tabel 4 F'!F16<0.5),"-",IFERROR('Tabel 4 F'!F16/'Tabel 4F F'!F16*100,"-")) -> 12.5 | G16: =IF(OR('Tabel 4F F'!G16<5,'Tabel 4 F'!G16<0.5),"-",IFERROR('Tabel 4 F'!G16/'Tabel 4F F'!G16*100,"-")) -> - | I16: =IF(OR('Tabel 4F F'!I16<5,'Tabel 4 F'!I16<0.5),"-",IFERROR('Tabel 4 F'!I16/'Tabel 4F F'!I16*100,"-")) -> 3.703703704
A17: Hortonom | C17: =IF(OR('Tabel 4F F'!C17<5,'Tabel 4 F'!C17<0.5),"-",IFERROR('Tabel 4 F'!C17/'Tabel 4F F'!C17*100,"-")) -> - | D17: =IF(OR('Tabel 4F F'!D17<5,'Tabel 4 F'!D17<0.5),"-",IFERROR('Tabel 4 F'!D17/'Tabel 4F F'!D17*100,"-")) -> - | E17: =IF(OR('Tabel 4F F'!E17<5,'Tabel 4 F'!E17<0.5),"-",IFERROR('Tabel 4 F'!E17/'Tabel 4F F'!E17*100,"-")) -> - | F17: =IF(OR('Tabel 4F F'!F17<5,'Tabel 4 F'!F17<0.5),"-",IFERROR('Tabel 4 F'!F17/'Tabel 4F F'!F17*100,"-")) -> - | G17: =IF(OR('Tabel 4F F'!G17<5,'Tabel 4 F'!G17<0.5),"-",IFERROR('Tabel 4 F'!G17/'Tabel 4F F'!G17*100,"-")) -> 9.090909091 | I17: =IF(OR('Tabel 4F F'!I17<5,'Tabel 4 F'!I17<0.5),"-",IFERROR('Tabel 4 F'!I17/'Tabel 4F F'!I17*100,"-")) -> 2.380952381
A18: Forstkand. | C18: =IF(OR('Tabel 4F F'!C18<5,'Tabel 4 F'!C18<0.5),"-",IFERROR('Tabel 4 F'!C18/'Tabel 4F F'!C18*100,"-")) -> - | D18: =IF(OR('Tabel 4F F'!D18<5,'Tabel 4 F'!D18<0.5),"-",IFERROR('Tabel 4 F'!D18/'Tabel 4F F'!D18*100,"-")) -> 20 | E18: =IF(OR('Tabel 4F F'!E18<5,'Tabel 4 F'!E18<0.5),"-",IFERROR('Tabel 4 F'!E18/'Tabel 4F F'!E18*100,"-")) -> - | F18: =IF(OR('Tabel 4F F'!F18<5,'Tabel 4 F'!F18<0.5),"-",IFERROR('Tabel 4 F'!F18/'Tabel 4F F'!F18*100,"-")) -> - | G18: =IF(OR('Tabel 4F F'!G18<5,'Tabel 4 F'!G18<0.5),"-",IFERROR('Tabel 4 F'!G18/'Tabel 4F F'!G18*100,"-")) -> - | I18: =IF(OR('Tabel 4F F'!I18<5,'Tabel 4 F'!I18<0.5),"-",IFERROR('Tabel 4 F'!I18/'Tabel 4F F'!I18*100,"-")) -> 4
A19: Jordbrugsakad. | C19: =IF(OR('Tabel 4F F'!C19<5,'Tabel 4 F'!C19<0.5),"-",IFERROR('Tabel 4 F'!C19/'Tabel 4F F'!C19*100,"-")) -> - | D19: =IF(OR('Tabel 4F F'!D19<5,'Tabel 4 F'!D19<0.5),"-",IFERROR('Tabel 4 F'!D19/'Tabel 4F F'!D19*100,"-")) -> 6.060606061 | E19: =IF(OR('Tabel 4F F'!E19<5,'Tabel 4 F'!E19<0.5),"-",IFERROR('Tabel 4 F'!E19/'Tabel 4F F'!E19*100,"-")) -> - | F19: =IF(OR('Tabel 4F F'!F19<5,'Tabel 4 F'!F19<0.5),"-",IFERROR('Tabel 4 F'!F19/'Tabel 4F F'!F19*100,"-")) -> 2.884615385 | G19: =IF(OR('Tabel 4F F'!G19<5,'Tabel 4 F'!G19<0.5),"-",IFERROR('Tabel 4 F'!G19/'Tabel 4F F'!G19*100,"-")) -> 2.631578947 | I19: =IF(OR('Tabel 4F F'!I19<5,'Tabel 4 F'!I19<0.5),"-",IFERROR('Tabel 4 F'!I19/'Tabel 4F F'!I19*100,"-")) -> 2.4
A20: Mejeriing. | C20: =IF(OR('Tabel 4F F'!C20<5,'Tabel 4 F'!C20<0.5),"-",IFERROR('Tabel 4 F'!C20/'Tabel 4F F'!C20*100,"-")) -> - | D20: =IF(OR('Tabel 4F F'!D20<5,'Tabel 4 F'!D20<0.5),"-",IFERROR('Tabel 4 F'!D20/'Tabel 4F F'!D20*100,"-")) -> - | E20: =IF(OR('Tabel 4F F'!E20<5,'Tabel 4 F'!E20<0.5),"-",IFERROR('Tabel 4 F'!E20/'Tabel 4F F'!E20*100,"-")) -> 16.66666667 | F20: =IF(OR('Tabel 4F F'!F20<5,'Tabel 4 F'!F20<0.5),"-",IFERROR('Tabel 4 F'!F20/'Tabel 4F F'!F20*100,"-")) -> - | G20: =IF(OR('Tabel 4F F'!G20<5,'Tabel 4 F'!G20<0.5),"-",IFERROR('Tabel 4 F'!G20/'Tabel 4F F'!G20*100,"-")) -> - | I20: =IF(OR('Tabel 4F F'!I20<5,'Tabel 4 F'!I20<0.5),"-",IFERROR('Tabel 4 F'!I20/'Tabel 4F F'!I20*100,"-")) -> 7.142857143
A21: Levn.m.kand. | C21: =IF(OR('Tabel 4F F'!C21<5,'Tabel 4 F'!C21<0.5),"-",IFERROR('Tabel 4 F'!C21/'Tabel 4F F'!C21*100,"-")) -> - | D21: =IF(OR('Tabel 4F F'!D21<5,'Tabel 4 F'!D21<0.5),"-",IFERROR('Tabel 4 F'!D21/'Tabel 4F F'!D21*100,"-")) -> - | E21: =IF(OR('Tabel 4F F'!E21<5,'Tabel 4 F'!E21<0.5),"-",IFERROR('Tabel 4 F'!E21/'Tabel 4F F'!E21*100,"-")) -> - | F21: =IF(OR('Tabel 4F F'!F21<5,'Tabel 4 F'!F21<0.5),"-",IFERROR('Tabel 4 F'!F21/'Tabel 4F F'!F21*100,"-")) -> - | G21: =IF(OR('Tabel 4F F'!G21<5,'Tabel 4 F'!G21<0.5),"-",IFERROR('Tabel 4 F'!G21/'Tabel 4F F'!G21*100,"-")) -> - | I21: =IF(OR('Tabel 4F F'!I21<5,'Tabel 4 F'!I21<0.5),"-",IFERROR('Tabel 4 F'!I21/'Tabel 4F F'!I21*100,"-")) -> -
A22: Dyrlæge | C22: =IF(OR('Tabel 4F F'!C22<5,'Tabel 4 F'!C22<0.5),"-",IFERROR('Tabel 4 F'!C22/'Tabel 4F F'!C22*100,"-")) -> 22.22222222 | D22: =IF(OR('Tabel 4F F'!D22<5,'Tabel 4 F'!D22<0.5),"-",IFERROR('Tabel 4 F'!D22/'Tabel 4F F'!D22*100,"-")) -> 7.692307692 | E22: =IF(OR('Tabel 4F F'!E22<5,'Tabel 4 F'!E22<0.5),"-",IFERROR('Tabel 4 F'!E22/'Tabel 4F F'!E22*100,"-")) -> - | F22: =IF(OR('Tabel 4F F'!F22<5,'Tabel 4 F'!F22<0.5),"-",IFERROR('Tabel 4 F'!F22/'Tabel 4F F'!F22*100,"-")) -> 3.448275862 | G22: =IF(OR('Tabel 4F F'!G22<5,'Tabel 4 F'!G22<0.5),"-",IFERROR('Tabel 4 F'!G22/'Tabel 4F F'!G22*100,"-")) -> - | I22: =IF(OR('Tabel 4F F'!I22<5,'Tabel 4 F'!I22<0.5),"-",IFERROR('Tabel 4 F'!I22/'Tabel 4F F'!I22*100,"-")) -> 6.504065041
A23: Farmaceut | C23: =IF(OR('Tabel 4F F'!C23<5,'Tabel 4 F'!C23<0.5),"-",IFERROR('Tabel 4 F'!C23/'Tabel 4F F'!C23*100,"-")) -> 7.692307692 | D23: =IF(OR('Tabel 4F F'!D23<5,'Tabel 4 F'!D23<0.5),"-",IFERROR('Tabel 4 F'!D23/'Tabel 4F F'!D23*100,"-")) -> 5.333333333 | E23: =IF(OR('Tabel 4F F'!E23<5,'Tabel 4 F'!E23<0.5),"-",IFERROR('Tabel 4 F'!E23/'Tabel 4F F'!E23*100,"-")) -> 4.545454545 | F23: =IF(OR('Tabel 4F F'!F23<5,'Tabel 4 F'!F23<0.5),"-",IFERROR('Tabel 4 F'!F23/'Tabel 4F F'!F23*100,"-")) -> 4 | G23: =IF(OR('Tabel 4F F'!G23<5,'Tabel 4 F'!G23<0.5),"-",IFERROR('Tabel 4 F'!G23/'Tabel 4F F'!G23*100,"-")) -> 11.11111111 | I23: =IF(OR('Tabel 4F F'!I23<5,'Tabel 4 F'!I23<0.5),"-",IFERROR('Tabel 4 F'!I23/'Tabel 4F F'!I23*100,"-")) -> 5.963302752
A24: Læge | C24: =IF(OR('Tabel 4F F'!C24<5,'Tabel 4 F'!C24<0.5),"-",IFERROR('Tabel 4 F'!C24/'Tabel 4F F'!C24*100,"-")) -> 11.68831169 | D24: =IF(OR('Tabel 4F F'!D24<5,'Tabel 4 F'!D24<0.5),"-",IFERROR('Tabel 4 F'!D24/'Tabel 4F F'!D24*100,"-")) -> 2.330097087 | E24: =IF(OR('Tabel 4F F'!E24<5,'Tabel 4 F'!E24<0.5),"-",IFERROR('Tabel 4 F'!E24/'Tabel 4F F'!E24*100,"-")) -> 0.7490636704 | F24: =IF(OR('Tabel 4F F'!F24<5,'Tabel 4 F'!F24<0.5),"-",IFERROR('Tabel 4 F'!F24/'Tabel 4F F'!F24*100,"-")) -> - | G24: =IF(OR('Tabel 4F F'!G24<5,'Tabel 4 F'!G24<0.5),"-",IFERROR('Tabel 4 F'!G24/'Tabel 4F F'!G24*100,"-")) -> - | I24: =IF(OR('Tabel 4F F'!I24<5,'Tabel 4 F'!I24<0.5),"-",IFERROR('Tabel 4 F'!I24/'Tabel 4F F'!I24*100,"-")) -> 3.309120258
A25: Tandlæge | C25: =IF(OR('Tabel 4F F'!C25<5,'Tabel 4 F'!C25<0.5),"-",IFERROR('Tabel 4 F'!C25/'Tabel 4F F'!C25*100,"-")) -> - | D25: =IF(OR('Tabel 4F F'!D25<5,'Tabel 4 F'!D25<0.5),"-",IFERROR('Tabel 4 F'!D25/'Tabel 4F F'!D25*100,"-")) -> - | E25: =IF(OR('Tabel 4F F'!E25<5,'Tabel 4 F'!E25<0.5),"-",IFERROR('Tabel 4 F'!E25/'Tabel 4F F'!E25*100,"-")) -> - | F25: =IF(OR('Tabel 4F F'!F25<5,'Tabel 4 F'!F25<0.5),"-",IFERROR('Tabel 4 F'!F25/'Tabel 4F F'!F25*100,"-")) -> - | G25: =IF(OR('Tabel 4F F'!G25<5,'Tabel 4 F'!G25<0.5),"-",IFERROR('Tabel 4 F'!G25/'Tabel 4F F'!G25*100,"-")) -> - | I25: =IF(OR('Tabel 4F F'!I25<5,'Tabel 4 F'!I25<0.5),"-",IFERROR('Tabel 4 F'!I25/'Tabel 4F F'!I25*100,"-")) -> -
A26: Arkitekt | C26: =IF(OR('Tabel 4F F'!C26<5,'Tabel 4 F'!C26<0.5),"-",IFERROR('Tabel 4 F'!C26/'Tabel 4F F'!C26*100,"-")) -> 10.52631579 | D26: =IF(OR('Tabel 4F F'!D26<5,'Tabel 4 F'!D26<0.5),"-",IFERROR('Tabel 4 F'!D26/'Tabel 4F F'!D26*100,"-")) -> 14.70588235 | E26: =IF(OR('Tabel 4F F'!E26<5,'Tabel 4 F'!E26<0.5),"-",IFERROR('Tabel 4 F'!E26/'Tabel 4F F'!E26*100,"-")) -> 4.444444444 | F26: =IF(OR('Tabel 4F F'!F26<5,'Tabel 4 F'!F26<0.5),"-",IFERROR('Tabel 4 F'!F26/'Tabel 4F F'!F26*100,"-")) -> 9.375 | G26: =IF(OR('Tabel 4F F'!G26<5,'Tabel 4 F'!G26<0.5),"-",IFERROR('Tabel 4 F'!G26/'Tabel 4F F'!G26*100,"-")) -> 5 | I26: =IF(OR('Tabel 4F F'!I26<5,'Tabel 4 F'!I26<0.5),"-",IFERROR('Tabel 4 F'!I26/'Tabel 4F F'!I26*100,"-")) -> 8.666666667
A27: Landinspek. | C27: =IF(OR('Tabel 4F F'!C27<5,'Tabel 4 F'!C27<0.5),"-",IFERROR('Tabel 4 F'!C27/'Tabel 4F F'!C27*100,"-")) -> - | D27: =IF(OR('Tabel 4F F'!D27<5,'Tabel 4 F'!D27<0.5),"-",IFERROR('Tabel 4 F'!D27/'Tabel 4F F'!D27*100,"-")) -> - | E27: =IF(OR('Tabel 4F F'!E27<5,'Tabel 4 F'!E27<0.5),"-",IFERROR('Tabel 4 F'!E27/'Tabel 4F F'!E27*100,"-")) -> - | F27: =IF(OR('Tabel 4F F'!F27<5,'Tabel 4 F'!F27<0.5),"-",IFERROR('Tabel 4 F'!F27/'Tabel 4F F'!F27*100,"-")) -> - | G27: =IF(OR('Tabel 4F F'!G27<5,'Tabel 4 F'!G27<0.5),"-",IFERROR('Tabel 4 F'!G27/'Tabel 4F F'!G27*100,"-")) -> - | I27: =IF(OR('Tabel 4F F'!I27<5,'Tabel 4 F'!I27<0.5),"-",IFERROR('Tabel 4 F'!I27/'Tabel 4F F'!I27*100,"-")) -> -
A28: Bibliotekar | C28: =IF(OR('Tabel 4F F'!C28<5,'Tabel 4 F'!C28<0.5),"-",IFERROR('Tabel 4 F'!C28/'Tabel 4F F'!C28*100,"-")) -> - | D28: =IF(OR('Tabel 4F F'!D28<5,'Tabel 4 F'!D28<0.5),"-",IFERROR('Tabel 4 F'!D28/'Tabel 4F F'!D28*100,"-")) -> 12 | E28: =IF(OR('Tabel 4F F'!E28<5,'Tabel 4 F'!E28<0.5),"-",IFERROR('Tabel 4 F'!E28/'Tabel 4F F'!E28*100,"-")) -> 1.492537313 | F28: =IF(OR('Tabel 4F F'!F28<5,'Tabel 4 F'!F28<0.5),"-",IFERROR('Tabel 4 F'!F28/'Tabel 4F F'!F28*100,"-")) -> 3.571428571 | G28: =IF(OR('Tabel 4F F'!G28<5,'Tabel 4 F'!G28<0.5),"-",IFERROR('Tabel 4 F'!G28/'Tabel 4F F'!G28*100,"-")) -> 4.545454545 | I28: =IF(OR('Tabel 4F F'!I28<5,'Tabel 4 F'!I28<0.5),"-",IFERROR('Tabel 4 F'!I28/'Tabel 4F F'!I28*100,"-")) -> 4.977375566
A29: Musikudd. | C29: =IF(OR('Tabel 4F F'!C29<5,'Tabel 4 F'!C29<0.5),"-",IFERROR('Tabel 4 F'!C29/'Tabel 4F F'!C29*100,"-")) -> - | D29: =IF(OR('Tabel 4F F'!D29<5,'Tabel 4 F'!D29<0.5),"-",IFERROR('Tabel 4 F'!D29/'Tabel 4F F'!D29*100,"-")) -> - | E29: =IF(OR('Tabel 4F F'!E29<5,'Tabel 4 F'!E29<0.5),"-",IFERROR('Tabel 4 F'!E29/'Tabel 4F F'!E29*100,"-")) -> - | F29: =IF(OR('Tabel 4F F'!F29<5,'Tabel 4 F'!F29<0.5),"-",IFERROR('Tabel 4 F'!F29/'Tabel 4F F'!F29*100,"-")) -> 2.5 | G29: =IF(OR('Tabel 4F F'!G29<5,'Tabel 4 F'!G29<0.5),"-",IFERROR('Tabel 4 F'!G29/'Tabel 4F F'!G29*100,"-")) -> - | I29: =IF(OR('Tabel 4F F'!I29<5,'Tabel 4 F'!I29<0.5),"-",IFERROR('Tabel 4 F'!I29/'Tabel 4F F'!I29*100,"-")) -> 2.06185567
A30: Teolog | C30: =IF(OR('Tabel 4F F'!C30<5,'Tabel 4 F'!C30<0.5),"-",IFERROR('Tabel 4 F'!C30/'Tabel 4F F'!C30*100,"-")) -> - | D30: =IF(OR('Tabel 4F F'!D30<5,'Tabel 4 F'!D30<0.5),"-",IFERROR('Tabel 4 F'!D30/'Tabel 4F F'!D30*100,"-")) -> 5 | E30: =IF(OR('Tabel 4F F'!E30<5,'Tabel 4 F'!E30<0.5),"-",IFERROR('Tabel 4 F'!E30/'Tabel 4F F'!E30*100,"-")) -> 2.380952381 | F30: =IF(OR('Tabel 4F F'!F30<5,'Tabel 4 F'!F30<0.5),"-",IFERROR('Tabel 4 F'!F30/'Tabel 4F F'!F30*100,"-")) -> - | G30: =IF(OR('Tabel 4F F'!G30<5,'Tabel 4 F'!G30<0.5),"-",IFERROR('Tabel 4 F'!G30/'Tabel 4F F'!G30*100,"-")) -> 4.347826087 | I30: =IF(OR('Tabel 4F F'!I30<5,'Tabel 4 F'!I30<0.5),"-",IFERROR('Tabel 4 F'!I30/'Tabel 4F F'!I30*100,"-")) -> 2.4
A31: Psykolog | C31: =IF(OR('Tabel 4F F'!C31<5,'Tabel 4 F'!C31<0.5),"-",IFERROR('Tabel 4 F'!C31/'Tabel 4F F'!C31*100,"-")) -> 13.38582677 | D31: =IF(OR('Tabel 4F F'!D31<5,'Tabel 4 F'!D31<0.5),"-",IFERROR('Tabel 4 F'!D31/'Tabel 4F F'!D31*100,"-")) -> 10.44776119 | E31: =IF(OR('Tabel 4F F'!E31<5,'Tabel 4 F'!E31<0.5),"-",IFERROR('Tabel 4 F'!E31/'Tabel 4F F'!E31*100,"-")) -> 0.826446281 | F31: =IF(OR('Tabel 4F F'!F31<5,'Tabel 4 F'!F31<0.5),"-",IFERROR('Tabel 4 F'!F31/'Tabel 4F F'!F31*100,"-")) -> - | G31: =IF(OR('Tabel 4F F'!G31<5,'Tabel 4 F'!G31<0.5),"-",IFERROR('Tabel 4 F'!G31/'Tabel 4F F'!G31*100,"-")) -> 9.090909091 | I31: =IF(OR('Tabel 4F F'!I31<5,'Tabel 4 F'!I31<0.5),"-",IFERROR('Tabel 4 F'!I31/'Tabel 4F F'!I31*100,"-")) -> 7.311827957
A32: Jurist | C32: =IF(OR('Tabel 4F F'!C32<5,'Tabel 4 F'!C32<0.5),"-",IFERROR('Tabel 4 F'!C32/'Tabel 4F F'!C32*100,"-")) -> 5.454545455 | D32: =IF(OR('Tabel 4F F'!D32<5,'Tabel 4 F'!D32<0.5),"-",IFERROR('Tabel 4 F'!D32/'Tabel 4F F'!D32*100,"-")) -> 1.45631068 | E32: =IF(OR('Tabel 4F F'!E32<5,'Tabel 4 F'!E32<0.5),"-",IFERROR('Tabel 4 F'!E32/'Tabel 4F F'!E32*100,"-")) -> 1.639344262 | F32: =IF(OR('Tabel 4F F'!F32<5,'Tabel 4 F'!F32<0.5),"-",IFERROR('Tabel 4 F'!F32/'Tabel 4F F'!F32*100,"-")) -> 1.19047619 | G32: =IF(OR('Tabel 4F F'!G32<5,'Tabel 4 F'!G32<0.5),"-",IFERROR('Tabel 4 F'!G32/'Tabel 4F F'!G32*100,"-")) -> 4 | I32: =IF(OR('Tabel 4F F'!I32<5,'Tabel 4 F'!I32<0.5),"-",IFERROR('Tabel 4 F'!I32/'Tabel 4F F'!I32*100,"-")) -> 2.376599634
A33: Økonom | C33: =IF(OR('Tabel 4F F'!C33<5,'Tabel 4 F'!C33<0.5),"-",IFERROR('Tabel 4 F'!C33/'Tabel 4F F'!C33*100,"-")) -> 9.523809524 | D33: =IF(OR('Tabel 4F F'!D33<5,'Tabel 4 F'!D33<0.5),"-",IFERROR('Tabel 4 F'!D33/'Tabel 4F F'!D33*100,"-")) -> 5.93220339 | E33: =IF(OR('Tabel 4F F'!E33<5,'Tabel 4 F'!E33<0.5),"-",IFERROR('Tabel 4 F'!E33/'Tabel 4F F'!E33*100,"-")) -> 1.234567901 | F33: =IF(OR('Tabel 4F F'!F33<5,'Tabel 4 F'!F33<0.5),"-",IFERROR('Tabel 4 F'!F33/'Tabel 4F F'!F33*100,"-")) -> - | G33: =IF(OR('Tabel 4F F'!G33<5,'Tabel 4 F'!G33<0.5),"-",IFERROR('Tabel 4 F'!G33/'Tabel 4F F'!G33*100,"-")) -> 6.666666667 | I33: =IF(OR('Tabel 4F F'!I33<5,'Tabel 4 F'!I33<0.5),"-",IFERROR('Tabel 4 F'!I33/'Tabel 4F F'!I33*100,"-")) -> 4.222648752
A34: Samf. Adm. | C34: =IF(OR('Tabel 4F F'!C34<5,'Tabel 4 F'!C34<0.5),"-",IFERROR('Tabel 4 F'!C34/'Tabel 4F F'!C34*100,"-")) -> 21.63265306 | D34: =IF(OR('Tabel 4F F'!D34<5,'Tabel 4 F'!D34<0.5),"-",IFERROR('Tabel 4 F'!D34/'Tabel 4F F'!D34*100,"-")) -> 6.666666667 | E34: =IF(OR('Tabel 4F F'!E34<5,'Tabel 4 F'!E34<0.5),"-",IFERROR('Tabel 4 F'!E34/'Tabel 4F F'!E34*100,"-")) -> 4.179104478 | F34: =IF(OR('Tabel 4F F'!F34<5,'Tabel 4 F'!F34<0.5),"-",IFERROR('Tabel 4 F'!F34/'Tabel 4F F'!F34*100,"-")) -> 4.324324324 | G34: =IF(OR('Tabel 4F F'!G34<5,'Tabel 4 F'!G34<0.5),"-",IFERROR('Tabel 4 F'!G34/'Tabel 4F F'!G34*100,"-")) -> - | I34: =IF(OR('Tabel 4F F'!I34<5,'Tabel 4 F'!I34<0.5),"-",IFERROR('Tabel 4 F'!I34/'Tabel 4F F'!I34*100,"-")) -> 8.320493066
A35: Cand. Merc. | C35: =IF(OR('Tabel 4F F'!C35<5,'Tabel 4 F'!C35<0.5),"-",IFERROR('Tabel 4 F'!C35/'Tabel 4F F'!C35*100,"-")) -> 20.73732719 | D35: =IF(OR('Tabel 4F F'!D35<5,'Tabel 4 F'!D35<0.5),"-",IFERROR('Tabel 4 F'!D35/'Tabel 4F F'!D35*100,"-")) -> 5.823627288 | E35: =IF(OR('Tabel 4F F'!E35<5,'Tabel 4 F'!E35<0.5),"-",IFERROR('Tabel 4 F'!E35/'Tabel 4F F'!E35*100,"-")) -> 2.915451895 | F35: =IF(OR('Tabel 4F F'!F35<5,'Tabel 4 F'!F35<0.5),"-",IFERROR('Tabel 4 F'!F35/'Tabel 4F F'!F35*100,"-")) -> 3.862660944 | G35: =IF(OR('Tabel 4F F'!G35<5,'Tabel 4 F'!G35<0.5),"-",IFERROR('Tabel 4 F'!G35/'Tabel 4F F'!G35*100,"-")) -> - | I35: =IF(OR('Tabel 4F F'!I35<5,'Tabel 4 F'!I35<0.5),"-",IFERROR('Tabel 4 F'!I35/'Tabel 4F F'!I35*100,"-")) -> 8.711433757
A36: HA | C36: =IF(OR('Tabel 4F F'!C36<5,'Tabel 4 F'!C36<0.5),"-",IFERROR('Tabel 4 F'!C36/'Tabel 4F F'!C36*100,"-")) -> 26.96629213 | D36: =IF(OR('Tabel 4F F'!D36<5,'Tabel 4 F'!D36<0.5),"-",IFERROR('Tabel 4 F'!D36/'Tabel 4F F'!D36*100,"-")) -> 7.547169811 | E36: =IF(OR('Tabel 4F F'!E36<5,'Tabel 4 F'!E36<0.5),"-",IFERROR('Tabel 4 F'!E36/'Tabel 4F F'!E36*100,"-")) -> 1.408450704 | F36: =IF(OR('Tabel 4F F'!F36<5,'Tabel 4 F'!F36<0.5),"-",IFERROR('Tabel 4 F'!F36/'Tabel 4F F'!F36*100,"-")) -> 3.846153846 | G36: =IF(OR('Tabel 4F F'!G36<5,'Tabel 4 F'!G36<0.5),"-",IFERROR('Tabel 4 F'!G36/'Tabel 4F F'!G36*100,"-")) -> 2.857142857 | I36: =IF(OR('Tabel 4F F'!I36<5,'Tabel 4 F'!I36<0.5),"-",IFERROR('Tabel 4 F'!I36/'Tabel 4F F'!I36*100,"-")) -> 9.659090909
A37: HD | C37: =IF(OR('Tabel 4F F'!C37<5,'Tabel 4 F'!C37<0.5),"-",IFERROR('Tabel 4 F'!C37/'Tabel 4F F'!C37*100,"-")) -> 48.97959184 | D37: =IF(OR('Tabel 4F F'!D37<5,'Tabel 4 F'!D37<0.5),"-",IFERROR('Tabel 4 F'!D37/'Tabel 4F F'!D37*100,"-")) -> 11.11111111 | E37: =IF(OR('Tabel 4F F'!E37<5,'Tabel 4 F'!E37<0.5),"-",IFERROR('Tabel 4 F'!E37/'Tabel 4F F'!E37*100,"-")) -> 1.538461538 | F37: =IF(OR('Tabel 4F F'!F37<5,'Tabel 4 F'!F37<0.5),"-",IFERROR('Tabel 4 F'!F37/'Tabel 4F F'!F37*100,"-")) -> 1.754385965 | G37: =IF(OR('Tabel 4F F'!G37<5,'Tabel 4 F'!G37<0.5),"-",IFERROR('Tabel 4 F'!G37/'Tabel 4F F'!G37*100,"-")) -> 7.142857143 | I37: =IF(OR('Tabel 4F F'!I37<5,'Tabel 4 F'!I37<0.5),"-",IFERROR('Tabel 4 F'!I37/'Tabel 4F F'!I37*100,"-")) -> 11.11111111
A38: Komm. og Sprog | C38: =IF(OR('Tabel 4F F'!C38<5,'Tabel 4 F'!C38<0.5),"-",IFERROR('Tabel 4 F'!C38/'Tabel 4F F'!C38*100,"-")) -> 26.38888889 | D38: =IF(OR('Tabel 4F F'!D38<5,'Tabel 4 F'!D38<0.5),"-",IFERROR('Tabel 4 F'!D38/'Tabel 4F F'!D38*100,"-")) -> 9.401709402 | E38: =IF(OR('Tabel 4F F'!E38<5,'Tabel 4 F'!E38<0.5),"-",IFERROR('Tabel 4 F'!E38/'Tabel 4F F'!E38*100,"-")) -> 5 | F38: =IF(OR('Tabel 4F F'!F38<5,'Tabel 4 F'!F38<0.5),"-",IFERROR('Tabel 4 F'!F38/'Tabel 4F F'!F38*100,"-")) -> 2.222222222 | G38: =IF(OR('Tabel 4F F'!G38<5,'Tabel 4 F'!G38<0.5),"-",IFERROR('Tabel 4 F'!G38/'Tabel 4F F'!G38*100,"-")) -> 2.941176471 | I38: =IF(OR('Tabel 4F F'!I38<5,'Tabel 4 F'!I38<0.5),"-",IFERROR('Tabel 4 F'!I38/'Tabel 4F F'!I38*100,"-")) -> 9.200968523
A39: Cand. IT. | C39: =IF(OR('Tabel 4F F'!C39<5,'Tabel 4 F'!C39<0.5),"-",IFERROR('Tabel 4 F'!C39/'Tabel 4F F'!C39*100,"-")) -> 23.33333333 | D39: =IF(OR('Tabel 4F F'!D39<5,'Tabel 4 F'!D39<0.5),"-",IFERROR('Tabel 4 F'!D39/'Tabel 4F F'!D39*100,"-")) -> 6.25 | E39: =IF(OR('Tabel 4F F'!E39<5,'Tabel 4 F'!E39<0.5),"-",IFERROR('Tabel 4 F'!E39/'Tabel 4F F'!E39*100,"-")) -> 5.128205128 | F39: =IF(OR('Tabel 4F F'!F39<5,'Tabel 4 F'!F39<0.5),"-",IFERROR('Tabel 4 F'!F39/'Tabel 4F F'!F39*100,"-")) -> - | G39: =IF(OR('Tabel 4F F'!G39<5,'Tabel 4 F'!G39<0.5),"-",IFERROR('Tabel 4 F'!G39/'Tabel 4F F'!G39*100,"-")) -> - | I39: =IF(OR('Tabel 4F F'!I39<5,'Tabel 4 F'!I39<0.5),"-",IFERROR('Tabel 4 F'!I39/'Tabel 4F F'!I39*100,"-")) -> 10.29411765
A40: Bac. Samf. | C40: =IF(OR('Tabel 4F F'!C40<5,'Tabel 4 F'!C40<0.5),"-",IFERROR('Tabel 4 F'!C40/'Tabel 4F F'!C40*100,"-")) -> 11.11111111 | D40: =IF(OR('Tabel 4F F'!D40<5,'Tabel 4 F'!D40<0.5),"-",IFERROR('Tabel 4 F'!D40/'Tabel 4F F'!D40*100,"-")) -> 5.555555556 | E40: =IF(OR('Tabel 4F F'!E40<5,'Tabel 4 F'!E40<0.5),"-",IFERROR('Tabel 4 F'!E40/'Tabel 4F F'!E40*100,"-")) -> - | F40: =IF(OR('Tabel 4F F'!F40<5,'Tabel 4 F'!F40<0.5),"-",IFERROR('Tabel 4 F'!F40/'Tabel 4F F'!F40*100,"-")) -> - | G40: =IF(OR('Tabel 4F F'!G40<5,'Tabel 4 F'!G40<0.5),"-",IFERROR('Tabel 4 F'!G40/'Tabel 4F F'!G40*100,"-")) -> - | I40: =IF(OR('Tabel 4F F'!I40<5,'Tabel 4 F'!I40<0.5),"-",IFERROR('Tabel 4 F'!I40/'Tabel 4F F'!I40*100,"-")) -> 3.846153846
A41: Bac. Hum. | C41: =IF(OR('Tabel 4F F'!C41<5,'Tabel 4 F'!C41<0.5),"-",IFERROR('Tabel 4 F'!C41/'Tabel 4F F'!C41*100,"-")) -> 29.47368421 | D41: =IF(OR('Tabel 4F F'!D41<5,'Tabel 4 F'!D41<0.5),"-",IFERROR('Tabel 4 F'!D41/'Tabel 4F F'!D41*100,"-")) -> 7.692307692 | E41: =IF(OR('Tabel 4F F'!E41<5,'Tabel 4 F'!E41<0.5),"-",IFERROR('Tabel 4 F'!E41/'Tabel 4F F'!E41*100,"-")) -> 2.53164557 | F41: =IF(OR('Tabel 4F F'!F41<5,'Tabel 4 F'!F41<0.5),"-",IFERROR('Tabel 4 F'!F41/'Tabel 4F F'!F41*100,"-")) -> 8.163265306 | G41: =IF(OR('Tabel 4F F'!G41<5,'Tabel 4 F'!G41<0.5),"-",IFERROR('Tabel 4 F'!G41/'Tabel 4F F'!G41*100,"-")) -> - | I41: =IF(OR('Tabel 4F F'!I41<5,'Tabel 4 F'!I41<0.5),"-",IFERROR('Tabel 4 F'!I41/'Tabel 4F F'!I41*100,"-")) -> 13.17567568
A42: Bac. Nat. | C42: =IF(OR('Tabel 4F F'!C42<5,'Tabel 4 F'!C42<0.5),"-",IFERROR('Tabel 4 F'!C42/'Tabel 4F F'!C42*100,"-")) -> 17.39130435 | D42: =IF(OR('Tabel 4F F'!D42<5,'Tabel 4 F'!D42<0.5),"-",IFERROR('Tabel 4 F'!D42/'Tabel 4F F'!D42*100,"-")) -> 6.976744186 | E42: =IF(OR('Tabel 4F F'!E42<5,'Tabel 4 F'!E42<0.5),"-",IFERROR('Tabel 4 F'!E42/'Tabel 4F F'!E42*100,"-")) -> 13.33333333 | F42: =IF(OR('Tabel 4F F'!F42<5,'Tabel 4 F'!F42<0.5),"-",IFERROR('Tabel 4 F'!F42/'Tabel 4F F'!F42*100,"-")) -> 7.142857143 | G42: =IF(OR('Tabel 4F F'!G42<5,'Tabel 4 F'!G42<0.5),"-",IFERROR('Tabel 4 F'!G42/'Tabel 4F F'!G42*100,"-")) -> - | I42: =IF(OR('Tabel 4F F'!I42<5,'Tabel 4 F'!I42<0.5),"-",IFERROR('Tabel 4 F'!I42/'Tabel 4F F'!I42*100,"-")) -> 11.76470588
A43: Andre | C43: =IF(OR('Tabel 4F F'!C43<5,'Tabel 4 F'!C43<0.5),"-",IFERROR('Tabel 4 F'!C43/'Tabel 4F F'!C43*100,"-")) -> 16.4893617 | D43: =IF(OR('Tabel 4F F'!D43<5,'Tabel 4 F'!D43<0.5),"-",IFERROR('Tabel 4 F'!D43/'Tabel 4F F'!D43*100,"-")) -> 6.840390879 | E43: =IF(OR('Tabel 4F F'!E43<5,'Tabel 4 F'!E43<0.5),"-",IFERROR('Tabel 4 F'!E43/'Tabel 4F F'!E43*100,"-")) -> 4.210526316 | F43: =IF(OR('Tabel 4F F'!F43<5,'Tabel 4 F'!F43<0.5),"-",IFERROR('Tabel 4 F'!F43/'Tabel 4F F'!F43*100,"-")) -> 2.371541502 | G43: =IF(OR('Tabel 4F F'!G43<5,'Tabel 4 F'!G43<0.5),"-",IFERROR('Tabel 4 F'!G43/'Tabel 4F F'!G43*100,"-")) -> 10.90909091 | I43: =IF(OR('Tabel 4F F'!I43<5,'Tabel 4 F'!I43<0.5),"-",IFERROR('Tabel 4 F'!I43/'Tabel 4F F'!I43*100,"-")) -> 7.174103237
A45: Total | C45: =IF(OR('Tabel 4F F'!C45<5,'Tabel 4 F'!C45<0.5),"-",IFERROR('Tabel 4 F'!C45/'Tabel 4F F'!C45*100,"-")) -> 20.4667382 | D45: =IF(OR('Tabel 4F F'!D45<5,'Tabel 4 F'!D45<0.5),"-",IFERROR('Tabel 4 F'!D45/'Tabel 4F F'!D45*100,"-")) -> 6.484756611 | E45: =IF(OR('Tabel 4F F'!E45<5,'Tabel 4 F'!E45<0.5),"-",IFERROR('Tabel 4 F'!E45/'Tabel 4F F'!E45*100,"-")) -> 2.631069839 | F45: =IF(OR('Tabel 4F F'!F45<5,'Tabel 4 F'!F45<0.5),"-",IFERROR('Tabel 4 F'!F45/'Tabel 4F F'!F45*100,"-")) -> 2.754966887 | G45: =IF(OR('Tabel 4F F'!G45<5,'Tabel 4 F'!G45<0.5),"-",IFERROR('Tabel 4 F'!G45/'Tabel 4F F'!G45*100,"-")) -> 3.637833468 | I45: =IF(OR('Tabel 4F F'!I45<5,'Tabel 4 F'!I45<0.5),"-",IFERROR('Tabel 4 F'!I45/'Tabel 4F F'!I45*100,"-")) -> 7.220598609
A47: Ingeniører i alt | C47: =IF(OR('Tabel 4F F'!C47<5,'Tabel 4 F'!C47<0.5),"-",IFERROR('Tabel 4 F'!C47/'Tabel 4F F'!C47*100,"-")) -> 15.60693642 | D47: =IF(OR('Tabel 4F F'!D47<5,'Tabel 4 F'!D47<0.5),"-",IFERROR('Tabel 4 F'!D47/'Tabel 4F F'!D47*100,"-")) -> 2.450518379 | E47: =IF(OR('Tabel 4F F'!E47<5,'Tabel 4 F'!E47<0.5),"-",IFERROR('Tabel 4 F'!E47/'Tabel 4F F'!E47*100,"-")) -> 0.9345794393 | F47: =IF(OR('Tabel 4F F'!F47<5,'Tabel 4 F'!F47<0.5),"-",IFERROR('Tabel 4 F'!F47/'Tabel 4F F'!F47*100,"-")) -> 1.335707925 | G47: =IF(OR('Tabel 4F F'!G47<5,'Tabel 4 F'!G47<0.5),"-",IFERROR('Tabel 4 F'!G47/'Tabel 4F F'!G47*100,"-")) -> 1.677852349 | I47: =IF(OR('Tabel 4F F'!I47<5,'Tabel 4 F'!I47<0.5),"-",IFERROR('Tabel 4 F'!I47/'Tabel 4F F'!I47*100,"-")) -> 3.864278982
A48: Magistre i alt | C48: =IF(OR('Tabel 4F F'!C48<5,'Tabel 4 F'!C48<0.5),"-",IFERROR('Tabel 4 F'!C48/'Tabel 4F F'!C48*100,"-")) -> 31.61094225 | D48: =IF(OR('Tabel 4F F'!D48<5,'Tabel 4 F'!D48<0.5),"-",IFERROR('Tabel 4 F'!D48/'Tabel 4F F'!D48*100,"-")) -> 10.99554235 | E48: =IF(OR('Tabel 4F F'!E48<5,'Tabel 4 F'!E48<0.5),"-",IFERROR('Tabel 4 F'!E48/'Tabel 4F F'!E48*100,"-")) -> 3.6159601 | F48: =IF(OR('Tabel 4F F'!F48<5,'Tabel 4 F'!F48<0.5),"-",IFERROR('Tabel 4 F'!F48/'Tabel 4F F'!F48*100,"-")) -> 4.928664073 | G48: =IF(OR('Tabel 4F F'!G48<5,'Tabel 4 F'!G48<0.5),"-",IFERROR('Tabel 4 F'!G48/'Tabel 4F F'!G48*100,"-")) -> 3.738317757 | I48: =IF(OR('Tabel 4F F'!I48<5,'Tabel 4 F'!I48<0.5),"-",IFERROR('Tabel 4 F'!I48/'Tabel 4F F'!I48*100,"-")) -> 9.872340426
A49: DJØF'ere i alt | C49: =IF(OR('Tabel 4F F'!C49<5,'Tabel 4 F'!C49<0.5),"-",IFERROR('Tabel 4 F'!C49/'Tabel 4F F'!C49*100,"-")) -> 18.42629482 | D49: =IF(OR('Tabel 4F F'!D49<5,'Tabel 4 F'!D49<0.5),"-",IFERROR('Tabel 4 F'!D49/'Tabel 4F F'!D49*100,"-")) -> 5.566870333 | E49: =IF(OR('Tabel 4F F'!E49<5,'Tabel 4 F'!E49<0.5),"-",IFERROR('Tabel 4 F'!E49/'Tabel 4F F'!E49*100,"-")) -> 2.807357212 | F49: =IF(OR('Tabel 4F F'!F49<5,'Tabel 4 F'!F49<0.5),"-",IFERROR('Tabel 4 F'!F49/'Tabel 4F F'!F49*100,"-")) -> 3.116147309 | G49: =IF(OR('Tabel 4F F'!G49<5,'Tabel 4 F'!G49<0.5),"-",IFERROR('Tabel 4 F'!G49/'Tabel 4F F'!G49*100,"-")) -> 1.935483871 | I49: =IF(OR('Tabel 4F F'!I49<5,'Tabel 4 F'!I49<0.5),"-",IFERROR('Tabel 4 F'!I49/'Tabel 4F F'!I49*100,"-")) -> 7.343857241
A56: Middelfart
C58: Under 30 år | D58: 30 - 39 år | E58: 40 - 49 år | F58: 50 - 59 år | G58: Over 60 år | I58: I alt
A60: Civ. ing. | C60: =IF(OR('Tabel 4F F'!C60<5,'Tabel 4 F'!C60<0.5),"-",IFERROR('Tabel 4 F'!C60/'Tabel 4F F'!C60*100,"-")) -> 14.28571429 | D60: =IF(OR('Tabel 4F F'!D60<5,'Tabel 4 F'!D60<0.5),"-",IFERROR('Tabel 4 F'!D60/'Tabel 4F F'!D60*100,"-")) -> - | E60: =IF(OR('Tabel 4F F'!E60<5,'Tabel 4 F'!E60<0.5),"-",IFERROR('Tabel 4 F'!E60/'Tabel 4F F'!E60*100,"-")) -> - | F60: =IF(OR('Tabel 4F F'!F60<5,'Tabel 4 F'!F60<0.5),"-",IFERROR('Tabel 4 F'!F60/'Tabel 4F F'!F60*100,"-")) -> - | G60: =IF(OR('Tabel 4F F'!G60<5,'Tabel 4 F'!G60<0.5),"-",IFERROR('Tabel 4 F'!G60/'Tabel 4F F'!G60*100,"-")) -> - | I60: =IF(OR('Tabel 4F F'!I60<5,'Tabel 4 F'!I60<0.5),"-",IFERROR('Tabel 4 F'!I60/'Tabel 4F F'!I60*100,"-")) -> 1.063829787
A61: Diplom ing. | C61: =IF(OR('Tabel 4F F'!C61<5,'Tabel 4 F'!C61<0.5),"-",IFERROR('Tabel 4 F'!C61/'Tabel 4F F'!C61*100,"-")) -> - | D61: =IF(OR('Tabel 4F F'!D61<5,'Tabel 4 F'!D61<0.5),"-",IFERROR('Tabel 4 F'!D61/'Tabel 4F F'!D61*100,"-")) -> 1.923076923 | E61: =IF(OR('Tabel 4F F'!E61<5,'Tabel 4 F'!E61<0.5),"-",IFERROR('Tabel 4 F'!E61/'Tabel 4F F'!E61*100,"-")) -> - | F61: =IF(OR('Tabel 4F F'!F61<5,'Tabel 4 F'!F61<0.5),"-",IFERROR('Tabel 4 F'!F61/'Tabel 4F F'!F61*100,"-")) -> - | G61: =IF(OR('Tabel 4F F'!G61<5,'Tabel 4 F'!G61<0.5),"-",IFERROR('Tabel 4 F'!G61/'Tabel 4F F'!G61*100,"-")) -> - | I61: =IF(OR('Tabel 4F F'!I61<5,'Tabel 4 F'!I61<0.5),"-",IFERROR('Tabel 4 F'!I61/'Tabel 4F F'!I61*100,"-")) -> 0.3558718861
A62: Cand. Scient. Tek | C62: =IF(OR('Tabel 4F F'!C62<5,'Tabel 4 F'!C62<0.5),"-",IFERROR('Tabel 4 F'!C62/'Tabel 4F F'!C62*100,"-")) -> 11.11111111 | D62: =IF(OR('Tabel 4F F'!D62<5,'Tabel 4 F'!D62<0.5),"-",IFERROR('Tabel 4 F'!D62/'Tabel 4F F'!D62*100,"-")) -> 11.11111111 | E62: =IF(OR('Tabel 4F F'!E62<5,'Tabel 4 F'!E62<0.5),"-",IFERROR('Tabel 4 F'!E62/'Tabel 4F F'!E62*100,"-")) -> 6.666666667 | F62: =IF(OR('Tabel 4F F'!F62<5,'Tabel 4 F'!F62<0.5),"-",IFERROR('Tabel 4 F'!F62/'Tabel 4F F'!F62*100,"-")) -> - | G62: =IF(OR('Tabel 4F F'!G62<5,'Tabel 4 F'!G62<0.5),"-",IFERROR('Tabel 4 F'!G62/'Tabel 4F F'!G62*100,"-")) -> - | I62: =IF(OR('Tabel 4F F'!I62<5,'Tabel 4 F'!I62<0.5),"-",IFERROR('Tabel 4 F'!I62/'Tabel 4F F'!I62*100,"-")) -> 8.888888889
A63: MA. Hum. | C63: =IF(OR('Tabel 4F F'!C63<5,'Tabel 4 F'!C63<0.5),"-",IFERROR('Tabel 4 F'!C63/'Tabel 4F F'!C63*100,"-")) -> 10 | D63: =IF(OR('Tabel 4F F'!D63<5,'Tabel 4 F'!D63<0.5),"-",IFERROR('Tabel 4 F'!D63/'Tabel 4F F'!D63*100,"-")) -> 10.20408163 | E63: =IF(OR('Tabel 4F F'!E63<5,'Tabel 4 F'!E63<0.5),"-",IFERROR('Tabel 4 F'!E63/'Tabel 4F F'!E63*100,"-")) -> 6.666666667 | F63: =IF(OR('Tabel 4F F'!F63<5,'Tabel 4 F'!F63<0.5),"-",IFERROR('Tabel 4 F'!F63/'Tabel 4F F'!F63*100,"-")) -> 14.28571429 | G63: =IF(OR('Tabel 4F F'!G63<5,'Tabel 4 F'!G63<0.5),"-",IFERROR('Tabel 4 F'!G63/'Tabel 4F F'!G63*100,"-")) -> - | I63: =IF(OR('Tabel 4F F'!I63<5,'Tabel 4 F'!I63<0.5),"-",IFERROR('Tabel 4 F'!I63/'Tabel 4F F'!I63*100,"-")) -> 8.441558442
A64: MA. Nat. | C64: =IF(OR('Tabel 4F F'!C64<5,'Tabel 4 F'!C64<0.5),"-",IFERROR('Tabel 4 F'!C64/'Tabel 4F F'!C64*100,"-")) -> - | D64: =IF(OR('Tabel 4F F'!D64<5,'Tabel 4 F'!D64<0.5),"-",IFERROR('Tabel 4 F'!D64/'Tabel 4F F'!D64*100,"-")) -> - | E64: =IF(OR('Tabel 4F F'!E64<5,'Tabel 4 F'!E64<0.5),"-",IFERROR('Tabel 4 F'!E64/'Tabel 4F F'!E64*100,"-")) -> - | F64: =IF(OR('Tabel 4F F'!F64<5,'Tabel 4 F'!F64<0.5),"-",IFERROR('Tabel 4 F'!F64/'Tabel 4F F'!F64*100,"-")) -> - | G64: =IF(OR('Tabel 4F F'!G64<5,'Tabel 4 F'!G64<0.5),"-",IFERROR('Tabel 4 F'!G64/'Tabel 4F F'!G64*100,"-")) -> - | I64: =IF(OR('Tabel 4F F'!I64<5,'Tabel 4 F'!I64<0.5),"-",IFERROR('Tabel 4 F'!I64/'Tabel 4F F'!I64*100,"-")) -> -
A65: MA. Ph.d. | C65: =IF(OR('Tabel 4F F'!C65<5,'Tabel 4 F'!C65<0.5),"-",IFERROR('Tabel 4 F'!C65/'Tabel 4F F'!C65*100,"-")) -> - | D65: =IF(OR('Tabel 4F F'!D65<5,'Tabel 4 F'!D65<0.5),"-",IFERROR('Tabel 4 F'!D65/'Tabel 4F F'!D65*100,"-")) -> - | E65: =IF(OR('Tabel 4F F'!E65<5,'Tabel 4 F'!E65<0.5),"-",IFERROR('Tabel 4 F'!E65/'Tabel 4F F'!E65*100,"-")) -> - | F65: =IF(OR('Tabel 4F F'!F65<5,'Tabel 4 F'!F65<0.5),"-",IFERROR('Tabel 4 F'!F65/'Tabel 4F F'!F65*100,"-")) -> - | G65: =IF(OR('Tabel 4F F'!G65<5,'Tabel 4 F'!G65<0.5),"-",IFERROR('Tabel 4 F'!G65/'Tabel 4F F'!G65*100,"-")) -> - | I65: =IF(OR('Tabel 4F F'!I65<5,'Tabel 4 F'!I65<0.5),"-",IFERROR('Tabel 4 F'!I65/'Tabel 4F F'!I65*100,"-")) -> -
A66: MA. Samf. | C66: =IF(OR('Tabel 4F F'!C66<5,'Tabel 4 F'!C66<0.5),"-",IFERROR('Tabel 4 F'!C66/'Tabel 4F F'!C66*100,"-")) -> - | D66: =IF(OR('Tabel 4F F'!D66<5,'Tabel 4 F'!D66<0.5),"-",IFERROR('Tabel 4 F'!D66/'Tabel 4F F'!D66*100,"-")) -> - | E66: =IF(OR('Tabel 4F F'!E66<5,'Tabel 4 F'!E66<0.5),"-",IFERROR('Tabel 4 F'!E66/'Tabel 4F F'!E66*100,"-")) -> - | F66: =IF(OR('Tabel 4F F'!F66<5,'Tabel 4 F'!F66<0.5),"-",IFERROR('Tabel 4 F'!F66/'Tabel 4F F'!F66*100,"-")) -> - | G66: =IF(OR('Tabel 4F F'!G66<5,'Tabel 4 F'!G66<0.5),"-",IFERROR('Tabel 4 F'!G66/'Tabel 4F F'!G66*100,"-")) -> - | I66: =IF(OR('Tabel 4F F'!I66<5,'Tabel 4 F'!I66<0.5),"-",IFERROR('Tabel 4 F'!I66/'Tabel 4F F'!I66*100,"-")) -> -
A67: Øvrige Mag. | C67: =IF(OR('Tabel 4F F'!C67<5,'Tabel 4 F'!C67<0.5),"-",IFERROR('Tabel 4 F'!C67/'Tabel 4F F'!C67*100,"-")) -> - | D67: =IF(OR('Tabel 4F F'!D67<5,'Tabel 4 F'!D67<0.5),"-",IFERROR('Tabel 4 F'!D67/'Tabel 4F F'!D67*100,"-")) -> - | E67: =IF(OR('Tabel 4F F'!E67<5,'Tabel 4 F'!E67<0.5),"-",IFERROR('Tabel 4 F'!E67/'Tabel 4F F'!E67*100,"-")) -> - | F67: =IF(OR('Tabel 4F F'!F67<5,'Tabel 4 F'!F67<0.5),"-",IFERROR('Tabel 4 F'!F67/'Tabel 4F F'!F67*100,"-")) -> - | G67: =IF(OR('Tabel 4F F'!G67<5,'Tabel 4 F'!G67<0.5),"-",IFERROR('Tabel 4 F'!G67/'Tabel 4F F'!G67*100,"-")) -> - | I67: =IF(OR('Tabel 4F F'!I67<5,'Tabel 4 F'!I67<0.5),"-",IFERROR('Tabel 4 F'!I67/'Tabel 4F F'!I67*100,"-")) -> -
A68: Agronom | C68: =IF(OR('Tabel 4F F'!C68<5,'Tabel 4 F'!C68<0.5),"-",IFERROR('Tabel 4 F'!C68/'Tabel 4F F'!C68*100,"-")) -> - | D68: =IF(OR('Tabel 4F F'!D68<5,'Tabel 4 F'!D68<0.5),"-",IFERROR('Tabel 4 F'!D68/'Tabel 4F F'!D68*100,"-")) -> - | E68: =IF(OR('Tabel 4F F'!E68<5,'Tabel 4 F'!E68<0.5),"-",IFERROR('Tabel 4 F'!E68/'Tabel 4F F'!E68*100,"-")) -> - | F68: =IF(OR('Tabel 4F F'!F68<5,'Tabel 4 F'!F68<0.5),"-",IFERROR('Tabel 4 F'!F68/'Tabel 4F F'!F68*100,"-")) -> - | G68: =IF(OR('Tabel 4F F'!G68<5,'Tabel 4 F'!G68<0.5),"-",IFERROR('Tabel 4 F'!G68/'Tabel 4F F'!G68*100,"-")) -> - | I68: =IF(OR('Tabel 4F F'!I68<5,'Tabel 4 F'!I68<0.5),"-",IFERROR('Tabel 4 F'!I68/'Tabel 4F F'!I68*100,"-")) -> -
A69: Landsk. Arkt. | C69: =IF(OR('Tabel 4F F'!C69<5,'Tabel 4 F'!C69<0.5),"-",IFERROR('Tabel 4 F'!C69/'Tabel 4F F'!C69*100,"-")) -> - | D69: =IF(OR('Tabel 4F F'!D69<5,'Tabel 4 F'!D69<0.5),"-",IFERROR('Tabel 4 F'!D69/'Tabel 4F F'!D69*100,"-")) -> - | E69: =IF(OR('Tabel 4F F'!E69<5,'Tabel 4 F'!E69<0.5),"-",IFERROR('Tabel 4 F'!E69/'Tabel 4F F'!E69*100,"-")) -> - | F69: =IF(OR('Tabel 4F F'!F69<5,'Tabel 4 F'!F69<0.5),"-",IFERROR('Tabel 4 F'!F69/'Tabel 4F F'!F69*100,"-")) -> - | G69: =IF(OR('Tabel 4F F'!G69<5,'Tabel 4 F'!G69<0.5),"-",IFERROR('Tabel 4 F'!G69/'Tabel 4F F'!G69*100,"-")) -> - | I69: =IF(OR('Tabel 4F F'!I69<5,'Tabel 4 F'!I69<0.5),"-",IFERROR('Tabel 4 F'!I69/'Tabel 4F F'!I69*100,"-")) -> -
A70: Hortonom | C70: =IF(OR('Tabel 4F F'!C70<5,'Tabel 4 F'!C70<0.5),"-",IFERROR('Tabel 4 F'!C70/'Tabel 4F F'!C70*100,"-")) -> - | D70: =IF(OR('Tabel 4F F'!D70<5,'Tabel 4 F'!D70<0.5),"-",IFERROR('Tabel 4 F'!D70/'Tabel 4F F'!D70*100,"-")) -> - | E70: =IF(OR('Tabel 4F F'!E70<5,'Tabel 4 F'!E70<0.5),"-",IFERROR('Tabel 4 F'!E70/'Tabel 4F F'!E70*100,"-")) -> - | F70: =IF(OR('Tabel 4F F'!F70<5,'Tabel 4 F'!F70<0.5),"-",IFERROR('Tabel 4 F'!F70/'Tabel 4F F'!F70*100,"-")) -> - | G70: =IF(OR('Tabel 4F F'!G70<5,'Tabel 4 F'!G70<0.5),"-",IFERROR('Tabel 4 F'!G70/'Tabel 4F F'!G70*100,"-")) -> - | I70: =IF(OR('Tabel 4F F'!I70<5,'Tabel 4 F'!I70<0.5),"-",IFERROR('Tabel 4 F'!I70/'Tabel 4F F'!I70*100,"-")) -> -
A71: Forstkand. | C71: =IF(OR('Tabel 4F F'!C71<5,'Tabel 4 F'!C71<0.5),"-",IFERROR('Tabel 4 F'!C71/'Tabel 4F F'!C71*100,"-")) -> - | D71: =IF(OR('Tabel 4F F'!D71<5,'Tabel 4 F'!D71<0.5),"-",IFERROR('Tabel 4 F'!D71/'Tabel 4F F'!D71*100,"-")) -> - | E71: =IF(OR('Tabel 4F F'!E71<5,'Tabel 4 F'!E71<0.5),"-",IFERROR('Tabel 4 F'!E71/'Tabel 4F F'!E71*100,"-")) -> - | F71: =IF(OR('Tabel 4F F'!F71<5,'Tabel 4 F'!F71<0.5),"-",IFERROR('Tabel 4 F'!F71/'Tabel 4F F'!F71*100,"-")) -> - | G71: =IF(OR('Tabel 4F F'!G71<5,'Tabel 4 F'!G71<0.5),"-",IFERROR('Tabel 4 F'!G71/'Tabel 4F F'!G71*100,"-")) -> - | I71: =IF(OR('Tabel 4F F'!I71<5,'Tabel 4 F'!I71<0.5),"-",IFERROR('Tabel 4 F'!I71/'Tabel 4F F'!I71*100,"-")) -> -
A72: Jordbrugsakad. | C72: =IF(OR('Tabel 4F F'!C72<5,'Tabel 4 F'!C72<0.5),"-",IFERROR('Tabel 4 F'!C72/'Tabel 4F F'!C72*100,"-")) -> - | D72: =IF(OR('Tabel 4F F'!D72<5,'Tabel 4 F'!D72<0.5),"-",IFERROR('Tabel 4 F'!D72/'Tabel 4F F'!D72*100,"-")) -> - | E72: =IF(OR('Tabel 4F F'!E72<5,'Tabel 4 F'!E72<0.5),"-",IFERROR('Tabel 4 F'!E72/'Tabel 4F F'!E72*100,"-")) -> - | F72: =IF(OR('Tabel 4F F'!F72<5,'Tabel 4 F'!F72<0.5),"-",IFERROR('Tabel 4 F'!F72/'Tabel 4F F'!F72*100,"-")) -> 5.263157895 | G72: =IF(OR('Tabel 4F F'!G72<5,'Tabel 4 F'!G72<0.5),"-",IFERROR('Tabel 4 F'!G72/'Tabel 4F F'!G72*100,"-")) -> - | I72: =IF(OR('Tabel 4F F'!I72<5,'Tabel 4 F'!I72<0.5),"-",IFERROR('Tabel 4 F'!I72/'Tabel 4F F'!I72*100,"-")) -> 2.777777778
A73: Mejeriing. | C73: =IF(OR('Tabel 4F F'!C73<5,'Tabel 4 F'!C73<0.5),"-",IFERROR('Tabel 4 F'!C73/'Tabel 4F F'!C73*100,"-")) -> - | D73: =IF(OR('Tabel 4F F'!D73<5,'Tabel 4 F'!D73<0.5),"-",IFERROR('Tabel 4 F'!D73/'Tabel 4F F'!D73*100,"-")) -> - | E73: =IF(OR('Tabel 4F F'!E73<5,'Tabel 4 F'!E73<0.5),"-",IFERROR('Tabel 4 F'!E73/'Tabel 4F F'!E73*100,"-")) -> - | F73: =IF(OR('Tabel 4F F'!F73<5,'Tabel 4 F'!F73<0.5),"-",IFERROR('Tabel 4 F'!F73/'Tabel 4F F'!F73*100,"-")) -> - | G73: =IF(OR('Tabel 4F F'!G73<5,'Tabel 4 F'!G73<0.5),"-",IFERROR('Tabel 4 F'!G73/'Tabel 4F F'!G73*100,"-")) -> - | I73: =IF(OR('Tabel 4F F'!I73<5,'Tabel 4 F'!I73<0.5),"-",IFERROR('Tabel 4 F'!I73/'Tabel 4F F'!I73*100,"-")) -> -
A74: Levn.m.kand. | C74: =IF(OR('Tabel 4F F'!C74<5,'Tabel 4 F'!C74<0.5),"-",IFERROR('Tabel 4 F'!C74/'Tabel 4F F'!C74*100,"-")) -> - | D74: =IF(OR('Tabel 4F F'!D74<5,'Tabel 4 F'!D74<0.5),"-",IFERROR('Tabel 4 F'!D74/'Tabel 4F F'!D74*100,"-")) -> - | E74: =IF(OR('Tabel 4F F'!E74<5,'Tabel 4 F'!E74<0.5),"-",IFERROR('Tabel 4 F'!E74/'Tabel 4F F'!E74*100,"-")) -> - | F74: =IF(OR('Tabel 4F F'!F74<5,'Tabel 4 F'!F74<0.5),"-",IFERROR('Tabel 4 F'!F74/'Tabel 4F F'!F74*100,"-")) -> - | G74: =IF(OR('Tabel 4F F'!G74<5,'Tabel 4 F'!G74<0.5),"-",IFERROR('Tabel 4 F'!G74/'Tabel 4F F'!G74*100,"-")) -> - | I74: =IF(OR('Tabel 4F F'!I74<5,'Tabel 4 F'!I74<0.5),"-",IFERROR('Tabel 4 F'!I74/'Tabel 4F F'!I74*100,"-")) -> -
A75: Dyrlæge | C75: =IF(OR('Tabel 4F F'!C75<5,'Tabel 4 F'!C75<0.5),"-",IFERROR('Tabel 4 F'!C75/'Tabel 4F F'!C75*100,"-")) -> - | D75: =IF(OR('Tabel 4F F'!D75<5,'Tabel 4 F'!D75<0.5),"-",IFERROR('Tabel 4 F'!D75/'Tabel 4F F'!D75*100,"-")) -> 10 | E75: =IF(OR('Tabel 4F F'!E75<5,'Tabel 4 F'!E75<0.5),"-",IFERROR('Tabel 4 F'!E75/'Tabel 4F F'!E75*100,"-")) -> - | F75: =IF(OR('Tabel 4F F'!F75<5,'Tabel 4 F'!F75<0.5),"-",IFERROR('Tabel 4 F'!F75/'Tabel 4F F'!F75*100,"-")) -> - | G75: =IF(OR('Tabel 4F F'!G75<5,'Tabel 4 F'!G75<0.5),"-",IFERROR('Tabel 4 F'!G75/'Tabel 4F F'!G75*100,"-")) -> - | I75: =IF(OR('Tabel 4F F'!I75<5,'Tabel 4 F'!I75<0.5),"-",IFERROR('Tabel 4 F'!I75/'Tabel 4F F'!I75*100,"-")) -> 5.882352941
A76: Farmaceut | C76: =IF(OR('Tabel 4F F'!C76<5,'Tabel 4 F'!C76<0.5),"-",IFERROR('Tabel 4 F'!C76/'Tabel 4F F'!C76*100,"-")) -> - | D76: =IF(OR('Tabel 4F F'!D76<5,'Tabel 4 F'!D76<0.5),"-",IFERROR('Tabel 4 F'!D76/'Tabel 4F F'!D76*100,"-")) -> - | E76: =IF(OR('Tabel 4F F'!E76<5,'Tabel 4 F'!E76<0.5),"-",IFERROR('Tabel 4 F'!E76/'Tabel 4F F'!E76*100,"-")) -> - | F76: =IF(OR('Tabel 4F F'!F76<5,'Tabel 4 F'!F76<0.5),"-",IFERROR('Tabel 4 F'!F76/'Tabel 4F F'!F76*100,"-")) -> - | G76: =IF(OR('Tabel 4F F'!G76<5,'Tabel 4 F'!G76<0.5),"-",IFERROR('Tabel 4 F'!G76/'Tabel 4F F'!G76*100,"-")) -> - | I76: =IF(OR('Tabel 4F F'!I76<5,'Tabel 4 F'!I76<0.5),"-",IFERROR('Tabel 4 F'!I76/'Tabel 4F F'!I76*100,"-")) -> 12.5
A77: Læge | C77: =IF(OR('Tabel 4F F'!C77<5,'Tabel 4 F'!C77<0.5),"-",IFERROR('Tabel 4 F'!C77/'Tabel 4F F'!C77*100,"-")) -> - | D77: =IF(OR('Tabel 4F F'!D77<5,'Tabel 4 F'!D77<0.5),"-",IFERROR('Tabel 4 F'!D77/'Tabel 4F F'!D77*100,"-")) -> - | E77: =IF(OR('Tabel 4F F'!E77<5,'Tabel 4 F'!E77<0.5),"-",IFERROR('Tabel 4 F'!E77/'Tabel 4F F'!E77*100,"-")) -> 3.846153846 | F77: =IF(OR('Tabel 4F F'!F77<5,'Tabel 4 F'!F77<0.5),"-",IFERROR('Tabel 4 F'!F77/'Tabel 4F F'!F77*100,"-")) -> - | G77: =IF(OR('Tabel 4F F'!G77<5,'Tabel 4 F'!G77<0.5),"-",IFERROR('Tabel 4 F'!G77/'Tabel 4F F'!G77*100,"-")) -> - | I77: =IF(OR('Tabel 4F F'!I77<5,'Tabel 4 F'!I77<0.5),"-",IFERROR('Tabel 4 F'!I77/'Tabel 4F F'!I77*100,"-")) -> 1.052631579
A78: Tandlæge | C78: =IF(OR('Tabel 4F F'!C78<5,'Tabel 4 F'!C78<0.5),"-",IFERROR('Tabel 4 F'!C78/'Tabel 4F F'!C78*100,"-")) -> - | D78: =IF(OR('Tabel 4F F'!D78<5,'Tabel 4 F'!D78<0.5),"-",IFERROR('Tabel 4 F'!D78/'Tabel 4F F'!D78*100,"-")) -> - | E78: =IF(OR('Tabel 4F F'!E78<5,'Tabel 4 F'!E78<0.5),"-",IFERROR('Tabel 4 F'!E78/'Tabel 4F F'!E78*100,"-")) -> - | F78: =IF(OR('Tabel 4F F'!F78<5,'Tabel 4 F'!F78<0.5),"-",IFERROR('Tabel 4 F'!F78/'Tabel 4F F'!F78*100,"-")) -> - | G78: =IF(OR('Tabel 4F F'!G78<5,'Tabel 4 F'!G78<0.5),"-",IFERROR('Tabel 4 F'!G78/'Tabel 4F F'!G78*100,"-")) -> - | I78: =IF(OR('Tabel 4F F'!I78<5,'Tabel 4 F'!I78<0.5),"-",IFERROR('Tabel 4 F'!I78/'Tabel 4F F'!I78*100,"-")) -> -
A79: Arkitekt | C79: =IF(OR('Tabel 4F F'!C79<5,'Tabel 4 F'!C79<0.5),"-",IFERROR('Tabel 4 F'!C79/'Tabel 4F F'!C79*100,"-")) -> - | D79: =IF(OR('Tabel 4F F'!D79<5,'Tabel 4 F'!D79<0.5),"-",IFERROR('Tabel 4 F'!D79/'Tabel 4F F'!D79*100,"-")) -> - | E79: =IF(OR('Tabel 4F F'!E79<5,'Tabel 4 F'!E79<0.5),"-",IFERROR('Tabel 4 F'!E79/'Tabel 4F F'!E79*100,"-")) -> - | F79: =IF(OR('Tabel 4F F'!F79<5,'Tabel 4 F'!F79<0.5),"-",IFERROR('Tabel 4 F'!F79/'Tabel 4F F'!F79*100,"-")) -> 16.66666667 | G79: =IF(OR('Tabel 4F F'!G79<5,'Tabel 4 F'!G79<0.5),"-",IFERROR('Tabel 4 F'!G79/'Tabel 4F F'!G79*100,"-")) -> - | I79: =IF(OR('Tabel 4F F'!I79<5,'Tabel 4 F'!I79<0.5),"-",IFERROR('Tabel 4 F'!I79/'Tabel 4F F'!I79*100,"-")) -> 6.666666667
A80: Landinspek. | C80: =IF(OR('Tabel 4F F'!C80<5,'Tabel 4 F'!C80<0.5),"-",IFERROR('Tabel 4 F'!C80/'Tabel 4F F'!C80*100,"-")) -> - | D80: =IF(OR('Tabel 4F F'!D80<5,'Tabel 4 F'!D80<0.5),"-",IFERROR('Tabel 4 F'!D80/'Tabel 4F F'!D80*100,"-")) -> - | E80: =IF(OR('Tabel 4F F'!E80<5,'Tabel 4 F'!E80<0.5),"-",IFERROR('Tabel 4 F'!E80/'Tabel 4F F'!E80*100,"-")) -> - | F80: =IF(OR('Tabel 4F F'!F80<5,'Tabel 4 F'!F80<0.5),"-",IFERROR('Tabel 4 F'!F80/'Tabel 4F F'!F80*100,"-")) -> - | G80: =IF(OR('Tabel 4F F'!G80<5,'Tabel 4 F'!G80<0.5),"-",IFERROR('Tabel 4 F'!G80/'Tabel 4F F'!G80*100,"-")) -> - | I80: =IF(OR('Tabel 4F F'!I80<5,'Tabel 4 F'!I80<0.5),"-",IFERROR('Tabel 4 F'!I80/'Tabel 4F F'!I80*100,"-")) -> -
A81: Bibliotekar | C81: =IF(OR('Tabel 4F F'!C81<5,'Tabel 4 F'!C81<0.5),"-",IFERROR('Tabel 4 F'!C81/'Tabel 4F F'!C81*100,"-")) -> - | D81: =IF(OR('Tabel 4F F'!D81<5,'Tabel 4 F'!D81<0.5),"-",IFERROR('Tabel 4 F'!D81/'Tabel 4F F'!D81*100,"-")) -> 14.28571429 | E81: =IF(OR('Tabel 4F F'!E81<5,'Tabel 4 F'!E81<0.5),"-",IFERROR('Tabel 4 F'!E81/'Tabel 4F F'!E81*100,"-")) -> - | F81: =IF(OR('Tabel 4F F'!F81<5,'Tabel 4 F'!F81<0.5),"-",IFERROR('Tabel 4 F'!F81/'Tabel 4F F'!F81*100,"-")) -> - | G81: =IF(OR('Tabel 4F F'!G81<5,'Tabel 4 F'!G81<0.5),"-",IFERROR('Tabel 4 F'!G81/'Tabel 4F F'!G81*100,"-")) -> - | I81: =IF(OR('Tabel 4F F'!I81<5,'Tabel 4 F'!I81<0.5),"-",IFERROR('Tabel 4 F'!I81/'Tabel 4F F'!I81*100,"-")) -> 5.263157895
A82: Musikudd. | C82: =IF(OR('Tabel 4F F'!C82<5,'Tabel 4 F'!C82<0.5),"-",IFERROR('Tabel 4 F'!C82/'Tabel 4F F'!C82*100,"-")) -> - | D82: =IF(OR('Tabel 4F F'!D82<5,'Tabel 4 F'!D82<0.5),"-",IFERROR('Tabel 4 F'!D82/'Tabel 4F F'!D82*100,"-")) -> - | E82: =IF(OR('Tabel 4F F'!E82<5,'Tabel 4 F'!E82<0.5),"-",IFERROR('Tabel 4 F'!E82/'Tabel 4F F'!E82*100,"-")) -> - | F82: =IF(OR('Tabel 4F F'!F82<5,'Tabel 4 F'!F82<0.5),"-",IFERROR('Tabel 4 F'!F82/'Tabel 4F F'!F82*100,"-")) -> - | G82: =IF(OR('Tabel 4F F'!G82<5,'Tabel 4 F'!G82<0.5),"-",IFERROR('Tabel 4 F'!G82/'Tabel 4F F'!G82*100,"-")) -> - | I82: =IF(OR('Tabel 4F F'!I82<5,'Tabel 4 F'!I82<0.5),"-",IFERROR('Tabel 4 F'!I82/'Tabel 4F F'!I82*100,"-")) -> -
A83: Teolog | C83: =IF(OR('Tabel 4F F'!C83<5,'Tabel 4 F'!C83<0.5),"-",IFERROR('Tabel 4 F'!C83/'Tabel 4F F'!C83*100,"-")) -> - | D83: =IF(OR('Tabel 4F F'!D83<5,'Tabel 4 F'!D83<0.5),"-",IFERROR('Tabel 4 F'!D83/'Tabel 4F F'!D83*100,"-")) -> - | E83: =IF(OR('Tabel 4F F'!E83<5,'Tabel 4 F'!E83<0.5),"-",IFERROR('Tabel 4 F'!E83/'Tabel 4F F'!E83*100,"-")) -> 20 | F83: =IF(OR('Tabel 4F F'!F83<5,'Tabel 4 F'!F83<0.5),"-",IFERROR('Tabel 4 F'!F83/'Tabel 4F F'!F83*100,"-")) -> - | G83: =IF(OR('Tabel 4F F'!G83<5,'Tabel 4 F'!G83<0.5),"-",IFERROR('Tabel 4 F'!G83/'Tabel 4F F'!G83*100,"-")) -> - | I83: =IF(OR('Tabel 4F F'!I83<5,'Tabel 4 F'!I83<0.5),"-",IFERROR('Tabel 4 F'!I83/'Tabel 4F F'!I83*100,"-")) -> 14.28571429
A84: Psykolog | C84: =IF(OR('Tabel 4F F'!C84<5,'Tabel 4 F'!C84<0.5),"-",IFERROR('Tabel 4 F'!C84/'Tabel 4F F'!C84*100,"-")) -> - | D84: =IF(OR('Tabel 4F F'!D84<5,'Tabel 4 F'!D84<0.5),"-",IFERROR('Tabel 4 F'!D84/'Tabel 4F F'!D84*100,"-")) -> - | E84: =IF(OR('Tabel 4F F'!E84<5,'Tabel 4 F'!E84<0.5),"-",IFERROR('Tabel 4 F'!E84/'Tabel 4F F'!E84*100,"-")) -> - | F84: =IF(OR('Tabel 4F F'!F84<5,'Tabel 4 F'!F84<0.5),"-",IFERROR('Tabel 4 F'!F84/'Tabel 4F F'!F84*100,"-")) -> - | G84: =IF(OR('Tabel 4F F'!G84<5,'Tabel 4 F'!G84<0.5),"-",IFERROR('Tabel 4 F'!G84/'Tabel 4F F'!G84*100,"-")) -> - | I84: =IF(OR('Tabel 4F F'!I84<5,'Tabel 4 F'!I84<0.5),"-",IFERROR('Tabel 4 F'!I84/'Tabel 4F F'!I84*100,"-")) -> -
A85: Jurist | C85: =IF(OR('Tabel 4F F'!C85<5,'Tabel 4 F'!C85<0.5),"-",IFERROR('Tabel 4 F'!C85/'Tabel 4F F'!C85*100,"-")) -> - | D85: =IF(OR('Tabel 4F F'!D85<5,'Tabel 4 F'!D85<0.5),"-",IFERROR('Tabel 4 F'!D85/'Tabel 4F F'!D85*100,"-")) -> - | E85: =IF(OR('Tabel 4F F'!E85<5,'Tabel 4 F'!E85<0.5),"-",IFERROR('Tabel 4 F'!E85/'Tabel 4F F'!E85*100,"-")) -> 14.28571429 | F85: =IF(OR('Tabel 4F F'!F85<5,'Tabel 4 F'!F85<0.5),"-",IFERROR('Tabel 4 F'!F85/'Tabel 4F F'!F85*100,"-")) -> - | G85: =IF(OR('Tabel 4F F'!G85<5,'Tabel 4 F'!G85<0.5),"-",IFERROR('Tabel 4 F'!G85/'Tabel 4F F'!G85*100,"-")) -> - | I85: =IF(OR('Tabel 4F F'!I85<5,'Tabel 4 F'!I85<0.5),"-",IFERROR('Tabel 4 F'!I85/'Tabel 4F F'!I85*100,"-")) -> 3.03030303
A86: Økonom | C86: =IF(OR('Tabel 4F F'!C86<5,'Tabel 4 F'!C86<0.5),"-",IFERROR('Tabel 4 F'!C86/'Tabel 4F F'!C86*100,"-")) -> - | D86: =IF(OR('Tabel 4F F'!D86<5,'Tabel 4 F'!D86<0.5),"-",IFERROR('Tabel 4 F'!D86/'Tabel 4F F'!D86*100,"-")) -> - | E86: =IF(OR('Tabel 4F F'!E86<5,'Tabel 4 F'!E86<0.5),"-",IFERROR('Tabel 4 F'!E86/'Tabel 4F F'!E86*100,"-")) -> - | F86: =IF(OR('Tabel 4F F'!F86<5,'Tabel 4 F'!F86<0.5),"-",IFERROR('Tabel 4 F'!F86/'Tabel 4F F'!F86*100,"-")) -> - | G86: =IF(OR('Tabel 4F F'!G86<5,'Tabel 4 F'!G86<0.5),"-",IFERROR('Tabel 4 F'!G86/'Tabel 4F F'!G86*100,"-")) -> - | I86: =IF(OR('Tabel 4F F'!I86<5,'Tabel 4 F'!I86<0.5),"-",IFERROR('Tabel 4 F'!I86/'Tabel 4F F'!I86*100,"-")) -> -
A87: Samf. Adm. | C87: =IF(OR('Tabel 4F F'!C87<5,'Tabel 4 F'!C87<0.5),"-",IFERROR('Tabel 4 F'!C87/'Tabel 4F F'!C87*100,"-")) -> - | D87: =IF(OR('Tabel 4F F'!D87<5,'Tabel 4 F'!D87<0.5),"-",IFERROR('Tabel 4 F'!D87/'Tabel 4F F'!D87*100,"-")) -> 10 | E87: =IF(OR('Tabel 4F F'!E87<5,'Tabel 4 F'!E87<0.5),"-",IFERROR('Tabel 4 F'!E87/'Tabel 4F F'!E87*100,"-")) -> - | F87: =IF(OR('Tabel 4F F'!F87<5,'Tabel 4 F'!F87<0.5),"-",IFERROR('Tabel 4 F'!F87/'Tabel 4F F'!F87*100,"-")) -> - | G87: =IF(OR('Tabel 4F F'!G87<5,'Tabel 4 F'!G87<0.5),"-",IFERROR('Tabel 4 F'!G87/'Tabel 4F F'!G87*100,"-")) -> - | I87: =IF(OR('Tabel 4F F'!I87<5,'Tabel 4 F'!I87<0.5),"-",IFERROR('Tabel 4 F'!I87/'Tabel 4F F'!I87*100,"-")) -> 3.896103896
A88: Cand. Merc. | C88: =IF(OR('Tabel 4F F'!C88<5,'Tabel 4 F'!C88<0.5),"-",IFERROR('Tabel 4 F'!C88/'Tabel 4F F'!C88*100,"-")) -> 16.66666667 | D88: =IF(OR('Tabel 4F F'!D88<5,'Tabel 4 F'!D88<0.5),"-",IFERROR('Tabel 4 F'!D88/'Tabel 4F F'!D88*100,"-")) -> 4.444444444 | E88: =IF(OR('Tabel 4F F'!E88<5,'Tabel 4 F'!E88<0.5),"-",IFERROR('Tabel 4 F'!E88/'Tabel 4F F'!E88*100,"-")) -> 2.43902439 | F88: =IF(OR('Tabel 4F F'!F88<5,'Tabel 4 F'!F88<0.5),"-",IFERROR('Tabel 4 F'!F88/'Tabel 4F F'!F88*100,"-")) -> 4.166666667 | G88: =IF(OR('Tabel 4F F'!G88<5,'Tabel 4 F'!G88<0.5),"-",IFERROR('Tabel 4 F'!G88/'Tabel 4F F'!G88*100,"-")) -> - | I88: =IF(OR('Tabel 4F F'!I88<5,'Tabel 4 F'!I88<0.5),"-",IFERROR('Tabel 4 F'!I88/'Tabel 4F F'!I88*100,"-")) -> 4.761904762
A89: HA | C89: =IF(OR('Tabel 4F F'!C89<5,'Tabel 4 F'!C89<0.5),"-",IFERROR('Tabel 4 F'!C89/'Tabel 4F F'!C89*100,"-")) -> - | D89: =IF(OR('Tabel 4F F'!D89<5,'Tabel 4 F'!D89<0.5),"-",IFERROR('Tabel 4 F'!D89/'Tabel 4F F'!D89*100,"-")) -> - | E89: =IF(OR('Tabel 4F F'!E89<5,'Tabel 4 F'!E89<0.5),"-",IFERROR('Tabel 4 F'!E89/'Tabel 4F F'!E89*100,"-")) -> - | F89: =IF(OR('Tabel 4F F'!F89<5,'Tabel 4 F'!F89<0.5),"-",IFERROR('Tabel 4 F'!F89/'Tabel 4F F'!F89*100,"-")) -> 7.692307692 | G89: =IF(OR('Tabel 4F F'!G89<5,'Tabel 4 F'!G89<0.5),"-",IFERROR('Tabel 4 F'!G89/'Tabel 4F F'!G89*100,"-")) -> - | I89: =IF(OR('Tabel 4F F'!I89<5,'Tabel 4 F'!I89<0.5),"-",IFERROR('Tabel 4 F'!I89/'Tabel 4F F'!I89*100,"-")) -> 3.448275862
A90: HD | C90: =IF(OR('Tabel 4F F'!C90<5,'Tabel 4 F'!C90<0.5),"-",IFERROR('Tabel 4 F'!C90/'Tabel 4F F'!C90*100,"-")) -> - | D90: =IF(OR('Tabel 4F F'!D90<5,'Tabel 4 F'!D90<0.5),"-",IFERROR('Tabel 4 F'!D90/'Tabel 4F F'!D90*100,"-")) -> - | E90: =IF(OR('Tabel 4F F'!E90<5,'Tabel 4 F'!E90<0.5),"-",IFERROR('Tabel 4 F'!E90/'Tabel 4F F'!E90*100,"-")) -> - | F90: =IF(OR('Tabel 4F F'!F90<5,'Tabel 4 F'!F90<0.5),"-",IFERROR('Tabel 4 F'!F90/'Tabel 4F F'!F90*100,"-")) -> 14.28571429 | G90: =IF(OR('Tabel 4F F'!G90<5,'Tabel 4 F'!G90<0.5),"-",IFERROR('Tabel 4 F'!G90/'Tabel 4F F'!G90*100,"-")) -> - | I90: =IF(OR('Tabel 4F F'!I90<5,'Tabel 4 F'!I90<0.5),"-",IFERROR('Tabel 4 F'!I90/'Tabel 4F F'!I90*100,"-")) -> 5.555555556
A91: Komm. og Sprog | C91: =IF(OR('Tabel 4F F'!C91<5,'Tabel 4 F'!C91<0.5),"-",IFERROR('Tabel 4 F'!C91/'Tabel 4F F'!C91*100,"-")) -> - | D91: =IF(OR('Tabel 4F F'!D91<5,'Tabel 4 F'!D91<0.5),"-",IFERROR('Tabel 4 F'!D91/'Tabel 4F F'!D91*100,"-")) -> - | E91: =IF(OR('Tabel 4F F'!E91<5,'Tabel 4 F'!E91<0.5),"-",IFERROR('Tabel 4 F'!E91/'Tabel 4F F'!E91*100,"-")) -> 9.090909091 | F91: =IF(OR('Tabel 4F F'!F91<5,'Tabel 4 F'!F91<0.5),"-",IFERROR('Tabel 4 F'!F91/'Tabel 4F F'!F91*100,"-")) -> - | G91: =IF(OR('Tabel 4F F'!G91<5,'Tabel 4 F'!G91<0.5),"-",IFERROR('Tabel 4 F'!G91/'Tabel 4F F'!G91*100,"-")) -> - | I91: =IF(OR('Tabel 4F F'!I91<5,'Tabel 4 F'!I91<0.5),"-",IFERROR('Tabel 4 F'!I91/'Tabel 4F F'!I91*100,"-")) -> 5.882352941
A92: Cand. IT. | C92: =IF(OR('Tabel 4F F'!C92<5,'Tabel 4 F'!C92<0.5),"-",IFERROR('Tabel 4 F'!C92/'Tabel 4F F'!C92*100,"-")) -> - | D92: =IF(OR('Tabel 4F F'!D92<5,'Tabel 4 F'!D92<0.5),"-",IFERROR('Tabel 4 F'!D92/'Tabel 4F F'!D92*100,"-")) -> - | E92: =IF(OR('Tabel 4F F'!E92<5,'Tabel 4 F'!E92<0.5),"-",IFERROR('Tabel 4 F'!E92/'Tabel 4F F'!E92*100,"-")) -> - | F92: =IF(OR('Tabel 4F F'!F92<5,'Tabel 4 F'!F92<0.5),"-",IFERROR('Tabel 4 F'!F92/'Tabel 4F F'!F92*100,"-")) -> - | G92: =IF(OR('Tabel 4F F'!G92<5,'Tabel 4 F'!G92<0.5),"-",IFERROR('Tabel 4 F'!G92/'Tabel 4F F'!G92*100,"-")) -> - | I92: =IF(OR('Tabel 4F F'!I92<5,'Tabel 4 F'!I92<0.5),"-",IFERROR('Tabel 4 F'!I92/'Tabel 4F F'!I92*100,"-")) -> -
A93: Bac. Samf. | C93: =IF(OR('Tabel 4F F'!C93<5,'Tabel 4 F'!C93<0.5),"-",IFERROR('Tabel 4 F'!C93/'Tabel 4F F'!C93*100,"-")) -> - | D93: =IF(OR('Tabel 4F F'!D93<5,'Tabel 4 F'!D93<0.5),"-",IFERROR('Tabel 4 F'!D93/'Tabel 4F F'!D93*100,"-")) -> - | E93: =IF(OR('Tabel 4F F'!E93<5,'Tabel 4 F'!E93<0.5),"-",IFERROR('Tabel 4 F'!E93/'Tabel 4F F'!E93*100,"-")) -> - | F93: =IF(OR('Tabel 4F F'!F93<5,'Tabel 4 F'!F93<0.5),"-",IFERROR('Tabel 4 F'!F93/'Tabel 4F F'!F93*100,"-")) -> - | G93: =IF(OR('Tabel 4F F'!G93<5,'Tabel 4 F'!G93<0.5),"-",IFERROR('Tabel 4 F'!G93/'Tabel 4F F'!G93*100,"-")) -> - | I93: =IF(OR('Tabel 4F F'!I93<5,'Tabel 4 F'!I93<0.5),"-",IFERROR('Tabel 4 F'!I93/'Tabel 4F F'!I93*100,"-")) -> -
A94: Bac. Hum. | C94: =IF(OR('Tabel 4F F'!C94<5,'Tabel 4 F'!C94<0.5),"-",IFERROR('Tabel 4 F'!C94/'Tabel 4F F'!C94*100,"-")) -> - | D94: =IF(OR('Tabel 4F F'!D94<5,'Tabel 4 F'!D94<0.5),"-",IFERROR('Tabel 4 F'!D94/'Tabel 4F F'!D94*100,"-")) -> - | E94: =IF(OR('Tabel 4F F'!E94<5,'Tabel 4 F'!E94<0.5),"-",IFERROR('Tabel 4 F'!E94/'Tabel 4F F'!E94*100,"-")) -> - | F94: =IF(OR('Tabel 4F F'!F94<5,'Tabel 4 F'!F94<0.5),"-",IFERROR('Tabel 4 F'!F94/'Tabel 4F F'!F94*100,"-")) -> - | G94: =IF(OR('Tabel 4F F'!G94<5,'Tabel 4 F'!G94<0.5),"-",IFERROR('Tabel 4 F'!G94/'Tabel 4F F'!G94*100,"-")) -> - | I94: =IF(OR('Tabel 4F F'!I94<5,'Tabel 4 F'!I94<0.5),"-",IFERROR('Tabel 4 F'!I94/'Tabel 4F F'!I94*100,"-")) -> 11.11111111
A95: Bac. Nat. | C95: =IF(OR('Tabel 4F F'!C95<5,'Tabel 4 F'!C95<0.5),"-",IFERROR('Tabel 4 F'!C95/'Tabel 4F F'!C95*100,"-")) -> - | D95: =IF(OR('Tabel 4F F'!D95<5,'Tabel 4 F'!D95<0.5),"-",IFERROR('Tabel 4 F'!D95/'Tabel 4F F'!D95*100,"-")) -> - | E95: =IF(OR('Tabel 4F F'!E95<5,'Tabel 4 F'!E95<0.5),"-",IFERROR('Tabel 4 F'!E95/'Tabel 4F F'!E95*100,"-")) -> - | F95: =IF(OR('Tabel 4F F'!F95<5,'Tabel 4 F'!F95<0.5),"-",IFERROR('Tabel 4 F'!F95/'Tabel 4F F'!F95*100,"-")) -> - | G95: =IF(OR('Tabel 4F F'!G95<5,'Tabel 4 F'!G95<0.5),"-",IFERROR('Tabel 4 F'!G95/'Tabel 4F F'!G95*100,"-")) -> - | I95: =IF(OR('Tabel 4F F'!I95<5,'Tabel 4 F'!I95<0.5),"-",IFERROR('Tabel 4 F'!I95/'Tabel 4F F'!I95*100,"-")) -> 14.28571429
A96: Andre | C96: =IF(OR('Tabel 4F F'!C96<5,'Tabel 4 F'!C96<0.5),"-",IFERROR('Tabel 4 F'!C96/'Tabel 4F F'!C96*100,"-")) -> - | D96: =IF(OR('Tabel 4F F'!D96<5,'Tabel 4 F'!D96<0.5),"-",IFERROR('Tabel 4 F'!D96/'Tabel 4F F'!D96*100,"-")) -> - | E96: =IF(OR('Tabel 4F F'!E96<5,'Tabel 4 F'!E96<0.5),"-",IFERROR('Tabel 4 F'!E96/'Tabel 4F F'!E96*100,"-")) -> 7.407407407 | F96: =IF(OR('Tabel 4F F'!F96<5,'Tabel 4 F'!F96<0.5),"-",IFERROR('Tabel 4 F'!F96/'Tabel 4F F'!F96*100,"-")) -> 5 | G96: =IF(OR('Tabel 4F F'!G96<5,'Tabel 4 F'!G96<0.5),"-",IFERROR('Tabel 4 F'!G96/'Tabel 4F F'!G96*100,"-")) -> 28.57142857 | I96: =IF(OR('Tabel 4F F'!I96<5,'Tabel 4 F'!I96<0.5),"-",IFERROR('Tabel 4 F'!I96/'Tabel 4F F'!I96*100,"-")) -> 6.944444444
A98: Total | C98: =IF(OR('Tabel 4F F'!C98<5,'Tabel 4 F'!C98<0.5),"-",IFERROR('Tabel 4 F'!C98/'Tabel 4F F'!C98*100,"-")) -> 7.843137255 | D98: =IF(OR('Tabel 4F F'!D98<5,'Tabel 4 F'!D98<0.5),"-",IFERROR('Tabel 4 F'!D98/'Tabel 4F F'!D98*100,"-")) -> 3.947368421 | E98: =IF(OR('Tabel 4F F'!E98<5,'Tabel 4 F'!E98<0.5),"-",IFERROR('Tabel 4 F'!E98/'Tabel 4F F'!E98*100,"-")) -> 2.78372591 | F98: =IF(OR('Tabel 4F F'!F98<5,'Tabel 4 F'!F98<0.5),"-",IFERROR('Tabel 4 F'!F98/'Tabel 4F F'!F98*100,"-")) -> 2.73556231 | G98: =IF(OR('Tabel 4F F'!G98<5,'Tabel 4 F'!G98<0.5),"-",IFERROR('Tabel 4 F'!G98/'Tabel 4F F'!G98*100,"-")) -> 2.727272727 | I98: =IF(OR('Tabel 4F F'!I98<5,'Tabel 4 F'!I98<0.5),"-",IFERROR('Tabel 4 F'!I98/'Tabel 4F F'!I98*100,"-")) -> 3.458213256
A100: Ingeniører i alt | C100: =IF(OR('Tabel 4F F'!C100<5,'Tabel 4 F'!C100<0.5),"-",IFERROR('Tabel 4 F'!C100/'Tabel 4F F'!C100*100,"-")) -> 5 | D100: =IF(OR('Tabel 4F F'!D100<5,'Tabel 4 F'!D100<0.5),"-",IFERROR('Tabel 4 F'!D100/'Tabel 4F F'!D100*100,"-")) -> 1.204819277 | E100: =IF(OR('Tabel 4F F'!E100<5,'Tabel 4 F'!E100<0.5),"-",IFERROR('Tabel 4 F'!E100/'Tabel 4F F'!E100*100,"-")) -> - | F100: =IF(OR('Tabel 4F F'!F100<5,'Tabel 4 F'!F100<0.5),"-",IFERROR('Tabel 4 F'!F100/'Tabel 4F F'!F100*100,"-")) -> - | G100: =IF(OR('Tabel 4F F'!G100<5,'Tabel 4 F'!G100<0.5),"-",IFERROR('Tabel 4 F'!G100/'Tabel 4F F'!G100*100,"-")) -> - | I100: =IF(OR('Tabel 4F F'!I100<5,'Tabel 4 F'!I100<0.5),"-",IFERROR('Tabel 4 F'!I100/'Tabel 4F F'!I100*100,"-")) -> 0.5333333333
A101: Magistre i alt | C101: =IF(OR('Tabel 4F F'!C101<5,'Tabel 4 F'!C101<0.5),"-",IFERROR('Tabel 4 F'!C101/'Tabel 4F F'!C101*100,"-")) -> 7.692307692 | D101: =IF(OR('Tabel 4F F'!D101<5,'Tabel 4 F'!D101<0.5),"-",IFERROR('Tabel 4 F'!D101/'Tabel 4F F'!D101*100,"-")) -> 7.142857143 | E101: =IF(OR('Tabel 4F F'!E101<5,'Tabel 4 F'!E101<0.5),"-",IFERROR('Tabel 4 F'!E101/'Tabel 4F F'!E101*100,"-")) -> 4.255319149 | F101: =IF(OR('Tabel 4F F'!F101<5,'Tabel 4 F'!F101<0.5),"-",IFERROR('Tabel 4 F'!F101/'Tabel 4F F'!F101*100,"-")) -> 7.894736842 | G101: =IF(OR('Tabel 4F F'!G101<5,'Tabel 4 F'!G101<0.5),"-",IFERROR('Tabel 4 F'!G101/'Tabel 4F F'!G101*100,"-")) -> - | I101: =IF(OR('Tabel 4F F'!I101<5,'Tabel 4 F'!I101<0.5),"-",IFERROR('Tabel 4 F'!I101/'Tabel 4F F'!I101*100,"-")) -> 5.462184874
A102: DJØF'ere i alt | C102: =IF(OR('Tabel 4F F'!C102<5,'Tabel 4 F'!C102<0.5),"-",IFERROR('Tabel 4 F'!C102/'Tabel 4F F'!C102*100,"-")) -> 8 | D102: =IF(OR('Tabel 4F F'!D102<5,'Tabel 4 F'!D102<0.5),"-",IFERROR('Tabel 4 F'!D102/'Tabel 4F F'!D102*100,"-")) -> 4.901960784 | E102: =IF(OR('Tabel 4F F'!E102<5,'Tabel 4 F'!E102<0.5),"-",IFERROR('Tabel 4 F'!E102/'Tabel 4F F'!E102*100,"-")) -> 1.923076923 | F102: =IF(OR('Tabel 4F F'!F102<5,'Tabel 4 F'!F102<0.5),"-",IFERROR('Tabel 4 F'!F102/'Tabel 4F F'!F102*100,"-")) -> 3.125 | G102: =IF(OR('Tabel 4F F'!G102<5,'Tabel 4 F'!G102<0.5),"-",IFERROR('Tabel 4 F'!G102/'Tabel 4F F'!G102*100,"-")) -> - | I102: =IF(OR('Tabel 4F F'!I102<5,'Tabel 4 F'!I102<0.5),"-",IFERROR('Tabel 4 F'!I102/'Tabel 4F F'!I102*100,"-")) -> 3.618421053
A109: Assens
C111: Under 30 år | D111: 30 - 39 år | E111: 40 - 49 år | F111: 50 - 59 år | G111: Over 60 år | I111: I alt
A113: Civ. ing. | C113: =IF(OR('Tabel 4F F'!C113<5,'Tabel 4 F'!C113<0.5),"-",IFERROR('Tabel 4 F'!C113/'Tabel 4F F'!C113*100,"-")) -> 14.28571429 | D113: =IF(OR('Tabel 4F F'!D113<5,'Tabel 4 F'!D113<0.5),"-",IFERROR('Tabel 4 F'!D113/'Tabel 4F F'!D113*100,"-")) -> 6.25 | E113: =IF(OR('Tabel 4F F'!E113<5,'Tabel 4 F'!E113<0.5),"-",IFERROR('Tabel 4 F'!E113/'Tabel 4F F'!E113*100,"-")) -> - | F113: =IF(OR('Tabel 4F F'!F113<5,'Tabel 4 F'!F113<0.5),"-",IFERROR('Tabel 4 F'!F113/'Tabel 4F F'!F113*100,"-")) -> - | G113: =IF(OR('Tabel 4F F'!G113<5,'Tabel 4 F'!G113<0.5),"-",IFERROR('Tabel 4 F'!G113/'Tabel 4F F'!G113*100,"-")) -> - | I113: =IF(OR('Tabel 4F F'!I113<5,'Tabel 4 F'!I113<0.5),"-",IFERROR('Tabel 4 F'!I113/'Tabel 4F F'!I113*100,"-")) -> 3.571428571
A114: Diplom ing. | C114: =IF(OR('Tabel 4F F'!C114<5,'Tabel 4 F'!C114<0.5),"-",IFERROR('Tabel 4 F'!C114/'Tabel 4F F'!C114*100,"-")) -> - | D114: =IF(OR('Tabel 4F F'!D114<5,'Tabel 4 F'!D114<0.5),"-",IFERROR('Tabel 4 F'!D114/'Tabel 4F F'!D114*100,"-")) -> 2.941176471 | E114: =IF(OR('Tabel 4F F'!E114<5,'Tabel 4 F'!E114<0.5),"-",IFERROR('Tabel 4 F'!E114/'Tabel 4F F'!E114*100,"-")) -> 2.469135802 | F114: =IF(OR('Tabel 4F F'!F114<5,'Tabel 4 F'!F114<0.5),"-",IFERROR('Tabel 4 F'!F114/'Tabel 4F F'!F114*100,"-")) -> 3.488372093 | G114: =IF(OR('Tabel 4F F'!G114<5,'Tabel 4 F'!G114<0.5),"-",IFERROR('Tabel 4 F'!G114/'Tabel 4F F'!G114*100,"-")) -> - | I114: =IF(OR('Tabel 4F F'!I114<5,'Tabel 4 F'!I114<0.5),"-",IFERROR('Tabel 4 F'!I114/'Tabel 4F F'!I114*100,"-")) -> 2.575107296
A115: Cand. Scient. Tek | C115: =IF(OR('Tabel 4F F'!C115<5,'Tabel 4 F'!C115<0.5),"-",IFERROR('Tabel 4 F'!C115/'Tabel 4F F'!C115*100,"-")) -> 25 | D115: =IF(OR('Tabel 4F F'!D115<5,'Tabel 4 F'!D115<0.5),"-",IFERROR('Tabel 4 F'!D115/'Tabel 4F F'!D115*100,"-")) -> 5.882352941 | E115: =IF(OR('Tabel 4F F'!E115<5,'Tabel 4 F'!E115<0.5),"-",IFERROR('Tabel 4 F'!E115/'Tabel 4F F'!E115*100,"-")) -> - | F115: =IF(OR('Tabel 4F F'!F115<5,'Tabel 4 F'!F115<0.5),"-",IFERROR('Tabel 4 F'!F115/'Tabel 4F F'!F115*100,"-")) -> - | G115: =IF(OR('Tabel 4F F'!G115<5,'Tabel 4 F'!G115<0.5),"-",IFERROR('Tabel 4 F'!G115/'Tabel 4F F'!G115*100,"-")) -> - | I115: =IF(OR('Tabel 4F F'!I115<5,'Tabel 4 F'!I115<0.5),"-",IFERROR('Tabel 4 F'!I115/'Tabel 4F F'!I115*100,"-")) -> 9.375
A116: MA. Hum. | C116: =IF(OR('Tabel 4F F'!C116<5,'Tabel 4 F'!C116<0.5),"-",IFERROR('Tabel 4 F'!C116/'Tabel 4F F'!C116*100,"-")) -> 20 | D116: =IF(OR('Tabel 4F F'!D116<5,'Tabel 4 F'!D116<0.5),"-",IFERROR('Tabel 4 F'!D116/'Tabel 4F F'!D116*100,"-")) -> 4.545454545 | E116: =IF(OR('Tabel 4F F'!E116<5,'Tabel 4 F'!E116<0.5),"-",IFERROR('Tabel 4 F'!E116/'Tabel 4F F'!E116*100,"-")) -> 5.172413793 | F116: =IF(OR('Tabel 4F F'!F116<5,'Tabel 4 F'!F116<0.5),"-",IFERROR('Tabel 4 F'!F116/'Tabel 4F F'!F116*100,"-")) -> - | G116: =IF(OR('Tabel 4F F'!G116<5,'Tabel 4 F'!G116<0.5),"-",IFERROR('Tabel 4 F'!G116/'Tabel 4F F'!G116*100,"-")) -> - | I116: =IF(OR('Tabel 4F F'!I116<5,'Tabel 4 F'!I116<0.5),"-",IFERROR('Tabel 4 F'!I116/'Tabel 4F F'!I116*100,"-")) -> 4.47761194
A117: MA. Nat. | C117: =IF(OR('Tabel 4F F'!C117<5,'Tabel 4 F'!C117<0.5),"-",IFERROR('Tabel 4 F'!C117/'Tabel 4F F'!C117*100,"-")) -> - | D117: =IF(OR('Tabel 4F F'!D117<5,'Tabel 4 F'!D117<0.5),"-",IFERROR('Tabel 4 F'!D117/'Tabel 4F F'!D117*100,"-")) -> 15.38461538 | E117: =IF(OR('Tabel 4F F'!E117<5,'Tabel 4 F'!E117<0.5),"-",IFERROR('Tabel 4 F'!E117/'Tabel 4F F'!E117*100,"-")) -> - | F117: =IF(OR('Tabel 4F F'!F117<5,'Tabel 4 F'!F117<0.5),"-",IFERROR('Tabel 4 F'!F117/'Tabel 4F F'!F117*100,"-")) -> - | G117: =IF(OR('Tabel 4F F'!G117<5,'Tabel 4 F'!G117<0.5),"-",IFERROR('Tabel 4 F'!G117/'Tabel 4F F'!G117*100,"-")) -> - | I117: =IF(OR('Tabel 4F F'!I117<5,'Tabel 4 F'!I117<0.5),"-",IFERROR('Tabel 4 F'!I117/'Tabel 4F F'!I117*100,"-")) -> 3.571428571
A118: MA. Ph.d. | C118: =IF(OR('Tabel 4F F'!C118<5,'Tabel 4 F'!C118<0.5),"-",IFERROR('Tabel 4 F'!C118/'Tabel 4F F'!C118*100,"-")) -> - | D118: =IF(OR('Tabel 4F F'!D118<5,'Tabel 4 F'!D118<0.5),"-",IFERROR('Tabel 4 F'!D118/'Tabel 4F F'!D118*100,"-")) -> - | E118: =IF(OR('Tabel 4F F'!E118<5,'Tabel 4 F'!E118<0.5),"-",IFERROR('Tabel 4 F'!E118/'Tabel 4F F'!E118*100,"-")) -> - | F118: =IF(OR('Tabel 4F F'!F118<5,'Tabel 4 F'!F118<0.5),"-",IFERROR('Tabel 4 F'!F118/'Tabel 4F F'!F118*100,"-")) -> - | G118: =IF(OR('Tabel 4F F'!G118<5,'Tabel 4 F'!G118<0.5),"-",IFERROR('Tabel 4 F'!G118/'Tabel 4F F'!G118*100,"-")) -> - | I118: =IF(OR('Tabel 4F F'!I118<5,'Tabel 4 F'!I118<0.5),"-",IFERROR('Tabel 4 F'!I118/'Tabel 4F F'!I118*100,"-")) -> -
A119: MA. Samf. | C119: =IF(OR('Tabel 4F F'!C119<5,'Tabel 4 F'!C119<0.5),"-",IFERROR('Tabel 4 F'!C119/'Tabel 4F F'!C119*100,"-")) -> - | D119: =IF(OR('Tabel 4F F'!D119<5,'Tabel 4 F'!D119<0.5),"-",IFERROR('Tabel 4 F'!D119/'Tabel 4F F'!D119*100,"-")) -> - | E119: =IF(OR('Tabel 4F F'!E119<5,'Tabel 4 F'!E119<0.5),"-",IFERROR('Tabel 4 F'!E119/'Tabel 4F F'!E119*100,"-")) -> - | F119: =IF(OR('Tabel 4F F'!F119<5,'Tabel 4 F'!F119<0.5),"-",IFERROR('Tabel 4 F'!F119/'Tabel 4F F'!F119*100,"-")) -> - | G119: =IF(OR('Tabel 4F F'!G119<5,'Tabel 4 F'!G119<0.5),"-",IFERROR('Tabel 4 F'!G119/'Tabel 4F F'!G119*100,"-")) -> - | I119: =IF(OR('Tabel 4F F'!I119<5,'Tabel 4 F'!I119<0.5),"-",IFERROR('Tabel 4 F'!I119/'Tabel 4F F'!I119*100,"-")) -> 20
A120: Øvrige Mag. | C120: =IF(OR('Tabel 4F F'!C120<5,'Tabel 4 F'!C120<0.5),"-",IFERROR('Tabel 4 F'!C120/'Tabel 4F F'!C120*100,"-")) -> - | D120: =IF(OR('Tabel 4F F'!D120<5,'Tabel 4 F'!D120<0.5),"-",IFERROR('Tabel 4 F'!D120/'Tabel 4F F'!D120*100,"-")) -> - | E120: =IF(OR('Tabel 4F F'!E120<5,'Tabel 4 F'!E120<0.5),"-",IFERROR('Tabel 4 F'!E120/'Tabel 4F F'!E120*100,"-")) -> - | F120: =IF(OR('Tabel 4F F'!F120<5,'Tabel 4 F'!F120<0.5),"-",IFERROR('Tabel 4 F'!F120/'Tabel 4F F'!F120*100,"-")) -> - | G120: =IF(OR('Tabel 4F F'!G120<5,'Tabel 4 F'!G120<0.5),"-",IFERROR('Tabel 4 F'!G120/'Tabel 4F F'!G120*100,"-")) -> - | I120: =IF(OR('Tabel 4F F'!I120<5,'Tabel 4 F'!I120<0.5),"-",IFERROR('Tabel 4 F'!I120/'Tabel 4F F'!I120*100,"-")) -> -
A121: Agronom | C121: =IF(OR('Tabel 4F F'!C121<5,'Tabel 4 F'!C121<0.5),"-",IFERROR('Tabel 4 F'!C121/'Tabel 4F F'!C121*100,"-")) -> - | D121: =IF(OR('Tabel 4F F'!D121<5,'Tabel 4 F'!D121<0.5),"-",IFERROR('Tabel 4 F'!D121/'Tabel 4F F'!D121*100,"-")) -> - | E121: =IF(OR('Tabel 4F F'!E121<5,'Tabel 4 F'!E121<0.5),"-",IFERROR('Tabel 4 F'!E121/'Tabel 4F F'!E121*100,"-")) -> - | F121: =IF(OR('Tabel 4F F'!F121<5,'Tabel 4 F'!F121<0.5),"-",IFERROR('Tabel 4 F'!F121/'Tabel 4F F'!F121*100,"-")) -> - | G121: =IF(OR('Tabel 4F F'!G121<5,'Tabel 4 F'!G121<0.5),"-",IFERROR('Tabel 4 F'!G121/'Tabel 4F F'!G121*100,"-")) -> - | I121: =IF(OR('Tabel 4F F'!I121<5,'Tabel 4 F'!I121<0.5),"-",IFERROR('Tabel 4 F'!I121/'Tabel 4F F'!I121*100,"-")) -> -
A122: Landsk. Arkt. | C122: =IF(OR('Tabel 4F F'!C122<5,'Tabel 4 F'!C122<0.5),"-",IFERROR('Tabel 4 F'!C122/'Tabel 4F F'!C122*100,"-")) -> - | D122: =IF(OR('Tabel 4F F'!D122<5,'Tabel 4 F'!D122<0.5),"-",IFERROR('Tabel 4 F'!D122/'Tabel 4F F'!D122*100,"-")) -> - | E122: =IF(OR('Tabel 4F F'!E122<5,'Tabel 4 F'!E122<0.5),"-",IFERROR('Tabel 4 F'!E122/'Tabel 4F F'!E122*100,"-")) -> - | F122: =IF(OR('Tabel 4F F'!F122<5,'Tabel 4 F'!F122<0.5),"-",IFERROR('Tabel 4 F'!F122/'Tabel 4F F'!F122*100,"-")) -> - | G122: =IF(OR('Tabel 4F F'!G122<5,'Tabel 4 F'!G122<0.5),"-",IFERROR('Tabel 4 F'!G122/'Tabel 4F F'!G122*100,"-")) -> - | I122: =IF(OR('Tabel 4F F'!I122<5,'Tabel 4 F'!I122<0.5),"-",IFERROR('Tabel 4 F'!I122/'Tabel 4F F'!I122*100,"-")) -> -
A123: Hortonom | C123: =IF(OR('Tabel 4F F'!C123<5,'Tabel 4 F'!C123<0.5),"-",IFERROR('Tabel 4 F'!C123/'Tabel 4F F'!C123*100,"-")) -> - | D123: =IF(OR('Tabel 4F F'!D123<5,'Tabel 4 F'!D123<0.5),"-",IFERROR('Tabel 4 F'!D123/'Tabel 4F F'!D123*100,"-")) -> - | E123: =IF(OR('Tabel 4F F'!E123<5,'Tabel 4 F'!E123<0.5),"-",IFERROR('Tabel 4 F'!E123/'Tabel 4F F'!E123*100,"-")) -> - | F123: =IF(OR('Tabel 4F F'!F123<5,'Tabel 4 F'!F123<0.5),"-",IFERROR('Tabel 4 F'!F123/'Tabel 4F F'!F123*100,"-")) -> - | G123: =IF(OR('Tabel 4F F'!G123<5,'Tabel 4 F'!G123<0.5),"-",IFERROR('Tabel 4 F'!G123/'Tabel 4F F'!G123*100,"-")) -> - | I123: =IF(OR('Tabel 4F F'!I123<5,'Tabel 4 F'!I123<0.5),"-",IFERROR('Tabel 4 F'!I123/'Tabel 4F F'!I123*100,"-")) -> -
A124: Forstkand. | C124: =IF(OR('Tabel 4F F'!C124<5,'Tabel 4 F'!C124<0.5),"-",IFERROR('Tabel 4 F'!C124/'Tabel 4F F'!C124*100,"-")) -> - | D124: =IF(OR('Tabel 4F F'!D124<5,'Tabel 4 F'!D124<0.5),"-",IFERROR('Tabel 4 F'!D124/'Tabel 4F F'!D124*100,"-")) -> - | E124: =IF(OR('Tabel 4F F'!E124<5,'Tabel 4 F'!E124<0.5),"-",IFERROR('Tabel 4 F'!E124/'Tabel 4F F'!E124*100,"-")) -> - | F124: =IF(OR('Tabel 4F F'!F124<5,'Tabel 4 F'!F124<0.5),"-",IFERROR('Tabel 4 F'!F124/'Tabel 4F F'!F124*100,"-")) -> - | G124: =IF(OR('Tabel 4F F'!G124<5,'Tabel 4 F'!G124<0.5),"-",IFERROR('Tabel 4 F'!G124/'Tabel 4F F'!G124*100,"-")) -> - | I124: =IF(OR('Tabel 4F F'!I124<5,'Tabel 4 F'!I124<0.5),"-",IFERROR('Tabel 4 F'!I124/'Tabel 4F F'!I124*100,"-")) -> 20
A125: Jordbrugsakad. | C125: =IF(OR('Tabel 4F F'!C125<5,'Tabel 4 F'!C125<0.5),"-",IFERROR('Tabel 4 F'!C125/'Tabel 4F F'!C125*100,"-")) -> - | D125: =IF(OR('Tabel 4F F'!D125<5,'Tabel 4 F'!D125<0.5),"-",IFERROR('Tabel 4 F'!D125/'Tabel 4F F'!D125*100,"-")) -> 20 | E125: =IF(OR('Tabel 4F F'!E125<5,'Tabel 4 F'!E125<0.5),"-",IFERROR('Tabel 4 F'!E125/'Tabel 4F F'!E125*100,"-")) -> - | F125: =IF(OR('Tabel 4F F'!F125<5,'Tabel 4 F'!F125<0.5),"-",IFERROR('Tabel 4 F'!F125/'Tabel 4F F'!F125*100,"-")) -> - | G125: =IF(OR('Tabel 4F F'!G125<5,'Tabel 4 F'!G125<0.5),"-",IFERROR('Tabel 4 F'!G125/'Tabel 4F F'!G125*100,"-")) -> - | I125: =IF(OR('Tabel 4F F'!I125<5,'Tabel 4 F'!I125<0.5),"-",IFERROR('Tabel 4 F'!I125/'Tabel 4F F'!I125*100,"-")) -> 2.941176471
A126: Mejeriing. | C126: =IF(OR('Tabel 4F F'!C126<5,'Tabel 4 F'!C126<0.5),"-",IFERROR('Tabel 4 F'!C126/'Tabel 4F F'!C126*100,"-")) -> - | D126: =IF(OR('Tabel 4F F'!D126<5,'Tabel 4 F'!D126<0.5),"-",IFERROR('Tabel 4 F'!D126/'Tabel 4F F'!D126*100,"-")) -> - | E126: =IF(OR('Tabel 4F F'!E126<5,'Tabel 4 F'!E126<0.5),"-",IFERROR('Tabel 4 F'!E126/'Tabel 4F F'!E126*100,"-")) -> - | F126: =IF(OR('Tabel 4F F'!F126<5,'Tabel 4 F'!F126<0.5),"-",IFERROR('Tabel 4 F'!F126/'Tabel 4F F'!F126*100,"-")) -> - | G126: =IF(OR('Tabel 4F F'!G126<5,'Tabel 4 F'!G126<0.5),"-",IFERROR('Tabel 4 F'!G126/'Tabel 4F F'!G126*100,"-")) -> - | I126: =IF(OR('Tabel 4F F'!I126<5,'Tabel 4 F'!I126<0.5),"-",IFERROR('Tabel 4 F'!I126/'Tabel 4F F'!I126*100,"-")) -> -
A127: Levn.m.kand. | C127: =IF(OR('Tabel 4F F'!C127<5,'Tabel 4 F'!C127<0.5),"-",IFERROR('Tabel 4 F'!C127/'Tabel 4F F'!C127*100,"-")) -> - | D127: =IF(OR('Tabel 4F F'!D127<5,'Tabel 4 F'!D127<0.5),"-",IFERROR('Tabel 4 F'!D127/'Tabel 4F F'!D127*100,"-")) -> - | E127: =IF(OR('Tabel 4F F'!E127<5,'Tabel 4 F'!E127<0.5),"-",IFERROR('Tabel 4 F'!E127/'Tabel 4F F'!E127*100,"-")) -> - | F127: =IF(OR('Tabel 4F F'!F127<5,'Tabel 4 F'!F127<0.5),"-",IFERROR('Tabel 4 F'!F127/'Tabel 4F F'!F127*100,"-")) -> - | G127: =IF(OR('Tabel 4F F'!G127<5,'Tabel 4 F'!G127<0.5),"-",IFERROR('Tabel 4 F'!G127/'Tabel 4F F'!G127*100,"-")) -> - | I127: =IF(OR('Tabel 4F F'!I127<5,'Tabel 4 F'!I127<0.5),"-",IFERROR('Tabel 4 F'!I127/'Tabel 4F F'!I127*100,"-")) -> -
A128: Dyrlæge | C128: =IF(OR('Tabel 4F F'!C128<5,'Tabel 4 F'!C128<0.5),"-",IFERROR('Tabel 4 F'!C128/'Tabel 4F F'!C128*100,"-")) -> - | D128: =IF(OR('Tabel 4F F'!D128<5,'Tabel 4 F'!D128<0.5),"-",IFERROR('Tabel 4 F'!D128/'Tabel 4F F'!D128*100,"-")) -> - | E128: =IF(OR('Tabel 4F F'!E128<5,'Tabel 4 F'!E128<0.5),"-",IFERROR('Tabel 4 F'!E128/'Tabel 4F F'!E128*100,"-")) -> - | F128: =IF(OR('Tabel 4F F'!F128<5,'Tabel 4 F'!F128<0.5),"-",IFERROR('Tabel 4 F'!F128/'Tabel 4F F'!F128*100,"-")) -> - | G128: =IF(OR('Tabel 4F F'!G128<5,'Tabel 4 F'!G128<0.5),"-",IFERROR('Tabel 4 F'!G128/'Tabel 4F F'!G128*100,"-")) -> - | I128: =IF(OR('Tabel 4F F'!I128<5,'Tabel 4 F'!I128<0.5),"-",IFERROR('Tabel 4 F'!I128/'Tabel 4F F'!I128*100,"-")) -> 6.25
A129: Farmaceut | C129: =IF(OR('Tabel 4F F'!C129<5,'Tabel 4 F'!C129<0.5),"-",IFERROR('Tabel 4 F'!C129/'Tabel 4F F'!C129*100,"-")) -> - | D129: =IF(OR('Tabel 4F F'!D129<5,'Tabel 4 F'!D129<0.5),"-",IFERROR('Tabel 4 F'!D129/'Tabel 4F F'!D129*100,"-")) -> - | E129: =IF(OR('Tabel 4F F'!E129<5,'Tabel 4 F'!E129<0.5),"-",IFERROR('Tabel 4 F'!E129/'Tabel 4F F'!E129*100,"-")) -> - | F129: =IF(OR('Tabel 4F F'!F129<5,'Tabel 4 F'!F129<0.5),"-",IFERROR('Tabel 4 F'!F129/'Tabel 4F F'!F129*100,"-")) -> - | G129: =IF(OR('Tabel 4F F'!G129<5,'Tabel 4 F'!G129<0.5),"-",IFERROR('Tabel 4 F'!G129/'Tabel 4F F'!G129*100,"-")) -> - | I129: =IF(OR('Tabel 4F F'!I129<5,'Tabel 4 F'!I129<0.5),"-",IFERROR('Tabel 4 F'!I129/'Tabel 4F F'!I129*100,"-")) -> -
A130: Læge | C130: =IF(OR('Tabel 4F F'!C130<5,'Tabel 4 F'!C130<0.5),"-",IFERROR('Tabel 4 F'!C130/'Tabel 4F F'!C130*100,"-")) -> - | D130: =IF(OR('Tabel 4F F'!D130<5,'Tabel 4 F'!D130<0.5),"-",IFERROR('Tabel 4 F'!D130/'Tabel 4F F'!D130*100,"-")) -> - | E130: =IF(OR('Tabel 4F F'!E130<5,'Tabel 4 F'!E130<0.5),"-",IFERROR('Tabel 4 F'!E130/'Tabel 4F F'!E130*100,"-")) -> - | F130: =IF(OR('Tabel 4F F'!F130<5,'Tabel 4 F'!F130<0.5),"-",IFERROR('Tabel 4 F'!F130/'Tabel 4F F'!F130*100,"-")) -> - | G130: =IF(OR('Tabel 4F F'!G130<5,'Tabel 4 F'!G130<0.5),"-",IFERROR('Tabel 4 F'!G130/'Tabel 4F F'!G130*100,"-")) -> - | I130: =IF(OR('Tabel 4F F'!I130<5,'Tabel 4 F'!I130<0.5),"-",IFERROR('Tabel 4 F'!I130/'Tabel 4F F'!I130*100,"-")) -> -
A131: Tandlæge | C131: =IF(OR('Tabel 4F F'!C131<5,'Tabel 4 F'!C131<0.5),"-",IFERROR('Tabel 4 F'!C131/'Tabel 4F F'!C131*100,"-")) -> - | D131: =IF(OR('Tabel 4F F'!D131<5,'Tabel 4 F'!D131<0.5),"-",IFERROR('Tabel 4 F'!D131/'Tabel 4F F'!D131*100,"-")) -> - | E131: =IF(OR('Tabel 4F F'!E131<5,'Tabel 4 F'!E131<0.5),"-",IFERROR('Tabel 4 F'!E131/'Tabel 4F F'!E131*100,"-")) -> - | F131: =IF(OR('Tabel 4F F'!F131<5,'Tabel 4 F'!F131<0.5),"-",IFERROR('Tabel 4 F'!F131/'Tabel 4F F'!F131*100,"-")) -> - | G131: =IF(OR('Tabel 4F F'!G131<5,'Tabel 4 F'!G131<0.5),"-",IFERROR('Tabel 4 F'!G131/'Tabel 4F F'!G131*100,"-")) -> - | I131: =IF(OR('Tabel 4F F'!I131<5,'Tabel 4 F'!I131<0.5),"-",IFERROR('Tabel 4 F'!I131/'Tabel 4F F'!I131*100,"-")) -> -
A132: Arkitekt | C132: =IF(OR('Tabel 4F F'!C132<5,'Tabel 4 F'!C132<0.5),"-",IFERROR('Tabel 4 F'!C132/'Tabel 4F F'!C132*100,"-")) -> - | D132: =IF(OR('Tabel 4F F'!D132<5,'Tabel 4 F'!D132<0.5),"-",IFERROR('Tabel 4 F'!D132/'Tabel 4F F'!D132*100,"-")) -> - | E132: =IF(OR('Tabel 4F F'!E132<5,'Tabel 4 F'!E132<0.5),"-",IFERROR('Tabel 4 F'!E132/'Tabel 4F F'!E132*100,"-")) -> - | F132: =IF(OR('Tabel 4F F'!F132<5,'Tabel 4 F'!F132<0.5),"-",IFERROR('Tabel 4 F'!F132/'Tabel 4F F'!F132*100,"-")) -> - | G132: =IF(OR('Tabel 4F F'!G132<5,'Tabel 4 F'!G132<0.5),"-",IFERROR('Tabel 4 F'!G132/'Tabel 4F F'!G132*100,"-")) -> - | I132: =IF(OR('Tabel 4F F'!I132<5,'Tabel 4 F'!I132<0.5),"-",IFERROR('Tabel 4 F'!I132/'Tabel 4F F'!I132*100,"-")) -> -
A133: Landinspek. | C133: =IF(OR('Tabel 4F F'!C133<5,'Tabel 4 F'!C133<0.5),"-",IFERROR('Tabel 4 F'!C133/'Tabel 4F F'!C133*100,"-")) -> - | D133: =IF(OR('Tabel 4F F'!D133<5,'Tabel 4 F'!D133<0.5),"-",IFERROR('Tabel 4 F'!D133/'Tabel 4F F'!D133*100,"-")) -> - | E133: =IF(OR('Tabel 4F F'!E133<5,'Tabel 4 F'!E133<0.5),"-",IFERROR('Tabel 4 F'!E133/'Tabel 4F F'!E133*100,"-")) -> - | F133: =IF(OR('Tabel 4F F'!F133<5,'Tabel 4 F'!F133<0.5),"-",IFERROR('Tabel 4 F'!F133/'Tabel 4F F'!F133*100,"-")) -> - | G133: =IF(OR('Tabel 4F F'!G133<5,'Tabel 4 F'!G133<0.5),"-",IFERROR('Tabel 4 F'!G133/'Tabel 4F F'!G133*100,"-")) -> - | I133: =IF(OR('Tabel 4F F'!I133<5,'Tabel 4 F'!I133<0.5),"-",IFERROR('Tabel 4 F'!I133/'Tabel 4F F'!I133*100,"-")) -> -
A134: Bibliotekar | C134: =IF(OR('Tabel 4F F'!C134<5,'Tabel 4 F'!C134<0.5),"-",IFERROR('Tabel 4 F'!C134/'Tabel 4F F'!C134*100,"-")) -> - | D134: =IF(OR('Tabel 4F F'!D134<5,'Tabel 4 F'!D134<0.5),"-",IFERROR('Tabel 4 F'!D134/'Tabel 4F F'!D134*100,"-")) -> - | E134: =IF(OR('Tabel 4F F'!E134<5,'Tabel 4 F'!E134<0.5),"-",IFERROR('Tabel 4 F'!E134/'Tabel 4F F'!E134*100,"-")) -> - | F134: =IF(OR('Tabel 4F F'!F134<5,'Tabel 4 F'!F134<0.5),"-",IFERROR('Tabel 4 F'!F134/'Tabel 4F F'!F134*100,"-")) -> - | G134: =IF(OR('Tabel 4F F'!G134<5,'Tabel 4 F'!G134<0.5),"-",IFERROR('Tabel 4 F'!G134/'Tabel 4F F'!G134*100,"-")) -> - | I134: =IF(OR('Tabel 4F F'!I134<5,'Tabel 4 F'!I134<0.5),"-",IFERROR('Tabel 4 F'!I134/'Tabel 4F F'!I134*100,"-")) -> -
A135: Musikudd. | C135: =IF(OR('Tabel 4F F'!C135<5,'Tabel 4 F'!C135<0.5),"-",IFERROR('Tabel 4 F'!C135/'Tabel 4F F'!C135*100,"-")) -> - | D135: =IF(OR('Tabel 4F F'!D135<5,'Tabel 4 F'!D135<0.5),"-",IFERROR('Tabel 4 F'!D135/'Tabel 4F F'!D135*100,"-")) -> - | E135: =IF(OR('Tabel 4F F'!E135<5,'Tabel 4 F'!E135<0.5),"-",IFERROR('Tabel 4 F'!E135/'Tabel 4F F'!E135*100,"-")) -> - | F135: =IF(OR('Tabel 4F F'!F135<5,'Tabel 4 F'!F135<0.5),"-",IFERROR('Tabel 4 F'!F135/'Tabel 4F F'!F135*100,"-")) -> - | G135: =IF(OR('Tabel 4F F'!G135<5,'Tabel 4 F'!G135<0.5),"-",IFERROR('Tabel 4 F'!G135/'Tabel 4F F'!G135*100,"-")) -> - | I135: =IF(OR('Tabel 4F F'!I135<5,'Tabel 4 F'!I135<0.5),"-",IFERROR('Tabel 4 F'!I135/'Tabel 4F F'!I135*100,"-")) -> -
A136: Teolog | C136: =IF(OR('Tabel 4F F'!C136<5,'Tabel 4 F'!C136<0.5),"-",IFERROR('Tabel 4 F'!C136/'Tabel 4F F'!C136*100,"-")) -> - | D136: =IF(OR('Tabel 4F F'!D136<5,'Tabel 4 F'!D136<0.5),"-",IFERROR('Tabel 4 F'!D136/'Tabel 4F F'!D136*100,"-")) -> - | E136: =IF(OR('Tabel 4F F'!E136<5,'Tabel 4 F'!E136<0.5),"-",IFERROR('Tabel 4 F'!E136/'Tabel 4F F'!E136*100,"-")) -> - | F136: =IF(OR('Tabel 4F F'!F136<5,'Tabel 4 F'!F136<0.5),"-",IFERROR('Tabel 4 F'!F136/'Tabel 4F F'!F136*100,"-")) -> - | G136: =IF(OR('Tabel 4F F'!G136<5,'Tabel 4 F'!G136<0.5),"-",IFERROR('Tabel 4 F'!G136/'Tabel 4F F'!G136*100,"-")) -> - | I136: =IF(OR('Tabel 4F F'!I136<5,'Tabel 4 F'!I136<0.5),"-",IFERROR('Tabel 4 F'!I136/'Tabel 4F F'!I136*100,"-")) -> -
A137: Psykolog | C137: =IF(OR('Tabel 4F F'!C137<5,'Tabel 4 F'!C137<0.5),"-",IFERROR('Tabel 4 F'!C137/'Tabel 4F F'!C137*100,"-")) -> - | D137: =IF(OR('Tabel 4F F'!D137<5,'Tabel 4 F'!D137<0.5),"-",IFERROR('Tabel 4 F'!D137/'Tabel 4F F'!D137*100,"-")) -> - | E137: =IF(OR('Tabel 4F F'!E137<5,'Tabel 4 F'!E137<0.5),"-",IFERROR('Tabel 4 F'!E137/'Tabel 4F F'!E137*100,"-")) -> - | F137: =IF(OR('Tabel 4F F'!F137<5,'Tabel 4 F'!F137<0.5),"-",IFERROR('Tabel 4 F'!F137/'Tabel 4F F'!F137*100,"-")) -> - | G137: =IF(OR('Tabel 4F F'!G137<5,'Tabel 4 F'!G137<0.5),"-",IFERROR('Tabel 4 F'!G137/'Tabel 4F F'!G137*100,"-")) -> - | I137: =IF(OR('Tabel 4F F'!I137<5,'Tabel 4 F'!I137<0.5),"-",IFERROR('Tabel 4 F'!I137/'Tabel 4F F'!I137*100,"-")) -> 8.695652174
A138: Jurist | C138: =IF(OR('Tabel 4F F'!C138<5,'Tabel 4 F'!C138<0.5),"-",IFERROR('Tabel 4 F'!C138/'Tabel 4F F'!C138*100,"-")) -> - | D138: =IF(OR('Tabel 4F F'!D138<5,'Tabel 4 F'!D138<0.5),"-",IFERROR('Tabel 4 F'!D138/'Tabel 4F F'!D138*100,"-")) -> - | E138: =IF(OR('Tabel 4F F'!E138<5,'Tabel 4 F'!E138<0.5),"-",IFERROR('Tabel 4 F'!E138/'Tabel 4F F'!E138*100,"-")) -> - | F138: =IF(OR('Tabel 4F F'!F138<5,'Tabel 4 F'!F138<0.5),"-",IFERROR('Tabel 4 F'!F138/'Tabel 4F F'!F138*100,"-")) -> - | G138: =IF(OR('Tabel 4F F'!G138<5,'Tabel 4 F'!G138<0.5),"-",IFERROR('Tabel 4 F'!G138/'Tabel 4F F'!G138*100,"-")) -> - | I138: =IF(OR('Tabel 4F F'!I138<5,'Tabel 4 F'!I138<0.5),"-",IFERROR('Tabel 4 F'!I138/'Tabel 4F F'!I138*100,"-")) -> -
A139: Økonom | C139: =IF(OR('Tabel 4F F'!C139<5,'Tabel 4 F'!C139<0.5),"-",IFERROR('Tabel 4 F'!C139/'Tabel 4F F'!C139*100,"-")) -> - | D139: =IF(OR('Tabel 4F F'!D139<5,'Tabel 4 F'!D139<0.5),"-",IFERROR('Tabel 4 F'!D139/'Tabel 4F F'!D139*100,"-")) -> - | E139: =IF(OR('Tabel 4F F'!E139<5,'Tabel 4 F'!E139<0.5),"-",IFERROR('Tabel 4 F'!E139/'Tabel 4F F'!E139*100,"-")) -> - | F139: =IF(OR('Tabel 4F F'!F139<5,'Tabel 4 F'!F139<0.5),"-",IFERROR('Tabel 4 F'!F139/'Tabel 4F F'!F139*100,"-")) -> - | G139: =IF(OR('Tabel 4F F'!G139<5,'Tabel 4 F'!G139<0.5),"-",IFERROR('Tabel 4 F'!G139/'Tabel 4F F'!G139*100,"-")) -> - | I139: =IF(OR('Tabel 4F F'!I139<5,'Tabel 4 F'!I139<0.5),"-",IFERROR('Tabel 4 F'!I139/'Tabel 4F F'!I139*100,"-")) -> -
A140: Samf. Adm. | C140: =IF(OR('Tabel 4F F'!C140<5,'Tabel 4 F'!C140<0.5),"-",IFERROR('Tabel 4 F'!C140/'Tabel 4F F'!C140*100,"-")) -> - | D140: =IF(OR('Tabel 4F F'!D140<5,'Tabel 4 F'!D140<0.5),"-",IFERROR('Tabel 4 F'!D140/'Tabel 4F F'!D140*100,"-")) -> - | E140: =IF(OR('Tabel 4F F'!E140<5,'Tabel 4 F'!E140<0.5),"-",IFERROR('Tabel 4 F'!E140/'Tabel 4F F'!E140*100,"-")) -> - | F140: =IF(OR('Tabel 4F F'!F140<5,'Tabel 4 F'!F140<0.5),"-",IFERROR('Tabel 4 F'!F140/'Tabel 4F F'!F140*100,"-")) -> - | G140: =IF(OR('Tabel 4F F'!G140<5,'Tabel 4 F'!G140<0.5),"-",IFERROR('Tabel 4 F'!G140/'Tabel 4F F'!G140*100,"-")) -> - | I140: =IF(OR('Tabel 4F F'!I140<5,'Tabel 4 F'!I140<0.5),"-",IFERROR('Tabel 4 F'!I140/'Tabel 4F F'!I140*100,"-")) -> 1.851851852
A141: Cand. Merc. | C141: =IF(OR('Tabel 4F F'!C141<5,'Tabel 4 F'!C141<0.5),"-",IFERROR('Tabel 4 F'!C141/'Tabel 4F F'!C141*100,"-")) -> - | D141: =IF(OR('Tabel 4F F'!D141<5,'Tabel 4 F'!D141<0.5),"-",IFERROR('Tabel 4 F'!D141/'Tabel 4F F'!D141*100,"-")) -> - | E141: =IF(OR('Tabel 4F F'!E141<5,'Tabel 4 F'!E141<0.5),"-",IFERROR('Tabel 4 F'!E141/'Tabel 4F F'!E141*100,"-")) -> - | F141: =IF(OR('Tabel 4F F'!F141<5,'Tabel 4 F'!F141<0.5),"-",IFERROR('Tabel 4 F'!F141/'Tabel 4F F'!F141*100,"-")) -> 6.666666667 | G141: =IF(OR('Tabel 4F F'!G141<5,'Tabel 4 F'!G141<0.5),"-",IFERROR('Tabel 4 F'!G141/'Tabel 4F F'!G141*100,"-")) -> - | I141: =IF(OR('Tabel 4F F'!I141<5,'Tabel 4 F'!I141<0.5),"-",IFERROR('Tabel 4 F'!I141/'Tabel 4F F'!I141*100,"-")) -> 1.923076923
A142: HA | C142: =IF(OR('Tabel 4F F'!C142<5,'Tabel 4 F'!C142<0.5),"-",IFERROR('Tabel 4 F'!C142/'Tabel 4F F'!C142*100,"-")) -> - | D142: =IF(OR('Tabel 4F F'!D142<5,'Tabel 4 F'!D142<0.5),"-",IFERROR('Tabel 4 F'!D142/'Tabel 4F F'!D142*100,"-")) -> - | E142: =IF(OR('Tabel 4F F'!E142<5,'Tabel 4 F'!E142<0.5),"-",IFERROR('Tabel 4 F'!E142/'Tabel 4F F'!E142*100,"-")) -> - | F142: =IF(OR('Tabel 4F F'!F142<5,'Tabel 4 F'!F142<0.5),"-",IFERROR('Tabel 4 F'!F142/'Tabel 4F F'!F142*100,"-")) -> - | G142: =IF(OR('Tabel 4F F'!G142<5,'Tabel 4 F'!G142<0.5),"-",IFERROR('Tabel 4 F'!G142/'Tabel 4F F'!G142*100,"-")) -> - | I142: =IF(OR('Tabel 4F F'!I142<5,'Tabel 4 F'!I142<0.5),"-",IFERROR('Tabel 4 F'!I142/'Tabel 4F F'!I142*100,"-")) -> 5.882352941
A143: HD | C143: =IF(OR('Tabel 4F F'!C143<5,'Tabel 4 F'!C143<0.5),"-",IFERROR('Tabel 4 F'!C143/'Tabel 4F F'!C143*100,"-")) -> - | D143: =IF(OR('Tabel 4F F'!D143<5,'Tabel 4 F'!D143<0.5),"-",IFERROR('Tabel 4 F'!D143/'Tabel 4F F'!D143*100,"-")) -> - | E143: =IF(OR('Tabel 4F F'!E143<5,'Tabel 4 F'!E143<0.5),"-",IFERROR('Tabel 4 F'!E143/'Tabel 4F F'!E143*100,"-")) -> - | F143: =IF(OR('Tabel 4F F'!F143<5,'Tabel 4 F'!F143<0.5),"-",IFERROR('Tabel 4 F'!F143/'Tabel 4F F'!F143*100,"-")) -> - | G143: =IF(OR('Tabel 4F F'!G143<5,'Tabel 4 F'!G143<0.5),"-",IFERROR('Tabel 4 F'!G143/'Tabel 4F F'!G143*100,"-")) -> - | I143: =IF(OR('Tabel 4F F'!I143<5,'Tabel 4 F'!I143<0.5),"-",IFERROR('Tabel 4 F'!I143/'Tabel 4F F'!I143*100,"-")) -> -
A144: Komm. og Sprog | C144: =IF(OR('Tabel 4F F'!C144<5,'Tabel 4 F'!C144<0.5),"-",IFERROR('Tabel 4 F'!C144/'Tabel 4F F'!C144*100,"-")) -> - | D144: =IF(OR('Tabel 4F F'!D144<5,'Tabel 4 F'!D144<0.5),"-",IFERROR('Tabel 4 F'!D144/'Tabel 4F F'!D144*100,"-")) -> 40 | E144: =IF(OR('Tabel 4F F'!E144<5,'Tabel 4 F'!E144<0.5),"-",IFERROR('Tabel 4 F'!E144/'Tabel 4F F'!E144*100,"-")) -> - | F144: =IF(OR('Tabel 4F F'!F144<5,'Tabel 4 F'!F144<0.5),"-",IFERROR('Tabel 4 F'!F144/'Tabel 4F F'!F144*100,"-")) -> - | G144: =IF(OR('Tabel 4F F'!G144<5,'Tabel 4 F'!G144<0.5),"-",IFERROR('Tabel 4 F'!G144/'Tabel 4F F'!G144*100,"-")) -> - | I144: =IF(OR('Tabel 4F F'!I144<5,'Tabel 4 F'!I144<0.5),"-",IFERROR('Tabel 4 F'!I144/'Tabel 4F F'!I144*100,"-")) -> 8.695652174
A145: Cand. IT. | C145: =IF(OR('Tabel 4F F'!C145<5,'Tabel 4 F'!C145<0.5),"-",IFERROR('Tabel 4 F'!C145/'Tabel 4F F'!C145*100,"-")) -> - | D145: =IF(OR('Tabel 4F F'!D145<5,'Tabel 4 F'!D145<0.5),"-",IFERROR('Tabel 4 F'!D145/'Tabel 4F F'!D145*100,"-")) -> - | E145: =IF(OR('Tabel 4F F'!E145<5,'Tabel 4 F'!E145<0.5),"-",IFERROR('Tabel 4 F'!E145/'Tabel 4F F'!E145*100,"-")) -> - | F145: =IF(OR('Tabel 4F F'!F145<5,'Tabel 4 F'!F145<0.5),"-",IFERROR('Tabel 4 F'!F145/'Tabel 4F F'!F145*100,"-")) -> - | G145: =IF(OR('Tabel 4F F'!G145<5,'Tabel 4 F'!G145<0.5),"-",IFERROR('Tabel 4 F'!G145/'Tabel 4F F'!G145*100,"-")) -> - | I145: =IF(OR('Tabel 4F F'!I145<5,'Tabel 4 F'!I145<0.5),"-",IFERROR('Tabel 4 F'!I145/'Tabel 4F F'!I145*100,"-")) -> -
A146: Bac. Samf. | C146: =IF(OR('Tabel 4F F'!C146<5,'Tabel 4 F'!C146<0.5),"-",IFERROR('Tabel 4 F'!C146/'Tabel 4F F'!C146*100,"-")) -> - | D146: =IF(OR('Tabel 4F F'!D146<5,'Tabel 4 F'!D146<0.5),"-",IFERROR('Tabel 4 F'!D146/'Tabel 4F F'!D146*100,"-")) -> - | E146: =IF(OR('Tabel 4F F'!E146<5,'Tabel 4 F'!E146<0.5),"-",IFERROR('Tabel 4 F'!E146/'Tabel 4F F'!E146*100,"-")) -> - | F146: =IF(OR('Tabel 4F F'!F146<5,'Tabel 4 F'!F146<0.5),"-",IFERROR('Tabel 4 F'!F146/'Tabel 4F F'!F146*100,"-")) -> - | G146: =IF(OR('Tabel 4F F'!G146<5,'Tabel 4 F'!G146<0.5),"-",IFERROR('Tabel 4 F'!G146/'Tabel 4F F'!G146*100,"-")) -> - | I146: =IF(OR('Tabel 4F F'!I146<5,'Tabel 4 F'!I146<0.5),"-",IFERROR('Tabel 4 F'!I146/'Tabel 4F F'!I146*100,"-")) -> -
A147: Bac. Hum. | C147: =IF(OR('Tabel 4F F'!C147<5,'Tabel 4 F'!C147<0.5),"-",IFERROR('Tabel 4 F'!C147/'Tabel 4F F'!C147*100,"-")) -> 40 | D147: =IF(OR('Tabel 4F F'!D147<5,'Tabel 4 F'!D147<0.5),"-",IFERROR('Tabel 4 F'!D147/'Tabel 4F F'!D147*100,"-")) -> - | E147: =IF(OR('Tabel 4F F'!E147<5,'Tabel 4 F'!E147<0.5),"-",IFERROR('Tabel 4 F'!E147/'Tabel 4F F'!E147*100,"-")) -> - | F147: =IF(OR('Tabel 4F F'!F147<5,'Tabel 4 F'!F147<0.5),"-",IFERROR('Tabel 4 F'!F147/'Tabel 4F F'!F147*100,"-")) -> - | G147: =IF(OR('Tabel 4F F'!G147<5,'Tabel 4 F'!G147<0.5),"-",IFERROR('Tabel 4 F'!G147/'Tabel 4F F'!G147*100,"-")) -> - | I147: =IF(OR('Tabel 4F F'!I147<5,'Tabel 4 F'!I147<0.5),"-",IFERROR('Tabel 4 F'!I147/'Tabel 4F F'!I147*100,"-")) -> 13.33333333
A148: Bac. Nat. | C148: =IF(OR('Tabel 4F F'!C148<5,'Tabel 4 F'!C148<0.5),"-",IFERROR('Tabel 4 F'!C148/'Tabel 4F F'!C148*100,"-")) -> - | D148: =IF(OR('Tabel 4F F'!D148<5,'Tabel 4 F'!D148<0.5),"-",IFERROR('Tabel 4 F'!D148/'Tabel 4F F'!D148*100,"-")) -> - | E148: =IF(OR('Tabel 4F F'!E148<5,'Tabel 4 F'!E148<0.5),"-",IFERROR('Tabel 4 F'!E148/'Tabel 4F F'!E148*100,"-")) -> - | F148: =IF(OR('Tabel 4F F'!F148<5,'Tabel 4 F'!F148<0.5),"-",IFERROR('Tabel 4 F'!F148/'Tabel 4F F'!F148*100,"-")) -> - | G148: =IF(OR('Tabel 4F F'!G148<5,'Tabel 4 F'!G148<0.5),"-",IFERROR('Tabel 4 F'!G148/'Tabel 4F F'!G148*100,"-")) -> - | I148: =IF(OR('Tabel 4F F'!I148<5,'Tabel 4 F'!I148<0.5),"-",IFERROR('Tabel 4 F'!I148/'Tabel 4F F'!I148*100,"-")) -> 20
A149: Andre | C149: =IF(OR('Tabel 4F F'!C149<5,'Tabel 4 F'!C149<0.5),"-",IFERROR('Tabel 4 F'!C149/'Tabel 4F F'!C149*100,"-")) -> - | D149: =IF(OR('Tabel 4F F'!D149<5,'Tabel 4 F'!D149<0.5),"-",IFERROR('Tabel 4 F'!D149/'Tabel 4F F'!D149*100,"-")) -> - | E149: =IF(OR('Tabel 4F F'!E149<5,'Tabel 4 F'!E149<0.5),"-",IFERROR('Tabel 4 F'!E149/'Tabel 4F F'!E149*100,"-")) -> - | F149: =IF(OR('Tabel 4F F'!F149<5,'Tabel 4 F'!F149<0.5),"-",IFERROR('Tabel 4 F'!F149/'Tabel 4F F'!F149*100,"-")) -> - | G149: =IF(OR('Tabel 4F F'!G149<5,'Tabel 4 F'!G149<0.5),"-",IFERROR('Tabel 4 F'!G149/'Tabel 4F F'!G149*100,"-")) -> - | I149: =IF(OR('Tabel 4F F'!I149<5,'Tabel 4 F'!I149<0.5),"-",IFERROR('Tabel 4 F'!I149/'Tabel 4F F'!I149*100,"-")) -> -
A151: Total | C151: =IF(OR('Tabel 4F F'!C151<5,'Tabel 4 F'!C151<0.5),"-",IFERROR('Tabel 4 F'!C151/'Tabel 4F F'!C151*100,"-")) -> 10 | D151: =IF(OR('Tabel 4F F'!D151<5,'Tabel 4 F'!D151<0.5),"-",IFERROR('Tabel 4 F'!D151/'Tabel 4F F'!D151*100,"-")) -> 6.41025641 | E151: =IF(OR('Tabel 4F F'!E151<5,'Tabel 4 F'!E151<0.5),"-",IFERROR('Tabel 4 F'!E151/'Tabel 4F F'!E151*100,"-")) -> 1.791044776 | F151: =IF(OR('Tabel 4F F'!F151<5,'Tabel 4 F'!F151<0.5),"-",IFERROR('Tabel 4 F'!F151/'Tabel 4F F'!F151*100,"-")) -> 1.486988848 | G151: =IF(OR('Tabel 4F F'!G151<5,'Tabel 4 F'!G151<0.5),"-",IFERROR('Tabel 4 F'!G151/'Tabel 4F F'!G151*100,"-")) -> - | I151: =IF(OR('Tabel 4F F'!I151<5,'Tabel 4 F'!I151<0.5),"-",IFERROR('Tabel 4 F'!I151/'Tabel 4F F'!I151*100,"-")) -> 3.225806452
A153: Ingeniører i alt | C153: =IF(OR('Tabel 4F F'!C153<5,'Tabel 4 F'!C153<0.5),"-",IFERROR('Tabel 4 F'!C153/'Tabel 4F F'!C153*100,"-")) -> 6.25 | D153: =IF(OR('Tabel 4F F'!D153<5,'Tabel 4 F'!D153<0.5),"-",IFERROR('Tabel 4 F'!D153/'Tabel 4F F'!D153*100,"-")) -> 4 | E153: =IF(OR('Tabel 4F F'!E153<5,'Tabel 4 F'!E153<0.5),"-",IFERROR('Tabel 4 F'!E153/'Tabel 4F F'!E153*100,"-")) -> 2.06185567 | F153: =IF(OR('Tabel 4F F'!F153<5,'Tabel 4 F'!F153<0.5),"-",IFERROR('Tabel 4 F'!F153/'Tabel 4F F'!F153*100,"-")) -> 2.97029703 | G153: =IF(OR('Tabel 4F F'!G153<5,'Tabel 4 F'!G153<0.5),"-",IFERROR('Tabel 4 F'!G153/'Tabel 4F F'!G153*100,"-")) -> - | I153: =IF(OR('Tabel 4F F'!I153<5,'Tabel 4 F'!I153<0.5),"-",IFERROR('Tabel 4 F'!I153/'Tabel 4F F'!I153*100,"-")) -> 2.76816609
